Workbook

Sheet Dashboard
E1: =MatchDay!$C$2&" "&MatchDay!$C$3&" "&MatchDay!$C$4&" MATCH "&MatchDay!$C$5&" "&MatchDay!$C$8 -> UPPER SOUTH Premier 2B MATCH 1 @ Luton
B2: X | E2: =MatchDay!$C$7 -> 2017-04-30
B3: Y | E3: Team Declarations | F3: =IF(MatchDay!$C$2="LOWER","LAG Boys","UAG Men") -> UAG Men | G3: =IF(MatchDay!$C$2="LOWER","LAG Girls","UAG Women") -> UAG Women | I3: =IF(MatchDay!$C$2="Upper","UPPER","LOWER") -> UPPER | J3: PRINT Field Cards & Track Start Lists | K3: =IF(MatchDay!$C$2="Upper","UPPER","LOWER") -> UPPER | M3: RESULTS PACKS | O3: TIMETABLE | Q3: BY AGE GROUP
A4: A1 | B4: Hammer | E4: =MatchDay!C13 -> Chelmsford AC | F4: =IF(E4<>"",HYPERLINK("#"&"'"&$F$3&"'!"&A4,"X"),"") -> X | G4: =IF(E4<>"",HYPERLINK("#"&"'"&$G$3&"'!"&A4,"X"),"") -> X | J4: Distance | M4: Track1 | N4: =IF(MatchDay!C2="Lower",CONCATENATE(Track1!R1,"/",26),CONCATENATE(Track1!R1,"/",24)) -> 24/24 | Q4: =IF(MatchDay!$C$2="Upper", "U20M", "U15B") -> U20M | R4: =IF(MatchDay!C2="Lower",CONCATENATE(#REF!,"/",17),CONCATENATE(U20M!R1,"/",19)) -> 17/19 | U4: =IF(R4="19/19","Y","X") -> X
A5: AA1 | B5: Long Jump | E5: =MatchDay!C14 -> Enfield & Haringey AC | F5: X | G5: X | J5: Height | M5: Page 1 | N5: =CONCATENATE(SUM(Track1!R4+Track1!R15+Track1!R26+Track1!R37),"/",4) -> 4/4 | V5: =IF(N5="4/4","Y","X") -> Y
A6: BA1 | B6: Pole Vault | E6: =MatchDay!C15 -> Havering AC | F6: X | G6: X | J6: =IFERROR(IF(MatchDay!$C$2="Upper",AB6,AC6),"") -> U20 Men & U17 Men HAMMER | M6: Page 2 | N6: =CONCATENATE(SUM(Track1!R48+Track1!R59+Track1!R70+Track1!R81),"/",4) -> 4/4 | Q6: =IF(MatchDay!$C$2="Upper", "U20W", "U15G") -> U20W | R6: =IF(MatchDay!C2="Lower",CONCATENATE(#REF!,"/",17),CONCATENATE(U20W!R1,"/",19)) -> 16/19 | U6: =IF(R6="19/19","Y","X") -> X | V6: =IF(N6="4/4","Y","X") -> Y | AB6: U20 Men & U17 Men HAMMER | AC6: U20 Men HAMMER
A7: CA1 | B7: High Jump | E7: =MatchDay!C16 -> Stevenage & North Herts AC | F7: X | G7: X | J7: =IFERROR(IF(MatchDay!$C$2="Upper",AB7,AC7),"") -> U20 Men & U17 Men LONG JUMP | M7: Page 3 | N7: =CONCATENATE(SUM(Track1!R92+Track1!R103+Track1!R114+Track1!R125),"/",4) -> 4/4 | V7: Y | AB7: U20 Men & U17 Men LONG JUMP | AC7: U17 Men HAMMER
A8: DA1 | B8: Javelin | E8: =MatchDay!C17 -> Team Bedfordshire © | F8: X | G8: X | J8: =IFERROR(IF(MatchDay!$C$2="Upper",AB8,AC8),"") -> U20 Women & U17 Women POLE VAULT | M8: Page 4 | N8: =CONCATENATE(SUM(Track1!R136+Track1!R147+Track1!R158+Track1!R169),"/",4) -> 4/4 | Q8: =IF(MatchDay!$C$2="Upper", "U17M", "U13B") -> U17M | R8: =IF(MatchDay!C2="Lower",CONCATENATE(#REF!,"/",12),CONCATENATE(U17M!R1,"/",19)) -> 17/19 | U8: =IF(R8="19/19","Y","X") -> X | V8: Y | AB8: U20 Women & U17 Women POLE VAULT | AC8: U20 Men LONG JUMP
A9: EA1 | B9: Shot | E9: =MatchDay!C18 -> Tonbridge AC | F9: X | G9: X | J9: =IFERROR(IF(MatchDay!$C$2="Upper",AB9,AC9),"") -> U20 Women & U17 Women HAMMER | M9: Page 5 | N9: =CONCATENATE(SUM(Track1!R180+Track1!R191+Track1!R202+Track1!R213),"/",4) -> 4/4 | V9: Y | AB9: U20 Women & U17 Women HAMMER | AC9: U17 Men LONG JUMP
A10: FA1 | B10: Triple Jump | E10: =MatchDay!C19 ->  | J10: =IFERROR(IF(MatchDay!$C$2="Upper",AB10,AC10),"") -> U20 Men & U17 Men HIGH JUMP | M10: Page 6 | N10: =CONCATENATE(SUM(Track1!R224+Track1!R235+Track1!R246+Track1!R257),"/",4) -> 4/4 | Q10: =IF(MatchDay!$C$2="Upper", "U17W", "U13G") -> U17W | R10: =IF(MatchDay!C2="Lower",CONCATENATE(#REF!,"/",12),CONCATENATE(U17W!R1,"/",19)) -> 17/19 | U10: =IF(R10="19/19","Y","X") -> X | V10: Y | AB10: U20 Men & U17 Men HIGH JUMP | AC10: U20 Women POLE VAULT
A11: GA1 | B11: Discus | E11: =MatchDay!C20 ->  | J11: =IFERROR(IF(MatchDay!$C$2="Upper",AB11,AC11),"") -> U20 Women & U17 Women LONG JUMP | M11: Track2 | N11: =CONCATENATE(Track2!R1,"/",12) -> 11/12 | V11: X | AB11: U20 Women & U17 Women LONG JUMP | AC11: U17 Women POLE VAULT
J12: =IFERROR(IF(MatchDay!$C$2="Upper",AB12,AC12),"") -> U20 Men & U17 Men JAVELIN | M12: Page 1 | N12: =CONCATENATE(SUM(Track2!R4+Track2!R15+Track2!R26+Track2!R37),"/",4) -> 4/4 | Q12: Non Scorers | V12: Y | AB12: U20 Men & U17 Men JAVELIN | AC12: U20 Women HAMMER
A13: Lnk to T'table | B13: EventID | C13: Ht or Dist | E13: Input Results | F13: Go To | G13: Scored | J13: =IFERROR(IF(MatchDay!$C$2="Upper",AB13,AC13),"") -> U20 Women & U17 Women SHOT | M13: Page 2 | N13: =CONCATENATE(SUM(Track1!R56+Track1!R67+Track1!R78+Track1!R89),"/",4) -> 0/4 | V13: X | AB13: U20 Women & U17 Women SHOT | AC13: U17 Women HAMMER
A14: 64 | B14: UT01 | C14: FALSE | E14: U20 Men 400m Hurdles | F14: =IFERROR(HYPERLINK("#"&VLOOKUP(B14,timetables,128,FALSE),"X"),"") -> X | G14: =IFERROR(IF(INDIRECT(VLOOKUP(B14,timetables,133,FALSE))=1,"þ",""),"") ->  | J14: =IFERROR(IF(MatchDay!$C$2="Upper",AB14,AC14),"") -> U20 Women & U17 Women JAVELIN | M14: Page 3 | N14: =CONCATENATE(SUM(Track2!R92+Track2!R103+Track2!R125),"/",4) -> 2/4 | Q14: FULL PACK | U14: =IF(AND(U4="y",U6="y",U8="y",U10="y"),"Y","X") -> X | V14: X | AB14: U20 Women & U17 Women JAVELIN | AC14: U20 Men HIGH JUMP
A15: 65 | B15: UT02 | C15: FALSE | E15: U17 Men 400m Hurdles | F15: X | G15: =IFERROR(IF(INDIRECT(VLOOKUP(B15,timetables,133,FALSE))=1,"þ",""),"") ->  | J15: =IFERROR(IF(MatchDay!$C$2="Upper",AB15,AC15),"") -> U20 Men & U17 Men TRIPLE JUMP | M15: Relays | N15: =IF(MatchDay!C2="Lower",CONCATENATE(Relays!M1,"/",6),CONCATENATE(Relays!M1,"/",8)) -> 8/8 | V15: X | AB15: U20 Men & U17 Men TRIPLE JUMP | AC15: U17 Men HIGH JUMP
A16: 66 | B16: UT03 | C16: TRUE | E16: U20 Women 400m Hurdles | F16: X | J16: =IFERROR(IF(MatchDay!$C$2="Upper",AB16,AC16),"") -> U20 Men & U17 Men POLE VAULT | M16: Page 1 | N16: =CONCATENATE(SUM(Relays!M4+Relays!M15+Relays!M26+Relays!M37),"/",4) -> 4/4 | V16: Y | AB16: U20 Men & U17 Men POLE VAULT | AC16: U20 Women LONG JUMP
A17: 67 | B17: UT04 | C17: FALSE | E17: U17 Women 300m Hurdles | F17: X | J17: =IFERROR(IF(MatchDay!$C$2="Upper",AB17,AC17),"") -> U20 Women & U17 Women HIGH JUMP | M17: Page 2 | N17: =CONCATENATE(SUM(Relays!M48+Relays!M59+Relays!M70+Relays!M81),"/",4) -> 4/4 | V17: Y | AB17: U20 Women & U17 Women HIGH JUMP | AC17: U17 Women LONG JUMP
A18: 68 | B18: UTD01 | C18: TRUE | E18: U20 Men 1500m | F18: X | J18: =IFERROR(IF(MatchDay!$C$2="Upper",AB18,AC18),"") -> U20 Men & U17 Men SHOT | M18: Field | N18: =IF(MatchDay!C2="Lower",CONCATENATE(Field!R1,"/",22),CONCATENATE(Field!R1,"/",32)) -> 32/32 | V18: X | AB18: U20 Men & U17 Men SHOT | AC18: U20 Men JAVELIN
A19: 69 | B19: UTD02 | C19: FALSE | E19: U17 Men 1500m | F19: X | J19: =IFERROR(IF(MatchDay!$C$2="Upper",AB19,AC19),"") -> U20 Women & U17 Women DISCUS | M19: Page 1 | N19: =CONCATENATE(SUM(Field!R4+Field!R15+Field!R26+Field!R37),"/",4) -> 4/4 | V19: Y | AB19: U20 Women & U17 Women DISCUS | AC19: U17 Men JAVELIN
A20: 70 | B20: UTD03 | C20: FALSE | E20: U20 Women 1500m | F20: X | J20: =IFERROR(IF(MatchDay!$C$2="Upper",AB20,AC20),"") -> U20 Women & U17 Women TRIPLE JUMP | M20: Page 2 | N20: =CONCATENATE(SUM(Field!R48+Field!R59+Field!R70+Field!R81),"/",4) -> 4/4 | V20: Y | AB20: U20 Women & U17 Women TRIPLE JUMP | AC20: U20 Women SHOT
A21: 71 | B21: UTD04 | C21: FALSE | E21: U17 Women 1500m | F21: X | J21: =IFERROR(IF(MatchDay!$C$2="Upper",AB21,AC21),"") -> U20 Men & U17 Men DISCUS | M21: Page 3 | N21: =CONCATENATE(SUM(Field!R92+Field!R103+Field!R114+Field!R125),"/",4) -> 4/4 | V21: Y | AB21: U20 Men & U17 Men DISCUS | AC21: U17 Women SHOT
A22: 72 | B22: UT05 | C22: FALSE | E22: U20 Men 100m | F22: X | M22: Page 4 | N22: =CONCATENATE(SUM(Field!R136+Field!R147+Field!R158+Field!R169),"/",4) -> 4/4 | V22: Y | AC22: U20 Women JAVELIN
A23: 73 | B23: UT06 | C23: FALSE | E23: U17 Men 100m | F23: X | I23: =I3 -> UPPER | J23: Track Lists | K23: =K3 -> UPPER | M23: Page 5 | N23: =CONCATENATE(SUM(Field!R180+Field!R191+Field!R202+Field!R213),"/",4) -> 4/4 | V23: Y | AC23: U17 Women JAVELIN
A24: 74 | B24: UT07 | C24: TRUE | E24: U20 Women 100m | F24: X | J24: ALL TRACK EVENTS | M24: Page 6 | N24: =CONCATENATE(SUM(Field!R224+Field!R235+Field!R246+Field!R257),"/",4) -> 4/4 | V24: Y | AC24: U20 Men TRIPLE JUMP
A25: 75 | B25: UT08 | C25: TRUE | E25: U17 Women 100m | F25: X | M25: Page 7 | N25: =CONCATENATE(SUM(Field!R268+Field!R279+Field!R290+Field!R301),"/",4) -> 4/4 | V25: Y | AC25: U17 Men TRIPLE JUMP
A26: 76 | B26: UT09 | C26: FALSE | E26: U20 Men 400m | F26: X | J26: =E14&", "&E15&", "&E16&", "&E17 -> U20 Men 400m Hurdles, U17 Men 400m Hurdles, U20 Women 400m Hurdles, U17 Women 300m Hurdles | M26: Page 8 | N26: =CONCATENATE(SUM(Field!R312+Field!R323+Field!R334+Field!R345),"/",4) -> 4/4 | V26: Y | AC26: U20 Men POLE VAULT
A27: 77 | B27: UT10 | C27: FALSE | E27: U17 Men 400m | F27: X | AC27: U17 Men POLE VAULT
A28: 78 | B28: UT11 | C28: FALSE | E28: U20 Women 400m | F28: X | J28: =E18&", "&E19&", "&E20&", "&E21 -> U20 Men 1500m, U17 Men 1500m, U20 Women 1500m, U17 Women 1500m
A29: 79 | B29: UT12 | C29: FALSE | E29: U17 Women 300m | F29: X
A30: 80 | B30: UT13 | C30: FALSE | E30: U17 Women 80m Hurdles | F30: X | J30: =E22&", "&E23&", "&E24&", "&E25 -> U20 Men 100m, U17 Men 100m, U20 Women 100m, U17 Women 100m
A31: 81 | B31: UTD05 | C31: FALSE | E31: U17 Men 3000m | F31: X
A32: 82 | B32: UTD06 | C32: FALSE | E32: U20 Men 3000m | F32: X | J32: =E26&", "&E27&", "&E28&", "&E29 -> U20 Men 400m, U17 Men 400m, U20 Women 400m, U17 Women 300m
A33: 83 | B33: UT14 | C33: FALSE | E33: U20 Women 100m Hurdles | F33: X
A34: 84 | B34: UT15 | C34: FALSE | E34: U17 Men 100m Hurdles | F34: X | J34: =E30&", "&E31&", "&E32&", "&E33 -> U17 Women 80m Hurdles, U17 Men 3000m, U20 Men 3000m, U20 Women 100m Hurdles
A35: 85 | B35: UTD07 | C35: FALSE | E35: U17 Women 3000m | F35: X
A36: 86 | B36: UTD08 | C36: FALSE | E36: U20 Women 3000m | F36: X | J36: =E34&", "&E35&", "&E36&", "&E37 -> U17 Men 100m Hurdles, U17 Women 3000m, U20 Women 3000m, U20 Men 110m Hurdles
A37: 87 | B37: UT16 | C37: FALSE | E37: U20 Men 110m Hurdles | F37: X
A38: 88 | B38: UT17 | C38: FALSE | E38: U20 Men 200m | F38: X | J38: =IF(MatchDay!C2="Lower",E38&", "&E39,E38&", "&E39&", "&E40&", "&E41) -> U20 Men 200m, U17 Men 200m, U20 Women 200m, U17 Women 200m
A39: 89 | B39: UT18 | C39: FALSE | E39: U17 Men 200m | F39: X
A40: 90 | B40: UT19 | C40: FALSE | E40: U20 Women 200m | F40: X | J40: =IF(MatchDay!C2="Lower",E40&", "&E41&", "&E42&", "&E43,E42&", "&E43&", "&E44&", "&E45) -> U20 Men 800m, U17 Men 800m, U20 Women 800m, U17 Women 800m
A41: 91 | B41: UT20 | C41: FALSE | E41: U17 Women 200m | F41: X
A42: 92 | B42: UTD81 | C42: FALSE | E42: U20 Men 800m | F42: X | J42: =IF(MatchDay!C2="Lower","-",E46&", "&E47&", "&E52&", "&E53) -> U17 Women 1500m s/c, U20 Women 1500m s/c, U20 Men 2000m s/c, U17 Men 1500m s/c
A43: 93 | B43: UTD82 | C43: FALSE | E43: U17 Men 800m | F43: X
A44: 94 | B44: UTD83 | C44: FALSE | E44: U20 Women 800m | F44: X | J44: =IF(MatchDay!C2="Lower",E44&", "&E45&", "&E46&", "&E47,E48&", "&E49&", "&E50&", "&E51) -> U17 Women 4 x 100m, U17 Men 4 x 100m, U20 Women 4 x 100m, U20 Men 4 x 100m
A45: 95 | B45: UTD84 | C45: FALSE | E45: U17 Women 800m | F45: X
A46: 96 | B46: UTD09 | C46: FALSE | E46: U17 Women 1500m s/c | F46: =IFERROR(HYPERLINK("#"&VLOOKUP(B46,timetables,128,FALSE),"X"),"") -> X | G46: =IFERROR(IF(INDIRECT(VLOOKUP(B46,timetables,133,FALSE))=1,"þ",""),"") ->  | J46: =IF(MatchDay!C2="Lower",E48&", "&E49,E54&", "&E55&", "&E56&", "&E57) -> U17 Women 4 x 300m, U17 Men 4 x 400m, U20 Women 4 x 400m, U20 Men 4 x 400m
A47: 97 | B47: UTD10 | C47: FALSE | E47: U20 Women 1500m s/c | F47: X
A48: 98 | B48: UTR1 | E48: U17 Women 4 x 100m | F48: X
A49: 99 | B49: UTR2 | E49: U17 Men 4 x 100m | F49: X
A50: 100 | B50: UTR3 | E50: U20 Women 4 x 100m | F50: X
A51: 101 | B51: UTR4 | E51: U20 Men 4 x 100m | F51: X
A52: 102 | B52: UTD11 | E52: U20 Men 2000m s/c | F52: X
A53: 103 | B53: UTD12 | E53: U17 Men 1500m s/c | F53: X
A54: 104 | B54: UTDR1 | E54: U17 Women 4 x 300m | F54: X
A55: 105 | B55: UTDR2 | E55: U17 Men 4 x 400m | F55: X
A56: 106 | B56: UTDR3 | E56: U20 Women 4 x 400m | F56: X
A57: 107 | B57: UTDR4 | E57: U20 Men 4 x 400m | F57: X
A58: 108 | B58: UFD01 | E58: U20 Men Hammer | F58: X
A59: 109 | B59: UFD02 | E59: U17 Men Hammer | F59: X
A60: 110 | B60: UFW01 | E60: U20 Men Long Jump | F60: X
A61: 111 | B61: UFW02 | E61: U17 Men Long Jump | F61: X
A62: 112 | B62: UFH01 | E62: U20 Women Pole Vault | F62: X
A63: 113 | B63: UFH02 | E63: U17 Women Pole Vault | F63: X
A64: 114 | B64: UFD03 | E64: U20 Women Hammer | F64: X
A65: 115 | B65: UFD04 | E65: U17 Women Hammer | F65: X
A66: 116 | B66: UFH03 | E66: U20 Men High Jump | F66: X
A67: 117 | B67: UFH04 | E67: U17 Men High Jump | F67: X
A68: 118 | B68: UFW03 | E68: U20 Women Long Jump | F68: X
A69: 119 | B69: UFW04 | E69: U17 Women Long Jump | F69: X
A70: 120 | B70: UFD05 | E70: U20 Men Javelin | F70: X
A71: 121 | B71: UFD06 | E71: U17 Men Javelin | F71: X
A72: 122 | B72: UFD07 | E72: U20 Women Shot | F72: X
A73: 123 | B73: UFD08 | E73: U17 Women Shot | F73: X
A74: 124 | B74: UFD09 | E74: U20 Women Javelin | F74: X
A75: 125 | B75: UFD10 | E75: U17 Women Javelin | F75: X | G75: þ
A76: 126 | B76: UFW05 | E76: U20 Men Triple Jump | F76: X | G76: þ
A77: 127 | B77: UFW06 | E77: U17 Men Triple Jump | F77: X | G77: þ
A78: 128 | B78: UFH05 | E78: U20 Men Pole Vault | F78: =IFERROR(HYPERLINK("#"&VLOOKUP(B78,timetables,128,FALSE),"X"),"") -> X | G78: =IFERROR(IF(INDIRECT(VLOOKUP(B78,timetables,133,FALSE))=1,"þ",""),"") -> þ
A79: 129 | B79: UFH06 | E79: U17 Men Pole Vault | F79: X | G79: þ
A80: 130 | B80: UFH07 | E80: U20 Women High Jump | F80: X | G80: þ
A81: 131 | B81: UFH08 | E81: U17 Women High Jump | F81: X | G81: þ
A82: 132 | B82: UFD11 | E82: U20 Men Shot | F82: X | G82: þ
A83: 133 | B83: UFD12 | E83: U17 Men Shot | F83: X | G83: þ
A84: 134 | B84: UFD13 | E84: U20 Women Discus | F84: X | G84: þ
A85: 135 | B85: UFD14 | E85: U17 Women Discus | F85: X | G85: þ
A86: 136 | B86: UFW07 | E86: U20 Women Triple Jump | F86: X | G86: þ
A87: 137 | B87: UFW08 | E87: U17 Women Triple Jump | F87: X | G87: þ
A88: 138 | B88: UFD15 | E88: U20 Men Discus | F88: X | G88: þ
A89: 139 | B89: UFD16 | E89: U17 Men Discus | F89: X | G89: þ

Sheet MatchDay
B2: LEVEL | C2: UPPER | M2: Level | N2: Region | O2: Match | S2: Number of Teams | U2: =IFERROR(COUNTIFS(Teams!$F:$F,MatchDay!C2,Teams!$G:$G,MatchDay!C3,Teams!$H:$H,MatchDay!C4),"X") -> 6 | W2: =IFERROR(CONCATENATE("points",U2),"") -> points6 | Y2: =LEFT(C2,1)&"AG"&LEFT(C3,2) -> UAGSO
B3: REGION | C3: SOUTH | M3: LOWER | N3: NORTH | O3: 1 | S3: Field Timetable Rows | U3: =IF(C2="Upper",44,36) -> 44
B4: DIVISION | C4: Premier 2B | M4: UPPER | N4: SOUTH | O4: 2 | S4: Lane Draws Start | U4: =IFERROR(VLOOKUP(U2*10+C5,Timetables!$DN$3:$DR$18,5,FALSE),"X") -> 71
B5: MATCH | C5: 1 | N5: MIDLAND | O5: 3
O6: 4 | S6: Premier Match | U6: =IFERROR(SEARCH("Premier",C4),"X") -> 1
B7: Date | C7: =IFERROR(VLOOKUP($C$2&$C$3&$C$4&"Match "&$C$5,'Dates & Venues'!$A:$H,6,FALSE),"") -> 2017-04-30 | S7: Time Starts | U7: =IFERROR(SEARCH("Premier",C4),"X") -> 1
B8: Venue | C8: =IFERROR(VLOOKUP($C$2&$C$3&$C$4&"Match "&$C$5,'Dates & Venues'!$A:$H,8,FALSE),"") -> @ Luton | S8: Photofinish
B9: Host Club | C9: =IFERROR(VLOOKUP($C$2&$C$3&$C$4&"Match "&$C$5,'Dates & Venues'!$A:$H,7,FALSE),"") -> Team Bedfordshire ©
B12: Bib | C12: Team Name | D12: Abbrev. | E12: Officials | F12: Track1 | G12: Track2 | H12: Relays | I12: Field | J12: Total | K12: Posn
A13: =IFERROR(RANK(L13,$L$13:$L$20),"") -> 6 | B13: 1 | C13: =IFERROR(VLOOKUP($C$2&$C$3&$C$4&$B13,Teams!$A:$E,3,FALSE),"") -> Chelmsford AC | D13: =IFERROR(VLOOKUP($C$2&$C$3&$C$4&$B13,Teams!$A:$E,4,FALSE),"") -> Chelm | E13: 0 | F13: =SUMIF(Track1!$E:$E,MatchDay!D13,Track1!$P:$P)+SUMIF(Track1!$L:$L,MatchDay!D13,Track1!$Q:$Q) -> 113 | G13: =SUMIF(Track2!$E:$E,MatchDay!D13,Track2!$P:$P)+SUMIF(Track2!$L:$L,MatchDay!D13,Track2!$Q:$Q) -> 19 | H13: =SUMIF(Relays!$D:$D,MatchDay!D13,Relays!$L:$L) -> 3 | I13: =SUMIF(Field!$E:$E,MatchDay!D13,Field!$P:$P)+SUMIF(Field!$L:$L,MatchDay!D13,Field!$Q:$Q) -> 124 | J13: =IFERROR(IF(F13+I13+G13+H13+I13=0,"",F13+I13+G13+H13+E13),"") -> 259 | K13: =IFERROR(RANK(J13,$J$13:$J$20,0),"") -> 6 | L13: =IFERROR(J13+B13/100000,"") -> 259.00001 | M13: =C13 -> Chelmsford AC | Q13: A
A14: 3 | B14: 2 | C14: =IFERROR(VLOOKUP($C$2&$C$3&$C$4&$B14,Teams!$A:$E,3,FALSE),"") -> Enfield & Haringey AC | D14: =IFERROR(VLOOKUP($C$2&$C$3&$C$4&$B14,Teams!$A:$E,4,FALSE),"") -> E&H | E14: 0 | F14: =SUMIF(Track1!$E:$E,MatchDay!D14,Track1!$P:$P)+SUMIF(Track1!$L:$L,MatchDay!D14,Track1!$Q:$Q) -> 238 | G14: =SUMIF(Track2!$E:$E,MatchDay!D14,Track2!$P:$P)+SUMIF(Track2!$L:$L,MatchDay!D14,Track2!$Q:$Q) -> 20 | H14: =SUMIF(Relays!$D:$D,MatchDay!D14,Relays!$L:$L) -> 34 | I14: =SUMIF(Field!$E:$E,MatchDay!D14,Field!$P:$P)+SUMIF(Field!$L:$L,MatchDay!D14,Field!$Q:$Q) -> 165 | J14: =IFERROR(IF(F14+I14+G14+H14+I14=0,"",F14+I14+G14+H14+E14),"") -> 457 | K14: =IFERROR(RANK(J14,$J$13:$J$20,0),"") -> 3 | L14: 457.00002 | M14: Enfield & Haringey AC | Q14: B
A15: 2 | B15: 3 | C15: =IFERROR(VLOOKUP($C$2&$C$3&$C$4&$B15,Teams!$A:$E,3,FALSE),"") -> Havering AC | D15: =IFERROR(VLOOKUP($C$2&$C$3&$C$4&$B15,Teams!$A:$E,4,FALSE),"") -> Have | E15: 0 | F15: =SUMIF(Track1!$E:$E,MatchDay!D15,Track1!$P:$P)+SUMIF(Track1!$L:$L,MatchDay!D15,Track1!$Q:$Q) -> 198 | G15: =SUMIF(Track2!$E:$E,MatchDay!D15,Track2!$P:$P)+SUMIF(Track2!$L:$L,MatchDay!D15,Track2!$Q:$Q) -> 68 | H15: =SUMIF(Relays!$D:$D,MatchDay!D15,Relays!$L:$L) -> 53 | I15: =SUMIF(Field!$E:$E,MatchDay!D15,Field!$P:$P)+SUMIF(Field!$L:$L,MatchDay!D15,Field!$Q:$Q) -> 232 | J15: 551 | K15: 2 | L15: 551.00003 | M15: Havering AC | Q15: C
A16: 5 | B16: 4 | C16: =IFERROR(VLOOKUP($C$2&$C$3&$C$4&$B16,Teams!$A:$E,3,FALSE),"") -> Stevenage & North Herts AC | D16: =IFERROR(VLOOKUP($C$2&$C$3&$C$4&$B16,Teams!$A:$E,4,FALSE),"") -> SNH | E16: 0 | F16: =SUMIF(Track1!$E:$E,MatchDay!D16,Track1!$P:$P)+SUMIF(Track1!$L:$L,MatchDay!D16,Track1!$Q:$Q) -> 142 | G16: =SUMIF(Track2!$E:$E,MatchDay!D16,Track2!$P:$P)+SUMIF(Track2!$L:$L,MatchDay!D16,Track2!$Q:$Q) -> 13 | H16: =SUMIF(Relays!$D:$D,MatchDay!D16,Relays!$L:$L) -> 19 | I16: =SUMIF(Field!$E:$E,MatchDay!D16,Field!$P:$P)+SUMIF(Field!$L:$L,MatchDay!D16,Field!$Q:$Q) -> 243 | J16: 417 | K16: 5 | L16: 417.00004 | M16: Stevenage & North Herts AC | Q16: D
A17: 1 | B17: 5 | C17: =IFERROR(VLOOKUP($C$2&$C$3&$C$4&$B17,Teams!$A:$E,3,FALSE),"") -> Team Bedfordshire © | D17: =IFERROR(VLOOKUP($C$2&$C$3&$C$4&$B17,Teams!$A:$E,4,FALSE),"") -> Beds | E17: 0 | F17: =SUMIF(Track1!$E:$E,MatchDay!D17,Track1!$P:$P)+SUMIF(Track1!$L:$L,MatchDay!D17,Track1!$Q:$Q) -> 150 | G17: =SUMIF(Track2!$E:$E,MatchDay!D17,Track2!$P:$P)+SUMIF(Track2!$L:$L,MatchDay!D17,Track2!$Q:$Q) -> 106 | H17: =SUMIF(Relays!$D:$D,MatchDay!D17,Relays!$L:$L) -> 46 | I17: =SUMIF(Field!$E:$E,MatchDay!D17,Field!$P:$P)+SUMIF(Field!$L:$L,MatchDay!D17,Field!$Q:$Q) -> 262 | J17: 564 | K17: 1 | L17: 564.00005 | M17: Team Bedfordshire © | Q17: E
A18: 4 | B18: =IF(6>U2,"-",6) -> 6 | C18: =IFERROR(VLOOKUP($C$2&$C$3&$C$4&$B18,Teams!$A:$E,3,FALSE),"") -> Tonbridge AC | D18: =IFERROR(VLOOKUP($C$2&$C$3&$C$4&$B18,Teams!$A:$E,4,FALSE),"") -> Ton | E18: 0 | F18: =SUMIF(Track1!$E:$E,MatchDay!D18,Track1!$P:$P)+SUMIF(Track1!$L:$L,MatchDay!D18,Track1!$Q:$Q) -> 150 | G18: =SUMIF(Track2!$E:$E,MatchDay!D18,Track2!$P:$P)+SUMIF(Track2!$L:$L,MatchDay!D18,Track2!$Q:$Q) -> 98 | H18: =SUMIF(Relays!$D:$D,MatchDay!D18,Relays!$L:$L) -> 39 | I18: =SUMIF(Field!$E:$E,MatchDay!D18,Field!$P:$P)+SUMIF(Field!$L:$L,MatchDay!D18,Field!$Q:$Q) -> 133 | J18: 420 | K18: 4 | L18: 420.00006 | M18: Tonbridge AC | Q18: F
B19: =IF(7>U2,"-",7) -> - | C19: =IFERROR(VLOOKUP($C$2&$C$3&$C$4&$B19,Teams!$A:$E,3,FALSE),"") ->  | D19: =IFERROR(VLOOKUP($C$2&$C$3&$C$4&$B19,Teams!$A:$E,4,FALSE),"") ->  | E19: 0 | F19: =SUMIF(Track1!$E:$E,MatchDay!D19,Track1!$P:$P)+SUMIF(Track1!$L:$L,MatchDay!D19,Track1!$Q:$Q) -> 0 | G19: =SUMIF(Track2!$E:$E,MatchDay!D19,Track2!$P:$P)+SUMIF(Track2!$L:$L,MatchDay!D19,Track2!$Q:$Q) -> 0 | H19: =SUMIF(Relays!$D:$D,MatchDay!D19,Relays!$L:$L) -> 0 | I19: =SUMIF(Field!$E:$E,MatchDay!D19,Field!$P:$P)+SUMIF(Field!$L:$L,MatchDay!D19,Field!$Q:$Q) -> 0 | Q19: G
A20: =IFERROR(RANK(L20,$L$13:$L$20),"") ->  | B20: =IF(8>U2,"-",8) -> - | C20: =IFERROR(VLOOKUP($C$2&$C$3&$C$4&$B20,Teams!$A:$E,3,FALSE),"") ->  | D20: =IFERROR(VLOOKUP($C$2&$C$3&$C$4&$B20,Teams!$A:$E,4,FALSE),"") ->  | E20: 0 | F20: =SUMIF(Track1!$E:$E,MatchDay!D20,Track1!$P:$P)+SUMIF(Track1!$L:$L,MatchDay!D20,Track1!$Q:$Q) -> 0 | G20: =SUMIF(Track2!$E:$E,MatchDay!D20,Track2!$P:$P)+SUMIF(Track2!$L:$L,MatchDay!D20,Track2!$Q:$Q) -> 0 | H20: =SUMIF(Relays!$D:$D,MatchDay!D20,Relays!$L:$L) -> 0 | I20: =SUMIF(Field!$E:$E,MatchDay!D20,Field!$P:$P)+SUMIF(Field!$L:$L,MatchDay!D20,Field!$Q:$Q) -> 0 | Q20: H
B22: Posn | C22: Team Name | D22: Points | E22: League | F22: B/fwd L | G22: B/fwd M | H22: Total L | I22: Total M
A23: 1 | B23: =IFERROR(VLOOKUP(A23,$A$13:$M$20,11,FALSE),"-") -> 1 | C23: =IFERROR(VLOOKUP($A23,$A$13:$M$20,3,FALSE),"") -> Team Bedfordshire © | D23: =IFERROR(VLOOKUP($A23,$A$13:$M$20,10,FALSE),"") -> 564
A24: 2 | B24: =IFERROR(VLOOKUP(A24,$A$13:$M$20,11,FALSE),"-") -> 2 | C24: Havering AC | D24: 551
A25: 3 | B25: 3 | C25: Enfield & Haringey AC | D25: 457
A26: 4 | B26: 4 | C26: Tonbridge AC | D26: 420
A27: 5 | B27: 5 | C27: Stevenage & North Herts AC | D27: 417
A28: 6 | B28: 6 | C28: Chelmsford AC | D28: 259
A29: 7 | B29: -
A30: 8 | B30: -
C32: TOTAL EVENTS | D32: =IFERROR(IF(C2="UPPER",19*4,(15*2)+(13*2)),"") -> 76
C33: EVENT SCORED | D33: =Track1!R1+Track2!R1+Relays!M1+Field!R1 -> 75
C34: REMAINING | D34: =D32-D33 -> 1

Sheet StartLists (Track)
A1: ="UK ATHLETICS :: YOUTH DEVELOPMENT LEAGUE 2017 " -> UK ATHLETICS :: YOUTH DEVELOPMENT LEAGUE 2017 | B1: =MatchDay!C2&" AGE GROUP"&" "&MatchDay!C3&" "&MatchDay!C4 -> UPPER AGE GROUP SOUTH Premier 2B | J1: =MatchDay!C7 -> 2017-04-30 | K1: =MatchDay!C8 -> @ Luton
A2: UT01 | B2: =IFERROR(VLOOKUP(A2,timetables,2,FALSE)&" "&VLOOKUP(A2,timetables,3,FALSE)&" A","") -> 400m Hurdles U20 Men A | E2: Starts | F2: =IFERROR(VLOOKUP(A2,timetables,7-MatchDay!$U$7,FALSE),"") -> 11.1 | H2: B | I2: =IFERROR(VLOOKUP(A2,records,3,FALSE)&", "&VLOOKUP(A2,records,4,FALSE)&", "&VLOOKUP(A2,records,8,FALSE),"") -> Jacob Paul, Windsor Slough Eton & Hounslow, 2013 | L2: =IFERROR(VLOOKUP(A2,records,5,FALSE),"") -> 52.03
A3: =MID(A2,2,3) -> T01 | B3: Lane | C3: No. | D3: Athlete | E3: Club | H3: Lane | I3: No. | J3: Athlete | K3: Club
A4: =IFERROR(VLOOKUP(A2,Timetables!$A:$E,5,FALSE)-1,"") -> 157 | B4: 1 | C4: =IFERROR(IF(B4>MatchDay!$U$2,"-",VLOOKUP(A2,timetables,MatchDay!$U$4,FALSE)),0) -> 3 | D4: =IFERROR(IF(A10=0,HLOOKUP(C4,Declarations!$D$2:$S$193,A4,FALSE),HLOOKUP(VLOOKUP(C4,Teams!$Y$2:$Z$18,2,FALSE),Declarations!$D$2:$S$193,A4,FALSE)),"") -> Kieran Riddell | E4: =IFERROR(VLOOKUP(C4,teamlookup,5,FALSE),"") -> Have | H4: 1 | I4: =IFERROR(IF($A10=0,C4*11,C4&C4),"") -> 33 | J4: =IFERROR(IF(A10=0,HLOOKUP(I4,Declarations!$D$2:$S$193,A4,FALSE),HLOOKUP(VLOOKUP(I4,Teams!$Y$2:$Z$18,2,FALSE),Declarations!$D$2:$S$193,A4,FALSE)),"") ->  | K4: =IFERROR(VLOOKUP(I4,teamlookup,5,FALSE),"") -> Have | S4: =IFERROR(IF(A10=0,"numbers_","letters_"),"") -> numbers_
A5: 3 | B5: 2 | C5: =IFERROR(IF(B5>MatchDay!$U$2,"-",VLOOKUP(A2,timetables,MatchDay!$U$4+1,FALSE)),0) -> 6 | D5: =IFERROR(IF(A10=0,HLOOKUP(C5,Declarations!$D$2:$S$193,A4,FALSE),HLOOKUP(VLOOKUP(C5,Teams!$Y$2:$Z$18,2,FALSE),Declarations!$D$2:$S$193,A4,FALSE)),"") -> PITCAIRN-KNOWLES Bede | E5: =IFERROR(VLOOKUP(C5,teamlookup,5,FALSE),"") -> Ton | H5: 2 | I5: =IFERROR(IF($A10=0,C5*11,C5&C5),"") -> 66 | J5: =IFERROR(IF(A10=0,HLOOKUP(I5,Declarations!$D$2:$S$193,A4,FALSE),HLOOKUP(VLOOKUP(I5,Teams!$Y$2:$Z$18,2,FALSE),Declarations!$D$2:$S$193,A4,FALSE)),"") -> CRICK Samuel | K5: Ton
A6: =IFERROR(VLOOKUP(A2,standards,3,FALSE)+0.01,"-") -> 54.71 | B6: 3 | C6: =IFERROR(IF(B6>MatchDay!$U$2,"-",VLOOKUP(A2,timetables,MatchDay!$U$4+2,FALSE)),0) -> 4 | D6: =IFERROR(IF(A10=0,HLOOKUP(C6,Declarations!$D$2:$S$193,A4,FALSE),HLOOKUP(VLOOKUP(C6,Teams!$Y$2:$Z$18,2,FALSE),Declarations!$D$2:$S$193,A4,FALSE)),"") -> Will Rodway | E6: SNH | H6: 3 | I6: =IFERROR(IF($A10=0,C6*11,C6&C6),"") -> 44 | J6: =IFERROR(IF(A10=0,HLOOKUP(I6,Declarations!$D$2:$S$193,A4,FALSE),HLOOKUP(VLOOKUP(I6,Teams!$Y$2:$Z$18,2,FALSE),Declarations!$D$2:$S$193,A4,FALSE)),"") ->  | K6: SNH
A7: =IFERROR(VLOOKUP(A2,standards,4,FALSE)+0.01,"-") -> 55.81 | B7: 4 | C7: =IFERROR(IF(B7>MatchDay!$U$2,"-",VLOOKUP(A2,timetables,MatchDay!$U$4+3,FALSE)),0) -> 2 | D7: =IFERROR(IF(A10=0,HLOOKUP(C7,Declarations!$D$2:$S$193,A4,FALSE),HLOOKUP(VLOOKUP(C7,Teams!$Y$2:$Z$18,2,FALSE),Declarations!$D$2:$S$193,A4,FALSE)),"") ->  | E7: E&H | H7: 4 | I7: =IFERROR(IF($A10=0,C7*11,C7&C7),"") -> 22 | J7: =IFERROR(IF(A10=0,HLOOKUP(I7,Declarations!$D$2:$S$193,A4,FALSE),HLOOKUP(VLOOKUP(I7,Teams!$Y$2:$Z$18,2,FALSE),Declarations!$D$2:$S$193,A4,FALSE)),"") ->  | K7: E&H
A8: =IFERROR(VLOOKUP(A2,standards,5,FALSE)+0.01,"-") -> 57.51 | B8: 5 | C8: =IFERROR(IF(B8>MatchDay!$U$2,"-",VLOOKUP(A2,timetables,MatchDay!$U$4+4,FALSE)),0) -> 5 | D8: =IFERROR(IF(A10=0,HLOOKUP(C8,Declarations!$D$2:$S$193,A4,FALSE),HLOOKUP(VLOOKUP(C8,Teams!$Y$2:$Z$18,2,FALSE),Declarations!$D$2:$S$193,A4,FALSE)),"") ->  | E8: Beds | H8: 5 | I8: =IFERROR(IF($A10=0,C8*11,C8&C8),"") -> 55 | J8: =IFERROR(IF(A10=0,HLOOKUP(I8,Declarations!$D$2:$S$193,A4,FALSE),HLOOKUP(VLOOKUP(I8,Teams!$Y$2:$Z$18,2,FALSE),Declarations!$D$2:$S$193,A4,FALSE)),"") ->  | K8: Beds
A9: =IFERROR(VLOOKUP(A2,standards,6,FALSE)+0.01,"-") -> 57.51 | B9: 6 | C9: =IFERROR(IF(B9>MatchDay!$U$2,"-",VLOOKUP(A2,timetables,MatchDay!$U$4+5,FALSE)),0) -> 1 | D9: =IFERROR(IF(A10=0,HLOOKUP(C9,Declarations!$D$2:$S$193,A4,FALSE),HLOOKUP(VLOOKUP(C9,Teams!$Y$2:$Z$18,2,FALSE),Declarations!$D$2:$S$193,A4,FALSE)),"") ->  | E9: Chelm | H9: 6 | I9: =IFERROR(IF($A10=0,C9*11,C9&C9),"") -> 11 | J9: =IFERROR(IF(A10=0,HLOOKUP(I9,Declarations!$D$2:$S$193,A4,FALSE),HLOOKUP(VLOOKUP(I9,Teams!$Y$2:$Z$18,2,FALSE),Declarations!$D$2:$S$193,A4,FALSE)),"") ->  | K9: Chelm
A10: =IFERROR(SEARCH("U17",B2),0) -> 0 | B10: 7 | C10: =IFERROR(IF(B10>MatchDay!$U$2,"-",VLOOKUP(A2,timetables,MatchDay!$U$4+6,FALSE)),0) -> - | D10: =IFERROR(IF(A10=0,HLOOKUP(C10,Declarations!$D$2:$S$193,A4,FALSE),HLOOKUP(VLOOKUP(C10,Teams!$Y$2:$Z$18,2,FALSE),Declarations!$D$2:$S$193,A4,FALSE)),"") ->  | H10: 7 | I10: =IFERROR(IF($A10=0,C10*11,C10&C10),"") ->  | J10: =IFERROR(IF(A10=0,HLOOKUP(I10,Declarations!$D$2:$S$193,A4,FALSE),HLOOKUP(VLOOKUP(I10,Teams!$Y$2:$Z$18,2,FALSE),Declarations!$D$2:$S$193,A4,FALSE)),"") -> 
A11: =IFERROR(VLOOKUP(A2,records,5,FALSE),"") -> 52.03 | B11: 8 | C11: =IFERROR(IF(B11>MatchDay!$U$2,"-",VLOOKUP(A2,timetables,MatchDay!$U$4+7,FALSE)),0) -> - | D11: =IFERROR(IF(A10=0,HLOOKUP(C11,Declarations!$D$2:$S$193,A4,FALSE),HLOOKUP(VLOOKUP(C11,Teams!$Y$2:$Z$18,2,FALSE),Declarations!$D$2:$S$193,A4,FALSE)),"") ->  | H11: 8 | I11: =IFERROR(IF($A10=0,C11*11,C11&C11),"") ->  | J11: =IFERROR(IF(A10=0,HLOOKUP(I11,Declarations!$D$2:$S$193,A4,FALSE),HLOOKUP(VLOOKUP(I11,Teams!$Y$2:$Z$18,2,FALSE),Declarations!$D$2:$S$193,A4,FALSE)),"") -> 
A13: UT02 | B13: =IFERROR(VLOOKUP(A13,timetables,2,FALSE)&" "&VLOOKUP(A13,timetables,3,FALSE)&" A","") -> 400m Hurdles U17 Men A | E13: Starts | F13: =IFERROR(VLOOKUP(A13,timetables,7-MatchDay!$U$7,FALSE),"") -> 11.2 | H13: B | I13: =IFERROR(VLOOKUP(A13,records,3,FALSE)&", "&VLOOKUP(A13,records,4,FALSE)&", "&VLOOKUP(A13,records,8,FALSE),"") -> Bailey Stickings, Blackheath & Bromley Harriers A.C., 2014 | L13: =IFERROR(VLOOKUP(A13,records,5,FALSE),"") -> 54.05
A14: =MID(A13,2,3) -> T02 | B14: Lane | C14: No. | D14: Athlete | E14: Club | H14: Lane | I14: No. | J14: Athlete | K14: Club
A15: =IFERROR(VLOOKUP(A13,Timetables!$A:$E,5,FALSE)-1,"") -> 180 | B15: 1 | C15: =IFERROR(IF(B15>MatchDay!$U$2,"-",VLOOKUP(A13,timetables,MatchDay!$U$4,FALSE)),0) -> C | D15: =IFERROR(IF(A21=0,HLOOKUP(C15,Declarations!$D$2:$S$193,A15,FALSE),HLOOKUP(VLOOKUP(C15,Teams!$Y$2:$Z$18,2,FALSE),Declarations!$D$2:$S$193,A15,FALSE)),"") ->  | E15: =IFERROR(VLOOKUP(C15,teamlookup,5,FALSE),"") -> Have | H15: 1 | I15: =IFERROR(IF($A21=0,C15*11,C15&C15),"") -> CC | J15: =IFERROR(IF(A21=0,HLOOKUP(I15,Declarations!$D$2:$S$193,A15,FALSE),HLOOKUP(VLOOKUP(I15,Teams!$Y$2:$Z$18,2,FALSE),Declarations!$D$2:$S$193,A15,FALSE)),"") ->  | K15: =IFERROR(VLOOKUP(I15,teamlookup,5,FALSE),"") -> Have | S15: =IFERROR(IF(A21=0,"numbers_","letters_"),"") -> letters_
A16: =A5+1 -> 4 | B16: 2 | C16: =IFERROR(IF(B16>MatchDay!$U$2,"-",VLOOKUP(A13,timetables,MatchDay!$U$4+1,FALSE)),0) -> F | D16: =IFERROR(IF(A21=0,HLOOKUP(C16,Declarations!$D$2:$S$193,A15,FALSE),HLOOKUP(VLOOKUP(C16,Teams!$Y$2:$Z$18,2,FALSE),Declarations!$D$2:$S$193,A15,FALSE)),"") ->  | E16: =IFERROR(VLOOKUP(C16,teamlookup,5,FALSE),"") -> Ton | H16: 2 | I16: =IFERROR(IF($A21=0,C16*11,C16&C16),"") -> FF | J16: =IFERROR(IF(A21=0,HLOOKUP(I16,Declarations!$D$2:$S$193,A15,FALSE),HLOOKUP(VLOOKUP(I16,Teams!$Y$2:$Z$18,2,FALSE),Declarations!$D$2:$S$193,A15,FALSE)),"") ->  | K16: Ton
A17: =IFERROR(VLOOKUP(A13,standards,3,FALSE)+0.01,"-") -> 55.91 | B17: 3 | C17: =IFERROR(IF(B17>MatchDay!$U$2,"-",VLOOKUP(A13,timetables,MatchDay!$U$4+2,FALSE)),0) -> D | D17: =IFERROR(IF(A21=0,HLOOKUP(C17,Declarations!$D$2:$S$193,A15,FALSE),HLOOKUP(VLOOKUP(C17,Teams!$Y$2:$Z$18,2,FALSE),Declarations!$D$2:$S$193,A15,FALSE)),"") -> Freddie Reilly | E17: SNH | H17: 3 | I17: =IFERROR(IF($A21=0,C17*11,C17&C17),"") -> DD | J17: =IFERROR(IF(A21=0,HLOOKUP(I17,Declarations!$D$2:$S$193,A15,FALSE),HLOOKUP(VLOOKUP(I17,Teams!$Y$2:$Z$18,2,FALSE),Declarations!$D$2:$S$193,A15,FALSE)),"") ->  | K17: SNH
A18: =IFERROR(VLOOKUP(A13,standards,4,FALSE)+0.01,"-") -> 57.51 | B18: 4 | C18: =IFERROR(IF(B18>MatchDay!$U$2,"-",VLOOKUP(A13,timetables,MatchDay!$U$4+3,FALSE)),0) -> B | D18: =IFERROR(IF(A21=0,HLOOKUP(C18,Declarations!$D$2:$S$193,A15,FALSE),HLOOKUP(VLOOKUP(C18,Teams!$Y$2:$Z$18,2,FALSE),Declarations!$D$2:$S$193,A15,FALSE)),"") -> WILLIAMS Haydn | E18: E&H | H18: 4 | I18: =IFERROR(IF($A21=0,C18*11,C18&C18),"") -> BB | J18: =IFERROR(IF(A21=0,HLOOKUP(I18,Declarations!$D$2:$S$193,A15,FALSE),HLOOKUP(VLOOKUP(I18,Teams!$Y$2:$Z$18,2,FALSE),Declarations!$D$2:$S$193,A15,FALSE)),"") ->  | K18: E&H
A19: =IFERROR(VLOOKUP(A13,standards,5,FALSE)+0.01,"-") -> 59.51 | B19: 5 | C19: =IFERROR(IF(B19>MatchDay!$U$2,"-",VLOOKUP(A13,timetables,MatchDay!$U$4+4,FALSE)),0) -> E | D19: =IFERROR(IF(A21=0,HLOOKUP(C19,Declarations!$D$2:$S$193,A15,FALSE),HLOOKUP(VLOOKUP(C19,Teams!$Y$2:$Z$18,2,FALSE),Declarations!$D$2:$S$193,A15,FALSE)),"") ->  | E19: Beds | H19: 5 | I19: =IFERROR(IF($A21=0,C19*11,C19&C19),"") -> EE | J19: =IFERROR(IF(A21=0,HLOOKUP(I19,Declarations!$D$2:$S$193,A15,FALSE),HLOOKUP(VLOOKUP(I19,Teams!$Y$2:$Z$18,2,FALSE),Declarations!$D$2:$S$193,A15,FALSE)),"") ->  | K19: Beds
A20: =IFERROR(VLOOKUP(A13,standards,6,FALSE)+0.01,"-") -> 62.51 | B20: 6 | C20: =IFERROR(IF(B20>MatchDay!$U$2,"-",VLOOKUP(A13,timetables,MatchDay!$U$4+5,FALSE)),0) -> A | D20: =IFERROR(IF(A21=0,HLOOKUP(C20,Declarations!$D$2:$S$193,A15,FALSE),HLOOKUP(VLOOKUP(C20,Teams!$Y$2:$Z$18,2,FALSE),Declarations!$D$2:$S$193,A15,FALSE)),"") -> BENNETT kieran | E20: Chelm | H20: 6 | I20: =IFERROR(IF($A21=0,C20*11,C20&C20),"") -> AA | J20: =IFERROR(IF(A21=0,HLOOKUP(I20,Declarations!$D$2:$S$193,A15,FALSE),HLOOKUP(VLOOKUP(I20,Teams!$Y$2:$Z$18,2,FALSE),Declarations!$D$2:$S$193,A15,FALSE)),"") ->  | K20: Chelm
A21: =IFERROR(SEARCH("U17",B13),0) -> 14 | B21: 7 | C21: =IFERROR(IF(B21>MatchDay!$U$2,"-",VLOOKUP(A13,timetables,MatchDay!$U$4+6,FALSE)),0) -> - | D21: =IFERROR(IF(A21=0,HLOOKUP(C21,Declarations!$D$2:$S$193,A15,FALSE),HLOOKUP(VLOOKUP(C21,Teams!$Y$2:$Z$18,2,FALSE),Declarations!$D$2:$S$193,A15,FALSE)),"") ->  | H21: 7 | I21: =IFERROR(IF($A21=0,C21*11,C21&C21),"") -> -- | J21: =IFERROR(IF(A21=0,HLOOKUP(I21,Declarations!$D$2:$S$193,A15,FALSE),HLOOKUP(VLOOKUP(I21,Teams!$Y$2:$Z$18,2,FALSE),Declarations!$D$2:$S$193,A15,FALSE)),"") -> 
A22: =IFERROR(VLOOKUP(A13,records,5,FALSE),"") -> 54.05 | B22: 8 | C22: =IFERROR(IF(B22>MatchDay!$U$2,"-",VLOOKUP(A13,timetables,MatchDay!$U$4+7,FALSE)),0) -> - | D22: =IFERROR(IF(A21=0,HLOOKUP(C22,Declarations!$D$2:$S$193,A15,FALSE),HLOOKUP(VLOOKUP(C22,Teams!$Y$2:$Z$18,2,FALSE),Declarations!$D$2:$S$193,A15,FALSE)),"") ->  | H22: 8 | I22: =IFERROR(IF($A21=0,C22*11,C22&C22),"") -> -- | J22: =IFERROR(IF(A21=0,HLOOKUP(I22,Declarations!$D$2:$S$193,A15,FALSE),HLOOKUP(VLOOKUP(I22,Teams!$Y$2:$Z$18,2,FALSE),Declarations!$D$2:$S$193,A15,FALSE)),"") -> 
A24: UT03 | B24: =IFERROR(VLOOKUP(A24,timetables,2,FALSE)&" "&VLOOKUP(A24,timetables,3,FALSE)&" A","") -> 400m Hurdles U20 Women A | E24: Starts | F24: =IFERROR(VLOOKUP(A24,timetables,7-MatchDay!$U$7,FALSE),"") -> 11.3 | H24: B | I24: =IFERROR(VLOOKUP(A24,records,3,FALSE)&", "&VLOOKUP(A24,records,4,FALSE)&", "&VLOOKUP(A24,records,8,FALSE),"") -> Shona Richards, Windsor Slough Eton & Hounslow, 2014 | L24: =IFERROR(VLOOKUP(A24,records,5,FALSE),"") -> 57.91
A25: =MID(A24,2,3) -> T03 | B25: Lane | C25: No. | D25: Athlete | E25: Club | H25: Lane | I25: No. | J25: Athlete | K25: Club
A26: =IFERROR(VLOOKUP(A24,Timetables!$A:$E,5,FALSE)-1,"") -> 111 | B26: 1 | C26: =IFERROR(IF(B26>MatchDay!$U$2,"-",VLOOKUP(A24,timetables,MatchDay!$U$4,FALSE)),0) -> 3 | D26: =IFERROR(IF(A32=0,HLOOKUP(C26,Declarations!$D$2:$S$193,A26,FALSE),HLOOKUP(VLOOKUP(C26,Teams!$Y$2:$Z$18,2,FALSE),Declarations!$D$2:$S$193,A26,FALSE)),"") ->  | E26: =IFERROR(VLOOKUP(C26,teamlookup,5,FALSE),"") -> Have | H26: 1 | I26: =IFERROR(IF($A32=0,C26*11,C26&C26),"") -> 33 | J26: =IFERROR(IF(A32=0,HLOOKUP(I26,Declarations!$D$2:$S$193,A26,FALSE),HLOOKUP(VLOOKUP(I26,Teams!$Y$2:$Z$18,2,FALSE),Declarations!$D$2:$S$193,A26,FALSE)),"") ->  | K26: =IFERROR(VLOOKUP(I26,teamlookup,5,FALSE),"") -> Have | S26: =IFERROR(IF(A32=0,"numbers_","letters_"),"") -> numbers_
A27: =A16+1 -> 5 | B27: 2 | C27: =IFERROR(IF(B27>MatchDay!$U$2,"-",VLOOKUP(A24,timetables,MatchDay!$U$4+1,FALSE)),0) -> 6 | D27: =IFERROR(IF(A32=0,HLOOKUP(C27,Declarations!$D$2:$S$193,A26,FALSE),HLOOKUP(VLOOKUP(C27,Teams!$Y$2:$Z$18,2,FALSE),Declarations!$D$2:$S$193,A26,FALSE)),"") ->  | E27: =IFERROR(VLOOKUP(C27,teamlookup,5,FALSE),"") -> Ton | H27: 2 | I27: =IFERROR(IF($A32=0,C27*11,C27&C27),"") -> 66 | J27: =IFERROR(IF(A32=0,HLOOKUP(I27,Declarations!$D$2:$S$193,A26,FALSE),HLOOKUP(VLOOKUP(I27,Teams!$Y$2:$Z$18,2,FALSE),Declarations!$D$2:$S$193,A26,FALSE)),"") ->  | K27: Ton
A28: =IFERROR(VLOOKUP(A24,standards,3,FALSE)+0.01,"-") -> 61.81 | B28: 3 | C28: =IFERROR(IF(B28>MatchDay!$U$2,"-",VLOOKUP(A24,timetables,MatchDay!$U$4+2,FALSE)),0) -> 4 | D28: =IFERROR(IF(A32=0,HLOOKUP(C28,Declarations!$D$2:$S$193,A26,FALSE),HLOOKUP(VLOOKUP(C28,Teams!$Y$2:$Z$18,2,FALSE),Declarations!$D$2:$S$193,A26,FALSE)),"") -> Rebecca Pickard | E28: SNH | H28: 3 | I28: =IFERROR(IF($A32=0,C28*11,C28&C28),"") -> 44 | J28: =IFERROR(IF(A32=0,HLOOKUP(I28,Declarations!$D$2:$S$193,A26,FALSE),HLOOKUP(VLOOKUP(I28,Teams!$Y$2:$Z$18,2,FALSE),Declarations!$D$2:$S$193,A26,FALSE)),"") ->  | K28: SNH
A29: =IFERROR(VLOOKUP(A24,standards,4,FALSE)+0.01,"-") -> 64.71 | B29: 4 | C29: =IFERROR(IF(B29>MatchDay!$U$2,"-",VLOOKUP(A24,timetables,MatchDay!$U$4+3,FALSE)),0) -> 2 | D29: =IFERROR(IF(A32=0,HLOOKUP(C29,Declarations!$D$2:$S$193,A26,FALSE),HLOOKUP(VLOOKUP(C29,Teams!$Y$2:$Z$18,2,FALSE),Declarations!$D$2:$S$193,A26,FALSE)),"") ->  | E29: E&H | H29: 4 | I29: =IFERROR(IF($A32=0,C29*11,C29&C29),"") -> 22 | J29: =IFERROR(IF(A32=0,HLOOKUP(I29,Declarations!$D$2:$S$193,A26,FALSE),HLOOKUP(VLOOKUP(I29,Teams!$Y$2:$Z$18,2,FALSE),Declarations!$D$2:$S$193,A26,FALSE)),"") ->  | K29: E&H
A30: =IFERROR(VLOOKUP(A24,standards,5,FALSE)+0.01,"-") -> 66.91 | B30: 5 | C30: =IFERROR(IF(B30>MatchDay!$U$2,"-",VLOOKUP(A24,timetables,MatchDay!$U$4+4,FALSE)),0) -> 5 | D30: =IFERROR(IF(A32=0,HLOOKUP(C30,Declarations!$D$2:$S$193,A26,FALSE),HLOOKUP(VLOOKUP(C30,Teams!$Y$2:$Z$18,2,FALSE),Declarations!$D$2:$S$193,A26,FALSE)),"") ->  | E30: Beds | H30: 5 | I30: =IFERROR(IF($A32=0,C30*11,C30&C30),"") -> 55 | J30: =IFERROR(IF(A32=0,HLOOKUP(I30,Declarations!$D$2:$S$193,A26,FALSE),HLOOKUP(VLOOKUP(I30,Teams!$Y$2:$Z$18,2,FALSE),Declarations!$D$2:$S$193,A26,FALSE)),"") ->  | K30: Beds
A31: =IFERROR(VLOOKUP(A24,standards,6,FALSE)+0.01,"-") -> 66.91 | B31: 6 | C31: =IFERROR(IF(B31>MatchDay!$U$2,"-",VLOOKUP(A24,timetables,MatchDay!$U$4+5,FALSE)),0) -> 1 | D31: =IFERROR(IF(A32=0,HLOOKUP(C31,Declarations!$D$2:$S$193,A26,FALSE),HLOOKUP(VLOOKUP(C31,Teams!$Y$2:$Z$18,2,FALSE),Declarations!$D$2:$S$193,A26,FALSE)),"") ->  | E31: Chelm | H31: 6 | I31: =IFERROR(IF($A32=0,C31*11,C31&C31),"") -> 11 | J31: =IFERROR(IF(A32=0,HLOOKUP(I31,Declarations!$D$2:$S$193,A26,FALSE),HLOOKUP(VLOOKUP(I31,Teams!$Y$2:$Z$18,2,FALSE),Declarations!$D$2:$S$193,A26,FALSE)),"") ->  | K31: Chelm
A32: =IFERROR(SEARCH("U17",B24),0) -> 0 | B32: 7 | C32: =IFERROR(IF(B32>MatchDay!$U$2,"-",VLOOKUP(A24,timetables,MatchDay!$U$4+6,FALSE)),0) -> - | D32: =IFERROR(IF(A32=0,HLOOKUP(C32,Declarations!$D$2:$S$193,A26,FALSE),HLOOKUP(VLOOKUP(C32,Teams!$Y$2:$Z$18,2,FALSE),Declarations!$D$2:$S$193,A26,FALSE)),"") ->  | H32: 7 | I32: =IFERROR(IF($A32=0,C32*11,C32&C32),"") ->  | J32: =IFERROR(IF(A32=0,HLOOKUP(I32,Declarations!$D$2:$S$193,A26,FALSE),HLOOKUP(VLOOKUP(I32,Teams!$Y$2:$Z$18,2,FALSE),Declarations!$D$2:$S$193,A26,FALSE)),"") -> 
A33: =IFERROR(VLOOKUP(A24,records,5,FALSE),"") -> 57.91 | B33: 8 | C33: =IFERROR(IF(B33>MatchDay!$U$2,"-",VLOOKUP(A24,timetables,MatchDay!$U$4+7,FALSE)),0) -> - | D33: =IFERROR(IF(A32=0,HLOOKUP(C33,Declarations!$D$2:$S$193,A26,FALSE),HLOOKUP(VLOOKUP(C33,Teams!$Y$2:$Z$18,2,FALSE),Declarations!$D$2:$S$193,A26,FALSE)),"") ->  | H33: 8 | I33: =IFERROR(IF($A32=0,C33*11,C33&C33),"") ->  | J33: =IFERROR(IF(A32=0,HLOOKUP(I33,Declarations!$D$2:$S$193,A26,FALSE),HLOOKUP(VLOOKUP(I33,Teams!$Y$2:$Z$18,2,FALSE),Declarations!$D$2:$S$193,A26,FALSE)),"") -> 
A35: UT04 | B35: =IFERROR(VLOOKUP(A35,timetables,2,FALSE)&" "&VLOOKUP(A35,timetables,3,FALSE)&" A","") -> 300m Hurdles U17 Women A | E35: Starts | F35: =IFERROR(VLOOKUP(A35,timetables,7-MatchDay!$U$7,FALSE),"") -> 11.4 | H35: B | I35: =IFERROR(VLOOKUP(A35,records,3,FALSE)&", "&VLOOKUP(A35,records,4,FALSE)&", "&VLOOKUP(A35,records,8,FALSE),"") -> Abigail Bowers, Border Olympians, 2014 | L35: =IFERROR(VLOOKUP(A35,records,5,FALSE),"") -> 43.2
A36: =MID(A35,2,3) -> T04 | B36: Lane | C36: No. | D36: Athlete | E36: Club | H36: Lane | I36: No. | J36: Athlete | K36: Club
A37: =IFERROR(VLOOKUP(A35,Timetables!$A:$E,5,FALSE)-1,"") -> 134 | B37: 1 | C37: =IFERROR(IF(B37>MatchDay!$U$2,"-",VLOOKUP(A35,timetables,MatchDay!$U$4,FALSE)),0) -> C | D37: =IFERROR(IF(A43=0,HLOOKUP(C37,Declarations!$D$2:$S$193,A37,FALSE),HLOOKUP(VLOOKUP(C37,Teams!$Y$2:$Z$18,2,FALSE),Declarations!$D$2:$S$193,A37,FALSE)),"") -> Mayi Hughes | E37: =IFERROR(VLOOKUP(C37,teamlookup,5,FALSE),"") -> Have | H37: 1 | I37: =IFERROR(IF($A43=0,C37*11,C37&C37),"") -> CC | J37: =IFERROR(IF(A43=0,HLOOKUP(I37,Declarations!$D$2:$S$193,A37,FALSE),HLOOKUP(VLOOKUP(I37,Teams!$Y$2:$Z$18,2,FALSE),Declarations!$D$2:$S$193,A37,FALSE)),"") ->  | K37: =IFERROR(VLOOKUP(I37,teamlookup,5,FALSE),"") -> Have | S37: =IFERROR(IF(A43=0,"numbers_","letters_"),"") -> letters_
A38: =A27+1 -> 6 | B38: 2 | C38: =IFERROR(IF(B38>MatchDay!$U$2,"-",VLOOKUP(A35,timetables,MatchDay!$U$4+1,FALSE)),0) -> F | D38: =IFERROR(IF(A43=0,HLOOKUP(C38,Declarations!$D$2:$S$193,A37,FALSE),HLOOKUP(VLOOKUP(C38,Teams!$Y$2:$Z$18,2,FALSE),Declarations!$D$2:$S$193,A37,FALSE)),"") ->  | E38: =IFERROR(VLOOKUP(C38,teamlookup,5,FALSE),"") -> Ton | H38: 2 | I38: =IFERROR(IF($A43=0,C38*11,C38&C38),"") -> FF | J38: =IFERROR(IF(A43=0,HLOOKUP(I38,Declarations!$D$2:$S$193,A37,FALSE),HLOOKUP(VLOOKUP(I38,Teams!$Y$2:$Z$18,2,FALSE),Declarations!$D$2:$S$193,A37,FALSE)),"") ->  | K38: Ton
A39: =IFERROR(VLOOKUP(A35,standards,3,FALSE)+0.01,"-") -> 44.91 | B39: 3 | C39: =IFERROR(IF(B39>MatchDay!$U$2,"-",VLOOKUP(A35,timetables,MatchDay!$U$4+2,FALSE)),0) -> D | D39: =IFERROR(IF(A43=0,HLOOKUP(C39,Declarations!$D$2:$S$193,A37,FALSE),HLOOKUP(VLOOKUP(C39,Teams!$Y$2:$Z$18,2,FALSE),Declarations!$D$2:$S$193,A37,FALSE)),"") -> Connie Andrews | E39: SNH | H39: 3 | I39: =IFERROR(IF($A43=0,C39*11,C39&C39),"") -> DD | J39: =IFERROR(IF(A43=0,HLOOKUP(I39,Declarations!$D$2:$S$193,A37,FALSE),HLOOKUP(VLOOKUP(I39,Teams!$Y$2:$Z$18,2,FALSE),Declarations!$D$2:$S$193,A37,FALSE)),"") -> Leah Cairns | K39: SNH
A40: =IFERROR(VLOOKUP(A35,standards,4,FALSE)+0.01,"-") -> 45.91 | B40: 4 | C40: =IFERROR(IF(B40>MatchDay!$U$2,"-",VLOOKUP(A35,timetables,MatchDay!$U$4+3,FALSE)),0) -> B | D40: =IFERROR(IF(A43=0,HLOOKUP(C40,Declarations!$D$2:$S$193,A37,FALSE),HLOOKUP(VLOOKUP(C40,Teams!$Y$2:$Z$18,2,FALSE),Declarations!$D$2:$S$193,A37,FALSE)),"") -> GENTRY Grace | E40: E&H | H40: 4 | I40: =IFERROR(IF($A43=0,C40*11,C40&C40),"") -> BB | J40: =IFERROR(IF(A43=0,HLOOKUP(I40,Declarations!$D$2:$S$193,A37,FALSE),HLOOKUP(VLOOKUP(I40,Teams!$Y$2:$Z$18,2,FALSE),Declarations!$D$2:$S$193,A37,FALSE)),"") -> SMITH Olivia | K40: E&H
A41: =IFERROR(VLOOKUP(A35,standards,5,FALSE)+0.01,"-") -> 47.71 | B41: 5 | C41: =IFERROR(IF(B41>MatchDay!$U$2,"-",VLOOKUP(A35,timetables,MatchDay!$U$4+4,FALSE)),0) -> E | D41: =IFERROR(IF(A43=0,HLOOKUP(C41,Declarations!$D$2:$S$193,A37,FALSE),HLOOKUP(VLOOKUP(C41,Teams!$Y$2:$Z$18,2,FALSE),Declarations!$D$2:$S$193,A37,FALSE)),"") ->  | E41: Beds | H41: 5 | I41: =IFERROR(IF($A43=0,C41*11,C41&C41),"") -> EE | J41: =IFERROR(IF(A43=0,HLOOKUP(I41,Declarations!$D$2:$S$193,A37,FALSE),HLOOKUP(VLOOKUP(I41,Teams!$Y$2:$Z$18,2,FALSE),Declarations!$D$2:$S$193,A37,FALSE)),"") ->  | K41: Beds
A42: =IFERROR(VLOOKUP(A35,standards,6,FALSE)+0.01,"-") -> 50.21 | B42: 6 | C42: =IFERROR(IF(B42>MatchDay!$U$2,"-",VLOOKUP(A35,timetables,MatchDay!$U$4+5,FALSE)),0) -> A | D42: =IFERROR(IF(A43=0,HLOOKUP(C42,Declarations!$D$2:$S$193,A37,FALSE),HLOOKUP(VLOOKUP(C42,Teams!$Y$2:$Z$18,2,FALSE),Declarations!$D$2:$S$193,A37,FALSE)),"") -> Whiley Jessica | E42: Chelm | H42: 6 | I42: =IFERROR(IF($A43=0,C42*11,C42&C42),"") -> AA | J42: =IFERROR(IF(A43=0,HLOOKUP(I42,Declarations!$D$2:$S$193,A37,FALSE),HLOOKUP(VLOOKUP(I42,Teams!$Y$2:$Z$18,2,FALSE),Declarations!$D$2:$S$193,A37,FALSE)),"") ->  | K42: Chelm
A43: =IFERROR(SEARCH("U17",B35),0) -> 14 | B43: 7 | C43: =IFERROR(IF(B43>MatchDay!$U$2,"-",VLOOKUP(A35,timetables,MatchDay!$U$4+6,FALSE)),0) -> - | D43: =IFERROR(IF(A43=0,HLOOKUP(C43,Declarations!$D$2:$S$193,A37,FALSE),HLOOKUP(VLOOKUP(C43,Teams!$Y$2:$Z$18,2,FALSE),Declarations!$D$2:$S$193,A37,FALSE)),"") ->  | H43: 7 | I43: =IFERROR(IF($A43=0,C43*11,C43&C43),"") -> -- | J43: =IFERROR(IF(A43=0,HLOOKUP(I43,Declarations!$D$2:$S$193,A37,FALSE),HLOOKUP(VLOOKUP(I43,Teams!$Y$2:$Z$18,2,FALSE),Declarations!$D$2:$S$193,A37,FALSE)),"") -> 
A44: =IFERROR(VLOOKUP(A35,records,5,FALSE),"") -> 43.2 | B44: 8 | C44: =IFERROR(IF(B44>MatchDay!$U$2,"-",VLOOKUP(A35,timetables,MatchDay!$U$4+7,FALSE)),0) -> - | D44: =IFERROR(IF(A43=0,HLOOKUP(C44,Declarations!$D$2:$S$193,A37,FALSE),HLOOKUP(VLOOKUP(C44,Teams!$Y$2:$Z$18,2,FALSE),Declarations!$D$2:$S$193,A37,FALSE)),"") ->  | H44: 8 | I44: =IFERROR(IF($A43=0,C44*11,C44&C44),"") -> -- | J44: =IFERROR(IF(A43=0,HLOOKUP(I44,Declarations!$D$2:$S$193,A37,FALSE),HLOOKUP(VLOOKUP(I44,Teams!$Y$2:$Z$18,2,FALSE),Declarations!$D$2:$S$193,A37,FALSE)),"") -> 
A46: UTD01 | B46: =IFERROR(VLOOKUP(A46,timetables,2,FALSE)&" "&VLOOKUP(A46,timetables,3,FALSE)&" A","") -> 1500m U20 Men A | E46: Starts | F46: =IFERROR(VLOOKUP(A46,timetables,7-MatchDay!$U$7,FALSE),"") -> 11.5 | H46: B | I46: =IFERROR(VLOOKUP(A46,records,3,FALSE)&", "&VLOOKUP(A46,records,4,FALSE)&", "&VLOOKUP(A46,records,8,FALSE),"") -> Josh Kerr, Team Edinburgh, 2015 | L46: =IFERROR(VLOOKUP(A46,records,5,FALSE),"") -> 00:03:48.300
A47: =MID(A46,2,3) -> TD0 | B47: Lane | C47: No. | D47: Athlete | E47: Club | H47: Lane | I47: No. | J47: Athlete | K47: Club
A48: =IFERROR(VLOOKUP(A46,Timetables!$A:$E,5,FALSE)-1,"") -> 153 | B48: 1 | C48: =IFERROR(IF(B48>MatchDay!$U$2,"-",VLOOKUP(A46,timetables,MatchDay!$U$4,FALSE)),0) -> 1 | D48: =IFERROR(IF(A54=0,HLOOKUP(C48,Declarations!$D$2:$S$193,A48,FALSE),HLOOKUP(VLOOKUP(C48,Teams!$Y$2:$Z$18,2,FALSE),Declarations!$D$2:$S$193,A48,FALSE)),"") ->  | E48: =IFERROR(VLOOKUP(C48,teamlookup,5,FALSE),"") -> Chelm | H48: 1 | I48: =IFERROR(IF($A54=0,C48*11,C48&C48),"") -> 11 | J48: =IFERROR(IF(A54=0,HLOOKUP(I48,Declarations!$D$2:$S$193,A48,FALSE),HLOOKUP(VLOOKUP(I48,Teams!$Y$2:$Z$18,2,FALSE),Declarations!$D$2:$S$193,A48,FALSE)),"") ->  | K48: =IFERROR(VLOOKUP(I48,teamlookup,5,FALSE),"") -> Chelm | S48: =IFERROR(IF(A54=0,"numbers_","letters_"),"") -> numbers_
A49: =A38+1 -> 7 | B49: 2 | C49: =IFERROR(IF(B49>MatchDay!$U$2,"-",VLOOKUP(A46,timetables,MatchDay!$U$4+1,FALSE)),0) -> 5 | D49: =IFERROR(IF(A54=0,HLOOKUP(C49,Declarations!$D$2:$S$193,A48,FALSE),HLOOKUP(VLOOKUP(C49,Teams!$Y$2:$Z$18,2,FALSE),Declarations!$D$2:$S$193,A48,FALSE)),"") -> jamie viney | E49: =IFERROR(VLOOKUP(C49,teamlookup,5,FALSE),"") -> Beds | H49: 2 | I49: =IFERROR(IF($A54=0,C49*11,C49&C49),"") -> 55 | J49: =IFERROR(IF(A54=0,HLOOKUP(I49,Declarations!$D$2:$S$193,A48,FALSE),HLOOKUP(VLOOKUP(I49,Teams!$Y$2:$Z$18,2,FALSE),Declarations!$D$2:$S$193,A48,FALSE)),"") ->  | K49: Beds
A50: =IFERROR(VLOOKUP(A46,standards,3,FALSE)+0.01,"-") -> 0.01271412037 | B50: 3 | C50: =IFERROR(IF(B50>MatchDay!$U$2,"-",VLOOKUP(A46,timetables,MatchDay!$U$4+2,FALSE)),0) -> 4 | D50: =IFERROR(IF(A54=0,HLOOKUP(C50,Declarations!$D$2:$S$193,A48,FALSE),HLOOKUP(VLOOKUP(C50,Teams!$Y$2:$Z$18,2,FALSE),Declarations!$D$2:$S$193,A48,FALSE)),"") ->  | E50: SNH | H50: 3 | I50: =IFERROR(IF($A54=0,C50*11,C50&C50),"") -> 44 | J50: =IFERROR(IF(A54=0,HLOOKUP(I50,Declarations!$D$2:$S$193,A48,FALSE),HLOOKUP(VLOOKUP(I50,Teams!$Y$2:$Z$18,2,FALSE),Declarations!$D$2:$S$193,A48,FALSE)),"") ->  | K50: SNH
A51: =IFERROR(VLOOKUP(A46,standards,4,FALSE)+0.01,"-") -> 0.01274884259 | B51: 4 | C51: =IFERROR(IF(B51>MatchDay!$U$2,"-",VLOOKUP(A46,timetables,MatchDay!$U$4+3,FALSE)),0) -> 6 | D51: =IFERROR(IF(A54=0,HLOOKUP(C51,Declarations!$D$2:$S$193,A48,FALSE),HLOOKUP(VLOOKUP(C51,Teams!$Y$2:$Z$18,2,FALSE),Declarations!$D$2:$S$193,A48,FALSE)),"") -> GOODGE Jamie | E51: Ton | H51: 4 | I51: =IFERROR(IF($A54=0,C51*11,C51&C51),"") -> 66 | J51: =IFERROR(IF(A54=0,HLOOKUP(I51,Declarations!$D$2:$S$193,A48,FALSE),HLOOKUP(VLOOKUP(I51,Teams!$Y$2:$Z$18,2,FALSE),Declarations!$D$2:$S$193,A48,FALSE)),"") -> GRAY Tom X | K51: Ton
A52: =IFERROR(VLOOKUP(A46,standards,5,FALSE)+0.01,"-") -> 0.01283333333 | B52: 5 | C52: =IFERROR(IF(B52>MatchDay!$U$2,"-",VLOOKUP(A46,timetables,MatchDay!$U$4+4,FALSE)),0) -> 2 | D52: =IFERROR(IF(A54=0,HLOOKUP(C52,Declarations!$D$2:$S$193,A48,FALSE),HLOOKUP(VLOOKUP(C52,Teams!$Y$2:$Z$18,2,FALSE),Declarations!$D$2:$S$193,A48,FALSE)),"") -> HURREN Finley | E52: E&H | H52: 5 | I52: =IFERROR(IF($A54=0,C52*11,C52&C52),"") -> 22 | J52: =IFERROR(IF(A54=0,HLOOKUP(I52,Declarations!$D$2:$S$193,A48,FALSE),HLOOKUP(VLOOKUP(I52,Teams!$Y$2:$Z$18,2,FALSE),Declarations!$D$2:$S$193,A48,FALSE)),"") ->  | K52: E&H
A53: =IFERROR(VLOOKUP(A46,standards,6,FALSE)+0.01,"-") -> 0.01283333333 | B53: 6 | C53: =IFERROR(IF(B53>MatchDay!$U$2,"-",VLOOKUP(A46,timetables,MatchDay!$U$4+5,FALSE)),0) -> 3 | D53: =IFERROR(IF(A54=0,HLOOKUP(C53,Declarations!$D$2:$S$193,A48,FALSE),HLOOKUP(VLOOKUP(C53,Teams!$Y$2:$Z$18,2,FALSE),Declarations!$D$2:$S$193,A48,FALSE)),"") -> Kieran O'Hara | E53: Have | H53: 6 | I53: =IFERROR(IF($A54=0,C53*11,C53&C53),"") -> 33 | J53: =IFERROR(IF(A54=0,HLOOKUP(I53,Declarations!$D$2:$S$193,A48,FALSE),HLOOKUP(VLOOKUP(I53,Teams!$Y$2:$Z$18,2,FALSE),Declarations!$D$2:$S$193,A48,FALSE)),"") -> Luke Soulsby | K53: Have
A54: =IFERROR(SEARCH("U17",B46),0) -> 0 | B54: 7 | C54: =IFERROR(IF(B54>MatchDay!$U$2,"-",VLOOKUP(A46,timetables,MatchDay!$U$4+6,FALSE)),0) -> - | D54: =IFERROR(IF(A54=0,HLOOKUP(C54,Declarations!$D$2:$S$193,A48,FALSE),HLOOKUP(VLOOKUP(C54,Teams!$Y$2:$Z$18,2,FALSE),Declarations!$D$2:$S$193,A48,FALSE)),"") ->  | H54: 7 | I54: =IFERROR(IF($A54=0,C54*11,C54&C54),"") ->  | J54: =IFERROR(IF(A54=0,HLOOKUP(I54,Declarations!$D$2:$S$193,A48,FALSE),HLOOKUP(VLOOKUP(I54,Teams!$Y$2:$Z$18,2,FALSE),Declarations!$D$2:$S$193,A48,FALSE)),"") -> 
A55: =IFERROR(VLOOKUP(A46,records,5,FALSE),"") -> 0.002642361111 | B55: 8 | C55: =IFERROR(IF(B55>MatchDay!$U$2,"-",VLOOKUP(A46,timetables,MatchDay!$U$4+7,FALSE)),0) -> - | D55: =IFERROR(IF(A54=0,HLOOKUP(C55,Declarations!$D$2:$S$193,A48,FALSE),HLOOKUP(VLOOKUP(C55,Teams!$Y$2:$Z$18,2,FALSE),Declarations!$D$2:$S$193,A48,FALSE)),"") ->  | H55: 8 | I55: =IFERROR(IF($A54=0,C55*11,C55&C55),"") ->  | J55: =IFERROR(IF(A54=0,HLOOKUP(I55,Declarations!$D$2:$S$193,A48,FALSE),HLOOKUP(VLOOKUP(I55,Teams!$Y$2:$Z$18,2,FALSE),Declarations!$D$2:$S$193,A48,FALSE)),"") -> 
A57: UTD02 | B57: =IFERROR(VLOOKUP(A57,timetables,2,FALSE)&" "&VLOOKUP(A57,timetables,3,FALSE)&" A","") -> 1500m U17 Men A | E57: Starts | F57: =IFERROR(VLOOKUP(A57,timetables,7-MatchDay!$U$7,FALSE),"") -> 12 | H57: B | I57: =IFERROR(VLOOKUP(A57,records,3,FALSE)&", "&VLOOKUP(A57,records,4,FALSE)&", "&VLOOKUP(A57,records,8,FALSE),"") -> Josh Kerr, Team Edinburgh, 2014 | L57: =IFERROR(VLOOKUP(A57,records,5,FALSE),"") -> 00:03:56.700
A58: =MID(A57,2,3) -> TD0 | B58: Lane | C58: No. | D58: Athlete | E58: Club | H58: Lane | I58: No. | J58: Athlete | K58: Club
A59: =IFERROR(VLOOKUP(A57,Timetables!$A:$E,5,FALSE)-1,"") -> 176 | B59: 1 | C59: =IFERROR(IF(B59>MatchDay!$U$2,"-",VLOOKUP(A57,timetables,MatchDay!$U$4,FALSE)),0) -> A | D59: =IFERROR(IF(A65=0,HLOOKUP(C59,Declarations!$D$2:$S$193,A59,FALSE),HLOOKUP(VLOOKUP(C59,Teams!$Y$2:$Z$18,2,FALSE),Declarations!$D$2:$S$193,A59,FALSE)),"") -> BRIDGELAND Zach | E59: =IFERROR(VLOOKUP(C59,teamlookup,5,FALSE),"") -> Chelm | H59: 1 | I59: =IFERROR(IF($A65=0,C59*11,C59&C59),"") -> AA | J59: =IFERROR(IF(A65=0,HLOOKUP(I59,Declarations!$D$2:$S$193,A59,FALSE),HLOOKUP(VLOOKUP(I59,Teams!$Y$2:$Z$18,2,FALSE),Declarations!$D$2:$S$193,A59,FALSE)),"") ->  | K59: =IFERROR(VLOOKUP(I59,teamlookup,5,FALSE),"") -> Chelm | S59: =IFERROR(IF(A65=0,"numbers_","letters_"),"") -> letters_
A60: =A49+1 -> 8 | B60: 2 | C60: =IFERROR(IF(B60>MatchDay!$U$2,"-",VLOOKUP(A57,timetables,MatchDay!$U$4+1,FALSE)),0) -> E | D60: =IFERROR(IF(A65=0,HLOOKUP(C60,Declarations!$D$2:$S$193,A59,FALSE),HLOOKUP(VLOOKUP(C60,Teams!$Y$2:$Z$18,2,FALSE),Declarations!$D$2:$S$193,A59,FALSE)),"") -> aiden Killeen | E60: =IFERROR(VLOOKUP(C60,teamlookup,5,FALSE),"") -> Beds | H60: 2 | I60: =IFERROR(IF($A65=0,C60*11,C60&C60),"") -> EE | J60: =IFERROR(IF(A65=0,HLOOKUP(I60,Declarations!$D$2:$S$193,A59,FALSE),HLOOKUP(VLOOKUP(I60,Teams!$Y$2:$Z$18,2,FALSE),Declarations!$D$2:$S$193,A59,FALSE)),"") -> Ed Blythman | K60: Beds
A61: =IFERROR(VLOOKUP(A57,standards,3,FALSE)+0.01,"-") -> 0.01284722222 | B61: 3 | C61: =IFERROR(IF(B61>MatchDay!$U$2,"-",VLOOKUP(A57,timetables,MatchDay!$U$4+2,FALSE)),0) -> D | D61: =IFERROR(IF(A65=0,HLOOKUP(C61,Declarations!$D$2:$S$193,A59,FALSE),HLOOKUP(VLOOKUP(C61,Teams!$Y$2:$Z$18,2,FALSE),Declarations!$D$2:$S$193,A59,FALSE)),"") ->  | E61: SNH | H61: 3 | I61: =IFERROR(IF($A65=0,C61*11,C61&C61),"") -> DD | J61: =IFERROR(IF(A65=0,HLOOKUP(I61,Declarations!$D$2:$S$193,A59,FALSE),HLOOKUP(VLOOKUP(I61,Teams!$Y$2:$Z$18,2,FALSE),Declarations!$D$2:$S$193,A59,FALSE)),"") ->  | K61: SNH
A62: =IFERROR(VLOOKUP(A57,standards,4,FALSE)+0.01,"-") -> 0.01291087963 | B62: 4 | C62: =IFERROR(IF(B62>MatchDay!$U$2,"-",VLOOKUP(A57,timetables,MatchDay!$U$4+3,FALSE)),0) -> F | D62: =IFERROR(IF(A65=0,HLOOKUP(C62,Declarations!$D$2:$S$193,A59,FALSE),HLOOKUP(VLOOKUP(C62,Teams!$Y$2:$Z$18,2,FALSE),Declarations!$D$2:$S$193,A59,FALSE)),"") -> KINGSTON James | E62: Ton | H62: 4 | I62: =IFERROR(IF($A65=0,C62*11,C62&C62),"") -> FF | J62: =IFERROR(IF(A65=0,HLOOKUP(I62,Declarations!$D$2:$S$193,A59,FALSE),HLOOKUP(VLOOKUP(I62,Teams!$Y$2:$Z$18,2,FALSE),Declarations!$D$2:$S$193,A59,FALSE)),"") -> VAN DER PLAS Adam | K62: Ton
A63: =IFERROR(VLOOKUP(A57,standards,5,FALSE)+0.01,"-") -> 0.01298032407 | B63: 5 | C63: =IFERROR(IF(B63>MatchDay!$U$2,"-",VLOOKUP(A57,timetables,MatchDay!$U$4+4,FALSE)),0) -> B | D63: =IFERROR(IF(A65=0,HLOOKUP(C63,Declarations!$D$2:$S$193,A59,FALSE),HLOOKUP(VLOOKUP(C63,Teams!$Y$2:$Z$18,2,FALSE),Declarations!$D$2:$S$193,A59,FALSE)),"") ->  | E63: E&H | H63: 5 | I63: =IFERROR(IF($A65=0,C63*11,C63&C63),"") -> BB | J63: =IFERROR(IF(A65=0,HLOOKUP(I63,Declarations!$D$2:$S$193,A59,FALSE),HLOOKUP(VLOOKUP(I63,Teams!$Y$2:$Z$18,2,FALSE),Declarations!$D$2:$S$193,A59,FALSE)),"") ->  | K63: E&H
A64: =IFERROR(VLOOKUP(A57,standards,6,FALSE)+0.01,"-") -> 0.01309606481 | B64: 6 | C64: =IFERROR(IF(B64>MatchDay!$U$2,"-",VLOOKUP(A57,timetables,MatchDay!$U$4+5,FALSE)),0) -> C | D64: =IFERROR(IF(A65=0,HLOOKUP(C64,Declarations!$D$2:$S$193,A59,FALSE),HLOOKUP(VLOOKUP(C64,Teams!$Y$2:$Z$18,2,FALSE),Declarations!$D$2:$S$193,A59,FALSE)),"") -> Jack Rice | E64: Have | H64: 6 | I64: =IFERROR(IF($A65=0,C64*11,C64&C64),"") -> CC | J64: =IFERROR(IF(A65=0,HLOOKUP(I64,Declarations!$D$2:$S$193,A59,FALSE),HLOOKUP(VLOOKUP(I64,Teams!$Y$2:$Z$18,2,FALSE),Declarations!$D$2:$S$193,A59,FALSE)),"") -> Samuel Atkins | K64: Have
A65: =IFERROR(SEARCH("U17",B57),0) -> 7 | B65: 7 | C65: =IFERROR(IF(B65>MatchDay!$U$2,"-",VLOOKUP(A57,timetables,MatchDay!$U$4+6,FALSE)),0) -> - | D65: =IFERROR(IF(A65=0,HLOOKUP(C65,Declarations!$D$2:$S$193,A59,FALSE),HLOOKUP(VLOOKUP(C65,Teams!$Y$2:$Z$18,2,FALSE),Declarations!$D$2:$S$193,A59,FALSE)),"") ->  | H65: 7 | I65: =IFERROR(IF($A65=0,C65*11,C65&C65),"") -> -- | J65: =IFERROR(IF(A65=0,HLOOKUP(I65,Declarations!$D$2:$S$193,A59,FALSE),HLOOKUP(VLOOKUP(I65,Teams!$Y$2:$Z$18,2,FALSE),Declarations!$D$2:$S$193,A59,FALSE)),"") -> 
A66: =IFERROR(VLOOKUP(A57,records,5,FALSE),"") -> 0.002739583333 | B66: 8 | C66: =IFERROR(IF(B66>MatchDay!$U$2,"-",VLOOKUP(A57,timetables,MatchDay!$U$4+7,FALSE)),0) -> - | D66: =IFERROR(IF(A65=0,HLOOKUP(C66,Declarations!$D$2:$S$193,A59,FALSE),HLOOKUP(VLOOKUP(C66,Teams!$Y$2:$Z$18,2,FALSE),Declarations!$D$2:$S$193,A59,FALSE)),"") ->  | H66: 8 | I66: =IFERROR(IF($A65=0,C66*11,C66&C66),"") -> -- | J66: =IFERROR(IF(A65=0,HLOOKUP(I66,Declarations!$D$2:$S$193,A59,FALSE),HLOOKUP(VLOOKUP(I66,Teams!$Y$2:$Z$18,2,FALSE),Declarations!$D$2:$S$193,A59,FALSE)),"") -> 
A68: UTD03 | B68: =IFERROR(VLOOKUP(A68,timetables,2,FALSE)&" "&VLOOKUP(A68,timetables,3,FALSE)&" A","") -> 1500m U20 Women A | E68: Starts | F68: =IFERROR(VLOOKUP(A68,timetables,7-MatchDay!$U$7,FALSE),"") -> 12.1 | H68: B | I68: =IFERROR(VLOOKUP(A68,records,3,FALSE)&", "&VLOOKUP(A68,records,4,FALSE)&", "&VLOOKUP(A68,records,8,FALSE),"") -> Niamh Bridson-Hubbard, Blackheath & Bromley Harriers A.C., 2016 | L68: =IFERROR(VLOOKUP(A68,records,5,FALSE),"") -> 00:04:29.900
A69: =MID(A68,2,3) -> TD0 | B69: Lane | C69: No. | D69: Athlete | E69: Club | H69: Lane | I69: No. | J69: Athlete | K69: Club
A70: =IFERROR(VLOOKUP(A68,Timetables!$A:$E,5,FALSE)-1,"") -> 107 | B70: 1 | C70: =IFERROR(IF(B70>MatchDay!$U$2,"-",VLOOKUP(A68,timetables,MatchDay!$U$4,FALSE)),0) -> 1 | D70: =IFERROR(IF(A76=0,HLOOKUP(C70,Declarations!$D$2:$S$193,A70,FALSE),HLOOKUP(VLOOKUP(C70,Teams!$Y$2:$Z$18,2,FALSE),Declarations!$D$2:$S$193,A70,FALSE)),"") -> BROOME RACHEL | E70: =IFERROR(VLOOKUP(C70,teamlookup,5,FALSE),"") -> Chelm | H70: 1 | I70: =IFERROR(IF($A76=0,C70*11,C70&C70),"") -> 11 | J70: =IFERROR(IF(A76=0,HLOOKUP(I70,Declarations!$D$2:$S$193,A70,FALSE),HLOOKUP(VLOOKUP(I70,Teams!$Y$2:$Z$18,2,FALSE),Declarations!$D$2:$S$193,A70,FALSE)),"") ->  | K70: =IFERROR(VLOOKUP(I70,teamlookup,5,FALSE),"") -> Chelm | S70: =IFERROR(IF(A76=0,"numbers_","letters_"),"") -> numbers_
A71: =A60+1 -> 9 | B71: 2 | C71: =IFERROR(IF(B71>MatchDay!$U$2,"-",VLOOKUP(A68,timetables,MatchDay!$U$4+1,FALSE)),0) -> 5 | D71: =IFERROR(IF(A76=0,HLOOKUP(C71,Declarations!$D$2:$S$193,A70,FALSE),HLOOKUP(VLOOKUP(C71,Teams!$Y$2:$Z$18,2,FALSE),Declarations!$D$2:$S$193,A70,FALSE)),"") -> Anna Vinnicombe | E71: =IFERROR(VLOOKUP(C71,teamlookup,5,FALSE),"") -> Beds | H71: 2 | I71: =IFERROR(IF($A76=0,C71*11,C71&C71),"") -> 55 | J71: =IFERROR(IF(A76=0,HLOOKUP(I71,Declarations!$D$2:$S$193,A70,FALSE),HLOOKUP(VLOOKUP(I71,Teams!$Y$2:$Z$18,2,FALSE),Declarations!$D$2:$S$193,A70,FALSE)),"") -> Bonnie Murphy | K71: Beds
A72: =IFERROR(VLOOKUP(A68,standards,3,FALSE)+0.01,"-") -> 0.01311689815 | B72: 3 | C72: =IFERROR(IF(B72>MatchDay!$U$2,"-",VLOOKUP(A68,timetables,MatchDay!$U$4+2,FALSE)),0) -> 4 | D72: =IFERROR(IF(A76=0,HLOOKUP(C72,Declarations!$D$2:$S$193,A70,FALSE),HLOOKUP(VLOOKUP(C72,Teams!$Y$2:$Z$18,2,FALSE),Declarations!$D$2:$S$193,A70,FALSE)),"") -> Lisa Barber | E72: SNH | H72: 3 | I72: =IFERROR(IF($A76=0,C72*11,C72&C72),"") -> 44 | J72: =IFERROR(IF(A76=0,HLOOKUP(I72,Declarations!$D$2:$S$193,A70,FALSE),HLOOKUP(VLOOKUP(I72,Teams!$Y$2:$Z$18,2,FALSE),Declarations!$D$2:$S$193,A70,FALSE)),"") ->  | K72: SNH
A73: =IFERROR(VLOOKUP(A68,standards,4,FALSE)+0.01,"-") -> 0.01317939815 | B73: 4 | C73: =IFERROR(IF(B73>MatchDay!$U$2,"-",VLOOKUP(A68,timetables,MatchDay!$U$4+3,FALSE)),0) -> 6 | D73: =IFERROR(IF(A76=0,HLOOKUP(C73,Declarations!$D$2:$S$193,A70,FALSE),HLOOKUP(VLOOKUP(C73,Teams!$Y$2:$Z$18,2,FALSE),Declarations!$D$2:$S$193,A70,FALSE)),"") -> PITCAIRN-KNOWLES Polly | E73: Ton | H73: 4 | I73: =IFERROR(IF($A76=0,C73*11,C73&C73),"") -> 66 | J73: =IFERROR(IF(A76=0,HLOOKUP(I73,Declarations!$D$2:$S$193,A70,FALSE),HLOOKUP(VLOOKUP(I73,Teams!$Y$2:$Z$18,2,FALSE),Declarations!$D$2:$S$193,A70,FALSE)),"") ->  | K73: Ton
A74: =IFERROR(VLOOKUP(A68,standards,5,FALSE)+0.01,"-") -> 0.01326388889 | B74: 5 | C74: =IFERROR(IF(B74>MatchDay!$U$2,"-",VLOOKUP(A68,timetables,MatchDay!$U$4+4,FALSE)),0) -> 2 | D74: =IFERROR(IF(A76=0,HLOOKUP(C74,Declarations!$D$2:$S$193,A70,FALSE),HLOOKUP(VLOOKUP(C74,Teams!$Y$2:$Z$18,2,FALSE),Declarations!$D$2:$S$193,A70,FALSE)),"") -> GUYATT Aoife | E74: E&H | H74: 5 | I74: =IFERROR(IF($A76=0,C74*11,C74&C74),"") -> 22 | J74: =IFERROR(IF(A76=0,HLOOKUP(I74,Declarations!$D$2:$S$193,A70,FALSE),HLOOKUP(VLOOKUP(I74,Teams!$Y$2:$Z$18,2,FALSE),Declarations!$D$2:$S$193,A70,FALSE)),"") ->  | K74: E&H
A75: =IFERROR(VLOOKUP(A68,standards,6,FALSE)+0.01,"-") -> 0.01326388889 | B75: 6 | C75: =IFERROR(IF(B75>MatchDay!$U$2,"-",VLOOKUP(A68,timetables,MatchDay!$U$4+5,FALSE)),0) -> 3 | D75: =IFERROR(IF(A76=0,HLOOKUP(C75,Declarations!$D$2:$S$193,A70,FALSE),HLOOKUP(VLOOKUP(C75,Teams!$Y$2:$Z$18,2,FALSE),Declarations!$D$2:$S$193,A70,FALSE)),"") -> Emily James | E75: Have | H75: 6 | I75: =IFERROR(IF($A76=0,C75*11,C75&C75),"") -> 33 | J75: =IFERROR(IF(A76=0,HLOOKUP(I75,Declarations!$D$2:$S$193,A70,FALSE),HLOOKUP(VLOOKUP(I75,Teams!$Y$2:$Z$18,2,FALSE),Declarations!$D$2:$S$193,A70,FALSE)),"") ->  | K75: Have
A76: =IFERROR(SEARCH("U17",B68),0) -> 0 | B76: 7 | C76: =IFERROR(IF(B76>MatchDay!$U$2,"-",VLOOKUP(A68,timetables,MatchDay!$U$4+6,FALSE)),0) -> - | D76: =IFERROR(IF(A76=0,HLOOKUP(C76,Declarations!$D$2:$S$193,A70,FALSE),HLOOKUP(VLOOKUP(C76,Teams!$Y$2:$Z$18,2,FALSE),Declarations!$D$2:$S$193,A70,FALSE)),"") ->  | H76: 7 | I76: =IFERROR(IF($A76=0,C76*11,C76&C76),"") ->  | J76: =IFERROR(IF(A76=0,HLOOKUP(I76,Declarations!$D$2:$S$193,A70,FALSE),HLOOKUP(VLOOKUP(I76,Teams!$Y$2:$Z$18,2,FALSE),Declarations!$D$2:$S$193,A70,FALSE)),"") -> 
A77: =IFERROR(VLOOKUP(A68,records,5,FALSE),"") -> 0.003123842593 | B77: 8 | C77: =IFERROR(IF(B77>MatchDay!$U$2,"-",VLOOKUP(A68,timetables,MatchDay!$U$4+7,FALSE)),0) -> - | D77: =IFERROR(IF(A76=0,HLOOKUP(C77,Declarations!$D$2:$S$193,A70,FALSE),HLOOKUP(VLOOKUP(C77,Teams!$Y$2:$Z$18,2,FALSE),Declarations!$D$2:$S$193,A70,FALSE)),"") ->  | H77: 8 | I77: =IFERROR(IF($A76=0,C77*11,C77&C77),"") ->  | J77: =IFERROR(IF(A76=0,HLOOKUP(I77,Declarations!$D$2:$S$193,A70,FALSE),HLOOKUP(VLOOKUP(I77,Teams!$Y$2:$Z$18,2,FALSE),Declarations!$D$2:$S$193,A70,FALSE)),"") -> 
A79: UTD04 | B79: =IFERROR(VLOOKUP(A79,timetables,2,FALSE)&" "&VLOOKUP(A79,timetables,3,FALSE)&" A","") -> 1500m U17 Women A | E79: Starts | F79: =IFERROR(VLOOKUP(A79,timetables,7-MatchDay!$U$7,FALSE),"") -> 12.2 | H79: B | I79: =IFERROR(VLOOKUP(A79,records,3,FALSE)&", "&VLOOKUP(A79,records,4,FALSE)&", "&VLOOKUP(A79,records,8,FALSE),"") -> Sabrina Sinha, Cambridge Harriers, 2014 | L79: =IFERROR(VLOOKUP(A79,records,5,FALSE),"") -> 00:04:31
A80: =MID(A79,2,3) -> TD0 | B80: Lane | C80: No. | D80: Athlete | E80: Club | H80: Lane | I80: No. | J80: Athlete | K80: Club
A81: =IFERROR(VLOOKUP(A79,Timetables!$A:$E,5,FALSE)-1,"") -> 130 | B81: 1 | C81: =IFERROR(IF(B81>MatchDay!$U$2,"-",VLOOKUP(A79,timetables,MatchDay!$U$4,FALSE)),0) -> A | D81: =IFERROR(IF(A87=0,HLOOKUP(C81,Declarations!$D$2:$S$193,A81,FALSE),HLOOKUP(VLOOKUP(C81,Teams!$Y$2:$Z$18,2,FALSE),Declarations!$D$2:$S$193,A81,FALSE)),"") -> MATTHEWS Charlotte | E81: =IFERROR(VLOOKUP(C81,teamlookup,5,FALSE),"") -> Chelm | H81: 1 | I81: =IFERROR(IF($A87=0,C81*11,C81&C81),"") -> AA | J81: =IFERROR(IF(A87=0,HLOOKUP(I81,Declarations!$D$2:$S$193,A81,FALSE),HLOOKUP(VLOOKUP(I81,Teams!$Y$2:$Z$18,2,FALSE),Declarations!$D$2:$S$193,A81,FALSE)),"") ->  | K81: =IFERROR(VLOOKUP(I81,teamlookup,5,FALSE),"") -> Chelm | S81: =IFERROR(IF(A87=0,"numbers_","letters_"),"") -> letters_
A82: =A71+1 -> 10 | B82: 2 | C82: =IFERROR(IF(B82>MatchDay!$U$2,"-",VLOOKUP(A79,timetables,MatchDay!$U$4+1,FALSE)),0) -> E | D82: =IFERROR(IF(A87=0,HLOOKUP(C82,Declarations!$D$2:$S$193,A81,FALSE),HLOOKUP(VLOOKUP(C82,Teams!$Y$2:$Z$18,2,FALSE),Declarations!$D$2:$S$193,A81,FALSE)),"") -> Hannah Shelton | E82: =IFERROR(VLOOKUP(C82,teamlookup,5,FALSE),"") -> Beds | H82: 2 | I82: =IFERROR(IF($A87=0,C82*11,C82&C82),"") -> EE | J82: =IFERROR(IF(A87=0,HLOOKUP(I82,Declarations!$D$2:$S$193,A81,FALSE),HLOOKUP(VLOOKUP(I82,Teams!$Y$2:$Z$18,2,FALSE),Declarations!$D$2:$S$193,A81,FALSE)),"") ->  | K82: Beds
A83: =IFERROR(VLOOKUP(A79,standards,3,FALSE)+0.01,"-") -> 0.01323263889 | B83: 3 | C83: =IFERROR(IF(B83>MatchDay!$U$2,"-",VLOOKUP(A79,timetables,MatchDay!$U$4+2,FALSE)),0) -> D | D83: =IFERROR(IF(A87=0,HLOOKUP(C83,Declarations!$D$2:$S$193,A81,FALSE),HLOOKUP(VLOOKUP(C83,Teams!$Y$2:$Z$18,2,FALSE),Declarations!$D$2:$S$193,A81,FALSE)),"") ->  | E83: SNH | H83: 3 | I83: =IFERROR(IF($A87=0,C83*11,C83&C83),"") -> DD | J83: =IFERROR(IF(A87=0,HLOOKUP(I83,Declarations!$D$2:$S$193,A81,FALSE),HLOOKUP(VLOOKUP(I83,Teams!$Y$2:$Z$18,2,FALSE),Declarations!$D$2:$S$193,A81,FALSE)),"") ->  | K83: SNH
A84: =IFERROR(VLOOKUP(A79,standards,4,FALSE)+0.01,"-") -> 0.01330324074 | B84: 4 | C84: =IFERROR(IF(B84>MatchDay!$U$2,"-",VLOOKUP(A79,timetables,MatchDay!$U$4+3,FALSE)),0) -> F | D84: =IFERROR(IF(A87=0,HLOOKUP(C84,Declarations!$D$2:$S$193,A81,FALSE),HLOOKUP(VLOOKUP(C84,Teams!$Y$2:$Z$18,2,FALSE),Declarations!$D$2:$S$193,A81,FALSE)),"") -> MILLER Elizabeth | E84: Ton | H84: 4 | I84: =IFERROR(IF($A87=0,C84*11,C84&C84),"") -> FF | J84: =IFERROR(IF(A87=0,HLOOKUP(I84,Declarations!$D$2:$S$193,A81,FALSE),HLOOKUP(VLOOKUP(I84,Teams!$Y$2:$Z$18,2,FALSE),Declarations!$D$2:$S$193,A81,FALSE)),"") -> PUXTY Stephanie | K84: Ton
A85: =IFERROR(VLOOKUP(A79,standards,5,FALSE)+0.01,"-") -> 0.01340162037 | B85: 5 | C85: =IFERROR(IF(B85>MatchDay!$U$2,"-",VLOOKUP(A79,timetables,MatchDay!$U$4+4,FALSE)),0) -> B | D85: =IFERROR(IF(A87=0,HLOOKUP(C85,Declarations!$D$2:$S$193,A81,FALSE),HLOOKUP(VLOOKUP(C85,Teams!$Y$2:$Z$18,2,FALSE),Declarations!$D$2:$S$193,A81,FALSE)),"") ->  | E85: E&H | H85: 5 | I85: =IFERROR(IF($A87=0,C85*11,C85&C85),"") -> BB | J85: =IFERROR(IF(A87=0,HLOOKUP(I85,Declarations!$D$2:$S$193,A81,FALSE),HLOOKUP(VLOOKUP(I85,Teams!$Y$2:$Z$18,2,FALSE),Declarations!$D$2:$S$193,A81,FALSE)),"") ->  | K85: E&H
A86: =IFERROR(VLOOKUP(A79,standards,6,FALSE)+0.01,"-") -> 0.01352199074 | B86: 6 | C86: =IFERROR(IF(B86>MatchDay!$U$2,"-",VLOOKUP(A79,timetables,MatchDay!$U$4+5,FALSE)),0) -> C | D86: =IFERROR(IF(A87=0,HLOOKUP(C86,Declarations!$D$2:$S$193,A81,FALSE),HLOOKUP(VLOOKUP(C86,Teams!$Y$2:$Z$18,2,FALSE),Declarations!$D$2:$S$193,A81,FALSE)),"") -> Kate O’Neill | E86: Have | H86: 6 | I86: =IFERROR(IF($A87=0,C86*11,C86&C86),"") -> CC | J86: =IFERROR(IF(A87=0,HLOOKUP(I86,Declarations!$D$2:$S$193,A81,FALSE),HLOOKUP(VLOOKUP(I86,Teams!$Y$2:$Z$18,2,FALSE),Declarations!$D$2:$S$193,A81,FALSE)),"") -> Sophie Rand | K86: Have
A87: =IFERROR(SEARCH("U17",B79),0) -> 7 | B87: 7 | C87: =IFERROR(IF(B87>MatchDay!$U$2,"-",VLOOKUP(A79,timetables,MatchDay!$U$4+6,FALSE)),0) -> - | D87: =IFERROR(IF(A87=0,HLOOKUP(C87,Declarations!$D$2:$S$193,A81,FALSE),HLOOKUP(VLOOKUP(C87,Teams!$Y$2:$Z$18,2,FALSE),Declarations!$D$2:$S$193,A81,FALSE)),"") ->  | H87: 7 | I87: =IFERROR(IF($A87=0,C87*11,C87&C87),"") -> -- | J87: =IFERROR(IF(A87=0,HLOOKUP(I87,Declarations!$D$2:$S$193,A81,FALSE),HLOOKUP(VLOOKUP(I87,Teams!$Y$2:$Z$18,2,FALSE),Declarations!$D$2:$S$193,A81,FALSE)),"") -> 
A88: =IFERROR(VLOOKUP(A79,records,5,FALSE),"") -> 0.003136574074 | B88: 8 | C88: =IFERROR(IF(B88>MatchDay!$U$2,"-",VLOOKUP(A79,timetables,MatchDay!$U$4+7,FALSE)),0) -> - | D88: =IFERROR(IF(A87=0,HLOOKUP(C88,Declarations!$D$2:$S$193,A81,FALSE),HLOOKUP(VLOOKUP(C88,Teams!$Y$2:$Z$18,2,FALSE),Declarations!$D$2:$S$193,A81,FALSE)),"") ->  | H88: 8 | I88: =IFERROR(IF($A87=0,C88*11,C88&C88),"") -> -- | J88: =IFERROR(IF(A87=0,HLOOKUP(I88,Declarations!$D$2:$S$193,A81,FALSE),HLOOKUP(VLOOKUP(I88,Teams!$Y$2:$Z$18,2,FALSE),Declarations!$D$2:$S$193,A81,FALSE)),"") -> 
A90: UT05 | B90: =IFERROR(VLOOKUP(A90,timetables,2,FALSE)&" "&VLOOKUP(A90,timetables,3,FALSE)&" A","") -> 100m U20 Men A | E90: Starts | F90: =IFERROR(VLOOKUP(A90,timetables,7-MatchDay!$U$7,FALSE),"") -> 12.3 | H90: B | I90: =IFERROR(VLOOKUP(A90,records,3,FALSE)&", "&VLOOKUP(A90,records,4,FALSE)&", "&VLOOKUP(A90,records,8,FALSE),"") -> Rio Mitcham, Telford AC, 2016 | L90: =IFERROR(VLOOKUP(A90,records,5,FALSE),"") -> 10.5
A91: =MID(A90,2,3) -> T05 | B91: Lane | C91: No. | D91: Athlete | E91: Club | H91: Lane | I91: No. | J91: Athlete | K91: Club
A92: =IFERROR(VLOOKUP(A90,Timetables!$A:$E,5,FALSE)-1,"") -> 149 | B92: 1 | C92: =IFERROR(IF(B92>MatchDay!$U$2,"-",VLOOKUP(A90,timetables,MatchDay!$U$4,FALSE)),0) -> 3 | D92: =IFERROR(IF(A98=0,HLOOKUP(C92,Declarations!$D$2:$S$193,A92,FALSE),HLOOKUP(VLOOKUP(C92,Teams!$Y$2:$Z$18,2,FALSE),Declarations!$D$2:$S$193,A92,FALSE)),"") -> Matthew Aenimel | E92: =IFERROR(VLOOKUP(C92,teamlookup,5,FALSE),"") -> Have | H92: 1 | I92: =IFERROR(IF($A98=0,C92*11,C92&C92),"") -> 33 | J92: =IFERROR(IF(A98=0,HLOOKUP(I92,Declarations!$D$2:$S$193,A92,FALSE),HLOOKUP(VLOOKUP(I92,Teams!$Y$2:$Z$18,2,FALSE),Declarations!$D$2:$S$193,A92,FALSE)),"") -> Michael Duncan | K92: =IFERROR(VLOOKUP(I92,teamlookup,5,FALSE),"") -> Have | S92: =IFERROR(IF(A98=0,"numbers_","letters_"),"") -> numbers_
A93: =A82+1 -> 11 | B93: 2 | C93: =IFERROR(IF(B93>MatchDay!$U$2,"-",VLOOKUP(A90,timetables,MatchDay!$U$4+1,FALSE)),0) -> 1 | D93: =IFERROR(IF(A98=0,HLOOKUP(C93,Declarations!$D$2:$S$193,A92,FALSE),HLOOKUP(VLOOKUP(C93,Teams!$Y$2:$Z$18,2,FALSE),Declarations!$D$2:$S$193,A92,FALSE)),"") -> DOBSON charlie | E93: =IFERROR(VLOOKUP(C93,teamlookup,5,FALSE),"") -> Chelm | H93: 2 | I93: =IFERROR(IF($A98=0,C93*11,C93&C93),"") -> 11 | J93: =IFERROR(IF(A98=0,HLOOKUP(I93,Declarations!$D$2:$S$193,A92,FALSE),HLOOKUP(VLOOKUP(I93,Teams!$Y$2:$Z$18,2,FALSE),Declarations!$D$2:$S$193,A92,FALSE)),"") ->  | K93: Chelm
A94: =IFERROR(VLOOKUP(A90,standards,3,FALSE)+0.01,"-") -> 10.91 | B94: 3 | C94: =IFERROR(IF(B94>MatchDay!$U$2,"-",VLOOKUP(A90,timetables,MatchDay!$U$4+2,FALSE)),0) -> 6 | D94: =IFERROR(IF(A98=0,HLOOKUP(C94,Declarations!$D$2:$S$193,A92,FALSE),HLOOKUP(VLOOKUP(C94,Teams!$Y$2:$Z$18,2,FALSE),Declarations!$D$2:$S$193,A92,FALSE)),"") -> MARSHALL Henry | E94: Ton | H94: 3 | I94: =IFERROR(IF($A98=0,C94*11,C94&C94),"") -> 66 | J94: =IFERROR(IF(A98=0,HLOOKUP(I94,Declarations!$D$2:$S$193,A92,FALSE),HLOOKUP(VLOOKUP(I94,Teams!$Y$2:$Z$18,2,FALSE),Declarations!$D$2:$S$193,A92,FALSE)),"") -> SEAGROVE Daniel | K94: Ton
A95: =IFERROR(VLOOKUP(A90,standards,4,FALSE)+0.01,"-") -> 11.01 | B95: 4 | C95: =IFERROR(IF(B95>MatchDay!$U$2,"-",VLOOKUP(A90,timetables,MatchDay!$U$4+3,FALSE)),0) -> 4 | D95: =IFERROR(IF(A98=0,HLOOKUP(C95,Declarations!$D$2:$S$193,A92,FALSE),HLOOKUP(VLOOKUP(C95,Teams!$Y$2:$Z$18,2,FALSE),Declarations!$D$2:$S$193,A92,FALSE)),"") -> Joey Harrison | E95: SNH | H95: 4 | I95: =IFERROR(IF($A98=0,C95*11,C95&C95),"") -> 44 | J95: =IFERROR(IF(A98=0,HLOOKUP(I95,Declarations!$D$2:$S$193,A92,FALSE),HLOOKUP(VLOOKUP(I95,Teams!$Y$2:$Z$18,2,FALSE),Declarations!$D$2:$S$193,A92,FALSE)),"") ->  | K95: SNH
A96: =IFERROR(VLOOKUP(A90,standards,5,FALSE)+0.01,"-") -> 11.21 | B96: 5 | C96: =IFERROR(IF(B96>MatchDay!$U$2,"-",VLOOKUP(A90,timetables,MatchDay!$U$4+4,FALSE)),0) -> 2 | D96: =IFERROR(IF(A98=0,HLOOKUP(C96,Declarations!$D$2:$S$193,A92,FALSE),HLOOKUP(VLOOKUP(C96,Teams!$Y$2:$Z$18,2,FALSE),Declarations!$D$2:$S$193,A92,FALSE)),"") -> OWUSU Lord | E96: E&H | H96: 5 | I96: =IFERROR(IF($A98=0,C96*11,C96&C96),"") -> 22 | J96: =IFERROR(IF(A98=0,HLOOKUP(I96,Declarations!$D$2:$S$193,A92,FALSE),HLOOKUP(VLOOKUP(I96,Teams!$Y$2:$Z$18,2,FALSE),Declarations!$D$2:$S$193,A92,FALSE)),"") -> OLATUNJI Michael | K96: E&H
A97: =IFERROR(VLOOKUP(A90,standards,6,FALSE)+0.01,"-") -> 11.21 | B97: 6 | C97: =IFERROR(IF(B97>MatchDay!$U$2,"-",VLOOKUP(A90,timetables,MatchDay!$U$4+5,FALSE)),0) -> 5 | D97: =IFERROR(IF(A98=0,HLOOKUP(C97,Declarations!$D$2:$S$193,A92,FALSE),HLOOKUP(VLOOKUP(C97,Teams!$Y$2:$Z$18,2,FALSE),Declarations!$D$2:$S$193,A92,FALSE)),"") -> Emanuel Owalabi | E97: Beds | H97: 6 | I97: =IFERROR(IF($A98=0,C97*11,C97&C97),"") -> 55 | J97: =IFERROR(IF(A98=0,HLOOKUP(I97,Declarations!$D$2:$S$193,A92,FALSE),HLOOKUP(VLOOKUP(I97,Teams!$Y$2:$Z$18,2,FALSE),Declarations!$D$2:$S$193,A92,FALSE)),"") ->  | K97: Beds
A98: =IFERROR(SEARCH("U17",B90),0) -> 0 | B98: 7 | C98: =IFERROR(IF(B98>MatchDay!$U$2,"-",VLOOKUP(A90,timetables,MatchDay!$U$4+6,FALSE)),0) -> - | D98: =IFERROR(IF(A98=0,HLOOKUP(C98,Declarations!$D$2:$S$193,A92,FALSE),HLOOKUP(VLOOKUP(C98,Teams!$Y$2:$Z$18,2,FALSE),Declarations!$D$2:$S$193,A92,FALSE)),"") ->  | H98: 7 | I98: =IFERROR(IF($A98=0,C98*11,C98&C98),"") ->  | J98: =IFERROR(IF(A98=0,HLOOKUP(I98,Declarations!$D$2:$S$193,A92,FALSE),HLOOKUP(VLOOKUP(I98,Teams!$Y$2:$Z$18,2,FALSE),Declarations!$D$2:$S$193,A92,FALSE)),"") -> 
A99: =IFERROR(VLOOKUP(A90,records,5,FALSE),"") -> 10.5 | B99: 8 | C99: =IFERROR(IF(B99>MatchDay!$U$2,"-",VLOOKUP(A90,timetables,MatchDay!$U$4+7,FALSE)),0) -> - | D99: =IFERROR(IF(A98=0,HLOOKUP(C99,Declarations!$D$2:$S$193,A92,FALSE),HLOOKUP(VLOOKUP(C99,Teams!$Y$2:$Z$18,2,FALSE),Declarations!$D$2:$S$193,A92,FALSE)),"") ->  | H99: 8 | I99: =IFERROR(IF($A98=0,C99*11,C99&C99),"") ->  | J99: =IFERROR(IF(A98=0,HLOOKUP(I99,Declarations!$D$2:$S$193,A92,FALSE),HLOOKUP(VLOOKUP(I99,Teams!$Y$2:$Z$18,2,FALSE),Declarations!$D$2:$S$193,A92,FALSE)),"") -> 
A101: UT06 | B101: =IFERROR(VLOOKUP(A101,timetables,2,FALSE)&" "&VLOOKUP(A101,timetables,3,FALSE)&" A","") -> 100m U17 Men A | E101: Starts | F101: =IFERROR(VLOOKUP(A101,timetables,7-MatchDay!$U$7,FALSE),"") -> 12.4 | H101: B | I101: =IFERROR(VLOOKUP(A101,records,3,FALSE)&", "&VLOOKUP(A101,records,4,FALSE)&", "&VLOOKUP(A101,records,8,FALSE),"") -> Ryan Gorman +, Notts AC, 2014 | L101: =IFERROR(VLOOKUP(A101,records,5,FALSE),"") -> 10.76
A102: =MID(A101,2,3) -> T06 | B102: Lane | C102: No. | D102: Athlete | E102: Club | H102: Lane | I102: No. | J102: Athlete | K102: Club
A103: =IFERROR(VLOOKUP(A101,Timetables!$A:$E,5,FALSE)-1,"") -> 172 | B103: 1 | C103: =IFERROR(IF(B103>MatchDay!$U$2,"-",VLOOKUP(A101,timetables,MatchDay!$U$4,FALSE)),0) -> C | D103: =IFERROR(IF(A109=0,HLOOKUP(C103,Declarations!$D$2:$S$193,A103,FALSE),HLOOKUP(VLOOKUP(C103,Teams!$Y$2:$Z$18,2,FALSE),Declarations!$D$2:$S$193,A103,FALSE)),"") -> Jairzinho Morris | E103: =IFERROR(VLOOKUP(C103,teamlookup,5,FALSE),"") -> Have | H103: 1 | I103: =IFERROR(IF($A109=0,C103*11,C103&C103),"") -> CC | J103: =IFERROR(IF(A109=0,HLOOKUP(I103,Declarations!$D$2:$S$193,A103,FALSE),HLOOKUP(VLOOKUP(I103,Teams!$Y$2:$Z$18,2,FALSE),Declarations!$D$2:$S$193,A103,FALSE)),"") -> Tobi Idowu | K103: =IFERROR(VLOOKUP(I103,teamlookup,5,FALSE),"") -> Have | S103: =IFERROR(IF(A109=0,"numbers_","letters_"),"") -> letters_
A104: =A93+1 -> 12 | B104: 2 | C104: =IFERROR(IF(B104>MatchDay!$U$2,"-",VLOOKUP(A101,timetables,MatchDay!$U$4+1,FALSE)),0) -> A | D104: =IFERROR(IF(A109=0,HLOOKUP(C104,Declarations!$D$2:$S$193,A103,FALSE),HLOOKUP(VLOOKUP(C104,Teams!$Y$2:$Z$18,2,FALSE),Declarations!$D$2:$S$193,A103,FALSE)),"") ->  | E104: =IFERROR(VLOOKUP(C104,teamlookup,5,FALSE),"") -> Chelm | H104: 2 | I104: =IFERROR(IF($A109=0,C104*11,C104&C104),"") -> AA | J104: =IFERROR(IF(A109=0,HLOOKUP(I104,Declarations!$D$2:$S$193,A103,FALSE),HLOOKUP(VLOOKUP(I104,Teams!$Y$2:$Z$18,2,FALSE),Declarations!$D$2:$S$193,A103,FALSE)),"") ->  | K104: Chelm
A105: =IFERROR(VLOOKUP(A101,standards,3,FALSE)+0.01,"-") -> 11.21 | B105: 3 | C105: =IFERROR(IF(B105>MatchDay!$U$2,"-",VLOOKUP(A101,timetables,MatchDay!$U$4+2,FALSE)),0) -> F | D105: =IFERROR(IF(A109=0,HLOOKUP(C105,Declarations!$D$2:$S$193,A103,FALSE),HLOOKUP(VLOOKUP(C105,Teams!$Y$2:$Z$18,2,FALSE),Declarations!$D$2:$S$193,A103,FALSE)),"") -> LAKE Ernest | E105: Ton | H105: 3 | I105: =IFERROR(IF($A109=0,C105*11,C105&C105),"") -> FF | J105: =IFERROR(IF(A109=0,HLOOKUP(I105,Declarations!$D$2:$S$193,A103,FALSE),HLOOKUP(VLOOKUP(I105,Teams!$Y$2:$Z$18,2,FALSE),Declarations!$D$2:$S$193,A103,FALSE)),"") -> SMITH George | K105: Ton
A106: =IFERROR(VLOOKUP(A101,standards,4,FALSE)+0.01,"-") -> 11.31 | B106: 4 | C106: =IFERROR(IF(B106>MatchDay!$U$2,"-",VLOOKUP(A101,timetables,MatchDay!$U$4+3,FALSE)),0) -> D | D106: =IFERROR(IF(A109=0,HLOOKUP(C106,Declarations!$D$2:$S$193,A103,FALSE),HLOOKUP(VLOOKUP(C106,Teams!$Y$2:$Z$18,2,FALSE),Declarations!$D$2:$S$193,A103,FALSE)),"") -> Kit Kerr | E106: SNH | H106: 4 | I106: =IFERROR(IF($A109=0,C106*11,C106&C106),"") -> DD | J106: =IFERROR(IF(A109=0,HLOOKUP(I106,Declarations!$D$2:$S$193,A103,FALSE),HLOOKUP(VLOOKUP(I106,Teams!$Y$2:$Z$18,2,FALSE),Declarations!$D$2:$S$193,A103,FALSE)),"") ->  | K106: SNH
A107: =IFERROR(VLOOKUP(A101,standards,5,FALSE)+0.01,"-") -> 11.51 | B107: 5 | C107: =IFERROR(IF(B107>MatchDay!$U$2,"-",VLOOKUP(A101,timetables,MatchDay!$U$4+4,FALSE)),0) -> B | D107: =IFERROR(IF(A109=0,HLOOKUP(C107,Declarations!$D$2:$S$193,A103,FALSE),HLOOKUP(VLOOKUP(C107,Teams!$Y$2:$Z$18,2,FALSE),Declarations!$D$2:$S$193,A103,FALSE)),"") -> MAYINGI John | E107: E&H | H107: 5 | I107: =IFERROR(IF($A109=0,C107*11,C107&C107),"") -> BB | J107: =IFERROR(IF(A109=0,HLOOKUP(I107,Declarations!$D$2:$S$193,A103,FALSE),HLOOKUP(VLOOKUP(I107,Teams!$Y$2:$Z$18,2,FALSE),Declarations!$D$2:$S$193,A103,FALSE)),"") -> DIXON Omar | K107: E&H
A108: =IFERROR(VLOOKUP(A101,standards,6,FALSE)+0.01,"-") -> 11.81 | B108: 6 | C108: =IFERROR(IF(B108>MatchDay!$U$2,"-",VLOOKUP(A101,timetables,MatchDay!$U$4+5,FALSE)),0) -> E | D108: =IFERROR(IF(A109=0,HLOOKUP(C108,Declarations!$D$2:$S$193,A103,FALSE),HLOOKUP(VLOOKUP(C108,Teams!$Y$2:$Z$18,2,FALSE),Declarations!$D$2:$S$193,A103,FALSE)),"") -> stephen Mienambolo | E108: Beds | H108: 6 | I108: =IFERROR(IF($A109=0,C108*11,C108&C108),"") -> EE | J108: =IFERROR(IF(A109=0,HLOOKUP(I108,Declarations!$D$2:$S$193,A103,FALSE),HLOOKUP(VLOOKUP(I108,Teams!$Y$2:$Z$18,2,FALSE),Declarations!$D$2:$S$193,A103,FALSE)),"") -> teral service johnson | K108: Beds
A109: =IFERROR(SEARCH("U17",B101),0) -> 6 | B109: 7 | C109: =IFERROR(IF(B109>MatchDay!$U$2,"-",VLOOKUP(A101,timetables,MatchDay!$U$4+6,FALSE)),0) -> - | D109: =IFERROR(IF(A109=0,HLOOKUP(C109,Declarations!$D$2:$S$193,A103,FALSE),HLOOKUP(VLOOKUP(C109,Teams!$Y$2:$Z$18,2,FALSE),Declarations!$D$2:$S$193,A103,FALSE)),"") ->  | H109: 7 | I109: =IFERROR(IF($A109=0,C109*11,C109&C109),"") -> -- | J109: =IFERROR(IF(A109=0,HLOOKUP(I109,Declarations!$D$2:$S$193,A103,FALSE),HLOOKUP(VLOOKUP(I109,Teams!$Y$2:$Z$18,2,FALSE),Declarations!$D$2:$S$193,A103,FALSE)),"") -> 
A110: =IFERROR(VLOOKUP(A101,records,5,FALSE),"") -> 10.76 | B110: 8 | C110: =IFERROR(IF(B110>MatchDay!$U$2,"-",VLOOKUP(A101,timetables,MatchDay!$U$4+7,FALSE)),0) -> - | D110: =IFERROR(IF(A109=0,HLOOKUP(C110,Declarations!$D$2:$S$193,A103,FALSE),HLOOKUP(VLOOKUP(C110,Teams!$Y$2:$Z$18,2,FALSE),Declarations!$D$2:$S$193,A103,FALSE)),"") ->  | H110: 8 | I110: =IFERROR(IF($A109=0,C110*11,C110&C110),"") -> -- | J110: =IFERROR(IF(A109=0,HLOOKUP(I110,Declarations!$D$2:$S$193,A103,FALSE),HLOOKUP(VLOOKUP(I110,Teams!$Y$2:$Z$18,2,FALSE),Declarations!$D$2:$S$193,A103,FALSE)),"") -> 
A112: UT07 | B112: =IFERROR(VLOOKUP(A112,timetables,2,FALSE)&" "&VLOOKUP(A112,timetables,3,FALSE)&" A","") -> 100m U20 Women A | E112: Starts | F112: =IFERROR(VLOOKUP(A112,timetables,7-MatchDay!$U$7,FALSE),"") -> 12.5 | H112: B | I112: =IFERROR(VLOOKUP(A112,records,3,FALSE)&", "&VLOOKUP(A112,records,4,FALSE)&", "&VLOOKUP(A112,records,8,FALSE),"") -> Dina Asher-Smith, Blackheath & Bromley Harriers A.C., 2014 | L112: =IFERROR(VLOOKUP(A112,records,5,FALSE),"") -> 11.49
A113: =MID(A112,2,3) -> T07 | B113: Lane | C113: No. | D113: Athlete | E113: Club | H113: Lane | I113: No. | J113: Athlete | K113: Club
A114: =IFERROR(VLOOKUP(A112,Timetables!$A:$E,5,FALSE)-1,"") -> 103 | B114: 1 | C114: =IFERROR(IF(B114>MatchDay!$U$2,"-",VLOOKUP(A112,timetables,MatchDay!$U$4,FALSE)),0) -> 3 | D114: =IFERROR(IF(A120=0,HLOOKUP(C114,Declarations!$D$2:$S$193,A114,FALSE),HLOOKUP(VLOOKUP(C114,Teams!$Y$2:$Z$18,2,FALSE),Declarations!$D$2:$S$193,A114,FALSE)),"") -> Holly Nash | E114: =IFERROR(VLOOKUP(C114,teamlookup,5,FALSE),"") -> Have | H114: 1 | I114: =IFERROR(IF($A120=0,C114*11,C114&C114),"") -> 33 | J114: =IFERROR(IF(A120=0,HLOOKUP(I114,Declarations!$D$2:$S$193,A114,FALSE),HLOOKUP(VLOOKUP(I114,Teams!$Y$2:$Z$18,2,FALSE),Declarations!$D$2:$S$193,A114,FALSE)),"") -> Josie Waddams | K114: =IFERROR(VLOOKUP(I114,teamlookup,5,FALSE),"") -> Have | S114: =IFERROR(IF(A120=0,"numbers_","letters_"),"") -> numbers_
A115: =A104+1 -> 13 | B115: 2 | C115: =IFERROR(IF(B115>MatchDay!$U$2,"-",VLOOKUP(A112,timetables,MatchDay!$U$4+1,FALSE)),0) -> 1 | D115: =IFERROR(IF(A120=0,HLOOKUP(C115,Declarations!$D$2:$S$193,A114,FALSE),HLOOKUP(VLOOKUP(C115,Teams!$Y$2:$Z$18,2,FALSE),Declarations!$D$2:$S$193,A114,FALSE)),"") -> JEGGO Rebecca | E115: =IFERROR(VLOOKUP(C115,teamlookup,5,FALSE),"") -> Chelm | H115: 2 | I115: =IFERROR(IF($A120=0,C115*11,C115&C115),"") -> 11 | J115: =IFERROR(IF(A120=0,HLOOKUP(I115,Declarations!$D$2:$S$193,A114,FALSE),HLOOKUP(VLOOKUP(I115,Teams!$Y$2:$Z$18,2,FALSE),Declarations!$D$2:$S$193,A114,FALSE)),"") ->  | K115: Chelm
A116: =IFERROR(VLOOKUP(A112,standards,3,FALSE)+0.01,"-") -> 12.21 | B116: 3 | C116: =IFERROR(IF(B116>MatchDay!$U$2,"-",VLOOKUP(A112,timetables,MatchDay!$U$4+2,FALSE)),0) -> 6 | D116: =IFERROR(IF(A120=0,HLOOKUP(C116,Declarations!$D$2:$S$193,A114,FALSE),HLOOKUP(VLOOKUP(C116,Teams!$Y$2:$Z$18,2,FALSE),Declarations!$D$2:$S$193,A114,FALSE)),"") ->  | E116: Ton | H116: 3 | I116: =IFERROR(IF($A120=0,C116*11,C116&C116),"") -> 66 | J116: =IFERROR(IF(A120=0,HLOOKUP(I116,Declarations!$D$2:$S$193,A114,FALSE),HLOOKUP(VLOOKUP(I116,Teams!$Y$2:$Z$18,2,FALSE),Declarations!$D$2:$S$193,A114,FALSE)),"") ->  | K116: Ton
A117: =IFERROR(VLOOKUP(A112,standards,4,FALSE)+0.01,"-") -> 12.41 | B117: 4 | C117: =IFERROR(IF(B117>MatchDay!$U$2,"-",VLOOKUP(A112,timetables,MatchDay!$U$4+3,FALSE)),0) -> 4 | D117: =IFERROR(IF(A120=0,HLOOKUP(C117,Declarations!$D$2:$S$193,A114,FALSE),HLOOKUP(VLOOKUP(C117,Teams!$Y$2:$Z$18,2,FALSE),Declarations!$D$2:$S$193,A114,FALSE)),"") -> Bethany Harley | E117: SNH | H117: 4 | I117: =IFERROR(IF($A120=0,C117*11,C117&C117),"") -> 44 | J117: =IFERROR(IF(A120=0,HLOOKUP(I117,Declarations!$D$2:$S$193,A114,FALSE),HLOOKUP(VLOOKUP(I117,Teams!$Y$2:$Z$18,2,FALSE),Declarations!$D$2:$S$193,A114,FALSE)),"") ->  | K117: SNH
A118: =IFERROR(VLOOKUP(A112,standards,5,FALSE)+0.01,"-") -> 12.61 | B118: 5 | C118: =IFERROR(IF(B118>MatchDay!$U$2,"-",VLOOKUP(A112,timetables,MatchDay!$U$4+4,FALSE)),0) -> 2 | D118: =IFERROR(IF(A120=0,HLOOKUP(C118,Declarations!$D$2:$S$193,A114,FALSE),HLOOKUP(VLOOKUP(C118,Teams!$Y$2:$Z$18,2,FALSE),Declarations!$D$2:$S$193,A114,FALSE)),"") -> JAPAL Salome | E118: E&H | H118: 5 | I118: =IFERROR(IF($A120=0,C118*11,C118&C118),"") -> 22 | J118: =IFERROR(IF(A120=0,HLOOKUP(I118,Declarations!$D$2:$S$193,A114,FALSE),HLOOKUP(VLOOKUP(I118,Teams!$Y$2:$Z$18,2,FALSE),Declarations!$D$2:$S$193,A114,FALSE)),"") -> MODESTE Elise X | K118: E&H
A119: =IFERROR(VLOOKUP(A112,standards,6,FALSE)+0.01,"-") -> 12.61 | B119: 6 | C119: =IFERROR(IF(B119>MatchDay!$U$2,"-",VLOOKUP(A112,timetables,MatchDay!$U$4+5,FALSE)),0) -> 5 | D119: =IFERROR(IF(A120=0,HLOOKUP(C119,Declarations!$D$2:$S$193,A114,FALSE),HLOOKUP(VLOOKUP(C119,Teams!$Y$2:$Z$18,2,FALSE),Declarations!$D$2:$S$193,A114,FALSE)),"") -> Mia Chapman | E119: Beds | H119: 6 | I119: =IFERROR(IF($A120=0,C119*11,C119&C119),"") -> 55 | J119: =IFERROR(IF(A120=0,HLOOKUP(I119,Declarations!$D$2:$S$193,A114,FALSE),HLOOKUP(VLOOKUP(I119,Teams!$Y$2:$Z$18,2,FALSE),Declarations!$D$2:$S$193,A114,FALSE)),"") -> Eleanor Griffin | K119: Beds
A120: =IFERROR(SEARCH("U17",B112),0) -> 0 | B120: 7 | C120: =IFERROR(IF(B120>MatchDay!$U$2,"-",VLOOKUP(A112,timetables,MatchDay!$U$4+6,FALSE)),0) -> - | D120: =IFERROR(IF(A120=0,HLOOKUP(C120,Declarations!$D$2:$S$193,A114,FALSE),HLOOKUP(VLOOKUP(C120,Teams!$Y$2:$Z$18,2,FALSE),Declarations!$D$2:$S$193,A114,FALSE)),"") ->  | H120: 7 | I120: =IFERROR(IF($A120=0,C120*11,C120&C120),"") ->  | J120: =IFERROR(IF(A120=0,HLOOKUP(I120,Declarations!$D$2:$S$193,A114,FALSE),HLOOKUP(VLOOKUP(I120,Teams!$Y$2:$Z$18,2,FALSE),Declarations!$D$2:$S$193,A114,FALSE)),"") -> 
A121: =IFERROR(VLOOKUP(A112,records,5,FALSE),"") -> 11.49 | B121: 8 | C121: =IFERROR(IF(B121>MatchDay!$U$2,"-",VLOOKUP(A112,timetables,MatchDay!$U$4+7,FALSE)),0) -> - | D121: =IFERROR(IF(A120=0,HLOOKUP(C121,Declarations!$D$2:$S$193,A114,FALSE),HLOOKUP(VLOOKUP(C121,Teams!$Y$2:$Z$18,2,FALSE),Declarations!$D$2:$S$193,A114,FALSE)),"") ->  | H121: 8 | I121: =IFERROR(IF($A120=0,C121*11,C121&C121),"") ->  | J121: =IFERROR(IF(A120=0,HLOOKUP(I121,Declarations!$D$2:$S$193,A114,FALSE),HLOOKUP(VLOOKUP(I121,Teams!$Y$2:$Z$18,2,FALSE),Declarations!$D$2:$S$193,A114,FALSE)),"") -> 
A123: UT08 | B123: =IFERROR(VLOOKUP(A123,timetables,2,FALSE)&" "&VLOOKUP(A123,timetables,3,FALSE)&" A","") -> 100m U17 Women A | E123: Starts | F123: =IFERROR(VLOOKUP(A123,timetables,7-MatchDay!$U$7,FALSE),"") -> 13 | H123: B | I123: =IFERROR(VLOOKUP(A123,records,3,FALSE)&", "&VLOOKUP(A123,records,4,FALSE)&", "&VLOOKUP(A123,records,8,FALSE),"") -> Gina Akpe-Moses, Birchfield Harriers, 2015 | L123: =IFERROR(VLOOKUP(A123,records,5,FALSE),"") -> 11.85
A124: =MID(A123,2,3) -> T08 | B124: Lane | C124: No. | D124: Athlete | E124: Club | H124: Lane | I124: No. | J124: Athlete | K124: Club
A125: =IFERROR(VLOOKUP(A123,Timetables!$A:$E,5,FALSE)-1,"") -> 126 | B125: 1 | C125: =IFERROR(IF(B125>MatchDay!$U$2,"-",VLOOKUP(A123,timetables,MatchDay!$U$4,FALSE)),0) -> C | D125: =IFERROR(IF(A131=0,HLOOKUP(C125,Declarations!$D$2:$S$193,A125,FALSE),HLOOKUP(VLOOKUP(C125,Teams!$Y$2:$Z$18,2,FALSE),Declarations!$D$2:$S$193,A125,FALSE)),"") -> Jade Kavanagh | E125: =IFERROR(VLOOKUP(C125,teamlookup,5,FALSE),"") -> Have | H125: 1 | I125: =IFERROR(IF($A131=0,C125*11,C125&C125),"") -> CC | J125: =IFERROR(IF(A131=0,HLOOKUP(I125,Declarations!$D$2:$S$193,A125,FALSE),HLOOKUP(VLOOKUP(I125,Teams!$Y$2:$Z$18,2,FALSE),Declarations!$D$2:$S$193,A125,FALSE)),"") -> Caitlin Saggers | K125: =IFERROR(VLOOKUP(I125,teamlookup,5,FALSE),"") -> Have | S125: =IFERROR(IF(A131=0,"numbers_","letters_"),"") -> letters_
A126: =A115+1 -> 14 | B126: 2 | C126: =IFERROR(IF(B126>MatchDay!$U$2,"-",VLOOKUP(A123,timetables,MatchDay!$U$4+1,FALSE)),0) -> A | D126: =IFERROR(IF(A131=0,HLOOKUP(C126,Declarations!$D$2:$S$193,A125,FALSE),HLOOKUP(VLOOKUP(C126,Teams!$Y$2:$Z$18,2,FALSE),Declarations!$D$2:$S$193,A125,FALSE)),"") -> Wall Felicity | E126: =IFERROR(VLOOKUP(C126,teamlookup,5,FALSE),"") -> Chelm | H126: 2 | I126: =IFERROR(IF($A131=0,C126*11,C126&C126),"") -> AA | J126: =IFERROR(IF(A131=0,HLOOKUP(I126,Declarations!$D$2:$S$193,A125,FALSE),HLOOKUP(VLOOKUP(I126,Teams!$Y$2:$Z$18,2,FALSE),Declarations!$D$2:$S$193,A125,FALSE)),"") -> BEASLEY-LONG Isabelle | K126: Chelm
A127: =IFERROR(VLOOKUP(A123,standards,3,FALSE)+0.01,"-") -> 12.31 | B127: 3 | C127: =IFERROR(IF(B127>MatchDay!$U$2,"-",VLOOKUP(A123,timetables,MatchDay!$U$4+2,FALSE)),0) -> F | D127: =IFERROR(IF(A131=0,HLOOKUP(C127,Declarations!$D$2:$S$193,A125,FALSE),HLOOKUP(VLOOKUP(C127,Teams!$Y$2:$Z$18,2,FALSE),Declarations!$D$2:$S$193,A125,FALSE)),"") -> ROOT Asha | E127: Ton | H127: 3 | I127: =IFERROR(IF($A131=0,C127*11,C127&C127),"") -> FF | J127: =IFERROR(IF(A131=0,HLOOKUP(I127,Declarations!$D$2:$S$193,A125,FALSE),HLOOKUP(VLOOKUP(I127,Teams!$Y$2:$Z$18,2,FALSE),Declarations!$D$2:$S$193,A125,FALSE)),"") -> KINGSTON Lucy | K127: Ton
A128: =IFERROR(VLOOKUP(A123,standards,4,FALSE)+0.01,"-") -> 12.61 | B128: 4 | C128: =IFERROR(IF(B128>MatchDay!$U$2,"-",VLOOKUP(A123,timetables,MatchDay!$U$4+3,FALSE)),0) -> D | D128: =IFERROR(IF(A131=0,HLOOKUP(C128,Declarations!$D$2:$S$193,A125,FALSE),HLOOKUP(VLOOKUP(C128,Teams!$Y$2:$Z$18,2,FALSE),Declarations!$D$2:$S$193,A125,FALSE)),"") -> Madeline Hurley | E128: SNH | H128: 4 | I128: =IFERROR(IF($A131=0,C128*11,C128&C128),"") -> DD | J128: =IFERROR(IF(A131=0,HLOOKUP(I128,Declarations!$D$2:$S$193,A125,FALSE),HLOOKUP(VLOOKUP(I128,Teams!$Y$2:$Z$18,2,FALSE),Declarations!$D$2:$S$193,A125,FALSE)),"") -> Ellen Morley | K128: SNH
A129: =IFERROR(VLOOKUP(A123,standards,5,FALSE)+0.01,"-") -> 12.81 | B129: 5 | C129: =IFERROR(IF(B129>MatchDay!$U$2,"-",VLOOKUP(A123,timetables,MatchDay!$U$4+4,FALSE)),0) -> B | D129: =IFERROR(IF(A131=0,HLOOKUP(C129,Declarations!$D$2:$S$193,A125,FALSE),HLOOKUP(VLOOKUP(C129,Teams!$Y$2:$Z$18,2,FALSE),Declarations!$D$2:$S$193,A125,FALSE)),"") -> WICKS Skye | E129: E&H | H129: 5 | I129: =IFERROR(IF($A131=0,C129*11,C129&C129),"") -> BB | J129: =IFERROR(IF(A131=0,HLOOKUP(I129,Declarations!$D$2:$S$193,A125,FALSE),HLOOKUP(VLOOKUP(I129,Teams!$Y$2:$Z$18,2,FALSE),Declarations!$D$2:$S$193,A125,FALSE)),"") -> TULU Elizabeth | K129: E&H
A130: =IFERROR(VLOOKUP(A123,standards,6,FALSE)+0.01,"-") -> 13.11 | B130: 6 | C130: =IFERROR(IF(B130>MatchDay!$U$2,"-",VLOOKUP(A123,timetables,MatchDay!$U$4+5,FALSE)),0) -> E | D130: =IFERROR(IF(A131=0,HLOOKUP(C130,Declarations!$D$2:$S$193,A125,FALSE),HLOOKUP(VLOOKUP(C130,Teams!$Y$2:$Z$18,2,FALSE),Declarations!$D$2:$S$193,A125,FALSE)),"") -> Jennifer Abbott | E130: Beds | H130: 6 | I130: =IFERROR(IF($A131=0,C130*11,C130&C130),"") -> EE | J130: =IFERROR(IF(A131=0,HLOOKUP(I130,Declarations!$D$2:$S$193,A125,FALSE),HLOOKUP(VLOOKUP(I130,Teams!$Y$2:$Z$18,2,FALSE),Declarations!$D$2:$S$193,A125,FALSE)),"") -> Mckenna Keefe | K130: Beds
A131: =IFERROR(SEARCH("U17",B123),0) -> 6 | B131: 7 | C131: =IFERROR(IF(B131>MatchDay!$U$2,"-",VLOOKUP(A123,timetables,MatchDay!$U$4+6,FALSE)),0) -> - | D131: =IFERROR(IF(A131=0,HLOOKUP(C131,Declarations!$D$2:$S$193,A125,FALSE),HLOOKUP(VLOOKUP(C131,Teams!$Y$2:$Z$18,2,FALSE),Declarations!$D$2:$S$193,A125,FALSE)),"") ->  | H131: 7 | I131: =IFERROR(IF($A131=0,C131*11,C131&C131),"") -> -- | J131: =IFERROR(IF(A131=0,HLOOKUP(I131,Declarations!$D$2:$S$193,A125,FALSE),HLOOKUP(VLOOKUP(I131,Teams!$Y$2:$Z$18,2,FALSE),Declarations!$D$2:$S$193,A125,FALSE)),"") -> 
A132: =IFERROR(VLOOKUP(A123,records,5,FALSE),"") -> 11.85 | B132: 8 | C132: =IFERROR(IF(B132>MatchDay!$U$2,"-",VLOOKUP(A123,timetables,MatchDay!$U$4+7,FALSE)),0) -> - | D132: =IFERROR(IF(A131=0,HLOOKUP(C132,Declarations!$D$2:$S$193,A125,FALSE),HLOOKUP(VLOOKUP(C132,Teams!$Y$2:$Z$18,2,FALSE),Declarations!$D$2:$S$193,A125,FALSE)),"") ->  | H132: 8 | I132: =IFERROR(IF($A131=0,C132*11,C132&C132),"") -> -- | J132: =IFERROR(IF(A131=0,HLOOKUP(I132,Declarations!$D$2:$S$193,A125,FALSE),HLOOKUP(VLOOKUP(I132,Teams!$Y$2:$Z$18,2,FALSE),Declarations!$D$2:$S$193,A125,FALSE)),"") -> 
A134: UT09 | B134: =IFERROR(VLOOKUP(A134,timetables,2,FALSE)&" "&VLOOKUP(A134,timetables,3,FALSE)&" A","") -> 400m U20 Men A | E134: Starts | F134: =IFERROR(VLOOKUP(A134,timetables,7-MatchDay!$U$7,FALSE),"") -> 13.2 | H134: B | I134: =IFERROR(VLOOKUP(A134,records,3,FALSE)&", "&VLOOKUP(A134,records,4,FALSE)&", "&VLOOKUP(A134,records,8,FALSE),"") -> Jack Crosby, Middlesbrough A.C. (Mandale), 2013 | L134: =IFERROR(VLOOKUP(A134,records,5,FALSE),"") -> 48
A135: =MID(A134,2,3) -> T09 | B135: Lane | C135: No. | D135: Athlete | E135: Club | H135: Lane | I135: No. | J135: Athlete | K135: Club
A136: =IFERROR(VLOOKUP(A134,Timetables!$A:$E,5,FALSE)-1,"") -> 151 | B136: 1 | C136: =IFERROR(IF(B136>MatchDay!$U$2,"-",VLOOKUP(A134,timetables,MatchDay!$U$4,FALSE)),0) -> 1 | D136: =IFERROR(IF(A142=0,HLOOKUP(C136,Declarations!$D$2:$S$193,A136,FALSE),HLOOKUP(VLOOKUP(C136,Teams!$Y$2:$Z$18,2,FALSE),Declarations!$D$2:$S$193,A136,FALSE)),"") -> YOUNG jake X | E136: =IFERROR(VLOOKUP(C136,teamlookup,5,FALSE),"") -> Chelm | H136: 1 | I136: =IFERROR(IF($A142=0,C136*11,C136&C136),"") -> 11 | J136: =IFERROR(IF(A142=0,HLOOKUP(I136,Declarations!$D$2:$S$193,A136,FALSE),HLOOKUP(VLOOKUP(I136,Teams!$Y$2:$Z$18,2,FALSE),Declarations!$D$2:$S$193,A136,FALSE)),"") -> EVEREST charlie X | K136: =IFERROR(VLOOKUP(I136,teamlookup,5,FALSE),"") -> Chelm | S136: =IFERROR(IF(A142=0,"numbers_","letters_"),"") -> numbers_
A137: =A126+1 -> 15 | B137: 2 | C137: =IFERROR(IF(B137>MatchDay!$U$2,"-",VLOOKUP(A134,timetables,MatchDay!$U$4+1,FALSE)),0) -> 5 | D137: =IFERROR(IF(A142=0,HLOOKUP(C137,Declarations!$D$2:$S$193,A136,FALSE),HLOOKUP(VLOOKUP(C137,Teams!$Y$2:$Z$18,2,FALSE),Declarations!$D$2:$S$193,A136,FALSE)),"") -> Matt Birchall | E137: =IFERROR(VLOOKUP(C137,teamlookup,5,FALSE),"") -> Beds | H137: 2 | I137: =IFERROR(IF($A142=0,C137*11,C137&C137),"") -> 55 | J137: =IFERROR(IF(A142=0,HLOOKUP(I137,Declarations!$D$2:$S$193,A136,FALSE),HLOOKUP(VLOOKUP(I137,Teams!$Y$2:$Z$18,2,FALSE),Declarations!$D$2:$S$193,A136,FALSE)),"") ->  | K137: Beds
A138: =IFERROR(VLOOKUP(A134,standards,3,FALSE)+0.01,"-") -> 49.31 | B138: 3 | C138: =IFERROR(IF(B138>MatchDay!$U$2,"-",VLOOKUP(A134,timetables,MatchDay!$U$4+2,FALSE)),0) -> 4 | D138: =IFERROR(IF(A142=0,HLOOKUP(C138,Declarations!$D$2:$S$193,A136,FALSE),HLOOKUP(VLOOKUP(C138,Teams!$Y$2:$Z$18,2,FALSE),Declarations!$D$2:$S$193,A136,FALSE)),"") -> Liam Gregory | E138: SNH | H138: 3 | I138: =IFERROR(IF($A142=0,C138*11,C138&C138),"") -> 44 | J138: =IFERROR(IF(A142=0,HLOOKUP(I138,Declarations!$D$2:$S$193,A136,FALSE),HLOOKUP(VLOOKUP(I138,Teams!$Y$2:$Z$18,2,FALSE),Declarations!$D$2:$S$193,A136,FALSE)),"") -> Reni Omotomilola | K138: SNH
A139: =IFERROR(VLOOKUP(A134,standards,4,FALSE)+0.01,"-") -> 50.11 | B139: 4 | C139: =IFERROR(IF(B139>MatchDay!$U$2,"-",VLOOKUP(A134,timetables,MatchDay!$U$4+3,FALSE)),0) -> 6 | D139: =IFERROR(IF(A142=0,HLOOKUP(C139,Declarations!$D$2:$S$193,A136,FALSE),HLOOKUP(VLOOKUP(C139,Teams!$Y$2:$Z$18,2,FALSE),Declarations!$D$2:$S$193,A136,FALSE)),"") -> MARSHALL Henry | E139: Ton | H139: 4 | I139: =IFERROR(IF($A142=0,C139*11,C139&C139),"") -> 66 | J139: =IFERROR(IF(A142=0,HLOOKUP(I139,Declarations!$D$2:$S$193,A136,FALSE),HLOOKUP(VLOOKUP(I139,Teams!$Y$2:$Z$18,2,FALSE),Declarations!$D$2:$S$193,A136,FALSE)),"") -> BROOKS Benedict | K139: Ton
A140: =IFERROR(VLOOKUP(A134,standards,5,FALSE)+0.01,"-") -> 51.01 | B140: 5 | C140: =IFERROR(IF(B140>MatchDay!$U$2,"-",VLOOKUP(A134,timetables,MatchDay!$U$4+4,FALSE)),0) -> 2 | D140: =IFERROR(IF(A142=0,HLOOKUP(C140,Declarations!$D$2:$S$193,A136,FALSE),HLOOKUP(VLOOKUP(C140,Teams!$Y$2:$Z$18,2,FALSE),Declarations!$D$2:$S$193,A136,FALSE)),"") -> DODDS Callum X | E140: E&H | H140: 5 | I140: =IFERROR(IF($A142=0,C140*11,C140&C140),"") -> 22 | J140: =IFERROR(IF(A142=0,HLOOKUP(I140,Declarations!$D$2:$S$193,A136,FALSE),HLOOKUP(VLOOKUP(I140,Teams!$Y$2:$Z$18,2,FALSE),Declarations!$D$2:$S$193,A136,FALSE)),"") -> GAYLE Joseph | K140: E&H
A141: =IFERROR(VLOOKUP(A134,standards,6,FALSE)+0.01,"-") -> 51.01 | B141: 6 | C141: =IFERROR(IF(B141>MatchDay!$U$2,"-",VLOOKUP(A134,timetables,MatchDay!$U$4+5,FALSE)),0) -> 3 | D141: =IFERROR(IF(A142=0,HLOOKUP(C141,Declarations!$D$2:$S$193,A136,FALSE),HLOOKUP(VLOOKUP(C141,Teams!$Y$2:$Z$18,2,FALSE),Declarations!$D$2:$S$193,A136,FALSE)),"") -> Matthew Owers | E141: Have | H141: 6 | I141: =IFERROR(IF($A142=0,C141*11,C141&C141),"") -> 33 | J141: =IFERROR(IF(A142=0,HLOOKUP(I141,Declarations!$D$2:$S$193,A136,FALSE),HLOOKUP(VLOOKUP(I141,Teams!$Y$2:$Z$18,2,FALSE),Declarations!$D$2:$S$193,A136,FALSE)),"") -> Matthew Aenimel | K141: Have
A142: =IFERROR(SEARCH("U17",B134),0) -> 0 | B142: 7 | C142: =IFERROR(IF(B142>MatchDay!$U$2,"-",VLOOKUP(A134,timetables,MatchDay!$U$4+6,FALSE)),0) -> - | D142: =IFERROR(IF(A142=0,HLOOKUP(C142,Declarations!$D$2:$S$193,A136,FALSE),HLOOKUP(VLOOKUP(C142,Teams!$Y$2:$Z$18,2,FALSE),Declarations!$D$2:$S$193,A136,FALSE)),"") ->  | H142: 7 | I142: =IFERROR(IF($A142=0,C142*11,C142&C142),"") ->  | J142: =IFERROR(IF(A142=0,HLOOKUP(I142,Declarations!$D$2:$S$193,A136,FALSE),HLOOKUP(VLOOKUP(I142,Teams!$Y$2:$Z$18,2,FALSE),Declarations!$D$2:$S$193,A136,FALSE)),"") -> 
A143: =IFERROR(VLOOKUP(A134,records,5,FALSE),"") -> 48 | B143: 8 | C143: =IFERROR(IF(B143>MatchDay!$U$2,"-",VLOOKUP(A134,timetables,MatchDay!$U$4+7,FALSE)),0) -> - | D143: =IFERROR(IF(A142=0,HLOOKUP(C143,Declarations!$D$2:$S$193,A136,FALSE),HLOOKUP(VLOOKUP(C143,Teams!$Y$2:$Z$18,2,FALSE),Declarations!$D$2:$S$193,A136,FALSE)),"") ->  | H143: 8 | I143: =IFERROR(IF($A142=0,C143*11,C143&C143),"") ->  | J143: =IFERROR(IF(A142=0,HLOOKUP(I143,Declarations!$D$2:$S$193,A136,FALSE),HLOOKUP(VLOOKUP(I143,Teams!$Y$2:$Z$18,2,FALSE),Declarations!$D$2:$S$193,A136,FALSE)),"") -> 
A145: UT10 | B145: =IFERROR(VLOOKUP(A145,timetables,2,FALSE)&" "&VLOOKUP(A145,timetables,3,FALSE)&" A","") -> 400m U17 Men A | E145: Starts | F145: =IFERROR(VLOOKUP(A145,timetables,7-MatchDay!$U$7,FALSE),"") -> 13.3 | H145: B | I145: =IFERROR(VLOOKUP(A145,records,3,FALSE)&", "&VLOOKUP(A145,records,4,FALSE)&", "&VLOOKUP(A145,records,8,FALSE),"") -> George Mills, Harrogate Scarborough & Wetherby, 2015 | L145: =IFERROR(VLOOKUP(A145,records,5,FALSE),"") -> 49.13
A146: =MID(A145,2,3) -> T10 | B146: Lane | C146: No. | D146: Athlete | E146: Club | H146: Lane | I146: No. | J146: Athlete | K146: Club
A147: =IFERROR(VLOOKUP(A145,Timetables!$A:$E,5,FALSE)-1,"") -> 174 | B147: 1 | C147: =IFERROR(IF(B147>MatchDay!$U$2,"-",VLOOKUP(A145,timetables,MatchDay!$U$4,FALSE)),0) -> A | D147: =IFERROR(IF(A153=0,HLOOKUP(C147,Declarations!$D$2:$S$193,A147,FALSE),HLOOKUP(VLOOKUP(C147,Teams!$Y$2:$Z$18,2,FALSE),Declarations!$D$2:$S$193,A147,FALSE)),"") -> BEALE Mark | E147: =IFERROR(VLOOKUP(C147,teamlookup,5,FALSE),"") -> Chelm | H147: 1 | I147: =IFERROR(IF($A153=0,C147*11,C147&C147),"") -> AA | J147: =IFERROR(IF(A153=0,HLOOKUP(I147,Declarations!$D$2:$S$193,A147,FALSE),HLOOKUP(VLOOKUP(I147,Teams!$Y$2:$Z$18,2,FALSE),Declarations!$D$2:$S$193,A147,FALSE)),"") ->  | K147: =IFERROR(VLOOKUP(I147,teamlookup,5,FALSE),"") -> Chelm | S147: =IFERROR(IF(A153=0,"numbers_","letters_"),"") -> letters_
A148: =A137+1 -> 16 | B148: 2 | C148: =IFERROR(IF(B148>MatchDay!$U$2,"-",VLOOKUP(A145,timetables,MatchDay!$U$4+1,FALSE)),0) -> E | D148: =IFERROR(IF(A153=0,HLOOKUP(C148,Declarations!$D$2:$S$193,A147,FALSE),HLOOKUP(VLOOKUP(C148,Teams!$Y$2:$Z$18,2,FALSE),Declarations!$D$2:$S$193,A147,FALSE)),"") -> Lewis Smith | E148: =IFERROR(VLOOKUP(C148,teamlookup,5,FALSE),"") -> Beds | H148: 2 | I148: =IFERROR(IF($A153=0,C148*11,C148&C148),"") -> EE | J148: =IFERROR(IF(A153=0,HLOOKUP(I148,Declarations!$D$2:$S$193,A147,FALSE),HLOOKUP(VLOOKUP(I148,Teams!$Y$2:$Z$18,2,FALSE),Declarations!$D$2:$S$193,A147,FALSE)),"") -> teral service johnson | K148: Beds
A149: =IFERROR(VLOOKUP(A145,standards,3,FALSE)+0.01,"-") -> 51.21 | B149: 3 | C149: =IFERROR(IF(B149>MatchDay!$U$2,"-",VLOOKUP(A145,timetables,MatchDay!$U$4+2,FALSE)),0) -> D | D149: =IFERROR(IF(A153=0,HLOOKUP(C149,Declarations!$D$2:$S$193,A147,FALSE),HLOOKUP(VLOOKUP(C149,Teams!$Y$2:$Z$18,2,FALSE),Declarations!$D$2:$S$193,A147,FALSE)),"") -> Brent Morris | E149: SNH | H149: 3 | I149: =IFERROR(IF($A153=0,C149*11,C149&C149),"") -> DD | J149: =IFERROR(IF(A153=0,HLOOKUP(I149,Declarations!$D$2:$S$193,A147,FALSE),HLOOKUP(VLOOKUP(I149,Teams!$Y$2:$Z$18,2,FALSE),Declarations!$D$2:$S$193,A147,FALSE)),"") ->  | K149: SNH
A150: =IFERROR(VLOOKUP(A145,standards,4,FALSE)+0.01,"-") -> 51.81 | B150: 4 | C150: =IFERROR(IF(B150>MatchDay!$U$2,"-",VLOOKUP(A145,timetables,MatchDay!$U$4+3,FALSE)),0) -> F | D150: =IFERROR(IF(A153=0,HLOOKUP(C150,Declarations!$D$2:$S$193,A147,FALSE),HLOOKUP(VLOOKUP(C150,Teams!$Y$2:$Z$18,2,FALSE),Declarations!$D$2:$S$193,A147,FALSE)),"") -> CRICK Charles | E150: Ton | H150: 4 | I150: =IFERROR(IF($A153=0,C150*11,C150&C150),"") -> FF | J150: =IFERROR(IF(A153=0,HLOOKUP(I150,Declarations!$D$2:$S$193,A147,FALSE),HLOOKUP(VLOOKUP(I150,Teams!$Y$2:$Z$18,2,FALSE),Declarations!$D$2:$S$193,A147,FALSE)),"") ->  | K150: Ton
A151: =IFERROR(VLOOKUP(A145,standards,5,FALSE)+0.01,"-") -> 52.91 | B151: 5 | C151: =IFERROR(IF(B151>MatchDay!$U$2,"-",VLOOKUP(A145,timetables,MatchDay!$U$4+4,FALSE)),0) -> B | D151: =IFERROR(IF(A153=0,HLOOKUP(C151,Declarations!$D$2:$S$193,A147,FALSE),HLOOKUP(VLOOKUP(C151,Teams!$Y$2:$Z$18,2,FALSE),Declarations!$D$2:$S$193,A147,FALSE)),"") -> MOKENEN Hanei | E151: E&H | H151: 5 | I151: =IFERROR(IF($A153=0,C151*11,C151&C151),"") -> BB | J151: =IFERROR(IF(A153=0,HLOOKUP(I151,Declarations!$D$2:$S$193,A147,FALSE),HLOOKUP(VLOOKUP(I151,Teams!$Y$2:$Z$18,2,FALSE),Declarations!$D$2:$S$193,A147,FALSE)),"") ->  | K151: E&H
A152: =IFERROR(VLOOKUP(A145,standards,6,FALSE)+0.01,"-") -> 54.31 | B152: 6 | C152: =IFERROR(IF(B152>MatchDay!$U$2,"-",VLOOKUP(A145,timetables,MatchDay!$U$4+5,FALSE)),0) -> C | D152: =IFERROR(IF(A153=0,HLOOKUP(C152,Declarations!$D$2:$S$193,A147,FALSE),HLOOKUP(VLOOKUP(C152,Teams!$Y$2:$Z$18,2,FALSE),Declarations!$D$2:$S$193,A147,FALSE)),"") -> Benedict Olusesan | E152: Have | H152: 6 | I152: =IFERROR(IF($A153=0,C152*11,C152&C152),"") -> CC | J152: =IFERROR(IF(A153=0,HLOOKUP(I152,Declarations!$D$2:$S$193,A147,FALSE),HLOOKUP(VLOOKUP(I152,Teams!$Y$2:$Z$18,2,FALSE),Declarations!$D$2:$S$193,A147,FALSE)),"") -> Aaron Freshwater | K152: Have
A153: =IFERROR(SEARCH("U17",B145),0) -> 6 | B153: 7 | C153: =IFERROR(IF(B153>MatchDay!$U$2,"-",VLOOKUP(A145,timetables,MatchDay!$U$4+6,FALSE)),0) -> - | D153: =IFERROR(IF(A153=0,HLOOKUP(C153,Declarations!$D$2:$S$193,A147,FALSE),HLOOKUP(VLOOKUP(C153,Teams!$Y$2:$Z$18,2,FALSE),Declarations!$D$2:$S$193,A147,FALSE)),"") ->  | H153: 7 | I153: =IFERROR(IF($A153=0,C153*11,C153&C153),"") -> -- | J153: =IFERROR(IF(A153=0,HLOOKUP(I153,Declarations!$D$2:$S$193,A147,FALSE),HLOOKUP(VLOOKUP(I153,Teams!$Y$2:$Z$18,2,FALSE),Declarations!$D$2:$S$193,A147,FALSE)),"") -> 
A154: =IFERROR(VLOOKUP(A145,records,5,FALSE),"") -> 49.13 | B154: 8 | C154: =IFERROR(IF(B154>MatchDay!$U$2,"-",VLOOKUP(A145,timetables,MatchDay!$U$4+7,FALSE)),0) -> - | D154: =IFERROR(IF(A153=0,HLOOKUP(C154,Declarations!$D$2:$S$193,A147,FALSE),HLOOKUP(VLOOKUP(C154,Teams!$Y$2:$Z$18,2,FALSE),Declarations!$D$2:$S$193,A147,FALSE)),"") ->  | H154: 8 | I154: =IFERROR(IF($A153=0,C154*11,C154&C154),"") -> -- | J154: =IFERROR(IF(A153=0,HLOOKUP(I154,Declarations!$D$2:$S$193,A147,FALSE),HLOOKUP(VLOOKUP(I154,Teams!$Y$2:$Z$18,2,FALSE),Declarations!$D$2:$S$193,A147,FALSE)),"") -> 
A156: UT11 | B156: =IFERROR(VLOOKUP(A156,timetables,2,FALSE)&" "&VLOOKUP(A156,timetables,3,FALSE)&" A","") -> 400m U20 Women A | E156: Starts | F156: =IFERROR(VLOOKUP(A156,timetables,7-MatchDay!$U$7,FALSE),"") -> 13.4 | H156: B | I156: =IFERROR(VLOOKUP(A156,records,3,FALSE)&", "&VLOOKUP(A156,records,4,FALSE)&", "&VLOOKUP(A156,records,8,FALSE),"") -> Lina Nielson, Enfield & Haringey A.C., 2015 | L156: =IFERROR(VLOOKUP(A156,records,5,FALSE),"") -> 54.38
A157: =MID(A156,2,3) -> T11 | B157: Lane | C157: No. | D157: Athlete | E157: Club | H157: Lane | I157: No. | J157: Athlete | K157: Club
A158: =IFERROR(VLOOKUP(A156,Timetables!$A:$E,5,FALSE)-1,"") -> 105 | B158: 1 | C158: =IFERROR(IF(B158>MatchDay!$U$2,"-",VLOOKUP(A156,timetables,MatchDay!$U$4,FALSE)),0) -> 1 | D158: =IFERROR(IF(A164=0,HLOOKUP(C158,Declarations!$D$2:$S$193,A158,FALSE),HLOOKUP(VLOOKUP(C158,Teams!$Y$2:$Z$18,2,FALSE),Declarations!$D$2:$S$193,A158,FALSE)),"") -> QUIGLEY Gabrielle | E158: =IFERROR(VLOOKUP(C158,teamlookup,5,FALSE),"") -> Chelm | H158: 1 | I158: =IFERROR(IF($A164=0,C158*11,C158&C158),"") -> 11 | J158: =IFERROR(IF(A164=0,HLOOKUP(I158,Declarations!$D$2:$S$193,A158,FALSE),HLOOKUP(VLOOKUP(I158,Teams!$Y$2:$Z$18,2,FALSE),Declarations!$D$2:$S$193,A158,FALSE)),"") ->  | K158: =IFERROR(VLOOKUP(I158,teamlookup,5,FALSE),"") -> Chelm | S158: =IFERROR(IF(A164=0,"numbers_","letters_"),"") -> numbers_
A159: =A148+1 -> 17 | B159: 2 | C159: =IFERROR(IF(B159>MatchDay!$U$2,"-",VLOOKUP(A156,timetables,MatchDay!$U$4+1,FALSE)),0) -> 5 | D159: =IFERROR(IF(A164=0,HLOOKUP(C159,Declarations!$D$2:$S$193,A158,FALSE),HLOOKUP(VLOOKUP(C159,Teams!$Y$2:$Z$18,2,FALSE),Declarations!$D$2:$S$193,A158,FALSE)),"") -> Josie Smith | E159: =IFERROR(VLOOKUP(C159,teamlookup,5,FALSE),"") -> Beds | H159: 2 | I159: =IFERROR(IF($A164=0,C159*11,C159&C159),"") -> 55 | J159: =IFERROR(IF(A164=0,HLOOKUP(I159,Declarations!$D$2:$S$193,A158,FALSE),HLOOKUP(VLOOKUP(I159,Teams!$Y$2:$Z$18,2,FALSE),Declarations!$D$2:$S$193,A158,FALSE)),"") -> Eleanor Griffin | K159: Beds
A160: =IFERROR(VLOOKUP(A156,standards,3,FALSE)+0.01,"-") -> 56.81 | B160: 3 | C160: =IFERROR(IF(B160>MatchDay!$U$2,"-",VLOOKUP(A156,timetables,MatchDay!$U$4+2,FALSE)),0) -> 4 | D160: =IFERROR(IF(A164=0,HLOOKUP(C160,Declarations!$D$2:$S$193,A158,FALSE),HLOOKUP(VLOOKUP(C160,Teams!$Y$2:$Z$18,2,FALSE),Declarations!$D$2:$S$193,A158,FALSE)),"") ->  | E160: SNH | H160: 3 | I160: =IFERROR(IF($A164=0,C160*11,C160&C160),"") -> 44 | J160: =IFERROR(IF(A164=0,HLOOKUP(I160,Declarations!$D$2:$S$193,A158,FALSE),HLOOKUP(VLOOKUP(I160,Teams!$Y$2:$Z$18,2,FALSE),Declarations!$D$2:$S$193,A158,FALSE)),"") ->  | K160: SNH
A161: =IFERROR(VLOOKUP(A156,standards,4,FALSE)+0.01,"-") -> 58.11 | B161: 4 | C161: =IFERROR(IF(B161>MatchDay!$U$2,"-",VLOOKUP(A156,timetables,MatchDay!$U$4+3,FALSE)),0) -> 6 | D161: =IFERROR(IF(A164=0,HLOOKUP(C161,Declarations!$D$2:$S$193,A158,FALSE),HLOOKUP(VLOOKUP(C161,Teams!$Y$2:$Z$18,2,FALSE),Declarations!$D$2:$S$193,A158,FALSE)),"") -> O'HARA Rebecca | E161: Ton | H161: 4 | I161: =IFERROR(IF($A164=0,C161*11,C161&C161),"") -> 66 | J161: =IFERROR(IF(A164=0,HLOOKUP(I161,Declarations!$D$2:$S$193,A158,FALSE),HLOOKUP(VLOOKUP(I161,Teams!$Y$2:$Z$18,2,FALSE),Declarations!$D$2:$S$193,A158,FALSE)),"") ->  | K161: Ton
A162: =IFERROR(VLOOKUP(A156,standards,5,FALSE)+0.01,"-") -> 60.11 | B162: 5 | C162: =IFERROR(IF(B162>MatchDay!$U$2,"-",VLOOKUP(A156,timetables,MatchDay!$U$4+4,FALSE)),0) -> 2 | D162: =IFERROR(IF(A164=0,HLOOKUP(C162,Declarations!$D$2:$S$193,A158,FALSE),HLOOKUP(VLOOKUP(C162,Teams!$Y$2:$Z$18,2,FALSE),Declarations!$D$2:$S$193,A158,FALSE)),"") -> GRANATA Valentina | E162: E&H | H162: 5 | I162: =IFERROR(IF($A164=0,C162*11,C162&C162),"") -> 22 | J162: =IFERROR(IF(A164=0,HLOOKUP(I162,Declarations!$D$2:$S$193,A158,FALSE),HLOOKUP(VLOOKUP(I162,Teams!$Y$2:$Z$18,2,FALSE),Declarations!$D$2:$S$193,A158,FALSE)),"") -> FORSTER Beth | K162: E&H
A163: =IFERROR(VLOOKUP(A156,standards,6,FALSE)+0.01,"-") -> 60.11 | B163: 6 | C163: =IFERROR(IF(B163>MatchDay!$U$2,"-",VLOOKUP(A156,timetables,MatchDay!$U$4+5,FALSE)),0) -> 3 | D163: =IFERROR(IF(A164=0,HLOOKUP(C163,Declarations!$D$2:$S$193,A158,FALSE),HLOOKUP(VLOOKUP(C163,Teams!$Y$2:$Z$18,2,FALSE),Declarations!$D$2:$S$193,A158,FALSE)),"") -> Katie Dawson | E163: Have | H163: 6 | I163: =IFERROR(IF($A164=0,C163*11,C163&C163),"") -> 33 | J163: =IFERROR(IF(A164=0,HLOOKUP(I163,Declarations!$D$2:$S$193,A158,FALSE),HLOOKUP(VLOOKUP(I163,Teams!$Y$2:$Z$18,2,FALSE),Declarations!$D$2:$S$193,A158,FALSE)),"") -> Georgia Phillips | K163: Have
A164: =IFERROR(SEARCH("U17",B156),0) -> 0 | B164: 7 | C164: =IFERROR(IF(B164>MatchDay!$U$2,"-",VLOOKUP(A156,timetables,MatchDay!$U$4+6,FALSE)),0) -> - | D164: =IFERROR(IF(A164=0,HLOOKUP(C164,Declarations!$D$2:$S$193,A158,FALSE),HLOOKUP(VLOOKUP(C164,Teams!$Y$2:$Z$18,2,FALSE),Declarations!$D$2:$S$193,A158,FALSE)),"") ->  | H164: 7 | I164: =IFERROR(IF($A164=0,C164*11,C164&C164),"") ->  | J164: =IFERROR(IF(A164=0,HLOOKUP(I164,Declarations!$D$2:$S$193,A158,FALSE),HLOOKUP(VLOOKUP(I164,Teams!$Y$2:$Z$18,2,FALSE),Declarations!$D$2:$S$193,A158,FALSE)),"") -> 
A165: =IFERROR(VLOOKUP(A156,records,5,FALSE),"") -> 54.38 | B165: 8 | C165: =IFERROR(IF(B165>MatchDay!$U$2,"-",VLOOKUP(A156,timetables,MatchDay!$U$4+7,FALSE)),0) -> - | D165: =IFERROR(IF(A164=0,HLOOKUP(C165,Declarations!$D$2:$S$193,A158,FALSE),HLOOKUP(VLOOKUP(C165,Teams!$Y$2:$Z$18,2,FALSE),Declarations!$D$2:$S$193,A158,FALSE)),"") ->  | H165: 8 | I165: =IFERROR(IF($A164=0,C165*11,C165&C165),"") ->  | J165: =IFERROR(IF(A164=0,HLOOKUP(I165,Declarations!$D$2:$S$193,A158,FALSE),HLOOKUP(VLOOKUP(I165,Teams!$Y$2:$Z$18,2,FALSE),Declarations!$D$2:$S$193,A158,FALSE)),"") -> 
A167: UT12 | B167: =IFERROR(VLOOKUP(A167,timetables,2,FALSE)&" "&VLOOKUP(A167,timetables,3,FALSE)&" A","") -> 300m U17 Women A | E167: Starts | F167: =IFERROR(VLOOKUP(A167,timetables,7-MatchDay!$U$7,FALSE),"") -> 13.5 | H167: B | I167: =IFERROR(VLOOKUP(A167,records,3,FALSE)&", "&VLOOKUP(A167,records,4,FALSE)&", "&VLOOKUP(A167,records,8,FALSE),"") -> Cheriece Hylton, Blackheath & Bromley Harriers A.C., 2013 | L167: =IFERROR(VLOOKUP(A167,records,5,FALSE),"") -> 38.47
A168: =MID(A167,2,3) -> T12 | B168: Lane | C168: No. | D168: Athlete | E168: Club | H168: Lane | I168: No. | J168: Athlete | K168: Club
A169: =IFERROR(VLOOKUP(A167,Timetables!$A:$E,5,FALSE)-1,"") -> 128 | B169: 1 | C169: =IFERROR(IF(B169>MatchDay!$U$2,"-",VLOOKUP(A167,timetables,MatchDay!$U$4,FALSE)),0) -> A | D169: =IFERROR(IF(A175=0,HLOOKUP(C169,Declarations!$D$2:$S$193,A169,FALSE),HLOOKUP(VLOOKUP(C169,Teams!$Y$2:$Z$18,2,FALSE),Declarations!$D$2:$S$193,A169,FALSE)),"") -> Wall Felicity | E169: =IFERROR(VLOOKUP(C169,teamlookup,5,FALSE),"") -> Chelm | H169: 1 | I169: =IFERROR(IF($A175=0,C169*11,C169&C169),"") -> AA | J169: =IFERROR(IF(A175=0,HLOOKUP(I169,Declarations!$D$2:$S$193,A169,FALSE),HLOOKUP(VLOOKUP(I169,Teams!$Y$2:$Z$18,2,FALSE),Declarations!$D$2:$S$193,A169,FALSE)),"") -> SWIFT SOPHIE | K169: =IFERROR(VLOOKUP(I169,teamlookup,5,FALSE),"") -> Chelm | S169: =IFERROR(IF(A175=0,"numbers_","letters_"),"") -> letters_
A170: =A159+1 -> 18 | B170: 2 | C170: =IFERROR(IF(B170>MatchDay!$U$2,"-",VLOOKUP(A167,timetables,MatchDay!$U$4+1,FALSE)),0) -> E | D170: =IFERROR(IF(A175=0,HLOOKUP(C170,Declarations!$D$2:$S$193,A169,FALSE),HLOOKUP(VLOOKUP(C170,Teams!$Y$2:$Z$18,2,FALSE),Declarations!$D$2:$S$193,A169,FALSE)),"") -> Jennifer Abbott | E170: =IFERROR(VLOOKUP(C170,teamlookup,5,FALSE),"") -> Beds | H170: 2 | I170: =IFERROR(IF($A175=0,C170*11,C170&C170),"") -> EE | J170: =IFERROR(IF(A175=0,HLOOKUP(I170,Declarations!$D$2:$S$193,A169,FALSE),HLOOKUP(VLOOKUP(I170,Teams!$Y$2:$Z$18,2,FALSE),Declarations!$D$2:$S$193,A169,FALSE)),"") -> Elena Bowles | K170: Beds
A171: =IFERROR(VLOOKUP(A167,standards,3,FALSE)+0.01,"-") -> 41.41 | B171: 3 | C171: =IFERROR(IF(B171>MatchDay!$U$2,"-",VLOOKUP(A167,timetables,MatchDay!$U$4+2,FALSE)),0) -> D | D171: =IFERROR(IF(A175=0,HLOOKUP(C171,Declarations!$D$2:$S$193,A169,FALSE),HLOOKUP(VLOOKUP(C171,Teams!$Y$2:$Z$18,2,FALSE),Declarations!$D$2:$S$193,A169,FALSE)),"") -> Petra Sijuwade | E171: SNH | H171: 3 | I171: =IFERROR(IF($A175=0,C171*11,C171&C171),"") -> DD | J171: =IFERROR(IF(A175=0,HLOOKUP(I171,Declarations!$D$2:$S$193,A169,FALSE),HLOOKUP(VLOOKUP(I171,Teams!$Y$2:$Z$18,2,FALSE),Declarations!$D$2:$S$193,A169,FALSE)),"") -> Leah Cairns | K171: SNH
A172: =IFERROR(VLOOKUP(A167,standards,4,FALSE)+0.01,"-") -> 42.11 | B172: 4 | C172: =IFERROR(IF(B172>MatchDay!$U$2,"-",VLOOKUP(A167,timetables,MatchDay!$U$4+3,FALSE)),0) -> F | D172: =IFERROR(IF(A175=0,HLOOKUP(C172,Declarations!$D$2:$S$193,A169,FALSE),HLOOKUP(VLOOKUP(C172,Teams!$Y$2:$Z$18,2,FALSE),Declarations!$D$2:$S$193,A169,FALSE)),"") -> ROOT Asha | E172: Ton | H172: 4 | I172: =IFERROR(IF($A175=0,C172*11,C172&C172),"") -> FF | J172: =IFERROR(IF(A175=0,HLOOKUP(I172,Declarations!$D$2:$S$193,A169,FALSE),HLOOKUP(VLOOKUP(I172,Teams!$Y$2:$Z$18,2,FALSE),Declarations!$D$2:$S$193,A169,FALSE)),"") -> O'HARA Jessica | K172: Ton
A173: =IFERROR(VLOOKUP(A167,standards,5,FALSE)+0.01,"-") -> 43.01 | B173: 5 | C173: =IFERROR(IF(B173>MatchDay!$U$2,"-",VLOOKUP(A167,timetables,MatchDay!$U$4+4,FALSE)),0) -> B | D173: =IFERROR(IF(A175=0,HLOOKUP(C173,Declarations!$D$2:$S$193,A169,FALSE),HLOOKUP(VLOOKUP(C173,Teams!$Y$2:$Z$18,2,FALSE),Declarations!$D$2:$S$193,A169,FALSE)),"") -> LIPTROT Katie | E173: E&H | H173: 5 | I173: =IFERROR(IF($A175=0,C173*11,C173&C173),"") -> BB | J173: =IFERROR(IF(A175=0,HLOOKUP(I173,Declarations!$D$2:$S$193,A169,FALSE),HLOOKUP(VLOOKUP(I173,Teams!$Y$2:$Z$18,2,FALSE),Declarations!$D$2:$S$193,A169,FALSE)),"") -> MITCHELL Katie | K173: E&H
A174: =IFERROR(VLOOKUP(A167,standards,6,FALSE)+0.01,"-") -> 44.51 | B174: 6 | C174: =IFERROR(IF(B174>MatchDay!$U$2,"-",VLOOKUP(A167,timetables,MatchDay!$U$4+5,FALSE)),0) -> C | D174: =IFERROR(IF(A175=0,HLOOKUP(C174,Declarations!$D$2:$S$193,A169,FALSE),HLOOKUP(VLOOKUP(C174,Teams!$Y$2:$Z$18,2,FALSE),Declarations!$D$2:$S$193,A169,FALSE)),"") -> Rosie Brown | E174: Have | H174: 6 | I174: =IFERROR(IF($A175=0,C174*11,C174&C174),"") -> CC | J174: =IFERROR(IF(A175=0,HLOOKUP(I174,Declarations!$D$2:$S$193,A169,FALSE),HLOOKUP(VLOOKUP(I174,Teams!$Y$2:$Z$18,2,FALSE),Declarations!$D$2:$S$193,A169,FALSE)),"") -> Caitlin Saggers | K174: Have
A175: =IFERROR(SEARCH("U17",B167),0) -> 6 | B175: 7 | C175: =IFERROR(IF(B175>MatchDay!$U$2,"-",VLOOKUP(A167,timetables,MatchDay!$U$4+6,FALSE)),0) -> - | D175: =IFERROR(IF(A175=0,HLOOKUP(C175,Declarations!$D$2:$S$193,A169,FALSE),HLOOKUP(VLOOKUP(C175,Teams!$Y$2:$Z$18,2,FALSE),Declarations!$D$2:$S$193,A169,FALSE)),"") ->  | H175: 7 | I175: =IFERROR(IF($A175=0,C175*11,C175&C175),"") -> -- | J175: =IFERROR(IF(A175=0,HLOOKUP(I175,Declarations!$D$2:$S$193,A169,FALSE),HLOOKUP(VLOOKUP(I175,Teams!$Y$2:$Z$18,2,FALSE),Declarations!$D$2:$S$193,A169,FALSE)),"") -> 
A176: =IFERROR(VLOOKUP(A167,records,5,FALSE),"") -> 38.47 | B176: 8 | C176: =IFERROR(IF(B176>MatchDay!$U$2,"-",VLOOKUP(A167,timetables,MatchDay!$U$4+7,FALSE)),0) -> - | D176: =IFERROR(IF(A175=0,HLOOKUP(C176,Declarations!$D$2:$S$193,A169,FALSE),HLOOKUP(VLOOKUP(C176,Teams!$Y$2:$Z$18,2,FALSE),Declarations!$D$2:$S$193,A169,FALSE)),"") ->  | H176: 8 | I176: =IFERROR(IF($A175=0,C176*11,C176&C176),"") -> -- | J176: =IFERROR(IF(A175=0,HLOOKUP(I176,Declarations!$D$2:$S$193,A169,FALSE),HLOOKUP(VLOOKUP(I176,Teams!$Y$2:$Z$18,2,FALSE),Declarations!$D$2:$S$193,A169,FALSE)),"") -> 
A178: UT13 | B178: =IFERROR(VLOOKUP(A178,timetables,2,FALSE)&" "&VLOOKUP(A178,timetables,3,FALSE)&" A","") -> 80m Hurdles U17 Women A | E178: Starts | F178: =IFERROR(VLOOKUP(A178,timetables,7-MatchDay!$U$7,FALSE),"") -> 14 | H178: B | I178: =IFERROR(VLOOKUP(A178,records,3,FALSE)&", "&VLOOKUP(A178,records,4,FALSE)&", "&VLOOKUP(A178,records,8,FALSE),"") -> Alicia Barrett, Chesterfield, 2014 | L178: =IFERROR(VLOOKUP(A178,records,5,FALSE),"") -> 11.2
A179: =MID(A178,2,3) -> T13 | B179: Lane | C179: No. | D179: Athlete | E179: Club | H179: Lane | I179: No. | J179: Athlete | K179: Club
A180: =IFERROR(VLOOKUP(A178,Timetables!$A:$E,5,FALSE)-1,"") -> 131 | B180: 1 | C180: =IFERROR(IF(B180>MatchDay!$U$2,"-",VLOOKUP(A178,timetables,MatchDay!$U$4,FALSE)),0) -> B | D180: =IFERROR(IF(A186=0,HLOOKUP(C180,Declarations!$D$2:$S$193,A180,FALSE),HLOOKUP(VLOOKUP(C180,Teams!$Y$2:$Z$18,2,FALSE),Declarations!$D$2:$S$193,A180,FALSE)),"") -> HORNBUCKLE Amber | E180: =IFERROR(VLOOKUP(C180,teamlookup,5,FALSE),"") -> E&H | H180: 1 | I180: =IFERROR(IF($A186=0,C180*11,C180&C180),"") -> BB | J180: =IFERROR(IF(A186=0,HLOOKUP(I180,Declarations!$D$2:$S$193,A180,FALSE),HLOOKUP(VLOOKUP(I180,Teams!$Y$2:$Z$18,2,FALSE),Declarations!$D$2:$S$193,A180,FALSE)),"") -> MACDONALD Amelia | K180: =IFERROR(VLOOKUP(I180,teamlookup,5,FALSE),"") -> E&H | S180: =IFERROR(IF(A186=0,"numbers_","letters_"),"") -> letters_
A181: =A170+1 -> 19 | B181: 2 | C181: =IFERROR(IF(B181>MatchDay!$U$2,"-",VLOOKUP(A178,timetables,MatchDay!$U$4+1,FALSE)),0) -> E | D181: =IFERROR(IF(A186=0,HLOOKUP(C181,Declarations!$D$2:$S$193,A180,FALSE),HLOOKUP(VLOOKUP(C181,Teams!$Y$2:$Z$18,2,FALSE),Declarations!$D$2:$S$193,A180,FALSE)),"") -> Alex Arnold | E181: =IFERROR(VLOOKUP(C181,teamlookup,5,FALSE),"") -> Beds | H181: 2 | I181: =IFERROR(IF($A186=0,C181*11,C181&C181),"") -> EE | J181: =IFERROR(IF(A186=0,HLOOKUP(I181,Declarations!$D$2:$S$193,A180,FALSE),HLOOKUP(VLOOKUP(I181,Teams!$Y$2:$Z$18,2,FALSE),Declarations!$D$2:$S$193,A180,FALSE)),"") ->  | K181: Beds
A182: =IFERROR(VLOOKUP(A178,standards,3,FALSE)+0.01,"-") -> 11.81 | B182: 3 | C182: =IFERROR(IF(B182>MatchDay!$U$2,"-",VLOOKUP(A178,timetables,MatchDay!$U$4+2,FALSE)),0) -> C | D182: =IFERROR(IF(A186=0,HLOOKUP(C182,Declarations!$D$2:$S$193,A180,FALSE),HLOOKUP(VLOOKUP(C182,Teams!$Y$2:$Z$18,2,FALSE),Declarations!$D$2:$S$193,A180,FALSE)),"") -> Grace Newson | E182: Have | H182: 3 | I182: =IFERROR(IF($A186=0,C182*11,C182&C182),"") -> CC | J182: =IFERROR(IF(A186=0,HLOOKUP(I182,Declarations!$D$2:$S$193,A180,FALSE),HLOOKUP(VLOOKUP(I182,Teams!$Y$2:$Z$18,2,FALSE),Declarations!$D$2:$S$193,A180,FALSE)),"") -> Millie Hodges | K182: Have
A183: =IFERROR(VLOOKUP(A178,standards,4,FALSE)+0.01,"-") -> 12.11 | B183: 4 | C183: =IFERROR(IF(B183>MatchDay!$U$2,"-",VLOOKUP(A178,timetables,MatchDay!$U$4+3,FALSE)),0) -> D | D183: =IFERROR(IF(A186=0,HLOOKUP(C183,Declarations!$D$2:$S$193,A180,FALSE),HLOOKUP(VLOOKUP(C183,Teams!$Y$2:$Z$18,2,FALSE),Declarations!$D$2:$S$193,A180,FALSE)),"") -> Molly Gardner | E183: SNH | H183: 4 | I183: =IFERROR(IF($A186=0,C183*11,C183&C183),"") -> DD | J183: =IFERROR(IF(A186=0,HLOOKUP(I183,Declarations!$D$2:$S$193,A180,FALSE),HLOOKUP(VLOOKUP(I183,Teams!$Y$2:$Z$18,2,FALSE),Declarations!$D$2:$S$193,A180,FALSE)),"") -> Abigail Pickard | K183: SNH
A184: =IFERROR(VLOOKUP(A178,standards,5,FALSE)+0.01,"-") -> 12.51 | B184: 5 | C184: =IFERROR(IF(B184>MatchDay!$U$2,"-",VLOOKUP(A178,timetables,MatchDay!$U$4+4,FALSE)),0) -> F | D184: =IFERROR(IF(A186=0,HLOOKUP(C184,Declarations!$D$2:$S$193,A180,FALSE),HLOOKUP(VLOOKUP(C184,Teams!$Y$2:$Z$18,2,FALSE),Declarations!$D$2:$S$193,A180,FALSE)),"") ->  | E184: Ton | H184: 5 | I184: =IFERROR(IF($A186=0,C184*11,C184&C184),"") -> FF | J184: =IFERROR(IF(A186=0,HLOOKUP(I184,Declarations!$D$2:$S$193,A180,FALSE),HLOOKUP(VLOOKUP(I184,Teams!$Y$2:$Z$18,2,FALSE),Declarations!$D$2:$S$193,A180,FALSE)),"") ->  | K184: Ton
A185: =IFERROR(VLOOKUP(A178,standards,6,FALSE)+0.01,"-") -> 13.11 | B185: 6 | C185: =IFERROR(IF(B185>MatchDay!$U$2,"-",VLOOKUP(A178,timetables,MatchDay!$U$4+5,FALSE)),0) -> A | D185: =IFERROR(IF(A186=0,HLOOKUP(C185,Declarations!$D$2:$S$193,A180,FALSE),HLOOKUP(VLOOKUP(C185,Teams!$Y$2:$Z$18,2,FALSE),Declarations!$D$2:$S$193,A180,FALSE)),"") ->  | E185: Chelm | H185: 6 | I185: =IFERROR(IF($A186=0,C185*11,C185&C185),"") -> AA | J185: =IFERROR(IF(A186=0,HLOOKUP(I185,Declarations!$D$2:$S$193,A180,FALSE),HLOOKUP(VLOOKUP(I185,Teams!$Y$2:$Z$18,2,FALSE),Declarations!$D$2:$S$193,A180,FALSE)),"") ->  | K185: Chelm
A186: =IFERROR(SEARCH("U17",B178),0) -> 13 | B186: 7 | C186: =IFERROR(IF(B186>MatchDay!$U$2,"-",VLOOKUP(A178,timetables,MatchDay!$U$4+6,FALSE)),0) -> - | D186: =IFERROR(IF(A186=0,HLOOKUP(C186,Declarations!$D$2:$S$193,A180,FALSE),HLOOKUP(VLOOKUP(C186,Teams!$Y$2:$Z$18,2,FALSE),Declarations!$D$2:$S$193,A180,FALSE)),"") ->  | H186: 7 | I186: =IFERROR(IF($A186=0,C186*11,C186&C186),"") -> -- | J186: =IFERROR(IF(A186=0,HLOOKUP(I186,Declarations!$D$2:$S$193,A180,FALSE),HLOOKUP(VLOOKUP(I186,Teams!$Y$2:$Z$18,2,FALSE),Declarations!$D$2:$S$193,A180,FALSE)),"") -> 
A187: =IFERROR(VLOOKUP(A178,records,5,FALSE),"") -> 11.2 | B187: 8 | C187: =IFERROR(IF(B187>MatchDay!$U$2,"-",VLOOKUP(A178,timetables,MatchDay!$U$4+7,FALSE)),0) -> - | D187: =IFERROR(IF(A186=0,HLOOKUP(C187,Declarations!$D$2:$S$193,A180,FALSE),HLOOKUP(VLOOKUP(C187,Teams!$Y$2:$Z$18,2,FALSE),Declarations!$D$2:$S$193,A180,FALSE)),"") ->  | H187: 8 | I187: =IFERROR(IF($A186=0,C187*11,C187&C187),"") -> -- | J187: =IFERROR(IF(A186=0,HLOOKUP(I187,Declarations!$D$2:$S$193,A180,FALSE),HLOOKUP(VLOOKUP(I187,Teams!$Y$2:$Z$18,2,FALSE),Declarations!$D$2:$S$193,A180,FALSE)),"") -> 
A189: UTD05 | B189: =IFERROR(VLOOKUP(A189,timetables,2,FALSE)&" "&VLOOKUP(A189,timetables,3,FALSE)&" A","") -> 3000m U17 Men A | E189: Starts | F189: =IFERROR(VLOOKUP(A189,timetables,7-MatchDay!$U$7,FALSE),"") -> 14.1 | H189: B | I189: =IFERROR(VLOOKUP(A189,records,3,FALSE)&", "&VLOOKUP(A189,records,4,FALSE)&", "&VLOOKUP(A189,records,8,FALSE),"") -> Isaac Akers, Rugby & Northants, 2015 | L189: =IFERROR(VLOOKUP(A189,records,5,FALSE),"") -> 00:08:49.230
A190: =MID(A189,2,3) -> TD0 | B190: Lane | C190: No. | D190: Athlete | E190: Club | H190: Lane | I190: No. | J190: Athlete | K190: Club
A191: =IFERROR(VLOOKUP(A189,Timetables!$A:$E,5,FALSE)-1,"") -> 178 | B191: 1 | C191: =IFERROR(IF(B191>MatchDay!$U$2,"-",VLOOKUP(A189,timetables,MatchDay!$U$4,FALSE)),0) -> E | D191: =IFERROR(IF(A197=0,HLOOKUP(C191,Declarations!$D$2:$S$193,A191,FALSE),HLOOKUP(VLOOKUP(C191,Teams!$Y$2:$Z$18,2,FALSE),Declarations!$D$2:$S$193,A191,FALSE)),"") -> Richard Laursen | E191: =IFERROR(VLOOKUP(C191,teamlookup,5,FALSE),"") -> Beds | H191: 1 | I191: =IFERROR(IF($A197=0,C191*11,C191&C191),"") -> EE | J191: =IFERROR(IF(A197=0,HLOOKUP(I191,Declarations!$D$2:$S$193,A191,FALSE),HLOOKUP(VLOOKUP(I191,Teams!$Y$2:$Z$18,2,FALSE),Declarations!$D$2:$S$193,A191,FALSE)),"") -> Ollie Davies | K191: =IFERROR(VLOOKUP(I191,teamlookup,5,FALSE),"") -> Beds | S191: =IFERROR(IF(A197=0,"numbers_","letters_"),"") -> letters_
A192: =A181+1 -> 20 | B192: 2 | C192: =IFERROR(IF(B192>MatchDay!$U$2,"-",VLOOKUP(A189,timetables,MatchDay!$U$4+1,FALSE)),0) -> A | D192: =IFERROR(IF(A197=0,HLOOKUP(C192,Declarations!$D$2:$S$193,A191,FALSE),HLOOKUP(VLOOKUP(C192,Teams!$Y$2:$Z$18,2,FALSE),Declarations!$D$2:$S$193,A191,FALSE)),"") ->  | E192: =IFERROR(VLOOKUP(C192,teamlookup,5,FALSE),"") -> Chelm | H192: 2 | I192: =IFERROR(IF($A197=0,C192*11,C192&C192),"") -> AA | J192: =IFERROR(IF(A197=0,HLOOKUP(I192,Declarations!$D$2:$S$193,A191,FALSE),HLOOKUP(VLOOKUP(I192,Teams!$Y$2:$Z$18,2,FALSE),Declarations!$D$2:$S$193,A191,FALSE)),"") ->  | K192: Chelm
A193: =IFERROR(VLOOKUP(A189,standards,3,FALSE)+0.01,"-") -> 0.01614583333 | B193: 3 | C193: =IFERROR(IF(B193>MatchDay!$U$2,"-",VLOOKUP(A189,timetables,MatchDay!$U$4+2,FALSE)),0) -> C | D193: =IFERROR(IF(A197=0,HLOOKUP(C193,Declarations!$D$2:$S$193,A191,FALSE),HLOOKUP(VLOOKUP(C193,Teams!$Y$2:$Z$18,2,FALSE),Declarations!$D$2:$S$193,A191,FALSE)),"") -> Louis Berrett | E193: Have | H193: 3 | I193: =IFERROR(IF($A197=0,C193*11,C193&C193),"") -> CC | J193: =IFERROR(IF(A197=0,HLOOKUP(I193,Declarations!$D$2:$S$193,A191,FALSE),HLOOKUP(VLOOKUP(I193,Teams!$Y$2:$Z$18,2,FALSE),Declarations!$D$2:$S$193,A191,FALSE)),"") ->  | K193: Have
A194: =IFERROR(VLOOKUP(A189,standards,4,FALSE)+0.01,"-") -> 0.01631944444 | B194: 4 | C194: =IFERROR(IF(B194>MatchDay!$U$2,"-",VLOOKUP(A189,timetables,MatchDay!$U$4+3,FALSE)),0) -> D | D194: =IFERROR(IF(A197=0,HLOOKUP(C194,Declarations!$D$2:$S$193,A191,FALSE),HLOOKUP(VLOOKUP(C194,Teams!$Y$2:$Z$18,2,FALSE),Declarations!$D$2:$S$193,A191,FALSE)),"") ->  | E194: SNH | H194: 4 | I194: =IFERROR(IF($A197=0,C194*11,C194&C194),"") -> DD | J194: =IFERROR(IF(A197=0,HLOOKUP(I194,Declarations!$D$2:$S$193,A191,FALSE),HLOOKUP(VLOOKUP(I194,Teams!$Y$2:$Z$18,2,FALSE),Declarations!$D$2:$S$193,A191,FALSE)),"") ->  | K194: SNH
A195: =IFERROR(VLOOKUP(A189,standards,5,FALSE)+0.01,"-") -> 0.01649305556 | B195: 5 | C195: =IFERROR(IF(B195>MatchDay!$U$2,"-",VLOOKUP(A189,timetables,MatchDay!$U$4+4,FALSE)),0) -> B | D195: =IFERROR(IF(A197=0,HLOOKUP(C195,Declarations!$D$2:$S$193,A191,FALSE),HLOOKUP(VLOOKUP(C195,Teams!$Y$2:$Z$18,2,FALSE),Declarations!$D$2:$S$193,A191,FALSE)),"") ->  | E195: E&H | H195: 5 | I195: =IFERROR(IF($A197=0,C195*11,C195&C195),"") -> BB | J195: =IFERROR(IF(A197=0,HLOOKUP(I195,Declarations!$D$2:$S$193,A191,FALSE),HLOOKUP(VLOOKUP(I195,Teams!$Y$2:$Z$18,2,FALSE),Declarations!$D$2:$S$193,A191,FALSE)),"") ->  | K195: E&H
A196: =IFERROR(VLOOKUP(A189,standards,6,FALSE)+0.01,"-") -> 0.01673611111 | B196: 6 | C196: =IFERROR(IF(B196>MatchDay!$U$2,"-",VLOOKUP(A189,timetables,MatchDay!$U$4+5,FALSE)),0) -> F | D196: =IFERROR(IF(A197=0,HLOOKUP(C196,Declarations!$D$2:$S$193,A191,FALSE),HLOOKUP(VLOOKUP(C196,Teams!$Y$2:$Z$18,2,FALSE),Declarations!$D$2:$S$193,A191,FALSE)),"") -> SANDBERG Alexander | E196: Ton | H196: 6 | I196: =IFERROR(IF($A197=0,C196*11,C196&C196),"") -> FF | J196: =IFERROR(IF(A197=0,HLOOKUP(I196,Declarations!$D$2:$S$193,A191,FALSE),HLOOKUP(VLOOKUP(I196,Teams!$Y$2:$Z$18,2,FALSE),Declarations!$D$2:$S$193,A191,FALSE)),"") ->  | K196: Ton
A197: =IFERROR(SEARCH("U17",B189),0) -> 7 | B197: 7 | C197: =IFERROR(IF(B197>MatchDay!$U$2,"-",VLOOKUP(A189,timetables,MatchDay!$U$4+6,FALSE)),0) -> - | D197: =IFERROR(IF(A197=0,HLOOKUP(C197,Declarations!$D$2:$S$193,A191,FALSE),HLOOKUP(VLOOKUP(C197,Teams!$Y$2:$Z$18,2,FALSE),Declarations!$D$2:$S$193,A191,FALSE)),"") ->  | H197: 7 | I197: =IFERROR(IF($A197=0,C197*11,C197&C197),"") -> -- | J197: =IFERROR(IF(A197=0,HLOOKUP(I197,Declarations!$D$2:$S$193,A191,FALSE),HLOOKUP(VLOOKUP(I197,Teams!$Y$2:$Z$18,2,FALSE),Declarations!$D$2:$S$193,A191,FALSE)),"") -> 
A198: =IFERROR(VLOOKUP(A189,records,5,FALSE),"") -> 0.006125347222 | B198: 8 | C198: =IFERROR(IF(B198>MatchDay!$U$2,"-",VLOOKUP(A189,timetables,MatchDay!$U$4+7,FALSE)),0) -> - | D198: =IFERROR(IF(A197=0,HLOOKUP(C198,Declarations!$D$2:$S$193,A191,FALSE),HLOOKUP(VLOOKUP(C198,Teams!$Y$2:$Z$18,2,FALSE),Declarations!$D$2:$S$193,A191,FALSE)),"") ->  | H198: 8 | I198: =IFERROR(IF($A197=0,C198*11,C198&C198),"") -> -- | J198: =IFERROR(IF(A197=0,HLOOKUP(I198,Declarations!$D$2:$S$193,A191,FALSE),HLOOKUP(VLOOKUP(I198,Teams!$Y$2:$Z$18,2,FALSE),Declarations!$D$2:$S$193,A191,FALSE)),"") -> 
A200: UTD06 | B200: =IFERROR(VLOOKUP(A200,timetables,2,FALSE)&" "&VLOOKUP(A200,timetables,3,FALSE)&" A","") -> 3000m U20 Men A | E200: Starts | F200: =IFERROR(VLOOKUP(A200,timetables,7-MatchDay!$U$7,FALSE),"") -> 14.1 | H200: B | I200: =IFERROR(VLOOKUP(A200,records,3,FALSE)&", "&VLOOKUP(A200,records,4,FALSE)&", "&VLOOKUP(A200,records,8,FALSE),"") -> Abel Tsegay, Invicta's Paddock, 2014 | L200: =IFERROR(VLOOKUP(A200,records,5,FALSE),"") -> 00:08:27.250
A201: =MID(A200,2,3) -> TD0 | B201: Lane | C201: No. | D201: Athlete | E201: Club | H201: Lane | I201: No. | J201: Athlete | K201: Club
A202: =IFERROR(VLOOKUP(A200,Timetables!$A:$E,5,FALSE)-1,"") -> 155 | B202: 1 | C202: =IFERROR(IF(B202>MatchDay!$U$2,"-",VLOOKUP(A200,timetables,MatchDay!$U$4,FALSE)),0) -> 5 | D202: =IFERROR(IF(A208=0,HLOOKUP(C202,Declarations!$D$2:$S$193,A202,FALSE),HLOOKUP(VLOOKUP(C202,Teams!$Y$2:$Z$18,2,FALSE),Declarations!$D$2:$S$193,A202,FALSE)),"") -> ryan ward | E202: =IFERROR(VLOOKUP(C202,teamlookup,5,FALSE),"") -> Beds | H202: 1 | I202: =IFERROR(IF($A208=0,C202*11,C202&C202),"") -> 55 | J202: =IFERROR(IF(A208=0,HLOOKUP(I202,Declarations!$D$2:$S$193,A202,FALSE),HLOOKUP(VLOOKUP(I202,Teams!$Y$2:$Z$18,2,FALSE),Declarations!$D$2:$S$193,A202,FALSE)),"") -> jamie viney | K202: =IFERROR(VLOOKUP(I202,teamlookup,5,FALSE),"") -> Beds | S202: =IFERROR(IF(A208=0,"numbers_","letters_"),"") -> numbers_
A203: =A192+1 -> 21 | B203: 2 | C203: =IFERROR(IF(B203>MatchDay!$U$2,"-",VLOOKUP(A200,timetables,MatchDay!$U$4+1,FALSE)),0) -> 1 | D203: =IFERROR(IF(A208=0,HLOOKUP(C203,Declarations!$D$2:$S$193,A202,FALSE),HLOOKUP(VLOOKUP(C203,Teams!$Y$2:$Z$18,2,FALSE),Declarations!$D$2:$S$193,A202,FALSE)),"") ->  | E203: =IFERROR(VLOOKUP(C203,teamlookup,5,FALSE),"") -> Chelm | H203: 2 | I203: =IFERROR(IF($A208=0,C203*11,C203&C203),"") -> 11 | J203: =IFERROR(IF(A208=0,HLOOKUP(I203,Declarations!$D$2:$S$193,A202,FALSE),HLOOKUP(VLOOKUP(I203,Teams!$Y$2:$Z$18,2,FALSE),Declarations!$D$2:$S$193,A202,FALSE)),"") ->  | K203: Chelm
A204: =IFERROR(VLOOKUP(A200,standards,3,FALSE)+0.01,"-") -> 0.01587384259 | B204: 3 | C204: =IFERROR(IF(B204>MatchDay!$U$2,"-",VLOOKUP(A200,timetables,MatchDay!$U$4+2,FALSE)),0) -> 3 | D204: =IFERROR(IF(A208=0,HLOOKUP(C204,Declarations!$D$2:$S$193,A202,FALSE),HLOOKUP(VLOOKUP(C204,Teams!$Y$2:$Z$18,2,FALSE),Declarations!$D$2:$S$193,A202,FALSE)),"") -> James Stewart | E204: Have | H204: 3 | I204: =IFERROR(IF($A208=0,C204*11,C204&C204),"") -> 33 | J204: =IFERROR(IF(A208=0,HLOOKUP(I204,Declarations!$D$2:$S$193,A202,FALSE),HLOOKUP(VLOOKUP(I204,Teams!$Y$2:$Z$18,2,FALSE),Declarations!$D$2:$S$193,A202,FALSE)),"") -> Aidan Elmore | K204: Have
A205: =IFERROR(VLOOKUP(A200,standards,4,FALSE)+0.01,"-") -> 0.01596064815 | B205: 4 | C205: =IFERROR(IF(B205>MatchDay!$U$2,"-",VLOOKUP(A200,timetables,MatchDay!$U$4+3,FALSE)),0) -> 4 | D205: =IFERROR(IF(A208=0,HLOOKUP(C205,Declarations!$D$2:$S$193,A202,FALSE),HLOOKUP(VLOOKUP(C205,Teams!$Y$2:$Z$18,2,FALSE),Declarations!$D$2:$S$193,A202,FALSE)),"") ->  | E205: SNH | H205: 4 | I205: =IFERROR(IF($A208=0,C205*11,C205&C205),"") -> 44 | J205: =IFERROR(IF(A208=0,HLOOKUP(I205,Declarations!$D$2:$S$193,A202,FALSE),HLOOKUP(VLOOKUP(I205,Teams!$Y$2:$Z$18,2,FALSE),Declarations!$D$2:$S$193,A202,FALSE)),"") ->  | K205: SNH
A206: =IFERROR(VLOOKUP(A200,standards,5,FALSE)+0.01,"-") -> 0.01612847222 | B206: 5 | C206: =IFERROR(IF(B206>MatchDay!$U$2,"-",VLOOKUP(A200,timetables,MatchDay!$U$4+4,FALSE)),0) -> 2 | D206: =IFERROR(IF(A208=0,HLOOKUP(C206,Declarations!$D$2:$S$193,A202,FALSE),HLOOKUP(VLOOKUP(C206,Teams!$Y$2:$Z$18,2,FALSE),Declarations!$D$2:$S$193,A202,FALSE)),"") ->  | E206: E&H | H206: 5 | I206: =IFERROR(IF($A208=0,C206*11,C206&C206),"") -> 22 | J206: =IFERROR(IF(A208=0,HLOOKUP(I206,Declarations!$D$2:$S$193,A202,FALSE),HLOOKUP(VLOOKUP(I206,Teams!$Y$2:$Z$18,2,FALSE),Declarations!$D$2:$S$193,A202,FALSE)),"") ->  | K206: E&H
A207: =IFERROR(VLOOKUP(A200,standards,6,FALSE)+0.01,"-") -> 0.01612847222 | B207: 6 | C207: =IFERROR(IF(B207>MatchDay!$U$2,"-",VLOOKUP(A200,timetables,MatchDay!$U$4+5,FALSE)),0) -> 6 | D207: =IFERROR(IF(A208=0,HLOOKUP(C207,Declarations!$D$2:$S$193,A202,FALSE),HLOOKUP(VLOOKUP(C207,Teams!$Y$2:$Z$18,2,FALSE),Declarations!$D$2:$S$193,A202,FALSE)),"") -> REEVES Luke | E207: Ton | H207: 6 | I207: =IFERROR(IF($A208=0,C207*11,C207&C207),"") -> 66 | J207: =IFERROR(IF(A208=0,HLOOKUP(I207,Declarations!$D$2:$S$193,A202,FALSE),HLOOKUP(VLOOKUP(I207,Teams!$Y$2:$Z$18,2,FALSE),Declarations!$D$2:$S$193,A202,FALSE)),"") -> CRICK Samuel | K207: Ton
A208: =IFERROR(SEARCH("U17",B200),0) -> 0 | B208: 7 | C208: =IFERROR(IF(B208>MatchDay!$U$2,"-",VLOOKUP(A200,timetables,MatchDay!$U$4+6,FALSE)),0) -> - | D208: =IFERROR(IF(A208=0,HLOOKUP(C208,Declarations!$D$2:$S$193,A202,FALSE),HLOOKUP(VLOOKUP(C208,Teams!$Y$2:$Z$18,2,FALSE),Declarations!$D$2:$S$193,A202,FALSE)),"") ->  | H208: 7 | I208: =IFERROR(IF($A208=0,C208*11,C208&C208),"") ->  | J208: =IFERROR(IF(A208=0,HLOOKUP(I208,Declarations!$D$2:$S$193,A202,FALSE),HLOOKUP(VLOOKUP(I208,Teams!$Y$2:$Z$18,2,FALSE),Declarations!$D$2:$S$193,A202,FALSE)),"") -> 
A209: =IFERROR(VLOOKUP(A200,records,5,FALSE),"") -> 0.005870949074 | B209: 8 | C209: =IFERROR(IF(B209>MatchDay!$U$2,"-",VLOOKUP(A200,timetables,MatchDay!$U$4+7,FALSE)),0) -> - | D209: =IFERROR(IF(A208=0,HLOOKUP(C209,Declarations!$D$2:$S$193,A202,FALSE),HLOOKUP(VLOOKUP(C209,Teams!$Y$2:$Z$18,2,FALSE),Declarations!$D$2:$S$193,A202,FALSE)),"") ->  | H209: 8 | I209: =IFERROR(IF($A208=0,C209*11,C209&C209),"") ->  | J209: =IFERROR(IF(A208=0,HLOOKUP(I209,Declarations!$D$2:$S$193,A202,FALSE),HLOOKUP(VLOOKUP(I209,Teams!$Y$2:$Z$18,2,FALSE),Declarations!$D$2:$S$193,A202,FALSE)),"") -> 
A211: UT14 | B211: =IFERROR(VLOOKUP(A211,timetables,2,FALSE)&" "&VLOOKUP(A211,timetables,3,FALSE)&" A","") -> 100m Hurdles U20 Women A | E211: Starts | F211: =IFERROR(VLOOKUP(A211,timetables,7-MatchDay!$U$7,FALSE),"") -> 14.25 | H211: B | I211: =IFERROR(VLOOKUP(A211,records,3,FALSE)&", "&VLOOKUP(A211,records,4,FALSE)&", "&VLOOKUP(A211,records,8,FALSE),"") -> Jessica Hunter, Vale of Aylesbury, 2014 | L211: =IFERROR(VLOOKUP(A211,records,5,FALSE),"") -> 14
A212: =MID(A211,2,3) -> T14 | B212: Lane | C212: No. | D212: Athlete | E212: Club | H212: Lane | I212: No. | J212: Athlete | K212: Club
A213: =IFERROR(VLOOKUP(A211,Timetables!$A:$E,5,FALSE)-1,"") -> 108 | B213: 1 | C213: =IFERROR(IF(B213>MatchDay!$U$2,"-",VLOOKUP(A211,timetables,MatchDay!$U$4,FALSE)),0) -> 2 | D213: =IFERROR(IF(A219=0,HLOOKUP(C213,Declarations!$D$2:$S$193,A213,FALSE),HLOOKUP(VLOOKUP(C213,Teams!$Y$2:$Z$18,2,FALSE),Declarations!$D$2:$S$193,A213,FALSE)),"") -> PARCELL Nicole | E213: =IFERROR(VLOOKUP(C213,teamlookup,5,FALSE),"") -> E&H | H213: 1 | I213: =IFERROR(IF($A219=0,C213*11,C213&C213),"") -> 22 | J213: =IFERROR(IF(A219=0,HLOOKUP(I213,Declarations!$D$2:$S$193,A213,FALSE),HLOOKUP(VLOOKUP(I213,Teams!$Y$2:$Z$18,2,FALSE),Declarations!$D$2:$S$193,A213,FALSE)),"") -> SPILIOPOULOU Ashleigh | K213: =IFERROR(VLOOKUP(I213,teamlookup,5,FALSE),"") -> E&H | S213: =IFERROR(IF(A219=0,"numbers_","letters_"),"") -> numbers_
A214: =A203+1 -> 22 | B214: 2 | C214: =IFERROR(IF(B214>MatchDay!$U$2,"-",VLOOKUP(A211,timetables,MatchDay!$U$4+1,FALSE)),0) -> 5 | D214: =IFERROR(IF(A219=0,HLOOKUP(C214,Declarations!$D$2:$S$193,A213,FALSE),HLOOKUP(VLOOKUP(C214,Teams!$Y$2:$Z$18,2,FALSE),Declarations!$D$2:$S$193,A213,FALSE)),"") -> Aleah Girvan-Flyn | E214: =IFERROR(VLOOKUP(C214,teamlookup,5,FALSE),"") -> Beds | H214: 2 | I214: =IFERROR(IF($A219=0,C214*11,C214&C214),"") -> 55 | J214: =IFERROR(IF(A219=0,HLOOKUP(I214,Declarations!$D$2:$S$193,A213,FALSE),HLOOKUP(VLOOKUP(I214,Teams!$Y$2:$Z$18,2,FALSE),Declarations!$D$2:$S$193,A213,FALSE)),"") ->  | K214: Beds
A215: =IFERROR(VLOOKUP(A211,standards,3,FALSE)+0.01,"-") -> 14.41 | B215: 3 | C215: =IFERROR(IF(B215>MatchDay!$U$2,"-",VLOOKUP(A211,timetables,MatchDay!$U$4+2,FALSE)),0) -> 3 | D215: =IFERROR(IF(A219=0,HLOOKUP(C215,Declarations!$D$2:$S$193,A213,FALSE),HLOOKUP(VLOOKUP(C215,Teams!$Y$2:$Z$18,2,FALSE),Declarations!$D$2:$S$193,A213,FALSE)),"") ->  | E215: Have | H215: 3 | I215: =IFERROR(IF($A219=0,C215*11,C215&C215),"") -> 33 | J215: =IFERROR(IF(A219=0,HLOOKUP(I215,Declarations!$D$2:$S$193,A213,FALSE),HLOOKUP(VLOOKUP(I215,Teams!$Y$2:$Z$18,2,FALSE),Declarations!$D$2:$S$193,A213,FALSE)),"") ->  | K215: Have
A216: =IFERROR(VLOOKUP(A211,standards,4,FALSE)+0.01,"-") -> 14.81 | B216: 4 | C216: =IFERROR(IF(B216>MatchDay!$U$2,"-",VLOOKUP(A211,timetables,MatchDay!$U$4+3,FALSE)),0) -> 4 | D216: =IFERROR(IF(A219=0,HLOOKUP(C216,Declarations!$D$2:$S$193,A213,FALSE),HLOOKUP(VLOOKUP(C216,Teams!$Y$2:$Z$18,2,FALSE),Declarations!$D$2:$S$193,A213,FALSE)),"") ->  | E216: SNH | H216: 4 | I216: =IFERROR(IF($A219=0,C216*11,C216&C216),"") -> 44 | J216: =IFERROR(IF(A219=0,HLOOKUP(I216,Declarations!$D$2:$S$193,A213,FALSE),HLOOKUP(VLOOKUP(I216,Teams!$Y$2:$Z$18,2,FALSE),Declarations!$D$2:$S$193,A213,FALSE)),"") ->  | K216: SNH
A217: =IFERROR(VLOOKUP(A211,standards,5,FALSE)+0.01,"-") -> 15.21 | B217: 5 | C217: =IFERROR(IF(B217>MatchDay!$U$2,"-",VLOOKUP(A211,timetables,MatchDay!$U$4+4,FALSE)),0) -> 6 | D217: =IFERROR(IF(A219=0,HLOOKUP(C217,Declarations!$D$2:$S$193,A213,FALSE),HLOOKUP(VLOOKUP(C217,Teams!$Y$2:$Z$18,2,FALSE),Declarations!$D$2:$S$193,A213,FALSE)),"") ->  | E217: Ton | H217: 5 | I217: =IFERROR(IF($A219=0,C217*11,C217&C217),"") -> 66 | J217: =IFERROR(IF(A219=0,HLOOKUP(I217,Declarations!$D$2:$S$193,A213,FALSE),HLOOKUP(VLOOKUP(I217,Teams!$Y$2:$Z$18,2,FALSE),Declarations!$D$2:$S$193,A213,FALSE)),"") ->  | K217: Ton
A218: =IFERROR(VLOOKUP(A211,standards,6,FALSE)+0.01,"-") -> 15.21 | B218: 6 | C218: =IFERROR(IF(B218>MatchDay!$U$2,"-",VLOOKUP(A211,timetables,MatchDay!$U$4+5,FALSE)),0) -> 1 | D218: =IFERROR(IF(A219=0,HLOOKUP(C218,Declarations!$D$2:$S$193,A213,FALSE),HLOOKUP(VLOOKUP(C218,Teams!$Y$2:$Z$18,2,FALSE),Declarations!$D$2:$S$193,A213,FALSE)),"") ->  | E218: Chelm | H218: 6 | I218: =IFERROR(IF($A219=0,C218*11,C218&C218),"") -> 11 | J218: =IFERROR(IF(A219=0,HLOOKUP(I218,Declarations!$D$2:$S$193,A213,FALSE),HLOOKUP(VLOOKUP(I218,Teams!$Y$2:$Z$18,2,FALSE),Declarations!$D$2:$S$193,A213,FALSE)),"") ->  | K218: Chelm
A219: =IFERROR(SEARCH("U17",B211),0) -> 0 | B219: 7 | C219: =IFERROR(IF(B219>MatchDay!$U$2,"-",VLOOKUP(A211,timetables,MatchDay!$U$4+6,FALSE)),0) -> - | D219: =IFERROR(IF(A219=0,HLOOKUP(C219,Declarations!$D$2:$S$193,A213,FALSE),HLOOKUP(VLOOKUP(C219,Teams!$Y$2:$Z$18,2,FALSE),Declarations!$D$2:$S$193,A213,FALSE)),"") ->  | H219: 7 | I219: =IFERROR(IF($A219=0,C219*11,C219&C219),"") ->  | J219: =IFERROR(IF(A219=0,HLOOKUP(I219,Declarations!$D$2:$S$193,A213,FALSE),HLOOKUP(VLOOKUP(I219,Teams!$Y$2:$Z$18,2,FALSE),Declarations!$D$2:$S$193,A213,FALSE)),"") -> 
... 221 more rows

Sheet Track1
A1: ="UK ATHLETICS :: YOUTH DEVELOPMENT LEAGUE 2017 " -> UK ATHLETICS :: YOUTH DEVELOPMENT LEAGUE 2017 | B1: =Dashboard!E1 -> UPPER SOUTH Premier 2B MATCH 1 @ Luton | L1: =Dashboard!E2 -> 2017-04-30 | P1: Points | R1: =SUM(R2:R265) -> 24
A2: UT01 | B2: =IFERROR(VLOOKUP(A2,timetables,2,FALSE)&" "&VLOOKUP(A2,timetables,3,FALSE)&" A","") -> 400m Hurdles U20 Men A | E2: =IFERROR(IF(VLOOKUP($A2,timetables,8,FALSE)="W","Wind = ",""),"") ->  | G2: =IFERROR(IF(OR(F4=0,F4=""),"",IF(F4<A11,"REC",IF(F4=A11,"=Rec",""))),"") ->  | I2: =IFERROR(VLOOKUP(A2,timetables,2,FALSE)&" "&VLOOKUP(A2,timetables,3,FALSE)&" B","") -> 400m Hurdles U20 Men B | L2: =IFERROR(IF(VLOOKUP($A2,timetables,8,FALSE)="W","Wind = ",""),"") ->  | P2: A | Q2: B
A3: T01 | B3: Posn | C3: No. | D3: Athlete | E3: Club | F3: Perf | G3: AAA | I3: Posn | J3: No. | K3: Athlete | L3: Club | M3: Perf | N3: AAA | P3: =IFERROR(SEARCH("NS",B2),0) -> 0
A4: =IFERROR(VLOOKUP(A2,Timetables!$A:$E,5,FALSE)-1,"") -> 157 | B4: 1 | C4: 3 | D4: =IFERROR(IF(A10=0,HLOOKUP(C4,Declarations!$D$2:$S$193,A4,FALSE),HLOOKUP(VLOOKUP(C4,Teams!$Y$2:$Z$18,2,FALSE),Declarations!$D$2:$S$193,A4,FALSE)),"") -> Kieran Riddell | E4: =IFERROR(VLOOKUP(C4,teamlookup,5,FALSE),"") -> Have | F4: 66.9 | G4: =IFERROR(IF(OR(F4=0,F4="",F4>$A$9-0.01),"",VLOOKUP(VLOOKUP(F4,A5:B9,2,TRUE),Points!$H$7:$I$10,2,FALSE)),"") ->  | I4: 1 | J4: 66 | K4: =IFERROR(IF(A10=0,HLOOKUP(J4,Declarations!$D$2:$S$193,A4,FALSE),HLOOKUP(VLOOKUP(J4,Teams!$Y$2:$Z$18,2,FALSE),Declarations!$D$2:$S$193,A4,FALSE)),"") -> CRICK Samuel | L4: =IFERROR(VLOOKUP(J4,teamlookup,5,FALSE),"") -> Ton | M4: 61.3 | N4: =IFERROR(IF(OR(M4=0,M4="",M4>$A$9-0.01),"",VLOOKUP(VLOOKUP(M4,A5:B9,2,TRUE),Points!$H$7:$I$10,2,FALSE)),"") ->  | P4: =IFERROR(IF(OR(C4=0,C4="",F4=0,F4="",$P3<>0,LEFT(F4,1)="D"),0,VLOOKUP(B4,INDIRECT(MatchDay!$W$2),2,FALSE)),"") -> 9 | Q4: =IFERROR(IF(OR(J4=0,J4="",M4=0,M4="",$P3<>0,LEFT(M4,1)="D"),0,VLOOKUP(I4,INDIRECT(MatchDay!$W$2),3,FALSE)),"") -> 7 | R4: =COUNTIF(F4,">0") -> 1 | S4: =IFERROR(IF(A10=0,"numbers_","letters_"),"") -> numbers_
A5: 0 | B5: 2 | C5: 6 | D5: =IFERROR(IF(A10=0,HLOOKUP(C5,Declarations!$D$2:$S$193,A4,FALSE),HLOOKUP(VLOOKUP(C5,Teams!$Y$2:$Z$18,2,FALSE),Declarations!$D$2:$S$193,A4,FALSE)),"") -> PITCAIRN-KNOWLES Bede | E5: =IFERROR(VLOOKUP(C5,teamlookup,5,FALSE),"") -> Ton | F5: 69.1 | G5: =IFERROR(IF(OR(F5=0,F5="",F5>$A$9-0.01),"",VLOOKUP(VLOOKUP(F5,A5:B9,2,TRUE),Points!$H$7:$I$10,2,FALSE)),"") ->  | I5: 2 | K5: =IFERROR(IF(A10=0,HLOOKUP(J5,Declarations!$D$2:$S$193,A4,FALSE),HLOOKUP(VLOOKUP(J5,Teams!$Y$2:$Z$18,2,FALSE),Declarations!$D$2:$S$193,A4,FALSE)),"") ->  | N5: =IFERROR(IF(OR(M5=0,M5="",M5>$A$9-0.01),"",VLOOKUP(VLOOKUP(M5,A5:B9,2,TRUE),Points!$H$7:$I$10,2,FALSE)),"") ->  | P5: =IFERROR(IF(OR(C5=0,C5="",F5=0,F5="",$P3<>0,LEFT(F5,1)="D"),0,VLOOKUP(B5,INDIRECT(MatchDay!$W$2),2,FALSE)),"") -> 7 | Q5: =IFERROR(IF(OR(J5=0,J5="",M5=0,M5="",$P3<>0,LEFT(M5,1)="D"),0,VLOOKUP(I5,INDIRECT(MatchDay!$W$2),3,FALSE)),"") -> 0
A6: =IFERROR(VLOOKUP(A2,standards,3,FALSE)+0.01,"-") -> 54.71 | B6: 3 | C6: 4 | D6: =IFERROR(IF(A10=0,HLOOKUP(C6,Declarations!$D$2:$S$193,A4,FALSE),HLOOKUP(VLOOKUP(C6,Teams!$Y$2:$Z$18,2,FALSE),Declarations!$D$2:$S$193,A4,FALSE)),"") -> Will Rodway | E6: SNH | F6: 70.6 | G6: =IFERROR(IF(OR(F6=0,F6="",F6>$A$9-0.01),"",VLOOKUP(VLOOKUP(F6,A5:B9,2,TRUE),Points!$H$7:$I$10,2,FALSE)),"") ->  | I6: 3 | K6: =IFERROR(IF(A10=0,HLOOKUP(J6,Declarations!$D$2:$S$193,A4,FALSE),HLOOKUP(VLOOKUP(J6,Teams!$Y$2:$Z$18,2,FALSE),Declarations!$D$2:$S$193,A4,FALSE)),"") ->  | N6: =IFERROR(IF(OR(M6=0,M6="",M6>$A$9-0.01),"",VLOOKUP(VLOOKUP(M6,A5:B9,2,TRUE),Points!$H$7:$I$10,2,FALSE)),"") ->  | P6: =IFERROR(IF(OR(C6=0,C6="",F6=0,F6="",$P3<>0,LEFT(F6,1)="D"),0,VLOOKUP(B6,INDIRECT(MatchDay!$W$2),2,FALSE)),"") -> 6 | Q6: =IFERROR(IF(OR(J6=0,J6="",M6=0,M6="",$P3<>0,LEFT(M6,1)="D"),0,VLOOKUP(I6,INDIRECT(MatchDay!$W$2),3,FALSE)),"") -> 0
A7: =IFERROR(VLOOKUP(A2,standards,4,FALSE)+0.01,"-") -> 55.81 | B7: 4 | D7: =IFERROR(IF(A10=0,HLOOKUP(C7,Declarations!$D$2:$S$193,A4,FALSE),HLOOKUP(VLOOKUP(C7,Teams!$Y$2:$Z$18,2,FALSE),Declarations!$D$2:$S$193,A4,FALSE)),"") ->  | G7: =IFERROR(IF(OR(F7=0,F7="",F7>$A$9-0.01),"",VLOOKUP(VLOOKUP(F7,A5:B9,2,TRUE),Points!$H$7:$I$10,2,FALSE)),"") ->  | I7: 4 | K7: =IFERROR(IF(A10=0,HLOOKUP(J7,Declarations!$D$2:$S$193,A4,FALSE),HLOOKUP(VLOOKUP(J7,Teams!$Y$2:$Z$18,2,FALSE),Declarations!$D$2:$S$193,A4,FALSE)),"") ->  | N7: =IFERROR(IF(OR(M7=0,M7="",M7>$A$9-0.01),"",VLOOKUP(VLOOKUP(M7,A5:B9,2,TRUE),Points!$H$7:$I$10,2,FALSE)),"") ->  | P7: =IFERROR(IF(OR(C7=0,C7="",F7=0,F7="",$P3<>0,LEFT(F7,1)="D"),0,VLOOKUP(B7,INDIRECT(MatchDay!$W$2),2,FALSE)),"") -> 0 | Q7: =IFERROR(IF(OR(J7=0,J7="",M7=0,M7="",$P3<>0,LEFT(M7,1)="D"),0,VLOOKUP(I7,INDIRECT(MatchDay!$W$2),3,FALSE)),"") -> 0
A8: =IFERROR(VLOOKUP(A2,standards,5,FALSE)+0.01,"-") -> 57.51 | B8: 5 | D8: =IFERROR(IF(A10=0,HLOOKUP(C8,Declarations!$D$2:$S$193,A4,FALSE),HLOOKUP(VLOOKUP(C8,Teams!$Y$2:$Z$18,2,FALSE),Declarations!$D$2:$S$193,A4,FALSE)),"") ->  | G8: =IFERROR(IF(OR(F8=0,F8="",F8>$A$9-0.01),"",VLOOKUP(VLOOKUP(F8,A5:B9,2,TRUE),Points!$H$7:$I$10,2,FALSE)),"") ->  | I8: 5 | K8: =IFERROR(IF(A10=0,HLOOKUP(J8,Declarations!$D$2:$S$193,A4,FALSE),HLOOKUP(VLOOKUP(J8,Teams!$Y$2:$Z$18,2,FALSE),Declarations!$D$2:$S$193,A4,FALSE)),"") ->  | N8: =IFERROR(IF(OR(M8=0,M8="",M8>$A$9-0.01),"",VLOOKUP(VLOOKUP(M8,A5:B9,2,TRUE),Points!$H$7:$I$10,2,FALSE)),"") ->  | P8: =IFERROR(IF(OR(C8=0,C8="",F8=0,F8="",$P3<>0,LEFT(F8,1)="D"),0,VLOOKUP(B8,INDIRECT(MatchDay!$W$2),2,FALSE)),"") -> 0 | Q8: =IFERROR(IF(OR(J8=0,J8="",M8=0,M8="",$P3<>0,LEFT(M8,1)="D"),0,VLOOKUP(I8,INDIRECT(MatchDay!$W$2),3,FALSE)),"") -> 0
A9: =IFERROR(VLOOKUP(A2,standards,6,FALSE)+0.01,"-") -> 57.51 | B9: 6 | D9: =IFERROR(IF(A10=0,HLOOKUP(C9,Declarations!$D$2:$S$193,A4,FALSE),HLOOKUP(VLOOKUP(C9,Teams!$Y$2:$Z$18,2,FALSE),Declarations!$D$2:$S$193,A4,FALSE)),"") ->  | G9: =IFERROR(IF(OR(F9=0,F9="",F9>$A$9-0.01),"",VLOOKUP(VLOOKUP(F9,A5:B9,2,TRUE),Points!$H$7:$I$10,2,FALSE)),"") ->  | I9: 6 | K9: =IFERROR(IF(A10=0,HLOOKUP(J9,Declarations!$D$2:$S$193,A4,FALSE),HLOOKUP(VLOOKUP(J9,Teams!$Y$2:$Z$18,2,FALSE),Declarations!$D$2:$S$193,A4,FALSE)),"") ->  | N9: =IFERROR(IF(OR(M9=0,M9="",M9>$A$9-0.01),"",VLOOKUP(VLOOKUP(M9,A5:B9,2,TRUE),Points!$H$7:$I$10,2,FALSE)),"") ->  | P9: =IFERROR(IF(OR(C9=0,C9="",F9=0,F9="",$P3<>0,LEFT(F9,1)="D"),0,VLOOKUP(B9,INDIRECT(MatchDay!$W$2),2,FALSE)),"") -> 0 | Q9: =IFERROR(IF(OR(J9=0,J9="",M9=0,M9="",$P3<>0,LEFT(M9,1)="D"),0,VLOOKUP(I9,INDIRECT(MatchDay!$W$2),3,FALSE)),"") -> 0
A10: =IFERROR(SEARCH("U17",B2),0) -> 0 | B10: 7 | D10: =IFERROR(IF(A10=0,HLOOKUP(C10,Declarations!$D$2:$S$193,A4,FALSE),HLOOKUP(VLOOKUP(C10,Teams!$Y$2:$Z$18,2,FALSE),Declarations!$D$2:$S$193,A4,FALSE)),"") ->  | G10: =IFERROR(IF(OR(F10=0,F10="",F10>$A$9-0.01),"",VLOOKUP(VLOOKUP(F10,A5:B9,2,TRUE),Points!$H$7:$I$10,2,FALSE)),"") ->  | I10: 7 | K10: =IFERROR(IF(A10=0,HLOOKUP(J10,Declarations!$D$2:$S$193,A4,FALSE),HLOOKUP(VLOOKUP(J10,Teams!$Y$2:$Z$18,2,FALSE),Declarations!$D$2:$S$193,A4,FALSE)),"") ->  | N10: =IFERROR(IF(OR(M10=0,M10="",M10>$A$9-0.01),"",VLOOKUP(VLOOKUP(M10,A5:B9,2,TRUE),Points!$H$7:$I$10,2,FALSE)),"") ->  | P10: =IFERROR(IF(OR(C10=0,C10="",F10=0,F10="",$P3<>0,LEFT(F10,1)="D"),0,VLOOKUP(B10,INDIRECT(MatchDay!$W$2),2,FALSE)),"") -> 0 | Q10: =IFERROR(IF(OR(J10=0,J10="",M10=0,M10="",$P3<>0,LEFT(M10,1)="D"),0,VLOOKUP(I10,INDIRECT(MatchDay!$W$2),3,FALSE)),"") -> 0
A11: =IFERROR(VLOOKUP(A2,records,5,FALSE),"") -> 52.03 | B11: 8 | D11: =IFERROR(IF(A10=0,HLOOKUP(C11,Declarations!$D$2:$S$193,A4,FALSE),HLOOKUP(VLOOKUP(C11,Teams!$Y$2:$Z$18,2,FALSE),Declarations!$D$2:$S$193,A4,FALSE)),"") ->  | G11: =IFERROR(IF(OR(F11=0,F11="",F11>$A$9-0.01),"",VLOOKUP(VLOOKUP(F11,A5:B9,2,TRUE),Points!$H$7:$I$10,2,FALSE)),"") ->  | I11: 8 | K11: =IFERROR(IF(A10=0,HLOOKUP(J11,Declarations!$D$2:$S$193,A4,FALSE),HLOOKUP(VLOOKUP(J11,Teams!$Y$2:$Z$18,2,FALSE),Declarations!$D$2:$S$193,A4,FALSE)),"") ->  | N11: =IFERROR(IF(OR(M11=0,M11="",M11>$A$9-0.01),"",VLOOKUP(VLOOKUP(M11,A5:B9,2,TRUE),Points!$H$7:$I$10,2,FALSE)),"") ->  | P11: =IFERROR(IF(OR(C11=0,C11="",F11=0,F11="",$P3<>0,LEFT(F11,1)="D"),0,VLOOKUP(B11,INDIRECT(MatchDay!$W$2),2,FALSE)),"") -> 0 | Q11: =IFERROR(IF(OR(J11=0,J11="",M11=0,M11="",$P3<>0,LEFT(M11,1)="D"),0,VLOOKUP(I11,INDIRECT(MatchDay!$W$2),3,FALSE)),"") -> 0
A13: UT02 | B13: =IFERROR(VLOOKUP(A13,timetables,2,FALSE)&" "&VLOOKUP(A13,timetables,3,FALSE)&" A","") -> 400m Hurdles U17 Men A | E13: =IFERROR(IF(VLOOKUP($A13,timetables,8,FALSE)="W","Wind = ",""),"") ->  | G13: =IFERROR(IF(OR(F15=0,F15=""),"",IF(F15<A22,"REC",IF(F15=A22,"=Rec",""))),"") ->  | I13: =IFERROR(VLOOKUP(A13,timetables,2,FALSE)&" "&VLOOKUP(A13,timetables,3,FALSE)&" B","") -> 400m Hurdles U17 Men B | L13: =IFERROR(IF(VLOOKUP($A13,timetables,8,FALSE)="W","Wind = ",""),"") ->  | P13: A | Q13: B
A14: T02 | B14: Posn | C14: No. | D14: Athlete | E14: Club | F14: Perf | G14: AAA | I14: Posn | J14: No. | K14: Athlete | L14: Club | M14: Perf | N14: AAA | P14: =IFERROR(SEARCH("NS",B13),0) -> 0
A15: =IFERROR(VLOOKUP(A13,Timetables!$A:$E,5,FALSE)-1,"") -> 180 | B15: 1 | C15: D | D15: =IFERROR(IF(A21=0,HLOOKUP(C15,Declarations!$D$2:$S$193,A15,FALSE),HLOOKUP(VLOOKUP(C15,Teams!$Y$2:$Z$18,2,FALSE),Declarations!$D$2:$S$193,A15,FALSE)),"") -> Freddie Reilly | E15: =IFERROR(VLOOKUP(C15,teamlookup,5,FALSE),"") -> SNH | F15: 59.9 | G15: =IFERROR(IF(OR(F15=0,F15="",F15>$A$9-0.01),"",VLOOKUP(VLOOKUP(F15,A16:B20,2,TRUE),Points!$H$7:$I$10,2,FALSE)),"") ->  | I15: 1 | K15: =IFERROR(IF(A21=0,HLOOKUP(J15,Declarations!$D$2:$S$193,A15,FALSE),HLOOKUP(VLOOKUP(J15,Teams!$Y$2:$Z$18,2,FALSE),Declarations!$D$2:$S$193,A15,FALSE)),"") ->  | L15: =IFERROR(VLOOKUP(J15,teamlookup,5,FALSE),"") ->  | N15: =IFERROR(IF(OR(M15=0,M15="",M15>$A$9-0.01),"",VLOOKUP(VLOOKUP(M15,A16:B20,2,TRUE),Points!$H$7:$I$10,2,FALSE)),"") ->  | P15: =IFERROR(IF(OR(C15=0,C15="",F15=0,F15="",$P14<>0,LEFT(F15,1)="D"),0,VLOOKUP(B15,INDIRECT(MatchDay!$W$2),2,FALSE)),"") -> 9 | Q15: =IFERROR(IF(OR(J15=0,J15="",M15=0,M15="",$P14<>0,LEFT(M15,1)="D"),0,VLOOKUP(I15,INDIRECT(MatchDay!$W$2),3,FALSE)),"") -> 0 | R15: =COUNTIF(F15,">0") -> 1 | S15: =IFERROR(IF(A21=0,"numbers_","letters_"),"") -> letters_
A16: 0 | B16: 2 | C16: B | D16: =IFERROR(IF(A21=0,HLOOKUP(C16,Declarations!$D$2:$S$193,A15,FALSE),HLOOKUP(VLOOKUP(C16,Teams!$Y$2:$Z$18,2,FALSE),Declarations!$D$2:$S$193,A15,FALSE)),"") -> WILLIAMS Haydn | E16: E&H | F16: 67.6 | G16: =IFERROR(IF(OR(F16=0,F16="",F16>$A$9-0.01),"",VLOOKUP(VLOOKUP(F16,A16:B20,2,TRUE),Points!$H$7:$I$10,2,FALSE)),"") ->  | I16: 2 | K16: =IFERROR(IF(A21=0,HLOOKUP(J16,Declarations!$D$2:$S$193,A15,FALSE),HLOOKUP(VLOOKUP(J16,Teams!$Y$2:$Z$18,2,FALSE),Declarations!$D$2:$S$193,A15,FALSE)),"") ->  | N16: =IFERROR(IF(OR(M16=0,M16="",M16>$A$9-0.01),"",VLOOKUP(VLOOKUP(M16,A16:B20,2,TRUE),Points!$H$7:$I$10,2,FALSE)),"") ->  | P16: =IFERROR(IF(OR(C16=0,C16="",F16=0,F16="",$P14<>0,LEFT(F16,1)="D"),0,VLOOKUP(B16,INDIRECT(MatchDay!$W$2),2,FALSE)),"") -> 7 | Q16: =IFERROR(IF(OR(J16=0,J16="",M16=0,M16="",$P14<>0,LEFT(M16,1)="D"),0,VLOOKUP(I16,INDIRECT(MatchDay!$W$2),3,FALSE)),"") -> 0
A17: =IFERROR(VLOOKUP(A13,standards,3,FALSE)+0.01,"-") -> 55.91 | B17: 3 | C17: A | D17: =IFERROR(IF(A21=0,HLOOKUP(C17,Declarations!$D$2:$S$193,A15,FALSE),HLOOKUP(VLOOKUP(C17,Teams!$Y$2:$Z$18,2,FALSE),Declarations!$D$2:$S$193,A15,FALSE)),"") -> BENNETT kieran | E17: Chelm | F17: 75.7 | G17: =IFERROR(IF(OR(F17=0,F17="",F17>$A$9-0.01),"",VLOOKUP(VLOOKUP(F17,A16:B20,2,TRUE),Points!$H$7:$I$10,2,FALSE)),"") ->  | I17: 3 | K17: =IFERROR(IF(A21=0,HLOOKUP(J17,Declarations!$D$2:$S$193,A15,FALSE),HLOOKUP(VLOOKUP(J17,Teams!$Y$2:$Z$18,2,FALSE),Declarations!$D$2:$S$193,A15,FALSE)),"") ->  | N17: =IFERROR(IF(OR(M17=0,M17="",M17>$A$9-0.01),"",VLOOKUP(VLOOKUP(M17,A16:B20,2,TRUE),Points!$H$7:$I$10,2,FALSE)),"") ->  | P17: =IFERROR(IF(OR(C17=0,C17="",F17=0,F17="",$P14<>0,LEFT(F17,1)="D"),0,VLOOKUP(B17,INDIRECT(MatchDay!$W$2),2,FALSE)),"") -> 6 | Q17: =IFERROR(IF(OR(J17=0,J17="",M17=0,M17="",$P14<>0,LEFT(M17,1)="D"),0,VLOOKUP(I17,INDIRECT(MatchDay!$W$2),3,FALSE)),"") -> 0
A18: =IFERROR(VLOOKUP(A13,standards,4,FALSE)+0.01,"-") -> 57.51 | B18: 4 | D18: =IFERROR(IF(A21=0,HLOOKUP(C18,Declarations!$D$2:$S$193,A15,FALSE),HLOOKUP(VLOOKUP(C18,Teams!$Y$2:$Z$18,2,FALSE),Declarations!$D$2:$S$193,A15,FALSE)),"") ->  | G18: =IFERROR(IF(OR(F18=0,F18="",F18>$A$9-0.01),"",VLOOKUP(VLOOKUP(F18,A16:B20,2,TRUE),Points!$H$7:$I$10,2,FALSE)),"") ->  | I18: 4 | K18: =IFERROR(IF(A21=0,HLOOKUP(J18,Declarations!$D$2:$S$193,A15,FALSE),HLOOKUP(VLOOKUP(J18,Teams!$Y$2:$Z$18,2,FALSE),Declarations!$D$2:$S$193,A15,FALSE)),"") ->  | N18: =IFERROR(IF(OR(M18=0,M18="",M18>$A$9-0.01),"",VLOOKUP(VLOOKUP(M18,A16:B20,2,TRUE),Points!$H$7:$I$10,2,FALSE)),"") ->  | P18: =IFERROR(IF(OR(C18=0,C18="",F18=0,F18="",$P14<>0,LEFT(F18,1)="D"),0,VLOOKUP(B18,INDIRECT(MatchDay!$W$2),2,FALSE)),"") -> 0 | Q18: =IFERROR(IF(OR(J18=0,J18="",M18=0,M18="",$P14<>0,LEFT(M18,1)="D"),0,VLOOKUP(I18,INDIRECT(MatchDay!$W$2),3,FALSE)),"") -> 0
A19: =IFERROR(VLOOKUP(A13,standards,5,FALSE)+0.01,"-") -> 59.51 | B19: 5 | D19: =IFERROR(IF(A21=0,HLOOKUP(C19,Declarations!$D$2:$S$193,A15,FALSE),HLOOKUP(VLOOKUP(C19,Teams!$Y$2:$Z$18,2,FALSE),Declarations!$D$2:$S$193,A15,FALSE)),"") ->  | G19: =IFERROR(IF(OR(F19=0,F19="",F19>$A$9-0.01),"",VLOOKUP(VLOOKUP(F19,A16:B20,2,TRUE),Points!$H$7:$I$10,2,FALSE)),"") ->  | I19: 5 | K19: =IFERROR(IF(A21=0,HLOOKUP(J19,Declarations!$D$2:$S$193,A15,FALSE),HLOOKUP(VLOOKUP(J19,Teams!$Y$2:$Z$18,2,FALSE),Declarations!$D$2:$S$193,A15,FALSE)),"") ->  | N19: =IFERROR(IF(OR(M19=0,M19="",M19>$A$9-0.01),"",VLOOKUP(VLOOKUP(M19,A16:B20,2,TRUE),Points!$H$7:$I$10,2,FALSE)),"") ->  | P19: =IFERROR(IF(OR(C19=0,C19="",F19=0,F19="",$P14<>0,LEFT(F19,1)="D"),0,VLOOKUP(B19,INDIRECT(MatchDay!$W$2),2,FALSE)),"") -> 0 | Q19: =IFERROR(IF(OR(J19=0,J19="",M19=0,M19="",$P14<>0,LEFT(M19,1)="D"),0,VLOOKUP(I19,INDIRECT(MatchDay!$W$2),3,FALSE)),"") -> 0
A20: =IFERROR(VLOOKUP(A13,standards,6,FALSE)+0.01,"-") -> 62.51 | B20: 6 | D20: =IFERROR(IF(A21=0,HLOOKUP(C20,Declarations!$D$2:$S$193,A15,FALSE),HLOOKUP(VLOOKUP(C20,Teams!$Y$2:$Z$18,2,FALSE),Declarations!$D$2:$S$193,A15,FALSE)),"") ->  | G20: =IFERROR(IF(OR(F20=0,F20="",F20>$A$9-0.01),"",VLOOKUP(VLOOKUP(F20,A16:B20,2,TRUE),Points!$H$7:$I$10,2,FALSE)),"") ->  | I20: 6 | K20: =IFERROR(IF(A21=0,HLOOKUP(J20,Declarations!$D$2:$S$193,A15,FALSE),HLOOKUP(VLOOKUP(J20,Teams!$Y$2:$Z$18,2,FALSE),Declarations!$D$2:$S$193,A15,FALSE)),"") ->  | N20: =IFERROR(IF(OR(M20=0,M20="",M20>$A$9-0.01),"",VLOOKUP(VLOOKUP(M20,A16:B20,2,TRUE),Points!$H$7:$I$10,2,FALSE)),"") ->  | P20: =IFERROR(IF(OR(C20=0,C20="",F20=0,F20="",$P14<>0,LEFT(F20,1)="D"),0,VLOOKUP(B20,INDIRECT(MatchDay!$W$2),2,FALSE)),"") -> 0 | Q20: =IFERROR(IF(OR(J20=0,J20="",M20=0,M20="",$P14<>0,LEFT(M20,1)="D"),0,VLOOKUP(I20,INDIRECT(MatchDay!$W$2),3,FALSE)),"") -> 0
A21: =IFERROR(SEARCH("U17",B13),0) -> 14 | B21: 7 | D21: =IFERROR(IF(A21=0,HLOOKUP(C21,Declarations!$D$2:$S$193,A15,FALSE),HLOOKUP(VLOOKUP(C21,Teams!$Y$2:$Z$18,2,FALSE),Declarations!$D$2:$S$193,A15,FALSE)),"") ->  | G21: =IFERROR(IF(OR(F21=0,F21="",F21>$A$9-0.01),"",VLOOKUP(VLOOKUP(F21,A16:B20,2,TRUE),Points!$H$7:$I$10,2,FALSE)),"") ->  | I21: 7 | K21: =IFERROR(IF(A21=0,HLOOKUP(J21,Declarations!$D$2:$S$193,A15,FALSE),HLOOKUP(VLOOKUP(J21,Teams!$Y$2:$Z$18,2,FALSE),Declarations!$D$2:$S$193,A15,FALSE)),"") ->  | N21: =IFERROR(IF(OR(M21=0,M21="",M21>$A$9-0.01),"",VLOOKUP(VLOOKUP(M21,A16:B20,2,TRUE),Points!$H$7:$I$10,2,FALSE)),"") ->  | P21: =IFERROR(IF(OR(C21=0,C21="",F21=0,F21="",$P14<>0,LEFT(F21,1)="D"),0,VLOOKUP(B21,INDIRECT(MatchDay!$W$2),2,FALSE)),"") -> 0 | Q21: =IFERROR(IF(OR(J21=0,J21="",M21=0,M21="",$P14<>0,LEFT(M21,1)="D"),0,VLOOKUP(I21,INDIRECT(MatchDay!$W$2),3,FALSE)),"") -> 0
A22: =IFERROR(VLOOKUP(A13,records,5,FALSE),"") -> 54.05 | B22: 8 | D22: =IFERROR(IF(A21=0,HLOOKUP(C22,Declarations!$D$2:$S$193,A15,FALSE),HLOOKUP(VLOOKUP(C22,Teams!$Y$2:$Z$18,2,FALSE),Declarations!$D$2:$S$193,A15,FALSE)),"") ->  | G22: =IFERROR(IF(OR(F22=0,F22="",F22>$A$9-0.01),"",VLOOKUP(VLOOKUP(F22,A16:B20,2,TRUE),Points!$H$7:$I$10,2,FALSE)),"") ->  | I22: 8 | K22: =IFERROR(IF(A21=0,HLOOKUP(J22,Declarations!$D$2:$S$193,A15,FALSE),HLOOKUP(VLOOKUP(J22,Teams!$Y$2:$Z$18,2,FALSE),Declarations!$D$2:$S$193,A15,FALSE)),"") ->  | N22: =IFERROR(IF(OR(M22=0,M22="",M22>$A$9-0.01),"",VLOOKUP(VLOOKUP(M22,A16:B20,2,TRUE),Points!$H$7:$I$10,2,FALSE)),"") ->  | P22: =IFERROR(IF(OR(C22=0,C22="",F22=0,F22="",$P14<>0,LEFT(F22,1)="D"),0,VLOOKUP(B22,INDIRECT(MatchDay!$W$2),2,FALSE)),"") -> 0 | Q22: =IFERROR(IF(OR(J22=0,J22="",M22=0,M22="",$P14<>0,LEFT(M22,1)="D"),0,VLOOKUP(I22,INDIRECT(MatchDay!$W$2),3,FALSE)),"") -> 0
A24: UT03 | B24: =IFERROR(VLOOKUP(A24,timetables,2,FALSE)&" "&VLOOKUP(A24,timetables,3,FALSE)&" A","") -> 400m Hurdles U20 Women A | E24: =IFERROR(IF(VLOOKUP($A24,timetables,8,FALSE)="W","Wind = ",""),"") ->  | G24: =IFERROR(IF(OR(F26=0,F26=""),"",IF(F26<A33,"REC",IF(F26=A33,"=Rec",""))),"") ->  | I24: =IFERROR(VLOOKUP(A24,timetables,2,FALSE)&" "&VLOOKUP(A24,timetables,3,FALSE)&" B","") -> 400m Hurdles U20 Women B | L24: =IFERROR(IF(VLOOKUP($A24,timetables,8,FALSE)="W","Wind = ",""),"") ->  | P24: A | Q24: B
A25: T03 | B25: Posn | C25: No. | D25: Athlete | E25: Club | F25: Perf | G25: AAA | I25: Posn | J25: No. | K25: Athlete | L25: Club | M25: Perf | N25: AAA | P25: =IFERROR(SEARCH("NS",B24),0) -> 0
A26: =IFERROR(VLOOKUP(A24,Timetables!$A:$E,5,FALSE)-1,"") -> 111 | B26: 1 | C26: 4 | D26: =IFERROR(IF(A32=0,HLOOKUP(C26,Declarations!$D$2:$S$193,A26,FALSE),HLOOKUP(VLOOKUP(C26,Teams!$Y$2:$Z$18,2,FALSE),Declarations!$D$2:$S$193,A26,FALSE)),"") -> Rebecca Pickard | E26: =IFERROR(VLOOKUP(C26,teamlookup,5,FALSE),"") -> SNH | F26: 72.1 | G26: =IFERROR(IF(OR(F26=0,F26="",F26>$A$9-0.01),"",VLOOKUP(VLOOKUP(F26,A27:B31,2,TRUE),Points!$H$7:$I$10,2,FALSE)),"") ->  | I26: 1 | K26: =IFERROR(IF(A32=0,HLOOKUP(J26,Declarations!$D$2:$S$193,A26,FALSE),HLOOKUP(VLOOKUP(J26,Teams!$Y$2:$Z$18,2,FALSE),Declarations!$D$2:$S$193,A26,FALSE)),"") ->  | L26: =IFERROR(VLOOKUP(J26,teamlookup,5,FALSE),"") ->  | N26: =IFERROR(IF(OR(M26=0,M26="",M26>$A$9-0.01),"",VLOOKUP(VLOOKUP(M26,A27:B31,2,TRUE),Points!$H$7:$I$10,2,FALSE)),"") ->  | P26: =IFERROR(IF(OR(C26=0,C26="",F26=0,F26="",$P25<>0,LEFT(F26,1)="D"),0,VLOOKUP(B26,INDIRECT(MatchDay!$W$2),2,FALSE)),"") -> 9 | Q26: =IFERROR(IF(OR(J26=0,J26="",M26=0,M26="",$P25<>0,LEFT(M26,1)="D"),0,VLOOKUP(I26,INDIRECT(MatchDay!$W$2),3,FALSE)),"") -> 0 | R26: =COUNTIF(F26,">0") -> 1 | S26: =IFERROR(IF(A32=0,"numbers_","letters_"),"") -> numbers_
A27: 0 | B27: 2 | D27: =IFERROR(IF(A32=0,HLOOKUP(C27,Declarations!$D$2:$S$193,A26,FALSE),HLOOKUP(VLOOKUP(C27,Teams!$Y$2:$Z$18,2,FALSE),Declarations!$D$2:$S$193,A26,FALSE)),"") ->  | G27: =IFERROR(IF(OR(F27=0,F27="",F27>$A$9-0.01),"",VLOOKUP(VLOOKUP(F27,A27:B31,2,TRUE),Points!$H$7:$I$10,2,FALSE)),"") ->  | I27: 2 | K27: =IFERROR(IF(A32=0,HLOOKUP(J27,Declarations!$D$2:$S$193,A26,FALSE),HLOOKUP(VLOOKUP(J27,Teams!$Y$2:$Z$18,2,FALSE),Declarations!$D$2:$S$193,A26,FALSE)),"") ->  | N27: =IFERROR(IF(OR(M27=0,M27="",M27>$A$9-0.01),"",VLOOKUP(VLOOKUP(M27,A27:B31,2,TRUE),Points!$H$7:$I$10,2,FALSE)),"") ->  | P27: =IFERROR(IF(OR(C27=0,C27="",F27=0,F27="",$P25<>0,LEFT(F27,1)="D"),0,VLOOKUP(B27,INDIRECT(MatchDay!$W$2),2,FALSE)),"") -> 0 | Q27: =IFERROR(IF(OR(J27=0,J27="",M27=0,M27="",$P25<>0,LEFT(M27,1)="D"),0,VLOOKUP(I27,INDIRECT(MatchDay!$W$2),3,FALSE)),"") -> 0
A28: =IFERROR(VLOOKUP(A24,standards,3,FALSE)+0.01,"-") -> 61.81 | B28: 3 | D28: =IFERROR(IF(A32=0,HLOOKUP(C28,Declarations!$D$2:$S$193,A26,FALSE),HLOOKUP(VLOOKUP(C28,Teams!$Y$2:$Z$18,2,FALSE),Declarations!$D$2:$S$193,A26,FALSE)),"") ->  | G28: =IFERROR(IF(OR(F28=0,F28="",F28>$A$9-0.01),"",VLOOKUP(VLOOKUP(F28,A27:B31,2,TRUE),Points!$H$7:$I$10,2,FALSE)),"") ->  | I28: 3 | K28: =IFERROR(IF(A32=0,HLOOKUP(J28,Declarations!$D$2:$S$193,A26,FALSE),HLOOKUP(VLOOKUP(J28,Teams!$Y$2:$Z$18,2,FALSE),Declarations!$D$2:$S$193,A26,FALSE)),"") ->  | N28: =IFERROR(IF(OR(M28=0,M28="",M28>$A$9-0.01),"",VLOOKUP(VLOOKUP(M28,A27:B31,2,TRUE),Points!$H$7:$I$10,2,FALSE)),"") ->  | P28: =IFERROR(IF(OR(C28=0,C28="",F28=0,F28="",$P25<>0,LEFT(F28,1)="D"),0,VLOOKUP(B28,INDIRECT(MatchDay!$W$2),2,FALSE)),"") -> 0 | Q28: =IFERROR(IF(OR(J28=0,J28="",M28=0,M28="",$P25<>0,LEFT(M28,1)="D"),0,VLOOKUP(I28,INDIRECT(MatchDay!$W$2),3,FALSE)),"") -> 0
A29: =IFERROR(VLOOKUP(A24,standards,4,FALSE)+0.01,"-") -> 64.71 | B29: 4 | D29: =IFERROR(IF(A32=0,HLOOKUP(C29,Declarations!$D$2:$S$193,A26,FALSE),HLOOKUP(VLOOKUP(C29,Teams!$Y$2:$Z$18,2,FALSE),Declarations!$D$2:$S$193,A26,FALSE)),"") ->  | G29: =IFERROR(IF(OR(F29=0,F29="",F29>$A$9-0.01),"",VLOOKUP(VLOOKUP(F29,A27:B31,2,TRUE),Points!$H$7:$I$10,2,FALSE)),"") ->  | I29: 4 | K29: =IFERROR(IF(A32=0,HLOOKUP(J29,Declarations!$D$2:$S$193,A26,FALSE),HLOOKUP(VLOOKUP(J29,Teams!$Y$2:$Z$18,2,FALSE),Declarations!$D$2:$S$193,A26,FALSE)),"") ->  | N29: =IFERROR(IF(OR(M29=0,M29="",M29>$A$9-0.01),"",VLOOKUP(VLOOKUP(M29,A27:B31,2,TRUE),Points!$H$7:$I$10,2,FALSE)),"") ->  | P29: =IFERROR(IF(OR(C29=0,C29="",F29=0,F29="",$P25<>0,LEFT(F29,1)="D"),0,VLOOKUP(B29,INDIRECT(MatchDay!$W$2),2,FALSE)),"") -> 0 | Q29: =IFERROR(IF(OR(J29=0,J29="",M29=0,M29="",$P25<>0,LEFT(M29,1)="D"),0,VLOOKUP(I29,INDIRECT(MatchDay!$W$2),3,FALSE)),"") -> 0
A30: =IFERROR(VLOOKUP(A24,standards,5,FALSE)+0.01,"-") -> 66.91 | B30: 5 | D30: =IFERROR(IF(A32=0,HLOOKUP(C30,Declarations!$D$2:$S$193,A26,FALSE),HLOOKUP(VLOOKUP(C30,Teams!$Y$2:$Z$18,2,FALSE),Declarations!$D$2:$S$193,A26,FALSE)),"") ->  | G30: =IFERROR(IF(OR(F30=0,F30="",F30>$A$9-0.01),"",VLOOKUP(VLOOKUP(F30,A27:B31,2,TRUE),Points!$H$7:$I$10,2,FALSE)),"") ->  | I30: 5 | K30: =IFERROR(IF(A32=0,HLOOKUP(J30,Declarations!$D$2:$S$193,A26,FALSE),HLOOKUP(VLOOKUP(J30,Teams!$Y$2:$Z$18,2,FALSE),Declarations!$D$2:$S$193,A26,FALSE)),"") ->  | N30: =IFERROR(IF(OR(M30=0,M30="",M30>$A$9-0.01),"",VLOOKUP(VLOOKUP(M30,A27:B31,2,TRUE),Points!$H$7:$I$10,2,FALSE)),"") ->  | P30: =IFERROR(IF(OR(C30=0,C30="",F30=0,F30="",$P25<>0,LEFT(F30,1)="D"),0,VLOOKUP(B30,INDIRECT(MatchDay!$W$2),2,FALSE)),"") -> 0 | Q30: =IFERROR(IF(OR(J30=0,J30="",M30=0,M30="",$P25<>0,LEFT(M30,1)="D"),0,VLOOKUP(I30,INDIRECT(MatchDay!$W$2),3,FALSE)),"") -> 0
A31: =IFERROR(VLOOKUP(A24,standards,6,FALSE)+0.01,"-") -> 66.91 | B31: 6 | D31: =IFERROR(IF(A32=0,HLOOKUP(C31,Declarations!$D$2:$S$193,A26,FALSE),HLOOKUP(VLOOKUP(C31,Teams!$Y$2:$Z$18,2,FALSE),Declarations!$D$2:$S$193,A26,FALSE)),"") ->  | G31: =IFERROR(IF(OR(F31=0,F31="",F31>$A$9-0.01),"",VLOOKUP(VLOOKUP(F31,A27:B31,2,TRUE),Points!$H$7:$I$10,2,FALSE)),"") ->  | I31: 6 | K31: =IFERROR(IF(A32=0,HLOOKUP(J31,Declarations!$D$2:$S$193,A26,FALSE),HLOOKUP(VLOOKUP(J31,Teams!$Y$2:$Z$18,2,FALSE),Declarations!$D$2:$S$193,A26,FALSE)),"") ->  | N31: =IFERROR(IF(OR(M31=0,M31="",M31>$A$9-0.01),"",VLOOKUP(VLOOKUP(M31,A27:B31,2,TRUE),Points!$H$7:$I$10,2,FALSE)),"") ->  | P31: =IFERROR(IF(OR(C31=0,C31="",F31=0,F31="",$P25<>0,LEFT(F31,1)="D"),0,VLOOKUP(B31,INDIRECT(MatchDay!$W$2),2,FALSE)),"") -> 0 | Q31: =IFERROR(IF(OR(J31=0,J31="",M31=0,M31="",$P25<>0,LEFT(M31,1)="D"),0,VLOOKUP(I31,INDIRECT(MatchDay!$W$2),3,FALSE)),"") -> 0
A32: =IFERROR(SEARCH("U17",B24),0) -> 0 | B32: 7 | D32: =IFERROR(IF(A32=0,HLOOKUP(C32,Declarations!$D$2:$S$193,A26,FALSE),HLOOKUP(VLOOKUP(C32,Teams!$Y$2:$Z$18,2,FALSE),Declarations!$D$2:$S$193,A26,FALSE)),"") ->  | G32: =IFERROR(IF(OR(F32=0,F32="",F32>$A$9-0.01),"",VLOOKUP(VLOOKUP(F32,A27:B31,2,TRUE),Points!$H$7:$I$10,2,FALSE)),"") ->  | I32: 7 | K32: =IFERROR(IF(A32=0,HLOOKUP(J32,Declarations!$D$2:$S$193,A26,FALSE),HLOOKUP(VLOOKUP(J32,Teams!$Y$2:$Z$18,2,FALSE),Declarations!$D$2:$S$193,A26,FALSE)),"") ->  | N32: =IFERROR(IF(OR(M32=0,M32="",M32>$A$9-0.01),"",VLOOKUP(VLOOKUP(M32,A27:B31,2,TRUE),Points!$H$7:$I$10,2,FALSE)),"") ->  | P32: =IFERROR(IF(OR(C32=0,C32="",F32=0,F32="",$P25<>0,LEFT(F32,1)="D"),0,VLOOKUP(B32,INDIRECT(MatchDay!$W$2),2,FALSE)),"") -> 0 | Q32: =IFERROR(IF(OR(J32=0,J32="",M32=0,M32="",$P25<>0,LEFT(M32,1)="D"),0,VLOOKUP(I32,INDIRECT(MatchDay!$W$2),3,FALSE)),"") -> 0
A33: =IFERROR(VLOOKUP(A24,records,5,FALSE),"") -> 57.91 | B33: 8 | D33: =IFERROR(IF(A32=0,HLOOKUP(C33,Declarations!$D$2:$S$193,A26,FALSE),HLOOKUP(VLOOKUP(C33,Teams!$Y$2:$Z$18,2,FALSE),Declarations!$D$2:$S$193,A26,FALSE)),"") ->  | G33: =IFERROR(IF(OR(F33=0,F33="",F33>$A$9-0.01),"",VLOOKUP(VLOOKUP(F33,A27:B31,2,TRUE),Points!$H$7:$I$10,2,FALSE)),"") ->  | I33: 8 | K33: =IFERROR(IF(A32=0,HLOOKUP(J33,Declarations!$D$2:$S$193,A26,FALSE),HLOOKUP(VLOOKUP(J33,Teams!$Y$2:$Z$18,2,FALSE),Declarations!$D$2:$S$193,A26,FALSE)),"") ->  | N33: =IFERROR(IF(OR(M33=0,M33="",M33>$A$9-0.01),"",VLOOKUP(VLOOKUP(M33,A27:B31,2,TRUE),Points!$H$7:$I$10,2,FALSE)),"") ->  | P33: =IFERROR(IF(OR(C33=0,C33="",F33=0,F33="",$P25<>0,LEFT(F33,1)="D"),0,VLOOKUP(B33,INDIRECT(MatchDay!$W$2),2,FALSE)),"") -> 0 | Q33: =IFERROR(IF(OR(J33=0,J33="",M33=0,M33="",$P25<>0,LEFT(M33,1)="D"),0,VLOOKUP(I33,INDIRECT(MatchDay!$W$2),3,FALSE)),"") -> 0
A35: UT04 | B35: =IFERROR(VLOOKUP(A35,timetables,2,FALSE)&" "&VLOOKUP(A35,timetables,3,FALSE)&" A","") -> 300m Hurdles U17 Women A | E35: =IFERROR(IF(VLOOKUP($A35,timetables,8,FALSE)="W","Wind = ",""),"") ->  | G35: =IFERROR(IF(OR(F37=0,F37=""),"",IF(F37<A44,"REC",IF(F37=A44,"=Rec",""))),"") ->  | I35: =IFERROR(VLOOKUP(A35,timetables,2,FALSE)&" "&VLOOKUP(A35,timetables,3,FALSE)&" B","") -> 300m Hurdles U17 Women B | L35: =IFERROR(IF(VLOOKUP($A35,timetables,8,FALSE)="W","Wind = ",""),"") ->  | P35: A | Q35: B
A36: T04 | B36: Posn | C36: No. | D36: Athlete | E36: Club | F36: Perf | G36: AAA | I36: Posn | J36: No. | K36: Athlete | L36: Club | M36: Perf | N36: AAA | P36: =IFERROR(SEARCH("NS",B35),0) -> 0
A37: =IFERROR(VLOOKUP(A35,Timetables!$A:$E,5,FALSE)-1,"") -> 134 | B37: 1 | C37: B | D37: =IFERROR(IF(A43=0,HLOOKUP(C37,Declarations!$D$2:$S$193,A37,FALSE),HLOOKUP(VLOOKUP(C37,Teams!$Y$2:$Z$18,2,FALSE),Declarations!$D$2:$S$193,A37,FALSE)),"") -> GENTRY Grace | E37: =IFERROR(VLOOKUP(C37,teamlookup,5,FALSE),"") -> E&H | F37: 46.3 | G37: =IFERROR(IF(OR(F37=0,F37="",F37>$A$9-0.01),"",VLOOKUP(VLOOKUP(F37,A38:B42,2,TRUE),Points!$H$7:$I$10,2,FALSE)),"") -> 3 | I37: 1 | J37: BB | K37: =IFERROR(IF(A43=0,HLOOKUP(J37,Declarations!$D$2:$S$193,A37,FALSE),HLOOKUP(VLOOKUP(J37,Teams!$Y$2:$Z$18,2,FALSE),Declarations!$D$2:$S$193,A37,FALSE)),"") -> SMITH Olivia | L37: =IFERROR(VLOOKUP(J37,teamlookup,5,FALSE),"") -> E&H | M37: 51.9 | N37: =IFERROR(IF(OR(M37=0,M37="",M37>$A$9-0.01),"",VLOOKUP(VLOOKUP(M37,A38:B42,2,TRUE),Points!$H$7:$I$10,2,FALSE)),"") ->  | P37: =IFERROR(IF(OR(C37=0,C37="",F37=0,F37="",$P36<>0,LEFT(F37,1)="D"),0,VLOOKUP(B37,INDIRECT(MatchDay!$W$2),2,FALSE)),"") -> 9 | Q37: =IFERROR(IF(OR(J37=0,J37="",M37=0,M37="",$P36<>0,LEFT(M37,1)="D"),0,VLOOKUP(I37,INDIRECT(MatchDay!$W$2),3,FALSE)),"") -> 7 | R37: =COUNTIF(F37,">0") -> 1 | S37: =IFERROR(IF(A43=0,"numbers_","letters_"),"") -> letters_
A38: 0 | B38: 2 | C38: C | D38: =IFERROR(IF(A43=0,HLOOKUP(C38,Declarations!$D$2:$S$193,A37,FALSE),HLOOKUP(VLOOKUP(C38,Teams!$Y$2:$Z$18,2,FALSE),Declarations!$D$2:$S$193,A37,FALSE)),"") -> Mayi Hughes | E38: Have | F38: 48.9 | G38: =IFERROR(IF(OR(F38=0,F38="",F38>$A$9-0.01),"",VLOOKUP(VLOOKUP(F38,A38:B42,2,TRUE),Points!$H$7:$I$10,2,FALSE)),"") -> 4 | I38: 2 | J38: DD | K38: =IFERROR(IF(A43=0,HLOOKUP(J38,Declarations!$D$2:$S$193,A37,FALSE),HLOOKUP(VLOOKUP(J38,Teams!$Y$2:$Z$18,2,FALSE),Declarations!$D$2:$S$193,A37,FALSE)),"") -> Leah Cairns | L38: SNH | M38: 54.9 | N38: =IFERROR(IF(OR(M38=0,M38="",M38>$A$9-0.01),"",VLOOKUP(VLOOKUP(M38,A38:B42,2,TRUE),Points!$H$7:$I$10,2,FALSE)),"") ->  | P38: =IFERROR(IF(OR(C38=0,C38="",F38=0,F38="",$P36<>0,LEFT(F38,1)="D"),0,VLOOKUP(B38,INDIRECT(MatchDay!$W$2),2,FALSE)),"") -> 7 | Q38: =IFERROR(IF(OR(J38=0,J38="",M38=0,M38="",$P36<>0,LEFT(M38,1)="D"),0,VLOOKUP(I38,INDIRECT(MatchDay!$W$2),3,FALSE)),"") -> 5
A39: =IFERROR(VLOOKUP(A35,standards,3,FALSE)+0.01,"-") -> 44.91 | B39: 3 | C39: A | D39: =IFERROR(IF(A43=0,HLOOKUP(C39,Declarations!$D$2:$S$193,A37,FALSE),HLOOKUP(VLOOKUP(C39,Teams!$Y$2:$Z$18,2,FALSE),Declarations!$D$2:$S$193,A37,FALSE)),"") -> Whiley Jessica | E39: Chelm | F39: 49.2 | G39: =IFERROR(IF(OR(F39=0,F39="",F39>$A$9-0.01),"",VLOOKUP(VLOOKUP(F39,A38:B42,2,TRUE),Points!$H$7:$I$10,2,FALSE)),"") -> 4 | I39: 3 | K39: =IFERROR(IF(A43=0,HLOOKUP(J39,Declarations!$D$2:$S$193,A37,FALSE),HLOOKUP(VLOOKUP(J39,Teams!$Y$2:$Z$18,2,FALSE),Declarations!$D$2:$S$193,A37,FALSE)),"") ->  | N39: =IFERROR(IF(OR(M39=0,M39="",M39>$A$9-0.01),"",VLOOKUP(VLOOKUP(M39,A38:B42,2,TRUE),Points!$H$7:$I$10,2,FALSE)),"") ->  | P39: =IFERROR(IF(OR(C39=0,C39="",F39=0,F39="",$P36<>0,LEFT(F39,1)="D"),0,VLOOKUP(B39,INDIRECT(MatchDay!$W$2),2,FALSE)),"") -> 6 | Q39: =IFERROR(IF(OR(J39=0,J39="",M39=0,M39="",$P36<>0,LEFT(M39,1)="D"),0,VLOOKUP(I39,INDIRECT(MatchDay!$W$2),3,FALSE)),"") -> 0
A40: =IFERROR(VLOOKUP(A35,standards,4,FALSE)+0.01,"-") -> 45.91 | B40: 4 | C40: D | D40: =IFERROR(IF(A43=0,HLOOKUP(C40,Declarations!$D$2:$S$193,A37,FALSE),HLOOKUP(VLOOKUP(C40,Teams!$Y$2:$Z$18,2,FALSE),Declarations!$D$2:$S$193,A37,FALSE)),"") -> Connie Andrews | E40: SNH | F40: 53.8 | G40: =IFERROR(IF(OR(F40=0,F40="",F40>$A$9-0.01),"",VLOOKUP(VLOOKUP(F40,A38:B42,2,TRUE),Points!$H$7:$I$10,2,FALSE)),"") ->  | I40: 4 | K40: =IFERROR(IF(A43=0,HLOOKUP(J40,Declarations!$D$2:$S$193,A37,FALSE),HLOOKUP(VLOOKUP(J40,Teams!$Y$2:$Z$18,2,FALSE),Declarations!$D$2:$S$193,A37,FALSE)),"") ->  | N40: =IFERROR(IF(OR(M40=0,M40="",M40>$A$9-0.01),"",VLOOKUP(VLOOKUP(M40,A38:B42,2,TRUE),Points!$H$7:$I$10,2,FALSE)),"") ->  | P40: =IFERROR(IF(OR(C40=0,C40="",F40=0,F40="",$P36<>0,LEFT(F40,1)="D"),0,VLOOKUP(B40,INDIRECT(MatchDay!$W$2),2,FALSE)),"") -> 5 | Q40: =IFERROR(IF(OR(J40=0,J40="",M40=0,M40="",$P36<>0,LEFT(M40,1)="D"),0,VLOOKUP(I40,INDIRECT(MatchDay!$W$2),3,FALSE)),"") -> 0
A41: =IFERROR(VLOOKUP(A35,standards,5,FALSE)+0.01,"-") -> 47.71 | B41: 5 | D41: =IFERROR(IF(A43=0,HLOOKUP(C41,Declarations!$D$2:$S$193,A37,FALSE),HLOOKUP(VLOOKUP(C41,Teams!$Y$2:$Z$18,2,FALSE),Declarations!$D$2:$S$193,A37,FALSE)),"") ->  | G41: =IFERROR(IF(OR(F41=0,F41="",F41>$A$9-0.01),"",VLOOKUP(VLOOKUP(F41,A38:B42,2,TRUE),Points!$H$7:$I$10,2,FALSE)),"") ->  | I41: 5 | K41: =IFERROR(IF(A43=0,HLOOKUP(J41,Declarations!$D$2:$S$193,A37,FALSE),HLOOKUP(VLOOKUP(J41,Teams!$Y$2:$Z$18,2,FALSE),Declarations!$D$2:$S$193,A37,FALSE)),"") ->  | N41: =IFERROR(IF(OR(M41=0,M41="",M41>$A$9-0.01),"",VLOOKUP(VLOOKUP(M41,A38:B42,2,TRUE),Points!$H$7:$I$10,2,FALSE)),"") ->  | P41: =IFERROR(IF(OR(C41=0,C41="",F41=0,F41="",$P36<>0,LEFT(F41,1)="D"),0,VLOOKUP(B41,INDIRECT(MatchDay!$W$2),2,FALSE)),"") -> 0 | Q41: =IFERROR(IF(OR(J41=0,J41="",M41=0,M41="",$P36<>0,LEFT(M41,1)="D"),0,VLOOKUP(I41,INDIRECT(MatchDay!$W$2),3,FALSE)),"") -> 0
A42: =IFERROR(VLOOKUP(A35,standards,6,FALSE)+0.01,"-") -> 50.21 | B42: 6 | D42: =IFERROR(IF(A43=0,HLOOKUP(C42,Declarations!$D$2:$S$193,A37,FALSE),HLOOKUP(VLOOKUP(C42,Teams!$Y$2:$Z$18,2,FALSE),Declarations!$D$2:$S$193,A37,FALSE)),"") ->  | G42: =IFERROR(IF(OR(F42=0,F42="",F42>$A$9-0.01),"",VLOOKUP(VLOOKUP(F42,A38:B42,2,TRUE),Points!$H$7:$I$10,2,FALSE)),"") ->  | I42: 6 | K42: =IFERROR(IF(A43=0,HLOOKUP(J42,Declarations!$D$2:$S$193,A37,FALSE),HLOOKUP(VLOOKUP(J42,Teams!$Y$2:$Z$18,2,FALSE),Declarations!$D$2:$S$193,A37,FALSE)),"") ->  | N42: =IFERROR(IF(OR(M42=0,M42="",M42>$A$9-0.01),"",VLOOKUP(VLOOKUP(M42,A38:B42,2,TRUE),Points!$H$7:$I$10,2,FALSE)),"") ->  | P42: =IFERROR(IF(OR(C42=0,C42="",F42=0,F42="",$P36<>0,LEFT(F42,1)="D"),0,VLOOKUP(B42,INDIRECT(MatchDay!$W$2),2,FALSE)),"") -> 0 | Q42: =IFERROR(IF(OR(J42=0,J42="",M42=0,M42="",$P36<>0,LEFT(M42,1)="D"),0,VLOOKUP(I42,INDIRECT(MatchDay!$W$2),3,FALSE)),"") -> 0
A43: =IFERROR(SEARCH("U17",B35),0) -> 14 | B43: 7 | D43: =IFERROR(IF(A43=0,HLOOKUP(C43,Declarations!$D$2:$S$193,A37,FALSE),HLOOKUP(VLOOKUP(C43,Teams!$Y$2:$Z$18,2,FALSE),Declarations!$D$2:$S$193,A37,FALSE)),"") ->  | G43: =IFERROR(IF(OR(F43=0,F43="",F43>$A$9-0.01),"",VLOOKUP(VLOOKUP(F43,A38:B42,2,TRUE),Points!$H$7:$I$10,2,FALSE)),"") ->  | I43: 7 | K43: =IFERROR(IF(A43=0,HLOOKUP(J43,Declarations!$D$2:$S$193,A37,FALSE),HLOOKUP(VLOOKUP(J43,Teams!$Y$2:$Z$18,2,FALSE),Declarations!$D$2:$S$193,A37,FALSE)),"") ->  | N43: =IFERROR(IF(OR(M43=0,M43="",M43>$A$9-0.01),"",VLOOKUP(VLOOKUP(M43,A38:B42,2,TRUE),Points!$H$7:$I$10,2,FALSE)),"") ->  | P43: =IFERROR(IF(OR(C43=0,C43="",F43=0,F43="",$P36<>0,LEFT(F43,1)="D"),0,VLOOKUP(B43,INDIRECT(MatchDay!$W$2),2,FALSE)),"") -> 0 | Q43: =IFERROR(IF(OR(J43=0,J43="",M43=0,M43="",$P36<>0,LEFT(M43,1)="D"),0,VLOOKUP(I43,INDIRECT(MatchDay!$W$2),3,FALSE)),"") -> 0
A44: =IFERROR(VLOOKUP(A35,records,5,FALSE),"") -> 43.2 | B44: 8 | D44: =IFERROR(IF(A43=0,HLOOKUP(C44,Declarations!$D$2:$S$193,A37,FALSE),HLOOKUP(VLOOKUP(C44,Teams!$Y$2:$Z$18,2,FALSE),Declarations!$D$2:$S$193,A37,FALSE)),"") ->  | G44: =IFERROR(IF(OR(F44=0,F44="",F44>$A$9-0.01),"",VLOOKUP(VLOOKUP(F44,A38:B42,2,TRUE),Points!$H$7:$I$10,2,FALSE)),"") ->  | I44: 8 | K44: =IFERROR(IF(A43=0,HLOOKUP(J44,Declarations!$D$2:$S$193,A37,FALSE),HLOOKUP(VLOOKUP(J44,Teams!$Y$2:$Z$18,2,FALSE),Declarations!$D$2:$S$193,A37,FALSE)),"") ->  | N44: =IFERROR(IF(OR(M44=0,M44="",M44>$A$9-0.01),"",VLOOKUP(VLOOKUP(M44,A38:B42,2,TRUE),Points!$H$7:$I$10,2,FALSE)),"") ->  | P44: =IFERROR(IF(OR(C44=0,C44="",F44=0,F44="",$P36<>0,LEFT(F44,1)="D"),0,VLOOKUP(B44,INDIRECT(MatchDay!$W$2),2,FALSE)),"") -> 0 | Q44: =IFERROR(IF(OR(J44=0,J44="",M44=0,M44="",$P36<>0,LEFT(M44,1)="D"),0,VLOOKUP(I44,INDIRECT(MatchDay!$W$2),3,FALSE)),"") -> 0
A46: UT05 | B46: =IFERROR(VLOOKUP(A46,timetables,2,FALSE)&" "&VLOOKUP(A46,timetables,3,FALSE)&" A","") -> 100m U20 Men A | E46: =IFERROR(IF(VLOOKUP($A46,timetables,8,FALSE)="W","Wind = ",""),"") -> Wind = | G46: =IFERROR(IF(OR(F48=0,F48=""),"",IF(F48<A55,"REC",IF(F48=A55,"=Rec",""))),"") ->  | I46: =IFERROR(VLOOKUP(A46,timetables,2,FALSE)&" "&VLOOKUP(A46,timetables,3,FALSE)&" B","") -> 100m U20 Men B | L46: =IFERROR(IF(VLOOKUP($A46,timetables,8,FALSE)="W","Wind = ",""),"") -> Wind = | P46: A | Q46: B
A47: T05 | B47: Posn | C47: No. | D47: Athlete | E47: Club | F47: Perf | G47: AAA | I47: Posn | J47: No. | K47: Athlete | L47: Club | M47: Perf | N47: AAA | P47: =IFERROR(SEARCH("NS",B46),0) -> 0
A48: =IFERROR(VLOOKUP(A46,Timetables!$A:$E,5,FALSE)-1,"") -> 149 | B48: 1 | C48: 1 | D48: =IFERROR(IF(A54=0,HLOOKUP(C48,Declarations!$D$2:$S$193,A48,FALSE),HLOOKUP(VLOOKUP(C48,Teams!$Y$2:$Z$18,2,FALSE),Declarations!$D$2:$S$193,A48,FALSE)),"") -> DOBSON charlie | E48: =IFERROR(VLOOKUP(C48,teamlookup,5,FALSE),"") -> Chelm | F48: 10.9 | G48: =IFERROR(IF(OR(F48=0,F48="",F48>$A$9-0.01),"",VLOOKUP(VLOOKUP(F48,A49:B53,2,TRUE),Points!$H$7:$I$10,2,FALSE)),"") -> 1 | I48: 1 | J48: 22 | K48: =IFERROR(IF(A54=0,HLOOKUP(J48,Declarations!$D$2:$S$193,A48,FALSE),HLOOKUP(VLOOKUP(J48,Teams!$Y$2:$Z$18,2,FALSE),Declarations!$D$2:$S$193,A48,FALSE)),"") -> OLATUNJI Michael | L48: =IFERROR(VLOOKUP(J48,teamlookup,5,FALSE),"") -> E&H | M48: 11.9 | N48: =IFERROR(IF(OR(M48=0,M48="",M48>$A$9-0.01),"",VLOOKUP(VLOOKUP(M48,A49:B53,2,TRUE),Points!$H$7:$I$10,2,FALSE)),"") ->  | P48: =IFERROR(IF(OR(C48=0,C48="",F48=0,F48="",$P47<>0,LEFT(F48,1)="D"),0,VLOOKUP(B48,INDIRECT(MatchDay!$W$2),2,FALSE)),"") -> 9 | Q48: =IFERROR(IF(OR(J48=0,J48="",M48=0,M48="",$P47<>0,LEFT(M48,1)="D"),0,VLOOKUP(I48,INDIRECT(MatchDay!$W$2),3,FALSE)),"") -> 7 | R48: =COUNTIF(F48,">0") -> 1 | S48: =IFERROR(IF(A54=0,"numbers_","letters_"),"") -> numbers_
A49: 0 | B49: 2 | C49: 2 | D49: =IFERROR(IF(A54=0,HLOOKUP(C49,Declarations!$D$2:$S$193,A48,FALSE),HLOOKUP(VLOOKUP(C49,Teams!$Y$2:$Z$18,2,FALSE),Declarations!$D$2:$S$193,A48,FALSE)),"") -> OWUSU Lord | E49: E&H | F49: 11.1 | G49: =IFERROR(IF(OR(F49=0,F49="",F49>$A$9-0.01),"",VLOOKUP(VLOOKUP(F49,A49:B53,2,TRUE),Points!$H$7:$I$10,2,FALSE)),"") -> 3 | I49: 2 | J49: 33 | K49: =IFERROR(IF(A54=0,HLOOKUP(J49,Declarations!$D$2:$S$193,A48,FALSE),HLOOKUP(VLOOKUP(J49,Teams!$Y$2:$Z$18,2,FALSE),Declarations!$D$2:$S$193,A48,FALSE)),"") -> Michael Duncan | L49: Have | M49: 12 | N49: =IFERROR(IF(OR(M49=0,M49="",M49>$A$9-0.01),"",VLOOKUP(VLOOKUP(M49,A49:B53,2,TRUE),Points!$H$7:$I$10,2,FALSE)),"") ->  | P49: =IFERROR(IF(OR(C49=0,C49="",F49=0,F49="",$P47<>0,LEFT(F49,1)="D"),0,VLOOKUP(B49,INDIRECT(MatchDay!$W$2),2,FALSE)),"") -> 7 | Q49: =IFERROR(IF(OR(J49=0,J49="",M49=0,M49="",$P47<>0,LEFT(M49,1)="D"),0,VLOOKUP(I49,INDIRECT(MatchDay!$W$2),3,FALSE)),"") -> 5
A50: =IFERROR(VLOOKUP(A46,standards,3,FALSE)+0.01,"-") -> 10.91 | B50: 3 | C50: 5 | D50: =IFERROR(IF(A54=0,HLOOKUP(C50,Declarations!$D$2:$S$193,A48,FALSE),HLOOKUP(VLOOKUP(C50,Teams!$Y$2:$Z$18,2,FALSE),Declarations!$D$2:$S$193,A48,FALSE)),"") -> Emanuel Owalabi | E50: Beds | F50: 11.3 | G50: =IFERROR(IF(OR(F50=0,F50="",F50>$A$9-0.01),"",VLOOKUP(VLOOKUP(F50,A49:B53,2,TRUE),Points!$H$7:$I$10,2,FALSE)),"") ->  | I50: 3 | J50: 66 | K50: =IFERROR(IF(A54=0,HLOOKUP(J50,Declarations!$D$2:$S$193,A48,FALSE),HLOOKUP(VLOOKUP(J50,Teams!$Y$2:$Z$18,2,FALSE),Declarations!$D$2:$S$193,A48,FALSE)),"") -> SEAGROVE Daniel | L50: Ton | M50: 12.6 | N50: =IFERROR(IF(OR(M50=0,M50="",M50>$A$9-0.01),"",VLOOKUP(VLOOKUP(M50,A49:B53,2,TRUE),Points!$H$7:$I$10,2,FALSE)),"") ->  | P50: =IFERROR(IF(OR(C50=0,C50="",F50=0,F50="",$P47<>0,LEFT(F50,1)="D"),0,VLOOKUP(B50,INDIRECT(MatchDay!$W$2),2,FALSE)),"") -> 6 | Q50: =IFERROR(IF(OR(J50=0,J50="",M50=0,M50="",$P47<>0,LEFT(M50,1)="D"),0,VLOOKUP(I50,INDIRECT(MatchDay!$W$2),3,FALSE)),"") -> 4
A51: =IFERROR(VLOOKUP(A46,standards,4,FALSE)+0.01,"-") -> 11.01 | B51: 4 | C51: 6 | D51: =IFERROR(IF(A54=0,HLOOKUP(C51,Declarations!$D$2:$S$193,A48,FALSE),HLOOKUP(VLOOKUP(C51,Teams!$Y$2:$Z$18,2,FALSE),Declarations!$D$2:$S$193,A48,FALSE)),"") -> MARSHALL Henry | E51: Ton | F51: 11.3 | G51: =IFERROR(IF(OR(F51=0,F51="",F51>$A$9-0.01),"",VLOOKUP(VLOOKUP(F51,A49:B53,2,TRUE),Points!$H$7:$I$10,2,FALSE)),"") ->  | I51: 4 | K51: =IFERROR(IF(A54=0,HLOOKUP(J51,Declarations!$D$2:$S$193,A48,FALSE),HLOOKUP(VLOOKUP(J51,Teams!$Y$2:$Z$18,2,FALSE),Declarations!$D$2:$S$193,A48,FALSE)),"") ->  | N51: =IFERROR(IF(OR(M51=0,M51="",M51>$A$9-0.01),"",VLOOKUP(VLOOKUP(M51,A49:B53,2,TRUE),Points!$H$7:$I$10,2,FALSE)),"") ->  | P51: =IFERROR(IF(OR(C51=0,C51="",F51=0,F51="",$P47<>0,LEFT(F51,1)="D"),0,VLOOKUP(B51,INDIRECT(MatchDay!$W$2),2,FALSE)),"") -> 5 | Q51: =IFERROR(IF(OR(J51=0,J51="",M51=0,M51="",$P47<>0,LEFT(M51,1)="D"),0,VLOOKUP(I51,INDIRECT(MatchDay!$W$2),3,FALSE)),"") -> 0
A52: =IFERROR(VLOOKUP(A46,standards,5,FALSE)+0.01,"-") -> 11.21 | B52: 5 | C52: 3 | D52: =IFERROR(IF(A54=0,HLOOKUP(C52,Declarations!$D$2:$S$193,A48,FALSE),HLOOKUP(VLOOKUP(C52,Teams!$Y$2:$Z$18,2,FALSE),Declarations!$D$2:$S$193,A48,FALSE)),"") -> Matthew Aenimel | E52: Have | F52: 11.4 | G52: =IFERROR(IF(OR(F52=0,F52="",F52>$A$9-0.01),"",VLOOKUP(VLOOKUP(F52,A49:B53,2,TRUE),Points!$H$7:$I$10,2,FALSE)),"") ->  | I52: 5 | K52: =IFERROR(IF(A54=0,HLOOKUP(J52,Declarations!$D$2:$S$193,A48,FALSE),HLOOKUP(VLOOKUP(J52,Teams!$Y$2:$Z$18,2,FALSE),Declarations!$D$2:$S$193,A48,FALSE)),"") ->  | N52: =IFERROR(IF(OR(M52=0,M52="",M52>$A$9-0.01),"",VLOOKUP(VLOOKUP(M52,A49:B53,2,TRUE),Points!$H$7:$I$10,2,FALSE)),"") ->  | P52: =IFERROR(IF(OR(C52=0,C52="",F52=0,F52="",$P47<>0,LEFT(F52,1)="D"),0,VLOOKUP(B52,INDIRECT(MatchDay!$W$2),2,FALSE)),"") -> 4 | Q52: =IFERROR(IF(OR(J52=0,J52="",M52=0,M52="",$P47<>0,LEFT(M52,1)="D"),0,VLOOKUP(I52,INDIRECT(MatchDay!$W$2),3,FALSE)),"") -> 0
A53: =IFERROR(VLOOKUP(A46,standards,6,FALSE)+0.01,"-") -> 11.21 | B53: 6 | C53: 4 | D53: =IFERROR(IF(A54=0,HLOOKUP(C53,Declarations!$D$2:$S$193,A48,FALSE),HLOOKUP(VLOOKUP(C53,Teams!$Y$2:$Z$18,2,FALSE),Declarations!$D$2:$S$193,A48,FALSE)),"") -> Joey Harrison | E53: SNH | F53: 12.2 | G53: =IFERROR(IF(OR(F53=0,F53="",F53>$A$9-0.01),"",VLOOKUP(VLOOKUP(F53,A49:B53,2,TRUE),Points!$H$7:$I$10,2,FALSE)),"") ->  | I53: 6 | K53: =IFERROR(IF(A54=0,HLOOKUP(J53,Declarations!$D$2:$S$193,A48,FALSE),HLOOKUP(VLOOKUP(J53,Teams!$Y$2:$Z$18,2,FALSE),Declarations!$D$2:$S$193,A48,FALSE)),"") ->  | N53: =IFERROR(IF(OR(M53=0,M53="",M53>$A$9-0.01),"",VLOOKUP(VLOOKUP(M53,A49:B53,2,TRUE),Points!$H$7:$I$10,2,FALSE)),"") ->  | P53: =IFERROR(IF(OR(C53=0,C53="",F53=0,F53="",$P47<>0,LEFT(F53,1)="D"),0,VLOOKUP(B53,INDIRECT(MatchDay!$W$2),2,FALSE)),"") -> 3 | Q53: =IFERROR(IF(OR(J53=0,J53="",M53=0,M53="",$P47<>0,LEFT(M53,1)="D"),0,VLOOKUP(I53,INDIRECT(MatchDay!$W$2),3,FALSE)),"") -> 0
A54: =IFERROR(SEARCH("U17",B46),0) -> 0 | B54: 7 | D54: =IFERROR(IF(A54=0,HLOOKUP(C54,Declarations!$D$2:$S$193,A48,FALSE),HLOOKUP(VLOOKUP(C54,Teams!$Y$2:$Z$18,2,FALSE),Declarations!$D$2:$S$193,A48,FALSE)),"") ->  | G54: =IFERROR(IF(OR(F54=0,F54="",F54>$A$9-0.01),"",VLOOKUP(VLOOKUP(F54,A49:B53,2,TRUE),Points!$H$7:$I$10,2,FALSE)),"") ->  | I54: 7 | K54: =IFERROR(IF(A54=0,HLOOKUP(J54,Declarations!$D$2:$S$193,A48,FALSE),HLOOKUP(VLOOKUP(J54,Teams!$Y$2:$Z$18,2,FALSE),Declarations!$D$2:$S$193,A48,FALSE)),"") ->  | N54: =IFERROR(IF(OR(M54=0,M54="",M54>$A$9-0.01),"",VLOOKUP(VLOOKUP(M54,A49:B53,2,TRUE),Points!$H$7:$I$10,2,FALSE)),"") ->  | P54: =IFERROR(IF(OR(C54=0,C54="",F54=0,F54="",$P47<>0,LEFT(F54,1)="D"),0,VLOOKUP(B54,INDIRECT(MatchDay!$W$2),2,FALSE)),"") -> 0 | Q54: =IFERROR(IF(OR(J54=0,J54="",M54=0,M54="",$P47<>0,LEFT(M54,1)="D"),0,VLOOKUP(I54,INDIRECT(MatchDay!$W$2),3,FALSE)),"") -> 0
A55: =IFERROR(VLOOKUP(A46,records,5,FALSE),"") -> 10.5 | B55: 8 | D55: =IFERROR(IF(A54=0,HLOOKUP(C55,Declarations!$D$2:$S$193,A48,FALSE),HLOOKUP(VLOOKUP(C55,Teams!$Y$2:$Z$18,2,FALSE),Declarations!$D$2:$S$193,A48,FALSE)),"") ->  | G55: =IFERROR(IF(OR(F55=0,F55="",F55>$A$9-0.01),"",VLOOKUP(VLOOKUP(F55,A49:B53,2,TRUE),Points!$H$7:$I$10,2,FALSE)),"") ->  | I55: 8 | K55: =IFERROR(IF(A54=0,HLOOKUP(J55,Declarations!$D$2:$S$193,A48,FALSE),HLOOKUP(VLOOKUP(J55,Teams!$Y$2:$Z$18,2,FALSE),Declarations!$D$2:$S$193,A48,FALSE)),"") ->  | N55: =IFERROR(IF(OR(M55=0,M55="",M55>$A$9-0.01),"",VLOOKUP(VLOOKUP(M55,A49:B53,2,TRUE),Points!$H$7:$I$10,2,FALSE)),"") ->  | P55: =IFERROR(IF(OR(C55=0,C55="",F55=0,F55="",$P47<>0,LEFT(F55,1)="D"),0,VLOOKUP(B55,INDIRECT(MatchDay!$W$2),2,FALSE)),"") -> 0 | Q55: =IFERROR(IF(OR(J55=0,J55="",M55=0,M55="",$P47<>0,LEFT(M55,1)="D"),0,VLOOKUP(I55,INDIRECT(MatchDay!$W$2),3,FALSE)),"") -> 0
A57: UT06 | B57: =IFERROR(VLOOKUP(A57,timetables,2,FALSE)&" "&VLOOKUP(A57,timetables,3,FALSE)&" A","") -> 100m U17 Men A | E57: =IFERROR(IF(VLOOKUP($A57,timetables,8,FALSE)="W","Wind = ",""),"") -> Wind = | G57: =IFERROR(IF(OR(F59=0,F59=""),"",IF(F59<A66,"REC",IF(F59=A66,"=Rec",""))),"") ->  | I57: =IFERROR(VLOOKUP(A57,timetables,2,FALSE)&" "&VLOOKUP(A57,timetables,3,FALSE)&" B","") -> 100m U17 Men B | L57: =IFERROR(IF(VLOOKUP($A57,timetables,8,FALSE)="W","Wind = ",""),"") -> Wind = | P57: A | Q57: B
A58: T06 | B58: Posn | C58: No. | D58: Athlete | E58: Club | F58: Perf | G58: AAA | I58: Posn | J58: No. | K58: Athlete | L58: Club | M58: Perf | N58: AAA | P58: =IFERROR(SEARCH("NS",B57),0) -> 0
A59: =IFERROR(VLOOKUP(A57,Timetables!$A:$E,5,FALSE)-1,"") -> 172 | B59: 1 | C59: B | D59: =IFERROR(IF(A65=0,HLOOKUP(C59,Declarations!$D$2:$S$193,A59,FALSE),HLOOKUP(VLOOKUP(C59,Teams!$Y$2:$Z$18,2,FALSE),Declarations!$D$2:$S$193,A59,FALSE)),"") -> MAYINGI John | E59: =IFERROR(VLOOKUP(C59,teamlookup,5,FALSE),"") -> E&H | F59: 11.5 | G59: =IFERROR(IF(OR(F59=0,F59="",F59>$A$9-0.01),"",VLOOKUP(VLOOKUP(F59,A60:B64,2,TRUE),Points!$H$7:$I$10,2,FALSE)),"") -> 3 | I59: 1 | J59: EE | K59: =IFERROR(IF(A65=0,HLOOKUP(J59,Declarations!$D$2:$S$193,A59,FALSE),HLOOKUP(VLOOKUP(J59,Teams!$Y$2:$Z$18,2,FALSE),Declarations!$D$2:$S$193,A59,FALSE)),"") -> teral service johnson | L59: =IFERROR(VLOOKUP(J59,teamlookup,5,FALSE),"") -> Beds | M59: 11.9 | N59: =IFERROR(IF(OR(M59=0,M59="",M59>$A$9-0.01),"",VLOOKUP(VLOOKUP(M59,A60:B64,2,TRUE),Points!$H$7:$I$10,2,FALSE)),"") ->  | P59: =IFERROR(IF(OR(C59=0,C59="",F59=0,F59="",$P58<>0,LEFT(F59,1)="D"),0,VLOOKUP(B59,INDIRECT(MatchDay!$W$2),2,FALSE)),"") -> 9 | Q59: =IFERROR(IF(OR(J59=0,J59="",M59=0,M59="",$P58<>0,LEFT(M59,1)="D"),0,VLOOKUP(I59,INDIRECT(MatchDay!$W$2),3,FALSE)),"") -> 7 | R59: =COUNTIF(F59,">0") -> 1 | S59: =IFERROR(IF(A65=0,"numbers_","letters_"),"") -> letters_
A60: 0 | B60: 2 | C60: D | D60: =IFERROR(IF(A65=0,HLOOKUP(C60,Declarations!$D$2:$S$193,A59,FALSE),HLOOKUP(VLOOKUP(C60,Teams!$Y$2:$Z$18,2,FALSE),Declarations!$D$2:$S$193,A59,FALSE)),"") -> Kit Kerr | E60: SNH | F60: 11.6 | G60: =IFERROR(IF(OR(F60=0,F60="",F60>$A$9-0.01),"",VLOOKUP(VLOOKUP(F60,A60:B64,2,TRUE),Points!$H$7:$I$10,2,FALSE)),"") -> 4 | I60: 2 | J60: BB | K60: =IFERROR(IF(A65=0,HLOOKUP(J60,Declarations!$D$2:$S$193,A59,FALSE),HLOOKUP(VLOOKUP(J60,Teams!$Y$2:$Z$18,2,FALSE),Declarations!$D$2:$S$193,A59,FALSE)),"") -> DIXON Omar | L60: E&H | M60: 12 | N60: =IFERROR(IF(OR(M60=0,M60="",M60>$A$9-0.01),"",VLOOKUP(VLOOKUP(M60,A60:B64,2,TRUE),Points!$H$7:$I$10,2,FALSE)),"") ->  | P60: =IFERROR(IF(OR(C60=0,C60="",F60=0,F60="",$P58<>0,LEFT(F60,1)="D"),0,VLOOKUP(B60,INDIRECT(MatchDay!$W$2),2,FALSE)),"") -> 7 | Q60: =IFERROR(IF(OR(J60=0,J60="",M60=0,M60="",$P58<>0,LEFT(M60,1)="D"),0,VLOOKUP(I60,INDIRECT(MatchDay!$W$2),3,FALSE)),"") -> 5
A61: =IFERROR(VLOOKUP(A57,standards,3,FALSE)+0.01,"-") -> 11.21 | B61: 3 | C61: C | D61: =IFERROR(IF(A65=0,HLOOKUP(C61,Declarations!$D$2:$S$193,A59,FALSE),HLOOKUP(VLOOKUP(C61,Teams!$Y$2:$Z$18,2,FALSE),Declarations!$D$2:$S$193,A59,FALSE)),"") -> Jairzinho Morris | E61: Have | F61: 11.7 | G61: =IFERROR(IF(OR(F61=0,F61="",F61>$A$9-0.01),"",VLOOKUP(VLOOKUP(F61,A60:B64,2,TRUE),Points!$H$7:$I$10,2,FALSE)),"") -> 4 | I61: 3 | J61: CC | K61: =IFERROR(IF(A65=0,HLOOKUP(J61,Declarations!$D$2:$S$193,A59,FALSE),HLOOKUP(VLOOKUP(J61,Teams!$Y$2:$Z$18,2,FALSE),Declarations!$D$2:$S$193,A59,FALSE)),"") -> Tobi Idowu | L61: Have | M61: 12.2 | N61: =IFERROR(IF(OR(M61=0,M61="",M61>$A$9-0.01),"",VLOOKUP(VLOOKUP(M61,A60:B64,2,TRUE),Points!$H$7:$I$10,2,FALSE)),"") ->  | P61: =IFERROR(IF(OR(C61=0,C61="",F61=0,F61="",$P58<>0,LEFT(F61,1)="D"),0,VLOOKUP(B61,INDIRECT(MatchDay!$W$2),2,FALSE)),"") -> 6 | Q61: =IFERROR(IF(OR(J61=0,J61="",M61=0,M61="",$P58<>0,LEFT(M61,1)="D"),0,VLOOKUP(I61,INDIRECT(MatchDay!$W$2),3,FALSE)),"") -> 4
A62: =IFERROR(VLOOKUP(A57,standards,4,FALSE)+0.01,"-") -> 11.31 | B62: 4 | C62: F | D62: =IFERROR(IF(A65=0,HLOOKUP(C62,Declarations!$D$2:$S$193,A59,FALSE),HLOOKUP(VLOOKUP(C62,Teams!$Y$2:$Z$18,2,FALSE),Declarations!$D$2:$S$193,A59,FALSE)),"") -> LAKE Ernest | E62: Ton | F62: 11.7 | G62: =IFERROR(IF(OR(F62=0,F62="",F62>$A$9-0.01),"",VLOOKUP(VLOOKUP(F62,A60:B64,2,TRUE),Points!$H$7:$I$10,2,FALSE)),"") -> 4 | I62: 4 | J62: FF | K62: =IFERROR(IF(A65=0,HLOOKUP(J62,Declarations!$D$2:$S$193,A59,FALSE),HLOOKUP(VLOOKUP(J62,Teams!$Y$2:$Z$18,2,FALSE),Declarations!$D$2:$S$193,A59,FALSE)),"") -> SMITH George | L62: Ton | M62: 12.3 | N62: =IFERROR(IF(OR(M62=0,M62="",M62>$A$9-0.01),"",VLOOKUP(VLOOKUP(M62,A60:B64,2,TRUE),Points!$H$7:$I$10,2,FALSE)),"") ->  | P62: =IFERROR(IF(OR(C62=0,C62="",F62=0,F62="",$P58<>0,LEFT(F62,1)="D"),0,VLOOKUP(B62,INDIRECT(MatchDay!$W$2),2,FALSE)),"") -> 5 | Q62: =IFERROR(IF(OR(J62=0,J62="",M62=0,M62="",$P58<>0,LEFT(M62,1)="D"),0,VLOOKUP(I62,INDIRECT(MatchDay!$W$2),3,FALSE)),"") -> 3
A63: =IFERROR(VLOOKUP(A57,standards,5,FALSE)+0.01,"-") -> 11.51 | B63: 5 | C63: E | D63: =IFERROR(IF(A65=0,HLOOKUP(C63,Declarations!$D$2:$S$193,A59,FALSE),HLOOKUP(VLOOKUP(C63,Teams!$Y$2:$Z$18,2,FALSE),Declarations!$D$2:$S$193,A59,FALSE)),"") -> stephen Mienambolo | E63: Beds | F63: 12.1 | G63: =IFERROR(IF(OR(F63=0,F63="",F63>$A$9-0.01),"",VLOOKUP(VLOOKUP(F63,A60:B64,2,TRUE),Points!$H$7:$I$10,2,FALSE)),"") ->  | I63: 5 | K63: =IFERROR(IF(A65=0,HLOOKUP(J63,Declarations!$D$2:$S$193,A59,FALSE),HLOOKUP(VLOOKUP(J63,Teams!$Y$2:$Z$18,2,FALSE),Declarations!$D$2:$S$193,A59,FALSE)),"") ->  | N63: =IFERROR(IF(OR(M63=0,M63="",M63>$A$9-0.01),"",VLOOKUP(VLOOKUP(M63,A60:B64,2,TRUE),Points!$H$7:$I$10,2,FALSE)),"") ->  | P63: =IFERROR(IF(OR(C63=0,C63="",F63=0,F63="",$P58<>0,LEFT(F63,1)="D"),0,VLOOKUP(B63,INDIRECT(MatchDay!$W$2),2,FALSE)),"") -> 4 | Q63: =IFERROR(IF(OR(J63=0,J63="",M63=0,M63="",$P58<>0,LEFT(M63,1)="D"),0,VLOOKUP(I63,INDIRECT(MatchDay!$W$2),3,FALSE)),"") -> 0
A64: =IFERROR(VLOOKUP(A57,standards,6,FALSE)+0.01,"-") -> 11.81 | B64: 6 | D64: =IFERROR(IF(A65=0,HLOOKUP(C64,Declarations!$D$2:$S$193,A59,FALSE),HLOOKUP(VLOOKUP(C64,Teams!$Y$2:$Z$18,2,FALSE),Declarations!$D$2:$S$193,A59,FALSE)),"") ->  | G64: =IFERROR(IF(OR(F64=0,F64="",F64>$A$9-0.01),"",VLOOKUP(VLOOKUP(F64,A60:B64,2,TRUE),Points!$H$7:$I$10,2,FALSE)),"") ->  | I64: 6 | K64: =IFERROR(IF(A65=0,HLOOKUP(J64,Declarations!$D$2:$S$193,A59,FALSE),HLOOKUP(VLOOKUP(J64,Teams!$Y$2:$Z$18,2,FALSE),Declarations!$D$2:$S$193,A59,FALSE)),"") ->  | N64: =IFERROR(IF(OR(M64=0,M64="",M64>$A$9-0.01),"",VLOOKUP(VLOOKUP(M64,A60:B64,2,TRUE),Points!$H$7:$I$10,2,FALSE)),"") ->  | P64: =IFERROR(IF(OR(C64=0,C64="",F64=0,F64="",$P58<>0,LEFT(F64,1)="D"),0,VLOOKUP(B64,INDIRECT(MatchDay!$W$2),2,FALSE)),"") -> 0 | Q64: =IFERROR(IF(OR(J64=0,J64="",M64=0,M64="",$P58<>0,LEFT(M64,1)="D"),0,VLOOKUP(I64,INDIRECT(MatchDay!$W$2),3,FALSE)),"") -> 0
A65: =IFERROR(SEARCH("U17",B57),0) -> 6 | B65: 7 | D65: =IFERROR(IF(A65=0,HLOOKUP(C65,Declarations!$D$2:$S$193,A59,FALSE),HLOOKUP(VLOOKUP(C65,Teams!$Y$2:$Z$18,2,FALSE),Declarations!$D$2:$S$193,A59,FALSE)),"") ->  | G65: =IFERROR(IF(OR(F65=0,F65="",F65>$A$9-0.01),"",VLOOKUP(VLOOKUP(F65,A60:B64,2,TRUE),Points!$H$7:$I$10,2,FALSE)),"") ->  | I65: 7 | K65: =IFERROR(IF(A65=0,HLOOKUP(J65,Declarations!$D$2:$S$193,A59,FALSE),HLOOKUP(VLOOKUP(J65,Teams!$Y$2:$Z$18,2,FALSE),Declarations!$D$2:$S$193,A59,FALSE)),"") ->  | N65: =IFERROR(IF(OR(M65=0,M65="",M65>$A$9-0.01),"",VLOOKUP(VLOOKUP(M65,A60:B64,2,TRUE),Points!$H$7:$I$10,2,FALSE)),"") ->  | P65: =IFERROR(IF(OR(C65=0,C65="",F65=0,F65="",$P58<>0,LEFT(F65,1)="D"),0,VLOOKUP(B65,INDIRECT(MatchDay!$W$2),2,FALSE)),"") -> 0 | Q65: =IFERROR(IF(OR(J65=0,J65="",M65=0,M65="",$P58<>0,LEFT(M65,1)="D"),0,VLOOKUP(I65,INDIRECT(MatchDay!$W$2),3,FALSE)),"") -> 0
A66: =IFERROR(VLOOKUP(A57,records,5,FALSE),"") -> 10.76 | B66: 8 | D66: =IFERROR(IF(A65=0,HLOOKUP(C66,Declarations!$D$2:$S$193,A59,FALSE),HLOOKUP(VLOOKUP(C66,Teams!$Y$2:$Z$18,2,FALSE),Declarations!$D$2:$S$193,A59,FALSE)),"") ->  | G66: =IFERROR(IF(OR(F66=0,F66="",F66>$A$9-0.01),"",VLOOKUP(VLOOKUP(F66,A60:B64,2,TRUE),Points!$H$7:$I$10,2,FALSE)),"") ->  | I66: 8 | K66: =IFERROR(IF(A65=0,HLOOKUP(J66,Declarations!$D$2:$S$193,A59,FALSE),HLOOKUP(VLOOKUP(J66,Teams!$Y$2:$Z$18,2,FALSE),Declarations!$D$2:$S$193,A59,FALSE)),"") ->  | N66: =IFERROR(IF(OR(M66=0,M66="",M66>$A$9-0.01),"",VLOOKUP(VLOOKUP(M66,A60:B64,2,TRUE),Points!$H$7:$I$10,2,FALSE)),"") ->  | P66: =IFERROR(IF(OR(C66=0,C66="",F66=0,F66="",$P58<>0,LEFT(F66,1)="D"),0,VLOOKUP(B66,INDIRECT(MatchDay!$W$2),2,FALSE)),"") -> 0 | Q66: =IFERROR(IF(OR(J66=0,J66="",M66=0,M66="",$P58<>0,LEFT(M66,1)="D"),0,VLOOKUP(I66,INDIRECT(MatchDay!$W$2),3,FALSE)),"") -> 0
A68: UT07 | B68: =IFERROR(VLOOKUP(A68,timetables,2,FALSE)&" "&VLOOKUP(A68,timetables,3,FALSE)&" A","") -> 100m U20 Women A | E68: =IFERROR(IF(VLOOKUP($A68,timetables,8,FALSE)="W","Wind = ",""),"") -> Wind = | G68: =IFERROR(IF(OR(F70=0,F70=""),"",IF(F70<A77,"REC",IF(F70=A77,"=Rec",""))),"") ->  | I68: =IFERROR(VLOOKUP(A68,timetables,2,FALSE)&" "&VLOOKUP(A68,timetables,3,FALSE)&" B","") -> 100m U20 Women B | L68: =IFERROR(IF(VLOOKUP($A68,timetables,8,FALSE)="W","Wind = ",""),"") -> Wind = | P68: A | Q68: B
A69: T07 | B69: Posn | C69: No. | D69: Athlete | E69: Club | F69: Perf | G69: AAA | I69: Posn | J69: No. | K69: Athlete | L69: Club | M69: Perf | N69: AAA | P69: =IFERROR(SEARCH("NS",B68),0) -> 0
A70: =IFERROR(VLOOKUP(A68,Timetables!$A:$E,5,FALSE)-1,"") -> 103 | B70: 1 | C70: 2 | D70: =IFERROR(IF(A76=0,HLOOKUP(C70,Declarations!$D$2:$S$193,A70,FALSE),HLOOKUP(VLOOKUP(C70,Teams!$Y$2:$Z$18,2,FALSE),Declarations!$D$2:$S$193,A70,FALSE)),"") -> JAPAL Salome | E70: =IFERROR(VLOOKUP(C70,teamlookup,5,FALSE),"") -> E&H | F70: 12.1 | G70: =IFERROR(IF(OR(F70=0,F70="",F70>$A$9-0.01),"",VLOOKUP(VLOOKUP(F70,A71:B75,2,TRUE),Points!$H$7:$I$10,2,FALSE)),"") -> 1 | I70: 1 | J70: 22 | K70: =IFERROR(IF(A76=0,HLOOKUP(J70,Declarations!$D$2:$S$193,A70,FALSE),HLOOKUP(VLOOKUP(J70,Teams!$Y$2:$Z$18,2,FALSE),Declarations!$D$2:$S$193,A70,FALSE)),"") -> MODESTE Elise X | L70: =IFERROR(VLOOKUP(J70,teamlookup,5,FALSE),"") -> E&H | M70: 12.6 | N70: =IFERROR(IF(OR(M70=0,M70="",M70>$A$9-0.01),"",VLOOKUP(VLOOKUP(M70,A71:B75,2,TRUE),Points!$H$7:$I$10,2,FALSE)),"") -> 3 | P70: =IFERROR(IF(OR(C70=0,C70="",F70=0,F70="",$P69<>0,LEFT(F70,1)="D"),0,VLOOKUP(B70,INDIRECT(MatchDay!$W$2),2,FALSE)),"") -> 9 | Q70: =IFERROR(IF(OR(J70=0,J70="",M70=0,M70="",$P69<>0,LEFT(M70,1)="D"),0,VLOOKUP(I70,INDIRECT(MatchDay!$W$2),3,FALSE)),"") -> 7 | R70: =COUNTIF(F70,">0") -> 1 | S70: =IFERROR(IF(A76=0,"numbers_","letters_"),"") -> numbers_
A71: 0 | B71: 2 | C71: 1 | D71: =IFERROR(IF(A76=0,HLOOKUP(C71,Declarations!$D$2:$S$193,A70,FALSE),HLOOKUP(VLOOKUP(C71,Teams!$Y$2:$Z$18,2,FALSE),Declarations!$D$2:$S$193,A70,FALSE)),"") -> JEGGO Rebecca | E71: Chelm | F71: 12.1 | G71: =IFERROR(IF(OR(F71=0,F71="",F71>$A$9-0.01),"",VLOOKUP(VLOOKUP(F71,A71:B75,2,TRUE),Points!$H$7:$I$10,2,FALSE)),"") -> 1 | I71: 2 | J71: 55 | K71: =IFERROR(IF(A76=0,HLOOKUP(J71,Declarations!$D$2:$S$193,A70,FALSE),HLOOKUP(VLOOKUP(J71,Teams!$Y$2:$Z$18,2,FALSE),Declarations!$D$2:$S$193,A70,FALSE)),"") -> Eleanor Griffin | L71: Beds | M71: 13.4 | N71: =IFERROR(IF(OR(M71=0,M71="",M71>$A$9-0.01),"",VLOOKUP(VLOOKUP(M71,A71:B75,2,TRUE),Points!$H$7:$I$10,2,FALSE)),"") ->  | P71: =IFERROR(IF(OR(C71=0,C71="",F71=0,F71="",$P69<>0,LEFT(F71,1)="D"),0,VLOOKUP(B71,INDIRECT(MatchDay!$W$2),2,FALSE)),"") -> 7 | Q71: =IFERROR(IF(OR(J71=0,J71="",M71=0,M71="",$P69<>0,LEFT(M71,1)="D"),0,VLOOKUP(I71,INDIRECT(MatchDay!$W$2),3,FALSE)),"") -> 5
A72: =IFERROR(VLOOKUP(A68,standards,3,FALSE)+0.01,"-") -> 12.21 | B72: 3 | C72: 5 | D72: =IFERROR(IF(A76=0,HLOOKUP(C72,Declarations!$D$2:$S$193,A70,FALSE),HLOOKUP(VLOOKUP(C72,Teams!$Y$2:$Z$18,2,FALSE),Declarations!$D$2:$S$193,A70,FALSE)),"") -> Mia Chapman | E72: Beds | F72: 12.5 | G72: =IFERROR(IF(OR(F72=0,F72="",F72>$A$9-0.01),"",VLOOKUP(VLOOKUP(F72,A71:B75,2,TRUE),Points!$H$7:$I$10,2,FALSE)),"") -> 3 | I72: 3 | J72: 33 | K72: =IFERROR(IF(A76=0,HLOOKUP(J72,Declarations!$D$2:$S$193,A70,FALSE),HLOOKUP(VLOOKUP(J72,Teams!$Y$2:$Z$18,2,FALSE),Declarations!$D$2:$S$193,A70,FALSE)),"") -> Josie Waddams | L72: Have | M72: 14 | N72: =IFERROR(IF(OR(M72=0,M72="",M72>$A$9-0.01),"",VLOOKUP(VLOOKUP(M72,A71:B75,2,TRUE),Points!$H$7:$I$10,2,FALSE)),"") ->  | P72: =IFERROR(IF(OR(C72=0,C72="",F72=0,F72="",$P69<>0,LEFT(F72,1)="D"),0,VLOOKUP(B72,INDIRECT(MatchDay!$W$2),2,FALSE)),"") -> 6 | Q72: =IFERROR(IF(OR(J72=0,J72="",M72=0,M72="",$P69<>0,LEFT(M72,1)="D"),0,VLOOKUP(I72,INDIRECT(MatchDay!$W$2),3,FALSE)),"") -> 4
A73: =IFERROR(VLOOKUP(A68,standards,4,FALSE)+0.01,"-") -> 12.41 | B73: 4 | C73: 4 | D73: =IFERROR(IF(A76=0,HLOOKUP(C73,Declarations!$D$2:$S$193,A70,FALSE),HLOOKUP(VLOOKUP(C73,Teams!$Y$2:$Z$18,2,FALSE),Declarations!$D$2:$S$193,A70,FALSE)),"") -> Bethany Harley | E73: SNH | F73: 12.9 | G73: =IFERROR(IF(OR(F73=0,F73="",F73>$A$9-0.01),"",VLOOKUP(VLOOKUP(F73,A71:B75,2,TRUE),Points!$H$7:$I$10,2,FALSE)),"") ->  | I73: 4 | K73: =IFERROR(IF(A76=0,HLOOKUP(J73,Declarations!$D$2:$S$193,A70,FALSE),HLOOKUP(VLOOKUP(J73,Teams!$Y$2:$Z$18,2,FALSE),Declarations!$D$2:$S$193,A70,FALSE)),"") ->  | N73: =IFERROR(IF(OR(M73=0,M73="",M73>$A$9-0.01),"",VLOOKUP(VLOOKUP(M73,A71:B75,2,TRUE),Points!$H$7:$I$10,2,FALSE)),"") ->  | P73: =IFERROR(IF(OR(C73=0,C73="",F73=0,F73="",$P69<>0,LEFT(F73,1)="D"),0,VLOOKUP(B73,INDIRECT(MatchDay!$W$2),2,FALSE)),"") -> 5 | Q73: =IFERROR(IF(OR(J73=0,J73="",M73=0,M73="",$P69<>0,LEFT(M73,1)="D"),0,VLOOKUP(I73,INDIRECT(MatchDay!$W$2),3,FALSE)),"") -> 0
A74: =IFERROR(VLOOKUP(A68,standards,5,FALSE)+0.01,"-") -> 12.61 | B74: 5 | C74: 3 | D74: =IFERROR(IF(A76=0,HLOOKUP(C74,Declarations!$D$2:$S$193,A70,FALSE),HLOOKUP(VLOOKUP(C74,Teams!$Y$2:$Z$18,2,FALSE),Declarations!$D$2:$S$193,A70,FALSE)),"") -> Holly Nash | E74: Have | F74: 13.7 | G74: =IFERROR(IF(OR(F74=0,F74="",F74>$A$9-0.01),"",VLOOKUP(VLOOKUP(F74,A71:B75,2,TRUE),Points!$H$7:$I$10,2,FALSE)),"") ->  | I74: 5 | K74: =IFERROR(IF(A76=0,HLOOKUP(J74,Declarations!$D$2:$S$193,A70,FALSE),HLOOKUP(VLOOKUP(J74,Teams!$Y$2:$Z$18,2,FALSE),Declarations!$D$2:$S$193,A70,FALSE)),"") ->  | N74: =IFERROR(IF(OR(M74=0,M74="",M74>$A$9-0.01),"",VLOOKUP(VLOOKUP(M74,A71:B75,2,TRUE),Points!$H$7:$I$10,2,FALSE)),"") ->  | P74: =IFERROR(IF(OR(C74=0,C74="",F74=0,F74="",$P69<>0,LEFT(F74,1)="D"),0,VLOOKUP(B74,INDIRECT(MatchDay!$W$2),2,FALSE)),"") -> 4 | Q74: =IFERROR(IF(OR(J74=0,J74="",M74=0,M74="",$P69<>0,LEFT(M74,1)="D"),0,VLOOKUP(I74,INDIRECT(MatchDay!$W$2),3,FALSE)),"") -> 0
A75: =IFERROR(VLOOKUP(A68,standards,6,FALSE)+0.01,"-") -> 12.61 | B75: 6 | D75: =IFERROR(IF(A76=0,HLOOKUP(C75,Declarations!$D$2:$S$193,A70,FALSE),HLOOKUP(VLOOKUP(C75,Teams!$Y$2:$Z$18,2,FALSE),Declarations!$D$2:$S$193,A70,FALSE)),"") ->  | G75: =IFERROR(IF(OR(F75=0,F75="",F75>$A$9-0.01),"",VLOOKUP(VLOOKUP(F75,A71:B75,2,TRUE),Points!$H$7:$I$10,2,FALSE)),"") ->  | I75: 6 | K75: =IFERROR(IF(A76=0,HLOOKUP(J75,Declarations!$D$2:$S$193,A70,FALSE),HLOOKUP(VLOOKUP(J75,Teams!$Y$2:$Z$18,2,FALSE),Declarations!$D$2:$S$193,A70,FALSE)),"") ->  | N75: =IFERROR(IF(OR(M75=0,M75="",M75>$A$9-0.01),"",VLOOKUP(VLOOKUP(M75,A71:B75,2,TRUE),Points!$H$7:$I$10,2,FALSE)),"") ->  | P75: =IFERROR(IF(OR(C75=0,C75="",F75=0,F75="",$P69<>0,LEFT(F75,1)="D"),0,VLOOKUP(B75,INDIRECT(MatchDay!$W$2),2,FALSE)),"") -> 0 | Q75: =IFERROR(IF(OR(J75=0,J75="",M75=0,M75="",$P69<>0,LEFT(M75,1)="D"),0,VLOOKUP(I75,INDIRECT(MatchDay!$W$2),3,FALSE)),"") -> 0
A76: =IFERROR(SEARCH("U17",B68),0) -> 0 | B76: 7 | D76: =IFERROR(IF(A76=0,HLOOKUP(C76,Declarations!$D$2:$S$193,A70,FALSE),HLOOKUP(VLOOKUP(C76,Teams!$Y$2:$Z$18,2,FALSE),Declarations!$D$2:$S$193,A70,FALSE)),"") ->  | G76: =IFERROR(IF(OR(F76=0,F76="",F76>$A$9-0.01),"",VLOOKUP(VLOOKUP(F76,A71:B75,2,TRUE),Points!$H$7:$I$10,2,FALSE)),"") ->  | I76: 7 | K76: =IFERROR(IF(A76=0,HLOOKUP(J76,Declarations!$D$2:$S$193,A70,FALSE),HLOOKUP(VLOOKUP(J76,Teams!$Y$2:$Z$18,2,FALSE),Declarations!$D$2:$S$193,A70,FALSE)),"") ->  | N76: =IFERROR(IF(OR(M76=0,M76="",M76>$A$9-0.01),"",VLOOKUP(VLOOKUP(M76,A71:B75,2,TRUE),Points!$H$7:$I$10,2,FALSE)),"") ->  | P76: =IFERROR(IF(OR(C76=0,C76="",F76=0,F76="",$P69<>0,LEFT(F76,1)="D"),0,VLOOKUP(B76,INDIRECT(MatchDay!$W$2),2,FALSE)),"") -> 0 | Q76: =IFERROR(IF(OR(J76=0,J76="",M76=0,M76="",$P69<>0,LEFT(M76,1)="D"),0,VLOOKUP(I76,INDIRECT(MatchDay!$W$2),3,FALSE)),"") -> 0
A77: =IFERROR(VLOOKUP(A68,records,5,FALSE),"") -> 11.49 | B77: 8 | D77: =IFERROR(IF(A76=0,HLOOKUP(C77,Declarations!$D$2:$S$193,A70,FALSE),HLOOKUP(VLOOKUP(C77,Teams!$Y$2:$Z$18,2,FALSE),Declarations!$D$2:$S$193,A70,FALSE)),"") ->  | G77: =IFERROR(IF(OR(F77=0,F77="",F77>$A$9-0.01),"",VLOOKUP(VLOOKUP(F77,A71:B75,2,TRUE),Points!$H$7:$I$10,2,FALSE)),"") ->  | I77: 8 | K77: =IFERROR(IF(A76=0,HLOOKUP(J77,Declarations!$D$2:$S$193,A70,FALSE),HLOOKUP(VLOOKUP(J77,Teams!$Y$2:$Z$18,2,FALSE),Declarations!$D$2:$S$193,A70,FALSE)),"") ->  | N77: =IFERROR(IF(OR(M77=0,M77="",M77>$A$9-0.01),"",VLOOKUP(VLOOKUP(M77,A71:B75,2,TRUE),Points!$H$7:$I$10,2,FALSE)),"") ->  | P77: =IFERROR(IF(OR(C77=0,C77="",F77=0,F77="",$P69<>0,LEFT(F77,1)="D"),0,VLOOKUP(B77,INDIRECT(MatchDay!$W$2),2,FALSE)),"") -> 0 | Q77: =IFERROR(IF(OR(J77=0,J77="",M77=0,M77="",$P69<>0,LEFT(M77,1)="D"),0,VLOOKUP(I77,INDIRECT(MatchDay!$W$2),3,FALSE)),"") -> 0
A79: UT08 | B79: =IFERROR(VLOOKUP(A79,timetables,2,FALSE)&" "&VLOOKUP(A79,timetables,3,FALSE)&" A","") -> 100m U17 Women A | E79: =IFERROR(IF(VLOOKUP($A79,timetables,8,FALSE)="W","Wind = ",""),"") -> Wind = | G79: =IFERROR(IF(OR(F81=0,F81=""),"",IF(F81<A88,"REC",IF(F81=A88,"=Rec",""))),"") ->  | I79: =IFERROR(VLOOKUP(A79,timetables,2,FALSE)&" "&VLOOKUP(A79,timetables,3,FALSE)&" B","") -> 100m U17 Women B | L79: =IFERROR(IF(VLOOKUP($A79,timetables,8,FALSE)="W","Wind = ",""),"") -> Wind = | P79: A | Q79: B
A80: T08 | B80: Posn | C80: No. | D80: Athlete | E80: Club | F80: Perf | G80: AAA | I80: Posn | J80: No. | K80: Athlete | L80: Club | M80: Perf | N80: AAA | P80: =IFERROR(SEARCH("NS",B79),0) -> 0
A81: =IFERROR(VLOOKUP(A79,Timetables!$A:$E,5,FALSE)-1,"") -> 126 | B81: 1 | C81: B | D81: =IFERROR(IF(A87=0,HLOOKUP(C81,Declarations!$D$2:$S$193,A81,FALSE),HLOOKUP(VLOOKUP(C81,Teams!$Y$2:$Z$18,2,FALSE),Declarations!$D$2:$S$193,A81,FALSE)),"") -> WICKS Skye | E81: =IFERROR(VLOOKUP(C81,teamlookup,5,FALSE),"") -> E&H | F81: 12.4 | G81: =IFERROR(IF(OR(F81=0,F81="",F81>$A$9-0.01),"",VLOOKUP(VLOOKUP(F81,A82:B86,2,TRUE),Points!$H$7:$I$10,2,FALSE)),"") -> 2 | I81: 1 | J81: BB | K81: =IFERROR(IF(A87=0,HLOOKUP(J81,Declarations!$D$2:$S$193,A81,FALSE),HLOOKUP(VLOOKUP(J81,Teams!$Y$2:$Z$18,2,FALSE),Declarations!$D$2:$S$193,A81,FALSE)),"") -> TULU Elizabeth | L81: =IFERROR(VLOOKUP(J81,teamlookup,5,FALSE),"") -> E&H | M81: 13 | N81: =IFERROR(IF(OR(M81=0,M81="",M81>$A$9-0.01),"",VLOOKUP(VLOOKUP(M81,A82:B86,2,TRUE),Points!$H$7:$I$10,2,FALSE)),"") -> 4 | P81: =IFERROR(IF(OR(C81=0,C81="",F81=0,F81="",$P80<>0,LEFT(F81,1)="D"),0,VLOOKUP(B81,INDIRECT(MatchDay!$W$2),2,FALSE)),"") -> 9 | Q81: =IFERROR(IF(OR(J81=0,J81="",M81=0,M81="",$P80<>0,LEFT(M81,1)="D"),0,VLOOKUP(I81,INDIRECT(MatchDay!$W$2),3,FALSE)),"") -> 7 | R81: =COUNTIF(F81,">0") -> 1 | S81: =IFERROR(IF(A87=0,"numbers_","letters_"),"") -> letters_
A82: 0 | B82: 2 | C82: C | D82: =IFERROR(IF(A87=0,HLOOKUP(C82,Declarations!$D$2:$S$193,A81,FALSE),HLOOKUP(VLOOKUP(C82,Teams!$Y$2:$Z$18,2,FALSE),Declarations!$D$2:$S$193,A81,FALSE)),"") -> Jade Kavanagh | E82: Have | F82: 12.8 | G82: =IFERROR(IF(OR(F82=0,F82="",F82>$A$9-0.01),"",VLOOKUP(VLOOKUP(F82,A82:B86,2,TRUE),Points!$H$7:$I$10,2,FALSE)),"") -> 3 | I82: 2 | J82: CC | K82: =IFERROR(IF(A87=0,HLOOKUP(J82,Declarations!$D$2:$S$193,A81,FALSE),HLOOKUP(VLOOKUP(J82,Teams!$Y$2:$Z$18,2,FALSE),Declarations!$D$2:$S$193,A81,FALSE)),"") -> Caitlin Saggers | L82: Have | M82: 13.7 | N82: =IFERROR(IF(OR(M82=0,M82="",M82>$A$9-0.01),"",VLOOKUP(VLOOKUP(M82,A82:B86,2,TRUE),Points!$H$7:$I$10,2,FALSE)),"") ->  | P82: =IFERROR(IF(OR(C82=0,C82="",F82=0,F82="",$P80<>0,LEFT(F82,1)="D"),0,VLOOKUP(B82,INDIRECT(MatchDay!$W$2),2,FALSE)),"") -> 7 | Q82: =IFERROR(IF(OR(J82=0,J82="",M82=0,M82="",$P80<>0,LEFT(M82,1)="D"),0,VLOOKUP(I82,INDIRECT(MatchDay!$W$2),3,FALSE)),"") -> 5
A83: =IFERROR(VLOOKUP(A79,standards,3,FALSE)+0.01,"-") -> 12.31 | B83: 3 | C83: F | D83: =IFERROR(IF(A87=0,HLOOKUP(C83,Declarations!$D$2:$S$193,A81,FALSE),HLOOKUP(VLOOKUP(C83,Teams!$Y$2:$Z$18,2,FALSE),Declarations!$D$2:$S$193,A81,FALSE)),"") -> ROOT Asha | E83: Ton | F83: 13.2 | G83: =IFERROR(IF(OR(F83=0,F83="",F83>$A$9-0.01),"",VLOOKUP(VLOOKUP(F83,A82:B86,2,TRUE),Points!$H$7:$I$10,2,FALSE)),"") ->  | I83: 3 | J83: DD | K83: =IFERROR(IF(A87=0,HLOOKUP(J83,Declarations!$D$2:$S$193,A81,FALSE),HLOOKUP(VLOOKUP(J83,Teams!$Y$2:$Z$18,2,FALSE),Declarations!$D$2:$S$193,A81,FALSE)),"") -> Ellen Morley | L83: SNH | M83: 13.8 | N83: =IFERROR(IF(OR(M83=0,M83="",M83>$A$9-0.01),"",VLOOKUP(VLOOKUP(M83,A82:B86,2,TRUE),Points!$H$7:$I$10,2,FALSE)),"") ->  | P83: =IFERROR(IF(OR(C83=0,C83="",F83=0,F83="",$P80<>0,LEFT(F83,1)="D"),0,VLOOKUP(B83,INDIRECT(MatchDay!$W$2),2,FALSE)),"") -> 6 | Q83: =IFERROR(IF(OR(J83=0,J83="",M83=0,M83="",$P80<>0,LEFT(M83,1)="D"),0,VLOOKUP(I83,INDIRECT(MatchDay!$W$2),3,FALSE)),"") -> 4
A84: =IFERROR(VLOOKUP(A79,standards,4,FALSE)+0.01,"-") -> 12.61 | B84: 4 | C84: A | D84: =IFERROR(IF(A87=0,HLOOKUP(C84,Declarations!$D$2:$S$193,A81,FALSE),HLOOKUP(VLOOKUP(C84,Teams!$Y$2:$Z$18,2,FALSE),Declarations!$D$2:$S$193,A81,FALSE)),"") -> Wall Felicity | E84: Chelm | F84: 13.3 | G84: =IFERROR(IF(OR(F84=0,F84="",F84>$A$9-0.01),"",VLOOKUP(VLOOKUP(F84,A82:B86,2,TRUE),Points!$H$7:$I$10,2,FALSE)),"") ->  | I84: 4 | J84: AA | K84: =IFERROR(IF(A87=0,HLOOKUP(J84,Declarations!$D$2:$S$193,A81,FALSE),HLOOKUP(VLOOKUP(J84,Teams!$Y$2:$Z$18,2,FALSE),Declarations!$D$2:$S$193,A81,FALSE)),"") -> BEASLEY-LONG Isabelle | L84: Chelm | M84: 14 | N84: =IFERROR(IF(OR(M84=0,M84="",M84>$A$9-0.01),"",VLOOKUP(VLOOKUP(M84,A82:B86,2,TRUE),Points!$H$7:$I$10,2,FALSE)),"") ->  | P84: =IFERROR(IF(OR(C84=0,C84="",F84=0,F84="",$P80<>0,LEFT(F84,1)="D"),0,VLOOKUP(B84,INDIRECT(MatchDay!$W$2),2,FALSE)),"") -> 5 | Q84: =IFERROR(IF(OR(J84=0,J84="",M84=0,M84="",$P80<>0,LEFT(M84,1)="D"),0,VLOOKUP(I84,INDIRECT(MatchDay!$W$2),3,FALSE)),"") -> 3
A85: =IFERROR(VLOOKUP(A79,standards,5,FALSE)+0.01,"-") -> 12.81 | B85: 5 | C85: D | D85: =IFERROR(IF(A87=0,HLOOKUP(C85,Declarations!$D$2:$S$193,A81,FALSE),HLOOKUP(VLOOKUP(C85,Teams!$Y$2:$Z$18,2,FALSE),Declarations!$D$2:$S$193,A81,FALSE)),"") -> Madeline Hurley | E85: SNH | F85: 13.4 | G85: =IFERROR(IF(OR(F85=0,F85="",F85>$A$9-0.01),"",VLOOKUP(VLOOKUP(F85,A82:B86,2,TRUE),Points!$H$7:$I$10,2,FALSE)),"") ->  | I85: 5 | J85: EE | K85: =IFERROR(IF(A87=0,HLOOKUP(J85,Declarations!$D$2:$S$193,A81,FALSE),HLOOKUP(VLOOKUP(J85,Teams!$Y$2:$Z$18,2,FALSE),Declarations!$D$2:$S$193,A81,FALSE)),"") -> Mckenna Keefe | L85: Beds | M85: 14.5 | N85: =IFERROR(IF(OR(M85=0,M85="",M85>$A$9-0.01),"",VLOOKUP(VLOOKUP(M85,A82:B86,2,TRUE),Points!$H$7:$I$10,2,FALSE)),"") ->  | P85: =IFERROR(IF(OR(C85=0,C85="",F85=0,F85="",$P80<>0,LEFT(F85,1)="D"),0,VLOOKUP(B85,INDIRECT(MatchDay!$W$2),2,FALSE)),"") -> 4 | Q85: =IFERROR(IF(OR(J85=0,J85="",M85=0,M85="",$P80<>0,LEFT(M85,1)="D"),0,VLOOKUP(I85,INDIRECT(MatchDay!$W$2),3,FALSE)),"") -> 2
A86: =IFERROR(VLOOKUP(A79,standards,6,FALSE)+0.01,"-") -> 13.11 | B86: 6 | C86: E | D86: =IFERROR(IF(A87=0,HLOOKUP(C86,Declarations!$D$2:$S$193,A81,FALSE),HLOOKUP(VLOOKUP(C86,Teams!$Y$2:$Z$18,2,FALSE),Declarations!$D$2:$S$193,A81,FALSE)),"") -> Jennifer Abbott | E86: Beds | F86: 13.5 | G86: =IFERROR(IF(OR(F86=0,F86="",F86>$A$9-0.01),"",VLOOKUP(VLOOKUP(F86,A82:B86,2,TRUE),Points!$H$7:$I$10,2,FALSE)),"") ->  | I86: 6 | J86: FF | K86: =IFERROR(IF(A87=0,HLOOKUP(J86,Declarations!$D$2:$S$193,A81,FALSE),HLOOKUP(VLOOKUP(J86,Teams!$Y$2:$Z$18,2,FALSE),Declarations!$D$2:$S$193,A81,FALSE)),"") -> KINGSTON Lucy | L86: Ton | M86: 16.3 | N86: =IFERROR(IF(OR(M86=0,M86="",M86>$A$9-0.01),"",VLOOKUP(VLOOKUP(M86,A82:B86,2,TRUE),Points!$H$7:$I$10,2,FALSE)),"") ->  | P86: =IFERROR(IF(OR(C86=0,C86="",F86=0,F86="",$P80<>0,LEFT(F86,1)="D"),0,VLOOKUP(B86,INDIRECT(MatchDay!$W$2),2,FALSE)),"") -> 3 | Q86: =IFERROR(IF(OR(J86=0,J86="",M86=0,M86="",$P80<>0,LEFT(M86,1)="D"),0,VLOOKUP(I86,INDIRECT(MatchDay!$W$2),3,FALSE)),"") -> 1
A87: =IFERROR(SEARCH("U17",B79),0) -> 6 | B87: 7 | D87: =IFERROR(IF(A87=0,HLOOKUP(C87,Declarations!$D$2:$S$193,A81,FALSE),HLOOKUP(VLOOKUP(C87,Teams!$Y$2:$Z$18,2,FALSE),Declarations!$D$2:$S$193,A81,FALSE)),"") ->  | G87: =IFERROR(IF(OR(F87=0,F87="",F87>$A$9-0.01),"",VLOOKUP(VLOOKUP(F87,A82:B86,2,TRUE),Points!$H$7:$I$10,2,FALSE)),"") ->  | I87: 7 | K87: =IFERROR(IF(A87=0,HLOOKUP(J87,Declarations!$D$2:$S$193,A81,FALSE),HLOOKUP(VLOOKUP(J87,Teams!$Y$2:$Z$18,2,FALSE),Declarations!$D$2:$S$193,A81,FALSE)),"") ->  | N87: =IFERROR(IF(OR(M87=0,M87="",M87>$A$9-0.01),"",VLOOKUP(VLOOKUP(M87,A82:B86,2,TRUE),Points!$H$7:$I$10,2,FALSE)),"") ->  | P87: =IFERROR(IF(OR(C87=0,C87="",F87=0,F87="",$P80<>0,LEFT(F87,1)="D"),0,VLOOKUP(B87,INDIRECT(MatchDay!$W$2),2,FALSE)),"") -> 0 | Q87: =IFERROR(IF(OR(J87=0,J87="",M87=0,M87="",$P80<>0,LEFT(M87,1)="D"),0,VLOOKUP(I87,INDIRECT(MatchDay!$W$2),3,FALSE)),"") -> 0
A88: =IFERROR(VLOOKUP(A79,records,5,FALSE),"") -> 11.85 | B88: 8 | D88: =IFERROR(IF(A87=0,HLOOKUP(C88,Declarations!$D$2:$S$193,A81,FALSE),HLOOKUP(VLOOKUP(C88,Teams!$Y$2:$Z$18,2,FALSE),Declarations!$D$2:$S$193,A81,FALSE)),"") ->  | G88: =IFERROR(IF(OR(F88=0,F88="",F88>$A$9-0.01),"",VLOOKUP(VLOOKUP(F88,A82:B86,2,TRUE),Points!$H$7:$I$10,2,FALSE)),"") ->  | I88: 8 | K88: =IFERROR(IF(A87=0,HLOOKUP(J88,Declarations!$D$2:$S$193,A81,FALSE),HLOOKUP(VLOOKUP(J88,Teams!$Y$2:$Z$18,2,FALSE),Declarations!$D$2:$S$193,A81,FALSE)),"") ->  | N88: =IFERROR(IF(OR(M88=0,M88="",M88>$A$9-0.01),"",VLOOKUP(VLOOKUP(M88,A82:B86,2,TRUE),Points!$H$7:$I$10,2,FALSE)),"") ->  | P88: =IFERROR(IF(OR(C88=0,C88="",F88=0,F88="",$P80<>0,LEFT(F88,1)="D"),0,VLOOKUP(B88,INDIRECT(MatchDay!$W$2),2,FALSE)),"") -> 0 | Q88: =IFERROR(IF(OR(J88=0,J88="",M88=0,M88="",$P80<>0,LEFT(M88,1)="D"),0,VLOOKUP(I88,INDIRECT(MatchDay!$W$2),3,FALSE)),"") -> 0
A90: UT09 | B90: =IFERROR(VLOOKUP(A90,timetables,2,FALSE)&" "&VLOOKUP(A90,timetables,3,FALSE)&" A","") -> 400m U20 Men A | E90: =IFERROR(IF(VLOOKUP($A90,timetables,8,FALSE)="W","Wind = ",""),"") ->  | G90: =IFERROR(IF(OR(F92=0,F92=""),"",IF(F92<A99,"REC",IF(F92=A99,"=Rec",""))),"") ->  | I90: =IFERROR(A91&" "&VLOOKUP(A90,timetables,2,FALSE)&" "&VLOOKUP(A90,timetables,3,FALSE)&" B","") -> T09 400m U20 Men B | L90: =IFERROR(IF(VLOOKUP($A90,timetables,8,FALSE)="W","Wind = ",""),"") ->  | P90: A | Q90: B
A91: T09 | B91: Posn | C91: No. | D91: Athlete | E91: Club | F91: Perf | G91: AAA | I91: Posn | J91: No. | K91: Athlete | L91: Club | M91: Perf | N91: AAA | P91: =IFERROR(SEARCH("NS",B90),0) -> 0
A92: =IFERROR(VLOOKUP(A90,Timetables!$A:$E,5,FALSE)-1,"") -> 151 | B92: 1 | C92: 6 | D92: =IFERROR(IF(A98=0,HLOOKUP(C92,Declarations!$D$2:$S$193,A92,FALSE),HLOOKUP(VLOOKUP(C92,Teams!$Y$2:$Z$18,2,FALSE),Declarations!$D$2:$S$193,A92,FALSE)),"") -> MARSHALL Henry | E92: =IFERROR(VLOOKUP(C92,teamlookup,5,FALSE),"") -> Ton | F92: 50.3 | G92: =IFERROR(IF(OR(F92=0,F92="",F92>$A$9-0.01),"",VLOOKUP(VLOOKUP(F92,A93:B97,2,TRUE),Points!$H$7:$I$10,2,FALSE)),"") -> 3 | I92: 1 | J92: 33 | K92: =IFERROR(IF(A98=0,HLOOKUP(J92,Declarations!$D$2:$S$193,A92,FALSE),HLOOKUP(VLOOKUP(J92,Teams!$Y$2:$Z$18,2,FALSE),Declarations!$D$2:$S$193,A92,FALSE)),"") -> Matthew Aenimel | L92: =IFERROR(VLOOKUP(J92,teamlookup,5,FALSE),"") -> Have | M92: 54 | N92: =IFERROR(IF(OR(M92=0,M92="",M92>$A$9-0.01),"",VLOOKUP(VLOOKUP(M92,A93:B97,2,TRUE),Points!$H$7:$I$10,2,FALSE)),"") ->  | P92: =IFERROR(IF(OR(C92=0,C92="",F92=0,F92="",$P91<>0,LEFT(F92,1)="D"),0,VLOOKUP(B92,INDIRECT(MatchDay!$W$2),2,FALSE)),"") -> 9 | Q92: =IFERROR(IF(OR(J92=0,J92="",M92=0,M92="",$P91<>0,LEFT(M92,1)="D"),0,VLOOKUP(I92,INDIRECT(MatchDay!$W$2),3,FALSE)),"") -> 7 | R92: =COUNTIF(F92,">0") -> 1 | S92: =IFERROR(IF(A98=0,"numbers_","letters_"),"") -> numbers_
A93: 0 | B93: 2 | C93: 2 | D93: =IFERROR(IF(A98=0,HLOOKUP(C93,Declarations!$D$2:$S$193,A92,FALSE),HLOOKUP(VLOOKUP(C93,Teams!$Y$2:$Z$18,2,FALSE),Declarations!$D$2:$S$193,A92,FALSE)),"") -> DODDS Callum X | E93: E&H | F93: 52.1 | G93: =IFERROR(IF(OR(F93=0,F93="",F93>$A$9-0.01),"",VLOOKUP(VLOOKUP(F93,A93:B97,2,TRUE),Points!$H$7:$I$10,2,FALSE)),"") ->  | I93: 2 | J93: 11 | K93: =IFERROR(IF(A98=0,HLOOKUP(J93,Declarations!$D$2:$S$193,A92,FALSE),HLOOKUP(VLOOKUP(J93,Teams!$Y$2:$Z$18,2,FALSE),Declarations!$D$2:$S$193,A92,FALSE)),"") -> EVEREST charlie X | L93: Chelm | M93: 55.5 | N93: =IFERROR(IF(OR(M93=0,M93="",M93>$A$9-0.01),"",VLOOKUP(VLOOKUP(M93,A93:B97,2,TRUE),Points!$H$7:$I$10,2,FALSE)),"") ->  | P93: =IFERROR(IF(OR(C93=0,C93="",F93=0,F93="",$P91<>0,LEFT(F93,1)="D"),0,VLOOKUP(B93,INDIRECT(MatchDay!$W$2),2,FALSE)),"") -> 7 | Q93: =IFERROR(IF(OR(J93=0,J93="",M93=0,M93="",$P91<>0,LEFT(M93,1)="D"),0,VLOOKUP(I93,INDIRECT(MatchDay!$W$2),3,FALSE)),"") -> 5
A94: =IFERROR(VLOOKUP(A90,standards,3,FALSE)+0.01,"-") -> 49.31 | B94: 3 | C94: 1 | D94: =IFERROR(IF(A98=0,HLOOKUP(C94,Declarations!$D$2:$S$193,A92,FALSE),HLOOKUP(VLOOKUP(C94,Teams!$Y$2:$Z$18,2,FALSE),Declarations!$D$2:$S$193,A92,FALSE)),"") -> YOUNG jake X | E94: Chelm | F94: 52.5 | G94: =IFERROR(IF(OR(F94=0,F94="",F94>$A$9-0.01),"",VLOOKUP(VLOOKUP(F94,A93:B97,2,TRUE),Points!$H$7:$I$10,2,FALSE)),"") ->  | I94: 3 | J94: 22 | K94: =IFERROR(IF(A98=0,HLOOKUP(J94,Declarations!$D$2:$S$193,A92,FALSE),HLOOKUP(VLOOKUP(J94,Teams!$Y$2:$Z$18,2,FALSE),Declarations!$D$2:$S$193,A92,FALSE)),"") -> GAYLE Joseph | L94: E&H | M94: 56.7 | N94: =IFERROR(IF(OR(M94=0,M94="",M94>$A$9-0.01),"",VLOOKUP(VLOOKUP(M94,A93:B97,2,TRUE),Points!$H$7:$I$10,2,FALSE)),"") ->  | P94: =IFERROR(IF(OR(C94=0,C94="",F94=0,F94="",$P91<>0,LEFT(F94,1)="D"),0,VLOOKUP(B94,INDIRECT(MatchDay!$W$2),2,FALSE)),"") -> 6 | Q94: =IFERROR(IF(OR(J94=0,J94="",M94=0,M94="",$P91<>0,LEFT(M94,1)="D"),0,VLOOKUP(I94,INDIRECT(MatchDay!$W$2),3,FALSE)),"") -> 4
A95: =IFERROR(VLOOKUP(A90,standards,4,FALSE)+0.01,"-") -> 50.11 | B95: 4 | C95: 5 | D95: =IFERROR(IF(A98=0,HLOOKUP(C95,Declarations!$D$2:$S$193,A92,FALSE),HLOOKUP(VLOOKUP(C95,Teams!$Y$2:$Z$18,2,FALSE),Declarations!$D$2:$S$193,A92,FALSE)),"") -> Matt Birchall | E95: Beds | F95: 53 | G95: =IFERROR(IF(OR(F95=0,F95="",F95>$A$9-0.01),"",VLOOKUP(VLOOKUP(F95,A93:B97,2,TRUE),Points!$H$7:$I$10,2,FALSE)),"") ->  | I95: 4 | J95: 66 | K95: =IFERROR(IF(A98=0,HLOOKUP(J95,Declarations!$D$2:$S$193,A92,FALSE),HLOOKUP(VLOOKUP(J95,Teams!$Y$2:$Z$18,2,FALSE),Declarations!$D$2:$S$193,A92,FALSE)),"") -> BROOKS Benedict | L95: Ton | M95: 56.9 | N95: =IFERROR(IF(OR(M95=0,M95="",M95>$A$9-0.01),"",VLOOKUP(VLOOKUP(M95,A93:B97,2,TRUE),Points!$H$7:$I$10,2,FALSE)),"") ->  | P95: =IFERROR(IF(OR(C95=0,C95="",F95=0,F95="",$P91<>0,LEFT(F95,1)="D"),0,VLOOKUP(B95,INDIRECT(MatchDay!$W$2),2,FALSE)),"") -> 5 | Q95: =IFERROR(IF(OR(J95=0,J95="",M95=0,M95="",$P91<>0,LEFT(M95,1)="D"),0,VLOOKUP(I95,INDIRECT(MatchDay!$W$2),3,FALSE)),"") -> 3
A96: =IFERROR(VLOOKUP(A90,standards,5,FALSE)+0.01,"-") -> 51.01 | B96: 5 | C96: 3 | D96: =IFERROR(IF(A98=0,HLOOKUP(C96,Declarations!$D$2:$S$193,A92,FALSE),HLOOKUP(VLOOKUP(C96,Teams!$Y$2:$Z$18,2,FALSE),Declarations!$D$2:$S$193,A92,FALSE)),"") -> Matthew Owers | E96: Have | F96: 53.5 | G96: =IFERROR(IF(OR(F96=0,F96="",F96>$A$9-0.01),"",VLOOKUP(VLOOKUP(F96,A93:B97,2,TRUE),Points!$H$7:$I$10,2,FALSE)),"") ->  | I96: 5 | K96: =IFERROR(IF(A98=0,HLOOKUP(J96,Declarations!$D$2:$S$193,A92,FALSE),HLOOKUP(VLOOKUP(J96,Teams!$Y$2:$Z$18,2,FALSE),Declarations!$D$2:$S$193,A92,FALSE)),"") ->  | N96: =IFERROR(IF(OR(M96=0,M96="",M96>$A$9-0.01),"",VLOOKUP(VLOOKUP(M96,A93:B97,2,TRUE),Points!$H$7:$I$10,2,FALSE)),"") ->  | P96: =IFERROR(IF(OR(C96=0,C96="",F96=0,F96="",$P91<>0,LEFT(F96,1)="D"),0,VLOOKUP(B96,INDIRECT(MatchDay!$W$2),2,FALSE)),"") -> 4 | Q96: =IFERROR(IF(OR(J96=0,J96="",M96=0,M96="",$P91<>0,LEFT(M96,1)="D"),0,VLOOKUP(I96,INDIRECT(MatchDay!$W$2),3,FALSE)),"") -> 0
A97: =IFERROR(VLOOKUP(A90,standards,6,FALSE)+0.01,"-") -> 51.01 | B97: 6 | C97: 4 | D97: =IFERROR(IF(A98=0,HLOOKUP(C97,Declarations!$D$2:$S$193,A92,FALSE),HLOOKUP(VLOOKUP(C97,Teams!$Y$2:$Z$18,2,FALSE),Declarations!$D$2:$S$193,A92,FALSE)),"") -> Liam Gregory | E97: SNH | F97: 55.2 | G97: =IFERROR(IF(OR(F97=0,F97="",F97>$A$9-0.01),"",VLOOKUP(VLOOKUP(F97,A93:B97,2,TRUE),Points!$H$7:$I$10,2,FALSE)),"") ->  | I97: 6 | K97: =IFERROR(IF(A98=0,HLOOKUP(J97,Declarations!$D$2:$S$193,A92,FALSE),HLOOKUP(VLOOKUP(J97,Teams!$Y$2:$Z$18,2,FALSE),Declarations!$D$2:$S$193,A92,FALSE)),"") ->  | N97: =IFERROR(IF(OR(M97=0,M97="",M97>$A$9-0.01),"",VLOOKUP(VLOOKUP(M97,A93:B97,2,TRUE),Points!$H$7:$I$10,2,FALSE)),"") ->  | P97: =IFERROR(IF(OR(C97=0,C97="",F97=0,F97="",$P91<>0,LEFT(F97,1)="D"),0,VLOOKUP(B97,INDIRECT(MatchDay!$W$2),2,FALSE)),"") -> 3 | Q97: =IFERROR(IF(OR(J97=0,J97="",M97=0,M97="",$P91<>0,LEFT(M97,1)="D"),0,VLOOKUP(I97,INDIRECT(MatchDay!$W$2),3,FALSE)),"") -> 0
A98: =IFERROR(SEARCH("U17",B90),0) -> 0 | B98: 7 | D98: =IFERROR(IF(A98=0,HLOOKUP(C98,Declarations!$D$2:$S$193,A92,FALSE),HLOOKUP(VLOOKUP(C98,Teams!$Y$2:$Z$18,2,FALSE),Declarations!$D$2:$S$193,A92,FALSE)),"") ->  | G98: =IFERROR(IF(OR(F98=0,F98="",F98>$A$9-0.01),"",VLOOKUP(VLOOKUP(F98,A93:B97,2,TRUE),Points!$H$7:$I$10,2,FALSE)),"") ->  | I98: 7 | K98: =IFERROR(IF(A98=0,HLOOKUP(J98,Declarations!$D$2:$S$193,A92,FALSE),HLOOKUP(VLOOKUP(J98,Teams!$Y$2:$Z$18,2,FALSE),Declarations!$D$2:$S$193,A92,FALSE)),"") ->  | N98: =IFERROR(IF(OR(M98=0,M98="",M98>$A$9-0.01),"",VLOOKUP(VLOOKUP(M98,A93:B97,2,TRUE),Points!$H$7:$I$10,2,FALSE)),"") ->  | P98: =IFERROR(IF(OR(C98=0,C98="",F98=0,F98="",$P91<>0,LEFT(F98,1)="D"),0,VLOOKUP(B98,INDIRECT(MatchDay!$W$2),2,FALSE)),"") -> 0 | Q98: =IFERROR(IF(OR(J98=0,J98="",M98=0,M98="",$P91<>0,LEFT(M98,1)="D"),0,VLOOKUP(I98,INDIRECT(MatchDay!$W$2),3,FALSE)),"") -> 0
A99: =IFERROR(VLOOKUP(A90,records,5,FALSE),"") -> 48 | B99: 8 | D99: =IFERROR(IF(A98=0,HLOOKUP(C99,Declarations!$D$2:$S$193,A92,FALSE),HLOOKUP(VLOOKUP(C99,Teams!$Y$2:$Z$18,2,FALSE),Declarations!$D$2:$S$193,A92,FALSE)),"") ->  | G99: =IFERROR(IF(OR(F99=0,F99="",F99>$A$9-0.01),"",VLOOKUP(VLOOKUP(F99,A93:B97,2,TRUE),Points!$H$7:$I$10,2,FALSE)),"") ->  | I99: 8 | K99: =IFERROR(IF(A98=0,HLOOKUP(J99,Declarations!$D$2:$S$193,A92,FALSE),HLOOKUP(VLOOKUP(J99,Teams!$Y$2:$Z$18,2,FALSE),Declarations!$D$2:$S$193,A92,FALSE)),"") ->  | N99: =IFERROR(IF(OR(M99=0,M99="",M99>$A$9-0.01),"",VLOOKUP(VLOOKUP(M99,A93:B97,2,TRUE),Points!$H$7:$I$10,2,FALSE)),"") ->  | P99: =IFERROR(IF(OR(C99=0,C99="",F99=0,F99="",$P91<>0,LEFT(F99,1)="D"),0,VLOOKUP(B99,INDIRECT(MatchDay!$W$2),2,FALSE)),"") -> 0 | Q99: =IFERROR(IF(OR(J99=0,J99="",M99=0,M99="",$P91<>0,LEFT(M99,1)="D"),0,VLOOKUP(I99,INDIRECT(MatchDay!$W$2),3,FALSE)),"") -> 0
A101: UT10 | B101: =IFERROR(VLOOKUP(A101,timetables,2,FALSE)&" "&VLOOKUP(A101,timetables,3,FALSE)&" A","") -> 400m U17 Men A | E101: =IFERROR(IF(VLOOKUP($A101,timetables,8,FALSE)="W","Wind = ",""),"") ->  | G101: =IFERROR(IF(OR(F103=0,F103=""),"",IF(F103<A110,"REC",IF(F103=A110,"=Rec",""))),"") ->  | I101: =IFERROR(VLOOKUP(A101,timetables,2,FALSE)&" "&VLOOKUP(A101,timetables,3,FALSE)&" B","") -> 400m U17 Men B | L101: =IFERROR(IF(VLOOKUP($A101,timetables,8,FALSE)="W","Wind = ",""),"") ->  | P101: A | Q101: B
A102: T10 | B102: Posn | C102: No. | D102: Athlete | E102: Club | F102: Perf | G102: AAA | I102: Posn | J102: No. | K102: Athlete | L102: Club | M102: Perf | N102: AAA | P102: =IFERROR(SEARCH("NS",B101),0) -> 0
A103: =IFERROR(VLOOKUP(A101,Timetables!$A:$E,5,FALSE)-1,"") -> 174 | B103: 1 | C103: D | D103: =IFERROR(IF(A109=0,HLOOKUP(C103,Declarations!$D$2:$S$193,A103,FALSE),HLOOKUP(VLOOKUP(C103,Teams!$Y$2:$Z$18,2,FALSE),Declarations!$D$2:$S$193,A103,FALSE)),"") -> Brent Morris | E103: =IFERROR(VLOOKUP(C103,teamlookup,5,FALSE),"") -> SNH | F103: 52.9 | G103: =IFERROR(IF(OR(F103=0,F103="",F103>$A$9-0.01),"",VLOOKUP(VLOOKUP(F103,A104:B108,2,TRUE),Points!$H$7:$I$10,2,FALSE)),"") -> 3 | I103: 1 | J103: EE | K103: =IFERROR(IF(A109=0,HLOOKUP(J103,Declarations!$D$2:$S$193,A103,FALSE),HLOOKUP(VLOOKUP(J103,Teams!$Y$2:$Z$18,2,FALSE),Declarations!$D$2:$S$193,A103,FALSE)),"") -> teral service johnson | L103: =IFERROR(VLOOKUP(J103,teamlookup,5,FALSE),"") -> Beds | M103: 52.4 | N103: =IFERROR(IF(OR(M103=0,M103="",M103>$A$9-0.01),"",VLOOKUP(VLOOKUP(M103,A104:B108,2,TRUE),Points!$H$7:$I$10,2,FALSE)),"") -> 3 | P103: =IFERROR(IF(OR(C103=0,C103="",F103=0,F103="",$P102<>0,LEFT(F103,1)="D"),0,VLOOKUP(B103,INDIRECT(MatchDay!$W$2),2,FALSE)),"") -> 9 | Q103: =IFERROR(IF(OR(J103=0,J103="",M103=0,M103="",$P102<>0,LEFT(M103,1)="D"),0,VLOOKUP(I103,INDIRECT(MatchDay!$W$2),3,FALSE)),"") -> 7 | R103: =COUNTIF(F103,">0") -> 1 | S103: =IFERROR(IF(A109=0,"numbers_","letters_"),"") -> letters_
A104: 0 | B104: 2 | C104: E | D104: =IFERROR(IF(A109=0,HLOOKUP(C104,Declarations!$D$2:$S$193,A103,FALSE),HLOOKUP(VLOOKUP(C104,Teams!$Y$2:$Z$18,2,FALSE),Declarations!$D$2:$S$193,A103,FALSE)),"") -> Lewis Smith | E104: Beds | F104: 53.2 | G104: =IFERROR(IF(OR(F104=0,F104="",F104>$A$9-0.01),"",VLOOKUP(VLOOKUP(F104,A104:B108,2,TRUE),Points!$H$7:$I$10,2,FALSE)),"") -> 4 | I104: 2 | J104: CC | K104: =IFERROR(IF(A109=0,HLOOKUP(J104,Declarations!$D$2:$S$193,A103,FALSE),HLOOKUP(VLOOKUP(J104,Teams!$Y$2:$Z$18,2,FALSE),Declarations!$D$2:$S$193,A103,FALSE)),"") -> Aaron Freshwater | L104: Have | M104: 61.2 | N104: =IFERROR(IF(OR(M104=0,M104="",M104>$A$9-0.01),"",VLOOKUP(VLOOKUP(M104,A104:B108,2,TRUE),Points!$H$7:$I$10,2,FALSE)),"") ->  | P104: =IFERROR(IF(OR(C104=0,C104="",F104=0,F104="",$P102<>0,LEFT(F104,1)="D"),0,VLOOKUP(B104,INDIRECT(MatchDay!$W$2),2,FALSE)),"") -> 7 | Q104: =IFERROR(IF(OR(J104=0,J104="",M104=0,M104="",$P102<>0,LEFT(M104,1)="D"),0,VLOOKUP(I104,INDIRECT(MatchDay!$W$2),3,FALSE)),"") -> 5
A105: =IFERROR(VLOOKUP(A101,standards,3,FALSE)+0.01,"-") -> 51.21 | B105: 3 | C105: F | D105: =IFERROR(IF(A109=0,HLOOKUP(C105,Declarations!$D$2:$S$193,A103,FALSE),HLOOKUP(VLOOKUP(C105,Teams!$Y$2:$Z$18,2,FALSE),Declarations!$D$2:$S$193,A103,FALSE)),"") -> CRICK Charles | E105: Ton | F105: 53.6 | G105: =IFERROR(IF(OR(F105=0,F105="",F105>$A$9-0.01),"",VLOOKUP(VLOOKUP(F105,A104:B108,2,TRUE),Points!$H$7:$I$10,2,FALSE)),"") -> 4 | I105: 3 | K105: =IFERROR(IF(A109=0,HLOOKUP(J105,Declarations!$D$2:$S$193,A103,FALSE),HLOOKUP(VLOOKUP(J105,Teams!$Y$2:$Z$18,2,FALSE),Declarations!$D$2:$S$193,A103,FALSE)),"") ->  | N105: =IFERROR(IF(OR(M105=0,M105="",M105>$A$9-0.01),"",VLOOKUP(VLOOKUP(M105,A104:B108,2,TRUE),Points!$H$7:$I$10,2,FALSE)),"") ->  | P105: =IFERROR(IF(OR(C105=0,C105="",F105=0,F105="",$P102<>0,LEFT(F105,1)="D"),0,VLOOKUP(B105,INDIRECT(MatchDay!$W$2),2,FALSE)),"") -> 6 | Q105: =IFERROR(IF(OR(J105=0,J105="",M105=0,M105="",$P102<>0,LEFT(M105,1)="D"),0,VLOOKUP(I105,INDIRECT(MatchDay!$W$2),3,FALSE)),"") -> 0
A106: =IFERROR(VLOOKUP(A101,standards,4,FALSE)+0.01,"-") -> 51.81 | B106: 4 | C106: C | D106: =IFERROR(IF(A109=0,HLOOKUP(C106,Declarations!$D$2:$S$193,A103,FALSE),HLOOKUP(VLOOKUP(C106,Teams!$Y$2:$Z$18,2,FALSE),Declarations!$D$2:$S$193,A103,FALSE)),"") -> Benedict Olusesan | E106: Have | F106: 56.5 | G106: =IFERROR(IF(OR(F106=0,F106="",F106>$A$9-0.01),"",VLOOKUP(VLOOKUP(F106,A104:B108,2,TRUE),Points!$H$7:$I$10,2,FALSE)),"") ->  | I106: 4 | K106: =IFERROR(IF(A109=0,HLOOKUP(J106,Declarations!$D$2:$S$193,A103,FALSE),HLOOKUP(VLOOKUP(J106,Teams!$Y$2:$Z$18,2,FALSE),Declarations!$D$2:$S$193,A103,FALSE)),"") ->  | N106: =IFERROR(IF(OR(M106=0,M106="",M106>$A$9-0.01),"",VLOOKUP(VLOOKUP(M106,A104:B108,2,TRUE),Points!$H$7:$I$10,2,FALSE)),"") ->  | P106: =IFERROR(IF(OR(C106=0,C106="",F106=0,F106="",$P102<>0,LEFT(F106,1)="D"),0,VLOOKUP(B106,INDIRECT(MatchDay!$W$2),2,FALSE)),"") -> 5 | Q106: =IFERROR(IF(OR(J106=0,J106="",M106=0,M106="",$P102<>0,LEFT(M106,1)="D"),0,VLOOKUP(I106,INDIRECT(MatchDay!$W$2),3,FALSE)),"") -> 0
A107: =IFERROR(VLOOKUP(A101,standards,5,FALSE)+0.01,"-") -> 52.91 | B107: 5 | C107: A | D107: =IFERROR(IF(A109=0,HLOOKUP(C107,Declarations!$D$2:$S$193,A103,FALSE),HLOOKUP(VLOOKUP(C107,Teams!$Y$2:$Z$18,2,FALSE),Declarations!$D$2:$S$193,A103,FALSE)),"") -> BEALE Mark | E107: Chelm | F107: 61.6 | G107: =IFERROR(IF(OR(F107=0,F107="",F107>$A$9-0.01),"",VLOOKUP(VLOOKUP(F107,A104:B108,2,TRUE),Points!$H$7:$I$10,2,FALSE)),"") ->  | I107: 5 | K107: =IFERROR(IF(A109=0,HLOOKUP(J107,Declarations!$D$2:$S$193,A103,FALSE),HLOOKUP(VLOOKUP(J107,Teams!$Y$2:$Z$18,2,FALSE),Declarations!$D$2:$S$193,A103,FALSE)),"") ->  | N107: =IFERROR(IF(OR(M107=0,M107="",M107>$A$9-0.01),"",VLOOKUP(VLOOKUP(M107,A104:B108,2,TRUE),Points!$H$7:$I$10,2,FALSE)),"") ->  | P107: =IFERROR(IF(OR(C107=0,C107="",F107=0,F107="",$P102<>0,LEFT(F107,1)="D"),0,VLOOKUP(B107,INDIRECT(MatchDay!$W$2),2,FALSE)),"") -> 4 | Q107: =IFERROR(IF(OR(J107=0,J107="",M107=0,M107="",$P102<>0,LEFT(M107,1)="D"),0,VLOOKUP(I107,INDIRECT(MatchDay!$W$2),3,FALSE)),"") -> 0
A108: =IFERROR(VLOOKUP(A101,standards,6,FALSE)+0.01,"-") -> 54.31 | B108: 6 | D108: =IFERROR(IF(A109=0,HLOOKUP(C108,Declarations!$D$2:$S$193,A103,FALSE),HLOOKUP(VLOOKUP(C108,Teams!$Y$2:$Z$18,2,FALSE),Declarations!$D$2:$S$193,A103,FALSE)),"") ->  | G108: =IFERROR(IF(OR(F108=0,F108="",F108>$A$9-0.01),"",VLOOKUP(VLOOKUP(F108,A104:B108,2,TRUE),Points!$H$7:$I$10,2,FALSE)),"") ->  | I108: 6 | K108: =IFERROR(IF(A109=0,HLOOKUP(J108,Declarations!$D$2:$S$193,A103,FALSE),HLOOKUP(VLOOKUP(J108,Teams!$Y$2:$Z$18,2,FALSE),Declarations!$D$2:$S$193,A103,FALSE)),"") ->  | N108: =IFERROR(IF(OR(M108=0,M108="",M108>$A$9-0.01),"",VLOOKUP(VLOOKUP(M108,A104:B108,2,TRUE),Points!$H$7:$I$10,2,FALSE)),"") ->  | P108: =IFERROR(IF(OR(C108=0,C108="",F108=0,F108="",$P102<>0,LEFT(F108,1)="D"),0,VLOOKUP(B108,INDIRECT(MatchDay!$W$2),2,FALSE)),"") -> 0 | Q108: =IFERROR(IF(OR(J108=0,J108="",M108=0,M108="",$P102<>0,LEFT(M108,1)="D"),0,VLOOKUP(I108,INDIRECT(MatchDay!$W$2),3,FALSE)),"") -> 0
A109: =IFERROR(SEARCH("U17",B101),0) -> 6 | B109: 7 | D109: =IFERROR(IF(A109=0,HLOOKUP(C109,Declarations!$D$2:$S$193,A103,FALSE),HLOOKUP(VLOOKUP(C109,Teams!$Y$2:$Z$18,2,FALSE),Declarations!$D$2:$S$193,A103,FALSE)),"") ->  | G109: =IFERROR(IF(OR(F109=0,F109="",F109>$A$9-0.01),"",VLOOKUP(VLOOKUP(F109,A104:B108,2,TRUE),Points!$H$7:$I$10,2,FALSE)),"") ->  | I109: 7 | K109: =IFERROR(IF(A109=0,HLOOKUP(J109,Declarations!$D$2:$S$193,A103,FALSE),HLOOKUP(VLOOKUP(J109,Teams!$Y$2:$Z$18,2,FALSE),Declarations!$D$2:$S$193,A103,FALSE)),"") ->  | N109: =IFERROR(IF(OR(M109=0,M109="",M109>$A$9-0.01),"",VLOOKUP(VLOOKUP(M109,A104:B108,2,TRUE),Points!$H$7:$I$10,2,FALSE)),"") ->  | P109: =IFERROR(IF(OR(C109=0,C109="",F109=0,F109="",$P102<>0,LEFT(F109,1)="D"),0,VLOOKUP(B109,INDIRECT(MatchDay!$W$2),2,FALSE)),"") -> 0 | Q109: =IFERROR(IF(OR(J109=0,J109="",M109=0,M109="",$P102<>0,LEFT(M109,1)="D"),0,VLOOKUP(I109,INDIRECT(MatchDay!$W$2),3,FALSE)),"") -> 0
A110: =IFERROR(VLOOKUP(A101,records,5,FALSE),"") -> 49.13 | B110: 8 | D110: =IFERROR(IF(A109=0,HLOOKUP(C110,Declarations!$D$2:$S$193,A103,FALSE),HLOOKUP(VLOOKUP(C110,Teams!$Y$2:$Z$18,2,FALSE),Declarations!$D$2:$S$193,A103,FALSE)),"") ->  | G110: =IFERROR(IF(OR(F110=0,F110="",F110>$A$9-0.01),"",VLOOKUP(VLOOKUP(F110,A104:B108,2,TRUE),Points!$H$7:$I$10,2,FALSE)),"") ->  | I110: 8 | K110: =IFERROR(IF(A109=0,HLOOKUP(J110,Declarations!$D$2:$S$193,A103,FALSE),HLOOKUP(VLOOKUP(J110,Teams!$Y$2:$Z$18,2,FALSE),Declarations!$D$2:$S$193,A103,FALSE)),"") ->  | N110: =IFERROR(IF(OR(M110=0,M110="",M110>$A$9-0.01),"",VLOOKUP(VLOOKUP(M110,A104:B108,2,TRUE),Points!$H$7:$I$10,2,FALSE)),"") ->  | P110: =IFERROR(IF(OR(C110=0,C110="",F110=0,F110="",$P102<>0,LEFT(F110,1)="D"),0,VLOOKUP(B110,INDIRECT(MatchDay!$W$2),2,FALSE)),"") -> 0 | Q110: =IFERROR(IF(OR(J110=0,J110="",M110=0,M110="",$P102<>0,LEFT(M110,1)="D"),0,VLOOKUP(I110,INDIRECT(MatchDay!$W$2),3,FALSE)),"") -> 0
A112: UT11 | B112: =IFERROR(VLOOKUP(A112,timetables,2,FALSE)&" "&VLOOKUP(A112,timetables,3,FALSE)&" A","") -> 400m U20 Women A | E112: =IFERROR(IF(VLOOKUP($A112,timetables,8,FALSE)="W","Wind = ",""),"") ->  | G112: =IFERROR(IF(OR(F114=0,F114=""),"",IF(F114<A121,"REC",IF(F114=A121,"=Rec",""))),"") ->  | I112: =IFERROR(VLOOKUP(A112,timetables,2,FALSE)&" "&VLOOKUP(A112,timetables,3,FALSE)&" B","") -> 400m U20 Women B | L112: =IFERROR(IF(VLOOKUP($A112,timetables,8,FALSE)="W","Wind = ",""),"") ->  | P112: A | Q112: B
A113: T11 | B113: Posn | C113: No. | D113: Athlete | E113: Club | F113: Perf | G113: AAA | I113: Posn | J113: No. | K113: Athlete | L113: Club | M113: Perf | N113: AAA | P113: =IFERROR(SEARCH("NS",B112),0) -> 0
A114: =IFERROR(VLOOKUP(A112,Timetables!$A:$E,5,FALSE)-1,"") -> 105 | B114: 1 | C114: 6 | D114: =IFERROR(IF(A120=0,HLOOKUP(C114,Declarations!$D$2:$S$193,A114,FALSE),HLOOKUP(VLOOKUP(C114,Teams!$Y$2:$Z$18,2,FALSE),Declarations!$D$2:$S$193,A114,FALSE)),"") -> O'HARA Rebecca | E114: =IFERROR(VLOOKUP(C114,teamlookup,5,FALSE),"") -> Ton | F114: 58.2 | G114: =IFERROR(IF(OR(F114=0,F114="",F114>$A$9-0.01),"",VLOOKUP(VLOOKUP(F114,A115:B119,2,TRUE),Points!$H$7:$I$10,2,FALSE)),"") ->  | I114: 1 | J114: 55 | K114: =IFERROR(IF(A120=0,HLOOKUP(J114,Declarations!$D$2:$S$193,A114,FALSE),HLOOKUP(VLOOKUP(J114,Teams!$Y$2:$Z$18,2,FALSE),Declarations!$D$2:$S$193,A114,FALSE)),"") -> Eleanor Griffin | L114: =IFERROR(VLOOKUP(J114,teamlookup,5,FALSE),"") -> Beds | M114: 65.8 | N114: =IFERROR(IF(OR(M114=0,M114="",M114>$A$9-0.01),"",VLOOKUP(VLOOKUP(M114,A115:B119,2,TRUE),Points!$H$7:$I$10,2,FALSE)),"") ->  | P114: =IFERROR(IF(OR(C114=0,C114="",F114=0,F114="",$P113<>0,LEFT(F114,1)="D"),0,VLOOKUP(B114,INDIRECT(MatchDay!$W$2),2,FALSE)),"") -> 9 | Q114: =IFERROR(IF(OR(J114=0,J114="",M114=0,M114="",$P113<>0,LEFT(M114,1)="D"),0,VLOOKUP(I114,INDIRECT(MatchDay!$W$2),3,FALSE)),"") -> 7 | R114: =COUNTIF(F114,">0") -> 1 | S114: =IFERROR(IF(A120=0,"numbers_","letters_"),"") -> numbers_
A115: 0 | B115: 2 | C115: 2 | D115: =IFERROR(IF(A120=0,HLOOKUP(C115,Declarations!$D$2:$S$193,A114,FALSE),HLOOKUP(VLOOKUP(C115,Teams!$Y$2:$Z$18,2,FALSE),Declarations!$D$2:$S$193,A114,FALSE)),"") -> GRANATA Valentina | E115: E&H | F115: 62.8 | G115: =IFERROR(IF(OR(F115=0,F115="",F115>$A$9-0.01),"",VLOOKUP(VLOOKUP(F115,A115:B119,2,TRUE),Points!$H$7:$I$10,2,FALSE)),"") ->  | I115: 2 | J115: 22 | K115: =IFERROR(IF(A120=0,HLOOKUP(J115,Declarations!$D$2:$S$193,A114,FALSE),HLOOKUP(VLOOKUP(J115,Teams!$Y$2:$Z$18,2,FALSE),Declarations!$D$2:$S$193,A114,FALSE)),"") -> FORSTER Beth | L115: E&H | M115: 66.2 | N115: =IFERROR(IF(OR(M115=0,M115="",M115>$A$9-0.01),"",VLOOKUP(VLOOKUP(M115,A115:B119,2,TRUE),Points!$H$7:$I$10,2,FALSE)),"") ->  | P115: =IFERROR(IF(OR(C115=0,C115="",F115=0,F115="",$P113<>0,LEFT(F115,1)="D"),0,VLOOKUP(B115,INDIRECT(MatchDay!$W$2),2,FALSE)),"") -> 7 | Q115: =IFERROR(IF(OR(J115=0,J115="",M115=0,M115="",$P113<>0,LEFT(M115,1)="D"),0,VLOOKUP(I115,INDIRECT(MatchDay!$W$2),3,FALSE)),"") -> 5
A116: =IFERROR(VLOOKUP(A112,standards,3,FALSE)+0.01,"-") -> 56.81 | B116: 3 | C116: 3 | D116: =IFERROR(IF(A120=0,HLOOKUP(C116,Declarations!$D$2:$S$193,A114,FALSE),HLOOKUP(VLOOKUP(C116,Teams!$Y$2:$Z$18,2,FALSE),Declarations!$D$2:$S$193,A114,FALSE)),"") -> Katie Dawson | E116: Have | F116: 64.5 | G116: =IFERROR(IF(OR(F116=0,F116="",F116>$A$9-0.01),"",VLOOKUP(VLOOKUP(F116,A115:B119,2,TRUE),Points!$H$7:$I$10,2,FALSE)),"") ->  | I116: 3 | J116: 33 | K116: =IFERROR(IF(A120=0,HLOOKUP(J116,Declarations!$D$2:$S$193,A114,FALSE),HLOOKUP(VLOOKUP(J116,Teams!$Y$2:$Z$18,2,FALSE),Declarations!$D$2:$S$193,A114,FALSE)),"") -> Georgia Phillips | L116: Have | M116: 68.6 | N116: =IFERROR(IF(OR(M116=0,M116="",M116>$A$9-0.01),"",VLOOKUP(VLOOKUP(M116,A115:B119,2,TRUE),Points!$H$7:$I$10,2,FALSE)),"") ->  | P116: =IFERROR(IF(OR(C116=0,C116="",F116=0,F116="",$P113<>0,LEFT(F116,1)="D"),0,VLOOKUP(B116,INDIRECT(MatchDay!$W$2),2,FALSE)),"") -> 6 | Q116: =IFERROR(IF(OR(J116=0,J116="",M116=0,M116="",$P113<>0,LEFT(M116,1)="D"),0,VLOOKUP(I116,INDIRECT(MatchDay!$W$2),3,FALSE)),"") -> 4
A117: =IFERROR(VLOOKUP(A112,standards,4,FALSE)+0.01,"-") -> 58.11 | B117: 4 | C117: 5 | D117: =IFERROR(IF(A120=0,HLOOKUP(C117,Declarations!$D$2:$S$193,A114,FALSE),HLOOKUP(VLOOKUP(C117,Teams!$Y$2:$Z$18,2,FALSE),Declarations!$D$2:$S$193,A114,FALSE)),"") -> Josie Smith | E117: Beds | F117: 73.4 | G117: =IFERROR(IF(OR(F117=0,F117="",F117>$A$9-0.01),"",VLOOKUP(VLOOKUP(F117,A115:B119,2,TRUE),Points!$H$7:$I$10,2,FALSE)),"") ->  | I117: 4 | K117: =IFERROR(IF(A120=0,HLOOKUP(J117,Declarations!$D$2:$S$193,A114,FALSE),HLOOKUP(VLOOKUP(J117,Teams!$Y$2:$Z$18,2,FALSE),Declarations!$D$2:$S$193,A114,FALSE)),"") ->  | N117: =IFERROR(IF(OR(M117=0,M117="",M117>$A$9-0.01),"",VLOOKUP(VLOOKUP(M117,A115:B119,2,TRUE),Points!$H$7:$I$10,2,FALSE)),"") ->  | P117: =IFERROR(IF(OR(C117=0,C117="",F117=0,F117="",$P113<>0,LEFT(F117,1)="D"),0,VLOOKUP(B117,INDIRECT(MatchDay!$W$2),2,FALSE)),"") -> 5 | Q117: =IFERROR(IF(OR(J117=0,J117="",M117=0,M117="",$P113<>0,LEFT(M117,1)="D"),0,VLOOKUP(I117,INDIRECT(MatchDay!$W$2),3,FALSE)),"") -> 0
A118: =IFERROR(VLOOKUP(A112,standards,5,FALSE)+0.01,"-") -> 60.11 | B118: 5 | C118: 1 | D118: =IFERROR(IF(A120=0,HLOOKUP(C118,Declarations!$D$2:$S$193,A114,FALSE),HLOOKUP(VLOOKUP(C118,Teams!$Y$2:$Z$18,2,FALSE),Declarations!$D$2:$S$193,A114,FALSE)),"") -> QUIGLEY Gabrielle | E118: Chelm | F118: 76.9 | G118: =IFERROR(IF(OR(F118=0,F118="",F118>$A$9-0.01),"",VLOOKUP(VLOOKUP(F118,A115:B119,2,TRUE),Points!$H$7:$I$10,2,FALSE)),"") ->  | I118: 5 | K118: =IFERROR(IF(A120=0,HLOOKUP(J118,Declarations!$D$2:$S$193,A114,FALSE),HLOOKUP(VLOOKUP(J118,Teams!$Y$2:$Z$18,2,FALSE),Declarations!$D$2:$S$193,A114,FALSE)),"") ->  | N118: =IFERROR(IF(OR(M118=0,M118="",M118>$A$9-0.01),"",VLOOKUP(VLOOKUP(M118,A115:B119,2,TRUE),Points!$H$7:$I$10,2,FALSE)),"") ->  | P118: =IFERROR(IF(OR(C118=0,C118="",F118=0,F118="",$P113<>0,LEFT(F118,1)="D"),0,VLOOKUP(B118,INDIRECT(MatchDay!$W$2),2,FALSE)),"") -> 4 | Q118: =IFERROR(IF(OR(J118=0,J118="",M118=0,M118="",$P113<>0,LEFT(M118,1)="D"),0,VLOOKUP(I118,INDIRECT(MatchDay!$W$2),3,FALSE)),"") -> 0
A119: =IFERROR(VLOOKUP(A112,standards,6,FALSE)+0.01,"-") -> 60.11 | B119: 6 | D119: =IFERROR(IF(A120=0,HLOOKUP(C119,Declarations!$D$2:$S$193,A114,FALSE),HLOOKUP(VLOOKUP(C119,Teams!$Y$2:$Z$18,2,FALSE),Declarations!$D$2:$S$193,A114,FALSE)),"") ->  | G119: =IFERROR(IF(OR(F119=0,F119="",F119>$A$9-0.01),"",VLOOKUP(VLOOKUP(F119,A115:B119,2,TRUE),Points!$H$7:$I$10,2,FALSE)),"") ->  | I119: 6 | K119: =IFERROR(IF(A120=0,HLOOKUP(J119,Declarations!$D$2:$S$193,A114,FALSE),HLOOKUP(VLOOKUP(J119,Teams!$Y$2:$Z$18,2,FALSE),Declarations!$D$2:$S$193,A114,FALSE)),"") ->  | N119: =IFERROR(IF(OR(M119=0,M119="",M119>$A$9-0.01),"",VLOOKUP(VLOOKUP(M119,A115:B119,2,TRUE),Points!$H$7:$I$10,2,FALSE)),"") ->  | P119: =IFERROR(IF(OR(C119=0,C119="",F119=0,F119="",$P113<>0,LEFT(F119,1)="D"),0,VLOOKUP(B119,INDIRECT(MatchDay!$W$2),2,FALSE)),"") -> 0 | Q119: =IFERROR(IF(OR(J119=0,J119="",M119=0,M119="",$P113<>0,LEFT(M119,1)="D"),0,VLOOKUP(I119,INDIRECT(MatchDay!$W$2),3,FALSE)),"") -> 0
A120: =IFERROR(SEARCH("U17",B112),0) -> 0 | B120: 7 | D120: =IFERROR(IF(A120=0,HLOOKUP(C120,Declarations!$D$2:$S$193,A114,FALSE),HLOOKUP(VLOOKUP(C120,Teams!$Y$2:$Z$18,2,FALSE),Declarations!$D$2:$S$193,A114,FALSE)),"") ->  | G120: =IFERROR(IF(OR(F120=0,F120="",F120>$A$9-0.01),"",VLOOKUP(VLOOKUP(F120,A115:B119,2,TRUE),Points!$H$7:$I$10,2,FALSE)),"") ->  | I120: 7 | K120: =IFERROR(IF(A120=0,HLOOKUP(J120,Declarations!$D$2:$S$193,A114,FALSE),HLOOKUP(VLOOKUP(J120,Teams!$Y$2:$Z$18,2,FALSE),Declarations!$D$2:$S$193,A114,FALSE)),"") ->  | N120: =IFERROR(IF(OR(M120=0,M120="",M120>$A$9-0.01),"",VLOOKUP(VLOOKUP(M120,A115:B119,2,TRUE),Points!$H$7:$I$10,2,FALSE)),"") ->  | P120: =IFERROR(IF(OR(C120=0,C120="",F120=0,F120="",$P113<>0,LEFT(F120,1)="D"),0,VLOOKUP(B120,INDIRECT(MatchDay!$W$2),2,FALSE)),"") -> 0 | Q120: =IFERROR(IF(OR(J120=0,J120="",M120=0,M120="",$P113<>0,LEFT(M120,1)="D"),0,VLOOKUP(I120,INDIRECT(MatchDay!$W$2),3,FALSE)),"") -> 0
A121: =IFERROR(VLOOKUP(A112,records,5,FALSE),"") -> 54.38 | B121: 8 | D121: =IFERROR(IF(A120=0,HLOOKUP(C121,Declarations!$D$2:$S$193,A114,FALSE),HLOOKUP(VLOOKUP(C121,Teams!$Y$2:$Z$18,2,FALSE),Declarations!$D$2:$S$193,A114,FALSE)),"") ->  | G121: =IFERROR(IF(OR(F121=0,F121="",F121>$A$9-0.01),"",VLOOKUP(VLOOKUP(F121,A115:B119,2,TRUE),Points!$H$7:$I$10,2,FALSE)),"") ->  | I121: 8 | K121: =IFERROR(IF(A120=0,HLOOKUP(J121,Declarations!$D$2:$S$193,A114,FALSE),HLOOKUP(VLOOKUP(J121,Teams!$Y$2:$Z$18,2,FALSE),Declarations!$D$2:$S$193,A114,FALSE)),"") ->  | N121: =IFERROR(IF(OR(M121=0,M121="",M121>$A$9-0.01),"",VLOOKUP(VLOOKUP(M121,A115:B119,2,TRUE),Points!$H$7:$I$10,2,FALSE)),"") ->  | P121: =IFERROR(IF(OR(C121=0,C121="",F121=0,F121="",$P113<>0,LEFT(F121,1)="D"),0,VLOOKUP(B121,INDIRECT(MatchDay!$W$2),2,FALSE)),"") -> 0 | Q121: =IFERROR(IF(OR(J121=0,J121="",M121=0,M121="",$P113<>0,LEFT(M121,1)="D"),0,VLOOKUP(I121,INDIRECT(MatchDay!$W$2),3,FALSE)),"") -> 0
A123: UT12 | B123: =IFERROR(VLOOKUP(A123,timetables,2,FALSE)&" "&VLOOKUP(A123,timetables,3,FALSE)&" A","") -> 300m U17 Women A | E123: =IFERROR(IF(VLOOKUP($A123,timetables,8,FALSE)="W","Wind = ",""),"") ->  | G123: =IFERROR(IF(OR(F125=0,F125=""),"",IF(F125<A132,"REC",IF(F125=A132,"=Rec",""))),"") ->  | I123: =IFERROR(VLOOKUP(A123,timetables,2,FALSE)&" "&VLOOKUP(A123,timetables,3,FALSE)&" B","") -> 300m U17 Women B | L123: =IFERROR(IF(VLOOKUP($A123,timetables,8,FALSE)="W","Wind = ",""),"") ->  | P123: A | Q123: B
A124: T12 | B124: Posn | C124: No. | D124: Athlete | E124: Club | F124: Perf | G124: AAA | I124: Posn | J124: No. | K124: Athlete | L124: Club | M124: Perf | N124: AAA | P124: =IFERROR(SEARCH("NS",B123),0) -> 0
A125: =IFERROR(VLOOKUP(A123,Timetables!$A:$E,5,FALSE)-1,"") -> 128 | B125: 1 | C125: F | D125: =IFERROR(IF(A131=0,HLOOKUP(C125,Declarations!$D$2:$S$193,A125,FALSE),HLOOKUP(VLOOKUP(C125,Teams!$Y$2:$Z$18,2,FALSE),Declarations!$D$2:$S$193,A125,FALSE)),"") -> ROOT Asha | E125: =IFERROR(VLOOKUP(C125,teamlookup,5,FALSE),"") -> Ton | F125: 41.3 | G125: =IFERROR(IF(OR(F125=0,F125="",F125>$A$9-0.01),"",VLOOKUP(VLOOKUP(F125,A126:B130,2,TRUE),Points!$H$7:$I$10,2,FALSE)),"") -> 1 | I125: 1 | J125: FF | K125: =IFERROR(IF(A131=0,HLOOKUP(J125,Declarations!$D$2:$S$193,A125,FALSE),HLOOKUP(VLOOKUP(J125,Teams!$Y$2:$Z$18,2,FALSE),Declarations!$D$2:$S$193,A125,FALSE)),"") -> O'HARA Jessica | L125: =IFERROR(VLOOKUP(J125,teamlookup,5,FALSE),"") -> Ton | M125: 42.4 | N125: =IFERROR(IF(OR(M125=0,M125="",M125>$A$9-0.01),"",VLOOKUP(VLOOKUP(M125,A126:B130,2,TRUE),Points!$H$7:$I$10,2,FALSE)),"") -> 3 | P125: =IFERROR(IF(OR(C125=0,C125="",F125=0,F125="",$P124<>0,LEFT(F125,1)="D"),0,VLOOKUP(B125,INDIRECT(MatchDay!$W$2),2,FALSE)),"") -> 9 | Q125: =IFERROR(IF(OR(J125=0,J125="",M125=0,M125="",$P124<>0,LEFT(M125,1)="D"),0,VLOOKUP(I125,INDIRECT(MatchDay!$W$2),3,FALSE)),"") -> 7 | R125: =COUNTIF(F125,">0") -> 1 | S125: =IFERROR(IF(A131=0,"numbers_","letters_"),"") -> letters_
A126: 0 | B126: 2 | C126: D | D126: =IFERROR(IF(A131=0,HLOOKUP(C126,Declarations!$D$2:$S$193,A125,FALSE),HLOOKUP(VLOOKUP(C126,Teams!$Y$2:$Z$18,2,FALSE),Declarations!$D$2:$S$193,A125,FALSE)),"") -> Petra Sijuwade | E126: SNH | F126: 43.3 | G126: =IFERROR(IF(OR(F126=0,F126="",F126>$A$9-0.01),"",VLOOKUP(VLOOKUP(F126,A126:B130,2,TRUE),Points!$H$7:$I$10,2,FALSE)),"") -> 4 | I126: 2 | J126: BB | K126: =IFERROR(IF(A131=0,HLOOKUP(J126,Declarations!$D$2:$S$193,A125,FALSE),HLOOKUP(VLOOKUP(J126,Teams!$Y$2:$Z$18,2,FALSE),Declarations!$D$2:$S$193,A125,FALSE)),"") -> MITCHELL Katie | L126: E&H | M126: 45 | N126: =IFERROR(IF(OR(M126=0,M126="",M126>$A$9-0.01),"",VLOOKUP(VLOOKUP(M126,A126:B130,2,TRUE),Points!$H$7:$I$10,2,FALSE)),"") ->  | P126: =IFERROR(IF(OR(C126=0,C126="",F126=0,F126="",$P124<>0,LEFT(F126,1)="D"),0,VLOOKUP(B126,INDIRECT(MatchDay!$W$2),2,FALSE)),"") -> 7 | Q126: =IFERROR(IF(OR(J126=0,J126="",M126=0,M126="",$P124<>0,LEFT(M126,1)="D"),0,VLOOKUP(I126,INDIRECT(MatchDay!$W$2),3,FALSE)),"") -> 5
A127: =IFERROR(VLOOKUP(A123,standards,3,FALSE)+0.01,"-") -> 41.41 | B127: 3 | C127: B | D127: =IFERROR(IF(A131=0,HLOOKUP(C127,Declarations!$D$2:$S$193,A125,FALSE),HLOOKUP(VLOOKUP(C127,Teams!$Y$2:$Z$18,2,FALSE),Declarations!$D$2:$S$193,A125,FALSE)),"") -> LIPTROT Katie | E127: E&H | F127: 44 | G127: =IFERROR(IF(OR(F127=0,F127="",F127>$A$9-0.01),"",VLOOKUP(VLOOKUP(F127,A126:B130,2,TRUE),Points!$H$7:$I$10,2,FALSE)),"") -> 4 | I127: 3 | J127: DD | K127: =IFERROR(IF(A131=0,HLOOKUP(J127,Declarations!$D$2:$S$193,A125,FALSE),HLOOKUP(VLOOKUP(J127,Teams!$Y$2:$Z$18,2,FALSE),Declarations!$D$2:$S$193,A125,FALSE)),"") -> Leah Cairns | L127: SNH | M127: 45.4 | N127: =IFERROR(IF(OR(M127=0,M127="",M127>$A$9-0.01),"",VLOOKUP(VLOOKUP(M127,A126:B130,2,TRUE),Points!$H$7:$I$10,2,FALSE)),"") ->  | P127: =IFERROR(IF(OR(C127=0,C127="",F127=0,F127="",$P124<>0,LEFT(F127,1)="D"),0,VLOOKUP(B127,INDIRECT(MatchDay!$W$2),2,FALSE)),"") -> 6 | Q127: =IFERROR(IF(OR(J127=0,J127="",M127=0,M127="",$P124<>0,LEFT(M127,1)="D"),0,VLOOKUP(I127,INDIRECT(MatchDay!$W$2),3,FALSE)),"") -> 4
A128: =IFERROR(VLOOKUP(A123,standards,4,FALSE)+0.01,"-") -> 42.11 | B128: 4 | C128: C | D128: =IFERROR(IF(A131=0,HLOOKUP(C128,Declarations!$D$2:$S$193,A125,FALSE),HLOOKUP(VLOOKUP(C128,Teams!$Y$2:$Z$18,2,FALSE),Declarations!$D$2:$S$193,A125,FALSE)),"") -> Rosie Brown | E128: Have | F128: 45.3 | G128: =IFERROR(IF(OR(F128=0,F128="",F128>$A$9-0.01),"",VLOOKUP(VLOOKUP(F128,A126:B130,2,TRUE),Points!$H$7:$I$10,2,FALSE)),"") ->  | I128: 4 | J128: EE | K128: =IFERROR(IF(A131=0,HLOOKUP(J128,Declarations!$D$2:$S$193,A125,FALSE),HLOOKUP(VLOOKUP(J128,Teams!$Y$2:$Z$18,2,FALSE),Declarations!$D$2:$S$193,A125,FALSE)),"") -> Elena Bowles | L128: Beds | M128: 45.7 | N128: =IFERROR(IF(OR(M128=0,M128="",M128>$A$9-0.01),"",VLOOKUP(VLOOKUP(M128,A126:B130,2,TRUE),Points!$H$7:$I$10,2,FALSE)),"") ->  | P128: =IFERROR(IF(OR(C128=0,C128="",F128=0,F128="",$P124<>0,LEFT(F128,1)="D"),0,VLOOKUP(B128,INDIRECT(MatchDay!$W$2),2,FALSE)),"") -> 5 | Q128: =IFERROR(IF(OR(J128=0,J128="",M128=0,M128="",$P124<>0,LEFT(M128,1)="D"),0,VLOOKUP(I128,INDIRECT(MatchDay!$W$2),3,FALSE)),"") -> 3
A129: =IFERROR(VLOOKUP(A123,standards,5,FALSE)+0.01,"-") -> 43.01 | B129: 5 | C129: E | D129: =IFERROR(IF(A131=0,HLOOKUP(C129,Declarations!$D$2:$S$193,A125,FALSE),HLOOKUP(VLOOKUP(C129,Teams!$Y$2:$Z$18,2,FALSE),Declarations!$D$2:$S$193,A125,FALSE)),"") -> Jennifer Abbott | E129: Beds | F129: 45.4 | G129: =IFERROR(IF(OR(F129=0,F129="",F129>$A$9-0.01),"",VLOOKUP(VLOOKUP(F129,A126:B130,2,TRUE),Points!$H$7:$I$10,2,FALSE)),"") ->  | I129: 5 | J129: AA | K129: =IFERROR(IF(A131=0,HLOOKUP(J129,Declarations!$D$2:$S$193,A125,FALSE),HLOOKUP(VLOOKUP(J129,Teams!$Y$2:$Z$18,2,FALSE),Declarations!$D$2:$S$193,A125,FALSE)),"") -> SWIFT SOPHIE | L129: Chelm | M129: 50.3 | N129: =IFERROR(IF(OR(M129=0,M129="",M129>$A$9-0.01),"",VLOOKUP(VLOOKUP(M129,A126:B130,2,TRUE),Points!$H$7:$I$10,2,FALSE)),"") ->  | P129: =IFERROR(IF(OR(C129=0,C129="",F129=0,F129="",$P124<>0,LEFT(F129,1)="D"),0,VLOOKUP(B129,INDIRECT(MatchDay!$W$2),2,FALSE)),"") -> 4 | Q129: =IFERROR(IF(OR(J129=0,J129="",M129=0,M129="",$P124<>0,LEFT(M129,1)="D"),0,VLOOKUP(I129,INDIRECT(MatchDay!$W$2),3,FALSE)),"") -> 2
A130: =IFERROR(VLOOKUP(A123,standards,6,FALSE)+0.01,"-") -> 44.51 | B130: 6 | C130: A | D130: =IFERROR(IF(A131=0,HLOOKUP(C130,Declarations!$D$2:$S$193,A125,FALSE),HLOOKUP(VLOOKUP(C130,Teams!$Y$2:$Z$18,2,FALSE),Declarations!$D$2:$S$193,A125,FALSE)),"") -> Wall Felicity | E130: Chelm | F130: 46.2 | G130: =IFERROR(IF(OR(F130=0,F130="",F130>$A$9-0.01),"",VLOOKUP(VLOOKUP(F130,A126:B130,2,TRUE),Points!$H$7:$I$10,2,FALSE)),"") ->  | I130: 6 | K130: =IFERROR(IF(A131=0,HLOOKUP(J130,Declarations!$D$2:$S$193,A125,FALSE),HLOOKUP(VLOOKUP(J130,Teams!$Y$2:$Z$18,2,FALSE),Declarations!$D$2:$S$193,A125,FALSE)),"") ->  | N130: =IFERROR(IF(OR(M130=0,M130="",M130>$A$9-0.01),"",VLOOKUP(VLOOKUP(M130,A126:B130,2,TRUE),Points!$H$7:$I$10,2,FALSE)),"") ->  | P130: =IFERROR(IF(OR(C130=0,C130="",F130=0,F130="",$P124<>0,LEFT(F130,1)="D"),0,VLOOKUP(B130,INDIRECT(MatchDay!$W$2),2,FALSE)),"") -> 3 | Q130: =IFERROR(IF(OR(J130=0,J130="",M130=0,M130="",$P124<>0,LEFT(M130,1)="D"),0,VLOOKUP(I130,INDIRECT(MatchDay!$W$2),3,FALSE)),"") -> 0
A131: =IFERROR(SEARCH("U17",B123),0) -> 6 | B131: 7 | D131: =IFERROR(IF(A131=0,HLOOKUP(C131,Declarations!$D$2:$S$193,A125,FALSE),HLOOKUP(VLOOKUP(C131,Teams!$Y$2:$Z$18,2,FALSE),Declarations!$D$2:$S$193,A125,FALSE)),"") ->  | G131: =IFERROR(IF(OR(F131=0,F131="",F131>$A$9-0.01),"",VLOOKUP(VLOOKUP(F131,A126:B130,2,TRUE),Points!$H$7:$I$10,2,FALSE)),"") ->  | I131: 7 | K131: =IFERROR(IF(A131=0,HLOOKUP(J131,Declarations!$D$2:$S$193,A125,FALSE),HLOOKUP(VLOOKUP(J131,Teams!$Y$2:$Z$18,2,FALSE),Declarations!$D$2:$S$193,A125,FALSE)),"") ->  | N131: =IFERROR(IF(OR(M131=0,M131="",M131>$A$9-0.01),"",VLOOKUP(VLOOKUP(M131,A126:B130,2,TRUE),Points!$H$7:$I$10,2,FALSE)),"") ->  | P131: =IFERROR(IF(OR(C131=0,C131="",F131=0,F131="",$P124<>0,LEFT(F131,1)="D"),0,VLOOKUP(B131,INDIRECT(MatchDay!$W$2),2,FALSE)),"") -> 0 | Q131: =IFERROR(IF(OR(J131=0,J131="",M131=0,M131="",$P124<>0,LEFT(M131,1)="D"),0,VLOOKUP(I131,INDIRECT(MatchDay!$W$2),3,FALSE)),"") -> 0
A132: =IFERROR(VLOOKUP(A123,records,5,FALSE),"") -> 38.47 | B132: 8 | D132: =IFERROR(IF(A131=0,HLOOKUP(C132,Declarations!$D$2:$S$193,A125,FALSE),HLOOKUP(VLOOKUP(C132,Teams!$Y$2:$Z$18,2,FALSE),Declarations!$D$2:$S$193,A125,FALSE)),"") ->  | G132: =IFERROR(IF(OR(F132=0,F132="",F132>$A$9-0.01),"",VLOOKUP(VLOOKUP(F132,A126:B130,2,TRUE),Points!$H$7:$I$10,2,FALSE)),"") ->  | I132: 8 | K132: =IFERROR(IF(A131=0,HLOOKUP(J132,Declarations!$D$2:$S$193,A125,FALSE),HLOOKUP(VLOOKUP(J132,Teams!$Y$2:$Z$18,2,FALSE),Declarations!$D$2:$S$193,A125,FALSE)),"") ->  | N132: =IFERROR(IF(OR(M132=0,M132="",M132>$A$9-0.01),"",VLOOKUP(VLOOKUP(M132,A126:B130,2,TRUE),Points!$H$7:$I$10,2,FALSE)),"") ->  | P132: =IFERROR(IF(OR(C132=0,C132="",F132=0,F132="",$P124<>0,LEFT(F132,1)="D"),0,VLOOKUP(B132,INDIRECT(MatchDay!$W$2),2,FALSE)),"") -> 0 | Q132: =IFERROR(IF(OR(J132=0,J132="",M132=0,M132="",$P124<>0,LEFT(M132,1)="D"),0,VLOOKUP(I132,INDIRECT(MatchDay!$W$2),3,FALSE)),"") -> 0
A134: UT13 | B134: =IFERROR(VLOOKUP(A134,timetables,2,FALSE)&" "&VLOOKUP(A134,timetables,3,FALSE)&" A","") -> 80m Hurdles U17 Women A | E134: =IFERROR(IF(VLOOKUP($A134,timetables,8,FALSE)="W","Wind = ",""),"") -> Wind = | G134: =IFERROR(IF(OR(F136=0,F136=""),"",IF(F136<A143,"REC",IF(F136=A143,"=Rec",""))),"") ->  | I134: =IFERROR(VLOOKUP(A134,timetables,2,FALSE)&" "&VLOOKUP(A134,timetables,3,FALSE)&" B","") -> 80m Hurdles U17 Women B | L134: =IFERROR(IF(VLOOKUP($A134,timetables,8,FALSE)="W","Wind = ",""),"") -> Wind = | P134: A | Q134: B
A135: T13 | B135: Posn | C135: No. | D135: Athlete | E135: Club | F135: Perf | G135: AAA | I135: Posn | J135: No. | K135: Athlete | L135: Club | M135: Perf | N135: AAA | P135: =IFERROR(SEARCH("NS",B134),0) -> 0
A136: =IFERROR(VLOOKUP(A134,Timetables!$A:$E,5,FALSE)-1,"") -> 131 | B136: 1 | C136: B | D136: =IFERROR(IF(A142=0,HLOOKUP(C136,Declarations!$D$2:$S$193,A136,FALSE),HLOOKUP(VLOOKUP(C136,Teams!$Y$2:$Z$18,2,FALSE),Declarations!$D$2:$S$193,A136,FALSE)),"") -> HORNBUCKLE Amber | E136: =IFERROR(VLOOKUP(C136,teamlookup,5,FALSE),"") -> E&H | F136: 12.3 | G136: =IFERROR(IF(OR(F136=0,F136="",F136>$A$9-0.01),"",VLOOKUP(VLOOKUP(F136,A137:B141,2,TRUE),Points!$H$7:$I$10,2,FALSE)),"") -> 3 | I136: 1 | J136: BB | K136: =IFERROR(IF(A142=0,HLOOKUP(J136,Declarations!$D$2:$S$193,A136,FALSE),HLOOKUP(VLOOKUP(J136,Teams!$Y$2:$Z$18,2,FALSE),Declarations!$D$2:$S$193,A136,FALSE)),"") -> MACDONALD Amelia | L136: =IFERROR(VLOOKUP(J136,teamlookup,5,FALSE),"") -> E&H | M136: 12.2 | N136: =IFERROR(IF(OR(M136=0,M136="",M136>$A$9-0.01),"",VLOOKUP(VLOOKUP(M136,A137:B141,2,TRUE),Points!$H$7:$I$10,2,FALSE)),"") -> 3 | P136: =IFERROR(IF(OR(C136=0,C136="",F136=0,F136="",$P135<>0,LEFT(F136,1)="D"),0,VLOOKUP(B136,INDIRECT(MatchDay!$W$2),2,FALSE)),"") -> 9 | Q136: =IFERROR(IF(OR(J136=0,J136="",M136=0,M136="",$P135<>0,LEFT(M136,1)="D"),0,VLOOKUP(I136,INDIRECT(MatchDay!$W$2),3,FALSE)),"") -> 7 | R136: =COUNTIF(F136,">0") -> 1 | S136: =IFERROR(IF(A142=0,"numbers_","letters_"),"") -> letters_
A137: 0 | B137: 2 | C137: C | D137: =IFERROR(IF(A142=0,HLOOKUP(C137,Declarations!$D$2:$S$193,A136,FALSE),HLOOKUP(VLOOKUP(C137,Teams!$Y$2:$Z$18,2,FALSE),Declarations!$D$2:$S$193,A136,FALSE)),"") -> Grace Newson | E137: Have | F137: 12.5 | G137: =IFERROR(IF(OR(F137=0,F137="",F137>$A$9-0.01),"",VLOOKUP(VLOOKUP(F137,A137:B141,2,TRUE),Points!$H$7:$I$10,2,FALSE)),"") -> 3 | I137: 2 | J137: CC | K137: =IFERROR(IF(A142=0,HLOOKUP(J137,Declarations!$D$2:$S$193,A136,FALSE),HLOOKUP(VLOOKUP(J137,Teams!$Y$2:$Z$18,2,FALSE),Declarations!$D$2:$S$193,A136,FALSE)),"") -> Millie Hodges | L137: Have | M137: 13.7 | N137: =IFERROR(IF(OR(M137=0,M137="",M137>$A$9-0.01),"",VLOOKUP(VLOOKUP(M137,A137:B141,2,TRUE),Points!$H$7:$I$10,2,FALSE)),"") ->  | P137: =IFERROR(IF(OR(C137=0,C137="",F137=0,F137="",$P135<>0,LEFT(F137,1)="D"),0,VLOOKUP(B137,INDIRECT(MatchDay!$W$2),2,FALSE)),"") -> 7 | Q137: =IFERROR(IF(OR(J137=0,J137="",M137=0,M137="",$P135<>0,LEFT(M137,1)="D"),0,VLOOKUP(I137,INDIRECT(MatchDay!$W$2),3,FALSE)),"") -> 5
A138: =IFERROR(VLOOKUP(A134,standards,3,FALSE)+0.01,"-") -> 11.81 | B138: 3 | C138: D | D138: =IFERROR(IF(A142=0,HLOOKUP(C138,Declarations!$D$2:$S$193,A136,FALSE),HLOOKUP(VLOOKUP(C138,Teams!$Y$2:$Z$18,2,FALSE),Declarations!$D$2:$S$193,A136,FALSE)),"") -> Molly Gardner | E138: SNH | F138: 13.8 | G138: =IFERROR(IF(OR(F138=0,F138="",F138>$A$9-0.01),"",VLOOKUP(VLOOKUP(F138,A137:B141,2,TRUE),Points!$H$7:$I$10,2,FALSE)),"") ->  | I138: 3 | J138: DD | K138: =IFERROR(IF(A142=0,HLOOKUP(J138,Declarations!$D$2:$S$193,A136,FALSE),HLOOKUP(VLOOKUP(J138,Teams!$Y$2:$Z$18,2,FALSE),Declarations!$D$2:$S$193,A136,FALSE)),"") -> Abigail Pickard | L138: SNH | M138: 14.9 | N138: =IFERROR(IF(OR(M138=0,M138="",M138>$A$9-0.01),"",VLOOKUP(VLOOKUP(M138,A137:B141,2,TRUE),Points!$H$7:$I$10,2,FALSE)),"") ->  | P138: =IFERROR(IF(OR(C138=0,C138="",F138=0,F138="",$P135<>0,LEFT(F138,1)="D"),0,VLOOKUP(B138,INDIRECT(MatchDay!$W$2),2,FALSE)),"") -> 6 | Q138: =IFERROR(IF(OR(J138=0,J138="",M138=0,M138="",$P135<>0,LEFT(M138,1)="D"),0,VLOOKUP(I138,INDIRECT(MatchDay!$W$2),3,FALSE)),"") -> 4
A139: =IFERROR(VLOOKUP(A134,standards,4,FALSE)+0.01,"-") -> 12.11 | B139: 4 | C139: E | D139: =IFERROR(IF(A142=0,HLOOKUP(C139,Declarations!$D$2:$S$193,A136,FALSE),HLOOKUP(VLOOKUP(C139,Teams!$Y$2:$Z$18,2,FALSE),Declarations!$D$2:$S$193,A136,FALSE)),"") -> Alex Arnold | E139: Beds | F139: 13.9 | G139: =IFERROR(IF(OR(F139=0,F139="",F139>$A$9-0.01),"",VLOOKUP(VLOOKUP(F139,A137:B141,2,TRUE),Points!$H$7:$I$10,2,FALSE)),"") ->  | I139: 4 | K139: =IFERROR(IF(A142=0,HLOOKUP(J139,Declarations!$D$2:$S$193,A136,FALSE),HLOOKUP(VLOOKUP(J139,Teams!$Y$2:$Z$18,2,FALSE),Declarations!$D$2:$S$193,A136,FALSE)),"") ->  | N139: =IFERROR(IF(OR(M139=0,M139="",M139>$A$9-0.01),"",VLOOKUP(VLOOKUP(M139,A137:B141,2,TRUE),Points!$H$7:$I$10,2,FALSE)),"") ->  | P139: =IFERROR(IF(OR(C139=0,C139="",F139=0,F139="",$P135<>0,LEFT(F139,1)="D"),0,VLOOKUP(B139,INDIRECT(MatchDay!$W$2),2,FALSE)),"") -> 5 | Q139: =IFERROR(IF(OR(J139=0,J139="",M139=0,M139="",$P135<>0,LEFT(M139,1)="D"),0,VLOOKUP(I139,INDIRECT(MatchDay!$W$2),3,FALSE)),"") -> 0
A140: =IFERROR(VLOOKUP(A134,standards,5,FALSE)+0.01,"-") -> 12.51 | B140: 5 | D140: =IFERROR(IF(A142=0,HLOOKUP(C140,Declarations!$D$2:$S$193,A136,FALSE),HLOOKUP(VLOOKUP(C140,Teams!$Y$2:$Z$18,2,FALSE),Declarations!$D$2:$S$193,A136,FALSE)),"") ->  | G140: =IFERROR(IF(OR(F140=0,F140="",F140>$A$9-0.01),"",VLOOKUP(VLOOKUP(F140,A137:B141,2,TRUE),Points!$H$7:$I$10,2,FALSE)),"") ->  | I140: 5 | K140: =IFERROR(IF(A142=0,HLOOKUP(J140,Declarations!$D$2:$S$193,A136,FALSE),HLOOKUP(VLOOKUP(J140,Teams!$Y$2:$Z$18,2,FALSE),Declarations!$D$2:$S$193,A136,FALSE)),"") ->  | N140: =IFERROR(IF(OR(M140=0,M140="",M140>$A$9-0.01),"",VLOOKUP(VLOOKUP(M140,A137:B141,2,TRUE),Points!$H$7:$I$10,2,FALSE)),"") ->  | P140: =IFERROR(IF(OR(C140=0,C140="",F140=0,F140="",$P135<>0,LEFT(F140,1)="D"),0,VLOOKUP(B140,INDIRECT(MatchDay!$W$2),2,FALSE)),"") -> 0 | Q140: =IFERROR(IF(OR(J140=0,J140="",M140=0,M140="",$P135<>0,LEFT(M140,1)="D"),0,VLOOKUP(I140,INDIRECT(MatchDay!$W$2),3,FALSE)),"") -> 0
A141: =IFERROR(VLOOKUP(A134,standards,6,FALSE)+0.01,"-") -> 13.11 | B141: 6 | D141: =IFERROR(IF(A142=0,HLOOKUP(C141,Declarations!$D$2:$S$193,A136,FALSE),HLOOKUP(VLOOKUP(C141,Teams!$Y$2:$Z$18,2,FALSE),Declarations!$D$2:$S$193,A136,FALSE)),"") ->  | G141: =IFERROR(IF(OR(F141=0,F141="",F141>$A$9-0.01),"",VLOOKUP(VLOOKUP(F141,A137:B141,2,TRUE),Points!$H$7:$I$10,2,FALSE)),"") ->  | I141: 6 | K141: =IFERROR(IF(A142=0,HLOOKUP(J141,Declarations!$D$2:$S$193,A136,FALSE),HLOOKUP(VLOOKUP(J141,Teams!$Y$2:$Z$18,2,FALSE),Declarations!$D$2:$S$193,A136,FALSE)),"") ->  | N141: =IFERROR(IF(OR(M141=0,M141="",M141>$A$9-0.01),"",VLOOKUP(VLOOKUP(M141,A137:B141,2,TRUE),Points!$H$7:$I$10,2,FALSE)),"") ->  | P141: =IFERROR(IF(OR(C141=0,C141="",F141=0,F141="",$P135<>0,LEFT(F141,1)="D"),0,VLOOKUP(B141,INDIRECT(MatchDay!$W$2),2,FALSE)),"") -> 0 | Q141: =IFERROR(IF(OR(J141=0,J141="",M141=0,M141="",$P135<>0,LEFT(M141,1)="D"),0,VLOOKUP(I141,INDIRECT(MatchDay!$W$2),3,FALSE)),"") -> 0
A142: =IFERROR(SEARCH("U17",B134),0) -> 13 | B142: 7 | D142: =IFERROR(IF(A142=0,HLOOKUP(C142,Declarations!$D$2:$S$193,A136,FALSE),HLOOKUP(VLOOKUP(C142,Teams!$Y$2:$Z$18,2,FALSE),Declarations!$D$2:$S$193,A136,FALSE)),"") ->  | G142: =IFERROR(IF(OR(F142=0,F142="",F142>$A$9-0.01),"",VLOOKUP(VLOOKUP(F142,A137:B141,2,TRUE),Points!$H$7:$I$10,2,FALSE)),"") ->  | I142: 7 | K142: =IFERROR(IF(A142=0,HLOOKUP(J142,Declarations!$D$2:$S$193,A136,FALSE),HLOOKUP(VLOOKUP(J142,Teams!$Y$2:$Z$18,2,FALSE),Declarations!$D$2:$S$193,A136,FALSE)),"") ->  | N142: =IFERROR(IF(OR(M142=0,M142="",M142>$A$9-0.01),"",VLOOKUP(VLOOKUP(M142,A137:B141,2,TRUE),Points!$H$7:$I$10,2,FALSE)),"") ->  | P142: =IFERROR(IF(OR(C142=0,C142="",F142=0,F142="",$P135<>0,LEFT(F142,1)="D"),0,VLOOKUP(B142,INDIRECT(MatchDay!$W$2),2,FALSE)),"") -> 0 | Q142: =IFERROR(IF(OR(J142=0,J142="",M142=0,M142="",$P135<>0,LEFT(M142,1)="D"),0,VLOOKUP(I142,INDIRECT(MatchDay!$W$2),3,FALSE)),"") -> 0
A143: =IFERROR(VLOOKUP(A134,records,5,FALSE),"") -> 11.2 | B143: 8 | D143: =IFERROR(IF(A142=0,HLOOKUP(C143,Declarations!$D$2:$S$193,A136,FALSE),HLOOKUP(VLOOKUP(C143,Teams!$Y$2:$Z$18,2,FALSE),Declarations!$D$2:$S$193,A136,FALSE)),"") ->  | G143: =IFERROR(IF(OR(F143=0,F143="",F143>$A$9-0.01),"",VLOOKUP(VLOOKUP(F143,A137:B141,2,TRUE),Points!$H$7:$I$10,2,FALSE)),"") ->  | I143: 8 | K143: =IFERROR(IF(A142=0,HLOOKUP(J143,Declarations!$D$2:$S$193,A136,FALSE),HLOOKUP(VLOOKUP(J143,Teams!$Y$2:$Z$18,2,FALSE),Declarations!$D$2:$S$193,A136,FALSE)),"") ->  | N143: =IFERROR(IF(OR(M143=0,M143="",M143>$A$9-0.01),"",VLOOKUP(VLOOKUP(M143,A137:B141,2,TRUE),Points!$H$7:$I$10,2,FALSE)),"") ->  | P143: =IFERROR(IF(OR(C143=0,C143="",F143=0,F143="",$P135<>0,LEFT(F143,1)="D"),0,VLOOKUP(B143,INDIRECT(MatchDay!$W$2),2,FALSE)),"") -> 0 | Q143: =IFERROR(IF(OR(J143=0,J143="",M143=0,M143="",$P135<>0,LEFT(M143,1)="D"),0,VLOOKUP(I143,INDIRECT(MatchDay!$W$2),3,FALSE)),"") -> 0
A145: UT14 | B145: =IFERROR(VLOOKUP(A145,timetables,2,FALSE)&" "&VLOOKUP(A145,timetables,3,FALSE)&" A","") -> 100m Hurdles U20 Women A | E145: =IFERROR(IF(VLOOKUP($A145,timetables,8,FALSE)="W","Wind = ",""),"") -> Wind = | G145: =IFERROR(IF(OR(F147=0,F147=""),"",IF(F147<A154,"REC",IF(F147=A154,"=Rec",""))),"") ->  | I145: =IFERROR(VLOOKUP(A145,timetables,2,FALSE)&" "&VLOOKUP(A145,timetables,3,FALSE)&" B","") -> 100m Hurdles U20 Women B | L145: =IFERROR(IF(VLOOKUP($A145,timetables,8,FALSE)="W","Wind = ",""),"") -> Wind = | P145: A | Q145: B
A146: T14 | B146: Posn | C146: No. | D146: Athlete | E146: Club | F146: Perf | G146: AAA | I146: Posn | J146: No. | K146: Athlete | L146: Club | M146: Perf | N146: AAA | P146: =IFERROR(SEARCH("NS",B145),0) -> 0
A147: =IFERROR(VLOOKUP(A145,Timetables!$A:$E,5,FALSE)-1,"") -> 108 | B147: 1 | C147: 2 | D147: =IFERROR(IF(A153=0,HLOOKUP(C147,Declarations!$D$2:$S$193,A147,FALSE),HLOOKUP(VLOOKUP(C147,Teams!$Y$2:$Z$18,2,FALSE),Declarations!$D$2:$S$193,A147,FALSE)),"") -> PARCELL Nicole | E147: =IFERROR(VLOOKUP(C147,teamlookup,5,FALSE),"") -> E&H | F147: 15.3 | G147: =IFERROR(IF(OR(F147=0,F147="",F147>$A$9-0.01),"",VLOOKUP(VLOOKUP(F147,A148:B152,2,TRUE),Points!$H$7:$I$10,2,FALSE)),"") ->  | I147: 1 | J147: 22 | K147: =IFERROR(IF(A153=0,HLOOKUP(J147,Declarations!$D$2:$S$193,A147,FALSE),HLOOKUP(VLOOKUP(J147,Teams!$Y$2:$Z$18,2,FALSE),Declarations!$D$2:$S$193,A147,FALSE)),"") -> SPILIOPOULOU Ashleigh | L147: =IFERROR(VLOOKUP(J147,teamlookup,5,FALSE),"") -> E&H | M147: 15.4 | N147: =IFERROR(IF(OR(M147=0,M147="",M147>$A$9-0.01),"",VLOOKUP(VLOOKUP(M147,A148:B152,2,TRUE),Points!$H$7:$I$10,2,FALSE)),"") ->  | P147: =IFERROR(IF(OR(C147=0,C147="",F147=0,F147="",$P146<>0,LEFT(F147,1)="D"),0,VLOOKUP(B147,INDIRECT(MatchDay!$W$2),2,FALSE)),"") -> 9 | Q147: =IFERROR(IF(OR(J147=0,J147="",M147=0,M147="",$P146<>0,LEFT(M147,1)="D"),0,VLOOKUP(I147,INDIRECT(MatchDay!$W$2),3,FALSE)),"") -> 7 | R147: =COUNTIF(F147,">0") -> 1 | S147: =IFERROR(IF(A153=0,"numbers_","letters_"),"") -> numbers_
A148: 0 | B148: 2 | D148: =IFERROR(IF(A153=0,HLOOKUP(C148,Declarations!$D$2:$S$193,A147,FALSE),HLOOKUP(VLOOKUP(C148,Teams!$Y$2:$Z$18,2,FALSE),Declarations!$D$2:$S$193,A147,FALSE)),"") ->  | G148: =IFERROR(IF(OR(F148=0,F148="",F148>$A$9-0.01),"",VLOOKUP(VLOOKUP(F148,A148:B152,2,TRUE),Points!$H$7:$I$10,2,FALSE)),"") ->  | I148: 2 | K148: =IFERROR(IF(A153=0,HLOOKUP(J148,Declarations!$D$2:$S$193,A147,FALSE),HLOOKUP(VLOOKUP(J148,Teams!$Y$2:$Z$18,2,FALSE),Declarations!$D$2:$S$193,A147,FALSE)),"") ->  | N148: =IFERROR(IF(OR(M148=0,M148="",M148>$A$9-0.01),"",VLOOKUP(VLOOKUP(M148,A148:B152,2,TRUE),Points!$H$7:$I$10,2,FALSE)),"") ->  | P148: =IFERROR(IF(OR(C148=0,C148="",F148=0,F148="",$P146<>0,LEFT(F148,1)="D"),0,VLOOKUP(B148,INDIRECT(MatchDay!$W$2),2,FALSE)),"") -> 0 | Q148: =IFERROR(IF(OR(J148=0,J148="",M148=0,M148="",$P146<>0,LEFT(M148,1)="D"),0,VLOOKUP(I148,INDIRECT(MatchDay!$W$2),3,FALSE)),"") -> 0
A149: =IFERROR(VLOOKUP(A145,standards,3,FALSE)+0.01,"-") -> 14.41 | B149: 3 | D149: =IFERROR(IF(A153=0,HLOOKUP(C149,Declarations!$D$2:$S$193,A147,FALSE),HLOOKUP(VLOOKUP(C149,Teams!$Y$2:$Z$18,2,FALSE),Declarations!$D$2:$S$193,A147,FALSE)),"") ->  | G149: =IFERROR(IF(OR(F149=0,F149="",F149>$A$9-0.01),"",VLOOKUP(VLOOKUP(F149,A148:B152,2,TRUE),Points!$H$7:$I$10,2,FALSE)),"") ->  | I149: 3 | K149: =IFERROR(IF(A153=0,HLOOKUP(J149,Declarations!$D$2:$S$193,A147,FALSE),HLOOKUP(VLOOKUP(J149,Teams!$Y$2:$Z$18,2,FALSE),Declarations!$D$2:$S$193,A147,FALSE)),"") ->  | N149: =IFERROR(IF(OR(M149=0,M149="",M149>$A$9-0.01),"",VLOOKUP(VLOOKUP(M149,A148:B152,2,TRUE),Points!$H$7:$I$10,2,FALSE)),"") ->  | P149: =IFERROR(IF(OR(C149=0,C149="",F149=0,F149="",$P146<>0,LEFT(F149,1)="D"),0,VLOOKUP(B149,INDIRECT(MatchDay!$W$2),2,FALSE)),"") -> 0 | Q149: =IFERROR(IF(OR(J149=0,J149="",M149=0,M149="",$P146<>0,LEFT(M149,1)="D"),0,VLOOKUP(I149,INDIRECT(MatchDay!$W$2),3,FALSE)),"") -> 0
A150: =IFERROR(VLOOKUP(A145,standards,4,FALSE)+0.01,"-") -> 14.81 | B150: 4 | D150: =IFERROR(IF(A153=0,HLOOKUP(C150,Declarations!$D$2:$S$193,A147,FALSE),HLOOKUP(VLOOKUP(C150,Teams!$Y$2:$Z$18,2,FALSE),Declarations!$D$2:$S$193,A147,FALSE)),"") ->  | G150: =IFERROR(IF(OR(F150=0,F150="",F150>$A$9-0.01),"",VLOOKUP(VLOOKUP(F150,A148:B152,2,TRUE),Points!$H$7:$I$10,2,FALSE)),"") ->  | I150: 4 | K150: =IFERROR(IF(A153=0,HLOOKUP(J150,Declarations!$D$2:$S$193,A147,FALSE),HLOOKUP(VLOOKUP(J150,Teams!$Y$2:$Z$18,2,FALSE),Declarations!$D$2:$S$193,A147,FALSE)),"") ->  | N150: =IFERROR(IF(OR(M150=0,M150="",M150>$A$9-0.01),"",VLOOKUP(VLOOKUP(M150,A148:B152,2,TRUE),Points!$H$7:$I$10,2,FALSE)),"") ->  | P150: =IFERROR(IF(OR(C150=0,C150="",F150=0,F150="",$P146<>0,LEFT(F150,1)="D"),0,VLOOKUP(B150,INDIRECT(MatchDay!$W$2),2,FALSE)),"") -> 0 | Q150: =IFERROR(IF(OR(J150=0,J150="",M150=0,M150="",$P146<>0,LEFT(M150,1)="D"),0,VLOOKUP(I150,INDIRECT(MatchDay!$W$2),3,FALSE)),"") -> 0
A151: =IFERROR(VLOOKUP(A145,standards,5,FALSE)+0.01,"-") -> 15.21 | B151: 5 | D151: =IFERROR(IF(A153=0,HLOOKUP(C151,Declarations!$D$2:$S$193,A147,FALSE),HLOOKUP(VLOOKUP(C151,Teams!$Y$2:$Z$18,2,FALSE),Declarations!$D$2:$S$193,A147,FALSE)),"") ->  | G151: =IFERROR(IF(OR(F151=0,F151="",F151>$A$9-0.01),"",VLOOKUP(VLOOKUP(F151,A148:B152,2,TRUE),Points!$H$7:$I$10,2,FALSE)),"") ->  | I151: 5 | K151: =IFERROR(IF(A153=0,HLOOKUP(J151,Declarations!$D$2:$S$193,A147,FALSE),HLOOKUP(VLOOKUP(J151,Teams!$Y$2:$Z$18,2,FALSE),Declarations!$D$2:$S$193,A147,FALSE)),"") ->  | N151: =IFERROR(IF(OR(M151=0,M151="",M151>$A$9-0.01),"",VLOOKUP(VLOOKUP(M151,A148:B152,2,TRUE),Points!$H$7:$I$10,2,FALSE)),"") ->  | P151: =IFERROR(IF(OR(C151=0,C151="",F151=0,F151="",$P146<>0,LEFT(F151,1)="D"),0,VLOOKUP(B151,INDIRECT(MatchDay!$W$2),2,FALSE)),"") -> 0 | Q151: =IFERROR(IF(OR(J151=0,J151="",M151=0,M151="",$P146<>0,LEFT(M151,1)="D"),0,VLOOKUP(I151,INDIRECT(MatchDay!$W$2),3,FALSE)),"") -> 0
A152: =IFERROR(VLOOKUP(A145,standards,6,FALSE)+0.01,"-") -> 15.21 | B152: 6 | D152: =IFERROR(IF(A153=0,HLOOKUP(C152,Declarations!$D$2:$S$193,A147,FALSE),HLOOKUP(VLOOKUP(C152,Teams!$Y$2:$Z$18,2,FALSE),Declarations!$D$2:$S$193,A147,FALSE)),"") ->  | G152: =IFERROR(IF(OR(F152=0,F152="",F152>$A$9-0.01),"",VLOOKUP(VLOOKUP(F152,A148:B152,2,TRUE),Points!$H$7:$I$10,2,FALSE)),"") ->  | I152: 6 | K152: =IFERROR(IF(A153=0,HLOOKUP(J152,Declarations!$D$2:$S$193,A147,FALSE),HLOOKUP(VLOOKUP(J152,Teams!$Y$2:$Z$18,2,FALSE),Declarations!$D$2:$S$193,A147,FALSE)),"") ->  | N152: =IFERROR(IF(OR(M152=0,M152="",M152>$A$9-0.01),"",VLOOKUP(VLOOKUP(M152,A148:B152,2,TRUE),Points!$H$7:$I$10,2,FALSE)),"") ->  | P152: =IFERROR(IF(OR(C152=0,C152="",F152=0,F152="",$P146<>0,LEFT(F152,1)="D"),0,VLOOKUP(B152,INDIRECT(MatchDay!$W$2),2,FALSE)),"") -> 0 | Q152: =IFERROR(IF(OR(J152=0,J152="",M152=0,M152="",$P146<>0,LEFT(M152,1)="D"),0,VLOOKUP(I152,INDIRECT(MatchDay!$W$2),3,FALSE)),"") -> 0
A153: =IFERROR(SEARCH("U17",B145),0) -> 0 | B153: 7 | D153: =IFERROR(IF(A153=0,HLOOKUP(C153,Declarations!$D$2:$S$193,A147,FALSE),HLOOKUP(VLOOKUP(C153,Teams!$Y$2:$Z$18,2,FALSE),Declarations!$D$2:$S$193,A147,FALSE)),"") ->  | G153: =IFERROR(IF(OR(F153=0,F153="",F153>$A$9-0.01),"",VLOOKUP(VLOOKUP(F153,A148:B152,2,TRUE),Points!$H$7:$I$10,2,FALSE)),"") ->  | I153: 7 | K153: =IFERROR(IF(A153=0,HLOOKUP(J153,Declarations!$D$2:$S$193,A147,FALSE),HLOOKUP(VLOOKUP(J153,Teams!$Y$2:$Z$18,2,FALSE),Declarations!$D$2:$S$193,A147,FALSE)),"") ->  | N153: =IFERROR(IF(OR(M153=0,M153="",M153>$A$9-0.01),"",VLOOKUP(VLOOKUP(M153,A148:B152,2,TRUE),Points!$H$7:$I$10,2,FALSE)),"") ->  | P153: =IFERROR(IF(OR(C153=0,C153="",F153=0,F153="",$P146<>0,LEFT(F153,1)="D"),0,VLOOKUP(B153,INDIRECT(MatchDay!$W$2),2,FALSE)),"") -> 0 | Q153: =IFERROR(IF(OR(J153=0,J153="",M153=0,M153="",$P146<>0,LEFT(M153,1)="D"),0,VLOOKUP(I153,INDIRECT(MatchDay!$W$2),3,FALSE)),"") -> 0
A154: =IFERROR(VLOOKUP(A145,records,5,FALSE),"") -> 14 | B154: 8 | D154: =IFERROR(IF(A153=0,HLOOKUP(C154,Declarations!$D$2:$S$193,A147,FALSE),HLOOKUP(VLOOKUP(C154,Teams!$Y$2:$Z$18,2,FALSE),Declarations!$D$2:$S$193,A147,FALSE)),"") ->  | G154: =IFERROR(IF(OR(F154=0,F154="",F154>$A$9-0.01),"",VLOOKUP(VLOOKUP(F154,A148:B152,2,TRUE),Points!$H$7:$I$10,2,FALSE)),"") ->  | I154: 8 | K154: =IFERROR(IF(A153=0,HLOOKUP(J154,Declarations!$D$2:$S$193,A147,FALSE),HLOOKUP(VLOOKUP(J154,Teams!$Y$2:$Z$18,2,FALSE),Declarations!$D$2:$S$193,A147,FALSE)),"") ->  | N154: =IFERROR(IF(OR(M154=0,M154="",M154>$A$9-0.01),"",VLOOKUP(VLOOKUP(M154,A148:B152,2,TRUE),Points!$H$7:$I$10,2,FALSE)),"") ->  | P154: =IFERROR(IF(OR(C154=0,C154="",F154=0,F154="",$P146<>0,LEFT(F154,1)="D"),0,VLOOKUP(B154,INDIRECT(MatchDay!$W$2),2,FALSE)),"") -> 0 | Q154: =IFERROR(IF(OR(J154=0,J154="",M154=0,M154="",$P146<>0,LEFT(M154,1)="D"),0,VLOOKUP(I154,INDIRECT(MatchDay!$W$2),3,FALSE)),"") -> 0
A156: UT15 | B156: =IFERROR(VLOOKUP(A156,timetables,2,FALSE)&" "&VLOOKUP(A156,timetables,3,FALSE)&" A","") -> 100m Hurdles U17 Men A | E156: =IFERROR(IF(VLOOKUP($A156,timetables,8,FALSE)="W","Wind = ",""),"") -> Wind = | G156: =IFERROR(IF(OR(F158=0,F158=""),"",IF(F158<A165,"REC",IF(F158=A165,"=Rec",""))),"") ->  | I156: =IFERROR(VLOOKUP(A156,timetables,2,FALSE)&" "&VLOOKUP(A156,timetables,3,FALSE)&" B","") -> 100m Hurdles U17 Men B | L156: =IFERROR(IF(VLOOKUP($A156,timetables,8,FALSE)="W","Wind = ",""),"") -> Wind = | P156: A | Q156: B
A157: T15 | B157: Posn | C157: No. | D157: Athlete | E157: Club | F157: Perf | G157: AAA | I157: Posn | J157: No. | K157: Athlete | L157: Club | M157: Perf | N157: AAA | P157: =IFERROR(SEARCH("NS",B156),0) -> 0
A158: =IFERROR(VLOOKUP(A156,Timetables!$A:$E,5,FALSE)-1,"") -> 177 | B158: 1 | C158: B | D158: =IFERROR(IF(A164=0,HLOOKUP(C158,Declarations!$D$2:$S$193,A158,FALSE),HLOOKUP(VLOOKUP(C158,Teams!$Y$2:$Z$18,2,FALSE),Declarations!$D$2:$S$193,A158,FALSE)),"") -> WILLIAMS Ralph | E158: =IFERROR(VLOOKUP(C158,teamlookup,5,FALSE),"") -> E&H | F158: 14.6 | G158: =IFERROR(IF(OR(F158=0,F158="",F158>$A$9-0.01),"",VLOOKUP(VLOOKUP(F158,A159:B163,2,TRUE),Points!$H$7:$I$10,2,FALSE)),"") -> 3 | I158: 1 | J158: DD | K158: =IFERROR(IF(A164=0,HLOOKUP(J158,Declarations!$D$2:$S$193,A158,FALSE),HLOOKUP(VLOOKUP(J158,Teams!$Y$2:$Z$18,2,FALSE),Declarations!$D$2:$S$193,A158,FALSE)),"") -> Freddie Reilly | L158: =IFERROR(VLOOKUP(J158,teamlookup,5,FALSE),"") -> SNH | M158: 15.9 | N158: =IFERROR(IF(OR(M158=0,M158="",M158>$A$9-0.01),"",VLOOKUP(VLOOKUP(M158,A159:B163,2,TRUE),Points!$H$7:$I$10,2,FALSE)),"") ->  | P158: =IFERROR(IF(OR(C158=0,C158="",F158=0,F158="",$P157<>0,LEFT(F158,1)="D"),0,VLOOKUP(B158,INDIRECT(MatchDay!$W$2),2,FALSE)),"") -> 9 | Q158: =IFERROR(IF(OR(J158=0,J158="",M158=0,M158="",$P157<>0,LEFT(M158,1)="D"),0,VLOOKUP(I158,INDIRECT(MatchDay!$W$2),3,FALSE)),"") -> 7 | R158: =COUNTIF(F158,">0") -> 1 | S158: =IFERROR(IF(A164=0,"numbers_","letters_"),"") -> letters_
A159: 0 | B159: 2 | C159: D | D159: =IFERROR(IF(A164=0,HLOOKUP(C159,Declarations!$D$2:$S$193,A158,FALSE),HLOOKUP(VLOOKUP(C159,Teams!$Y$2:$Z$18,2,FALSE),Declarations!$D$2:$S$193,A158,FALSE)),"") -> Kit Kerr | E159: SNH | F159: 14.6 | G159: =IFERROR(IF(OR(F159=0,F159="",F159>$A$9-0.01),"",VLOOKUP(VLOOKUP(F159,A159:B163,2,TRUE),Points!$H$7:$I$10,2,FALSE)),"") -> 3 | I159: 2 | K159: =IFERROR(IF(A164=0,HLOOKUP(J159,Declarations!$D$2:$S$193,A158,FALSE),HLOOKUP(VLOOKUP(J159,Teams!$Y$2:$Z$18,2,FALSE),Declarations!$D$2:$S$193,A158,FALSE)),"") ->  | N159: =IFERROR(IF(OR(M159=0,M159="",M159>$A$9-0.01),"",VLOOKUP(VLOOKUP(M159,A159:B163,2,TRUE),Points!$H$7:$I$10,2,FALSE)),"") ->  | P159: =IFERROR(IF(OR(C159=0,C159="",F159=0,F159="",$P157<>0,LEFT(F159,1)="D"),0,VLOOKUP(B159,INDIRECT(MatchDay!$W$2),2,FALSE)),"") -> 7 | Q159: =IFERROR(IF(OR(J159=0,J159="",M159=0,M159="",$P157<>0,LEFT(M159,1)="D"),0,VLOOKUP(I159,INDIRECT(MatchDay!$W$2),3,FALSE)),"") -> 0
A160: =IFERROR(VLOOKUP(A156,standards,3,FALSE)+0.01,"-") -> 13.71 | B160: 3 | C160: A | D160: =IFERROR(IF(A164=0,HLOOKUP(C160,Declarations!$D$2:$S$193,A158,FALSE),HLOOKUP(VLOOKUP(C160,Teams!$Y$2:$Z$18,2,FALSE),Declarations!$D$2:$S$193,A158,FALSE)),"") -> BENNETT kieran | E160: Chelm | F160: 17.8 | G160: =IFERROR(IF(OR(F160=0,F160="",F160>$A$9-0.01),"",VLOOKUP(VLOOKUP(F160,A159:B163,2,TRUE),Points!$H$7:$I$10,2,FALSE)),"") ->  | I160: 3 | K160: =IFERROR(IF(A164=0,HLOOKUP(J160,Declarations!$D$2:$S$193,A158,FALSE),HLOOKUP(VLOOKUP(J160,Teams!$Y$2:$Z$18,2,FALSE),Declarations!$D$2:$S$193,A158,FALSE)),"") ->  | N160: =IFERROR(IF(OR(M160=0,M160="",M160>$A$9-0.01),"",VLOOKUP(VLOOKUP(M160,A159:B163,2,TRUE),Points!$H$7:$I$10,2,FALSE)),"") ->  | P160: =IFERROR(IF(OR(C160=0,C160="",F160=0,F160="",$P157<>0,LEFT(F160,1)="D"),0,VLOOKUP(B160,INDIRECT(MatchDay!$W$2),2,FALSE)),"") -> 6 | Q160: =IFERROR(IF(OR(J160=0,J160="",M160=0,M160="",$P157<>0,LEFT(M160,1)="D"),0,VLOOKUP(I160,INDIRECT(MatchDay!$W$2),3,FALSE)),"") -> 0
A161: =IFERROR(VLOOKUP(A156,standards,4,FALSE)+0.01,"-") -> 14.01 | B161: 4 | D161: =IFERROR(IF(A164=0,HLOOKUP(C161,Declarations!$D$2:$S$193,A158,FALSE),HLOOKUP(VLOOKUP(C161,Teams!$Y$2:$Z$18,2,FALSE),Declarations!$D$2:$S$193,A158,FALSE)),"") ->  | G161: =IFERROR(IF(OR(F161=0,F161="",F161>$A$9-0.01),"",VLOOKUP(VLOOKUP(F161,A159:B163,2,TRUE),Points!$H$7:$I$10,2,FALSE)),"") ->  | I161: 4 | K161: =IFERROR(IF(A164=0,HLOOKUP(J161,Declarations!$D$2:$S$193,A158,FALSE),HLOOKUP(VLOOKUP(J161,Teams!$Y$2:$Z$18,2,FALSE),Declarations!$D$2:$S$193,A158,FALSE)),"") ->  | N161: =IFERROR(IF(OR(M161=0,M161="",M161>$A$9-0.01),"",VLOOKUP(VLOOKUP(M161,A159:B163,2,TRUE),Points!$H$7:$I$10,2,FALSE)),"") ->  | P161: =IFERROR(IF(OR(C161=0,C161="",F161=0,F161="",$P157<>0,LEFT(F161,1)="D"),0,VLOOKUP(B161,INDIRECT(MatchDay!$W$2),2,FALSE)),"") -> 0 | Q161: =IFERROR(IF(OR(J161=0,J161="",M161=0,M161="",$P157<>0,LEFT(M161,1)="D"),0,VLOOKUP(I161,INDIRECT(MatchDay!$W$2),3,FALSE)),"") -> 0
A162: =IFERROR(VLOOKUP(A156,standards,5,FALSE)+0.01,"-") -> 14.61 | B162: 5 | D162: =IFERROR(IF(A164=0,HLOOKUP(C162,Declarations!$D$2:$S$193,A158,FALSE),HLOOKUP(VLOOKUP(C162,Teams!$Y$2:$Z$18,2,FALSE),Declarations!$D$2:$S$193,A158,FALSE)),"") ->  | G162: =IFERROR(IF(OR(F162=0,F162="",F162>$A$9-0.01),"",VLOOKUP(VLOOKUP(F162,A159:B163,2,TRUE),Points!$H$7:$I$10,2,FALSE)),"") ->  | I162: 5 | K162: =IFERROR(IF(A164=0,HLOOKUP(J162,Declarations!$D$2:$S$193,A158,FALSE),HLOOKUP(VLOOKUP(J162,Teams!$Y$2:$Z$18,2,FALSE),Declarations!$D$2:$S$193,A158,FALSE)),"") ->  | N162: =IFERROR(IF(OR(M162=0,M162="",M162>$A$9-0.01),"",VLOOKUP(VLOOKUP(M162,A159:B163,2,TRUE),Points!$H$7:$I$10,2,FALSE)),"") ->  | P162: =IFERROR(IF(OR(C162=0,C162="",F162=0,F162="",$P157<>0,LEFT(F162,1)="D"),0,VLOOKUP(B162,INDIRECT(MatchDay!$W$2),2,FALSE)),"") -> 0 | Q162: =IFERROR(IF(OR(J162=0,J162="",M162=0,M162="",$P157<>0,LEFT(M162,1)="D"),0,VLOOKUP(I162,INDIRECT(MatchDay!$W$2),3,FALSE)),"") -> 0
A163: =IFERROR(VLOOKUP(A156,standards,6,FALSE)+0.01,"-") -> 15.41 | B163: 6 | D163: =IFERROR(IF(A164=0,HLOOKUP(C163,Declarations!$D$2:$S$193,A158,FALSE),HLOOKUP(VLOOKUP(C163,Teams!$Y$2:$Z$18,2,FALSE),Declarations!$D$2:$S$193,A158,FALSE)),"") ->  | G163: =IFERROR(IF(OR(F163=0,F163="",F163>$A$9-0.01),"",VLOOKUP(VLOOKUP(F163,A159:B163,2,TRUE),Points!$H$7:$I$10,2,FALSE)),"") ->  | I163: 6 | K163: =IFERROR(IF(A164=0,HLOOKUP(J163,Declarations!$D$2:$S$193,A158,FALSE),HLOOKUP(VLOOKUP(J163,Teams!$Y$2:$Z$18,2,FALSE),Declarations!$D$2:$S$193,A158,FALSE)),"") ->  | N163: =IFERROR(IF(OR(M163=0,M163="",M163>$A$9-0.01),"",VLOOKUP(VLOOKUP(M163,A159:B163,2,TRUE),Points!$H$7:$I$10,2,FALSE)),"") ->  | P163: =IFERROR(IF(OR(C163=0,C163="",F163=0,F163="",$P157<>0,LEFT(F163,1)="D"),0,VLOOKUP(B163,INDIRECT(MatchDay!$W$2),2,FALSE)),"") -> 0 | Q163: =IFERROR(IF(OR(J163=0,J163="",M163=0,M163="",$P157<>0,LEFT(M163,1)="D"),0,VLOOKUP(I163,INDIRECT(MatchDay!$W$2),3,FALSE)),"") -> 0
A164: =IFERROR(SEARCH("U17",B156),0) -> 14 | B164: 7 | D164: =IFERROR(IF(A164=0,HLOOKUP(C164,Declarations!$D$2:$S$193,A158,FALSE),HLOOKUP(VLOOKUP(C164,Teams!$Y$2:$Z$18,2,FALSE),Declarations!$D$2:$S$193,A158,FALSE)),"") ->  | G164: =IFERROR(IF(OR(F164=0,F164="",F164>$A$9-0.01),"",VLOOKUP(VLOOKUP(F164,A159:B163,2,TRUE),Points!$H$7:$I$10,2,FALSE)),"") ->  | I164: 7 | K164: =IFERROR(IF(A164=0,HLOOKUP(J164,Declarations!$D$2:$S$193,A158,FALSE),HLOOKUP(VLOOKUP(J164,Teams!$Y$2:$Z$18,2,FALSE),Declarations!$D$2:$S$193,A158,FALSE)),"") ->  | N164: =IFERROR(IF(OR(M164=0,M164="",M164>$A$9-0.01),"",VLOOKUP(VLOOKUP(M164,A159:B163,2,TRUE),Points!$H$7:$I$10,2,FALSE)),"") ->  | P164: =IFERROR(IF(OR(C164=0,C164="",F164=0,F164="",$P157<>0,LEFT(F164,1)="D"),0,VLOOKUP(B164,INDIRECT(MatchDay!$W$2),2,FALSE)),"") -> 0 | Q164: =IFERROR(IF(OR(J164=0,J164="",M164=0,M164="",$P157<>0,LEFT(M164,1)="D"),0,VLOOKUP(I164,INDIRECT(MatchDay!$W$2),3,FALSE)),"") -> 0
A165: =IFERROR(VLOOKUP(A156,records,5,FALSE),"") -> 12.8 | B165: 8 | D165: =IFERROR(IF(A164=0,HLOOKUP(C165,Declarations!$D$2:$S$193,A158,FALSE),HLOOKUP(VLOOKUP(C165,Teams!$Y$2:$Z$18,2,FALSE),Declarations!$D$2:$S$193,A158,FALSE)),"") ->  | G165: =IFERROR(IF(OR(F165=0,F165="",F165>$A$9-0.01),"",VLOOKUP(VLOOKUP(F165,A159:B163,2,TRUE),Points!$H$7:$I$10,2,FALSE)),"") ->  | I165: 8 | K165: =IFERROR(IF(A164=0,HLOOKUP(J165,Declarations!$D$2:$S$193,A158,FALSE),HLOOKUP(VLOOKUP(J165,Teams!$Y$2:$Z$18,2,FALSE),Declarations!$D$2:$S$193,A158,FALSE)),"") ->  | N165: =IFERROR(IF(OR(M165=0,M165="",M165>$A$9-0.01),"",VLOOKUP(VLOOKUP(M165,A159:B163,2,TRUE),Points!$H$7:$I$10,2,FALSE)),"") ->  | P165: =IFERROR(IF(OR(C165=0,C165="",F165=0,F165="",$P157<>0,LEFT(F165,1)="D"),0,VLOOKUP(B165,INDIRECT(MatchDay!$W$2),2,FALSE)),"") -> 0 | Q165: =IFERROR(IF(OR(J165=0,J165="",M165=0,M165="",$P157<>0,LEFT(M165,1)="D"),0,VLOOKUP(I165,INDIRECT(MatchDay!$W$2),3,FALSE)),"") -> 0
A167: UT16 | B167: =IFERROR(VLOOKUP(A167,timetables,2,FALSE)&" "&VLOOKUP(A167,timetables,3,FALSE)&" A","") -> 110m Hurdles U20 Men A | E167: =IFERROR(IF(VLOOKUP($A167,timetables,8,FALSE)="W","Wind = ",""),"") -> Wind = | G167: =IFERROR(IF(OR(F169=0,F169=""),"",IF(F169<A176,"REC",IF(F169=A176,"=Rec",""))),"") ->  | I167: =IFERROR(VLOOKUP(A167,timetables,2,FALSE)&" "&VLOOKUP(A167,timetables,3,FALSE)&" B","") -> 110m Hurdles U20 Men B | L167: =IFERROR(IF(VLOOKUP($A167,timetables,8,FALSE)="W","Wind = ",""),"") -> Wind = | P167: A | Q167: B
A168: T16 | B168: Posn | C168: No. | D168: Athlete | E168: Club | F168: Perf | G168: AAA | I168: Posn | J168: No. | K168: Athlete | L168: Club | M168: Perf | N168: AAA | P168: =IFERROR(SEARCH("NS",B167),0) -> 0
A169: =IFERROR(VLOOKUP(A167,Timetables!$A:$E,5,FALSE)-1,"") -> 154 | B169: 1 | C169: 2 | D169: =IFERROR(IF(A175=0,HLOOKUP(C169,Declarations!$D$2:$S$193,A169,FALSE),HLOOKUP(VLOOKUP(C169,Teams!$Y$2:$Z$18,2,FALSE),Declarations!$D$2:$S$193,A169,FALSE)),"") -> VAUGHAN George | E169: =IFERROR(VLOOKUP(C169,teamlookup,5,FALSE),"") -> E&H | F169: 14.4 | G169: =IFERROR(IF(OR(F169=0,F169="",F169>$A$9-0.01),"",VLOOKUP(VLOOKUP(F169,A170:B174,2,TRUE),Points!$H$7:$I$10,2,FALSE)),"") -> 1 | I169: 1 | J169: 22 | K169: =IFERROR(IF(A175=0,HLOOKUP(J169,Declarations!$D$2:$S$193,A169,FALSE),HLOOKUP(VLOOKUP(J169,Teams!$Y$2:$Z$18,2,FALSE),Declarations!$D$2:$S$193,A169,FALSE)),"") -> PATTEN Alex | L169: =IFERROR(VLOOKUP(J169,teamlookup,5,FALSE),"") -> E&H | M169: 18.4 | N169: =IFERROR(IF(OR(M169=0,M169="",M169>$A$9-0.01),"",VLOOKUP(VLOOKUP(M169,A170:B174,2,TRUE),Points!$H$7:$I$10,2,FALSE)),"") ->  | P169: =IFERROR(IF(OR(C169=0,C169="",F169=0,F169="",$P168<>0,LEFT(F169,1)="D"),0,VLOOKUP(B169,INDIRECT(MatchDay!$W$2),2,FALSE)),"") -> 9 | Q169: =IFERROR(IF(OR(J169=0,J169="",M169=0,M169="",$P168<>0,LEFT(M169,1)="D"),0,VLOOKUP(I169,INDIRECT(MatchDay!$W$2),3,FALSE)),"") -> 7 | R169: =COUNTIF(F169,">0") -> 1 | S169: =IFERROR(IF(A175=0,"numbers_","letters_"),"") -> numbers_
A170: 0 | B170: 2 | C170: 3 | D170: =IFERROR(IF(A175=0,HLOOKUP(C170,Declarations!$D$2:$S$193,A169,FALSE),HLOOKUP(VLOOKUP(C170,Teams!$Y$2:$Z$18,2,FALSE),Declarations!$D$2:$S$193,A169,FALSE)),"") -> Kieran Riddell | E170: Have | F170: 18.6 | G170: =IFERROR(IF(OR(F170=0,F170="",F170>$A$9-0.01),"",VLOOKUP(VLOOKUP(F170,A170:B174,2,TRUE),Points!$H$7:$I$10,2,FALSE)),"") ->  | I170: 2 | K170: =IFERROR(IF(A175=0,HLOOKUP(J170,Declarations!$D$2:$S$193,A169,FALSE),HLOOKUP(VLOOKUP(J170,Teams!$Y$2:$Z$18,2,FALSE),Declarations!$D$2:$S$193,A169,FALSE)),"") ->  | N170: =IFERROR(IF(OR(M170=0,M170="",M170>$A$9-0.01),"",VLOOKUP(VLOOKUP(M170,A170:B174,2,TRUE),Points!$H$7:$I$10,2,FALSE)),"") ->  | P170: =IFERROR(IF(OR(C170=0,C170="",F170=0,F170="",$P168<>0,LEFT(F170,1)="D"),0,VLOOKUP(B170,INDIRECT(MatchDay!$W$2),2,FALSE)),"") -> 7 | Q170: =IFERROR(IF(OR(J170=0,J170="",M170=0,M170="",$P168<>0,LEFT(M170,1)="D"),0,VLOOKUP(I170,INDIRECT(MatchDay!$W$2),3,FALSE)),"") -> 0
A171: =IFERROR(VLOOKUP(A167,standards,3,FALSE)+0.01,"-") -> 14.51 | B171: 3 | D171: =IFERROR(IF(A175=0,HLOOKUP(C171,Declarations!$D$2:$S$193,A169,FALSE),HLOOKUP(VLOOKUP(C171,Teams!$Y$2:$Z$18,2,FALSE),Declarations!$D$2:$S$193,A169,FALSE)),"") ->  | G171: =IFERROR(IF(OR(F171=0,F171="",F171>$A$9-0.01),"",VLOOKUP(VLOOKUP(F171,A170:B174,2,TRUE),Points!$H$7:$I$10,2,FALSE)),"") ->  | I171: 3 | K171: =IFERROR(IF(A175=0,HLOOKUP(J171,Declarations!$D$2:$S$193,A169,FALSE),HLOOKUP(VLOOKUP(J171,Teams!$Y$2:$Z$18,2,FALSE),Declarations!$D$2:$S$193,A169,FALSE)),"") ->  | N171: =IFERROR(IF(OR(M171=0,M171="",M171>$A$9-0.01),"",VLOOKUP(VLOOKUP(M171,A170:B174,2,TRUE),Points!$H$7:$I$10,2,FALSE)),"") ->  | P171: =IFERROR(IF(OR(C171=0,C171="",F171=0,F171="",$P168<>0,LEFT(F171,1)="D"),0,VLOOKUP(B171,INDIRECT(MatchDay!$W$2),2,FALSE)),"") -> 0 | Q171: =IFERROR(IF(OR(J171=0,J171="",M171=0,M171="",$P168<>0,LEFT(M171,1)="D"),0,VLOOKUP(I171,INDIRECT(MatchDay!$W$2),3,FALSE)),"") -> 0
A172: =IFERROR(VLOOKUP(A167,standards,4,FALSE)+0.01,"-") -> 14.91 | B172: 4 | D172: =IFERROR(IF(A175=0,HLOOKUP(C172,Declarations!$D$2:$S$193,A169,FALSE),HLOOKUP(VLOOKUP(C172,Teams!$Y$2:$Z$18,2,FALSE),Declarations!$D$2:$S$193,A169,FALSE)),"") ->  | G172: =IFERROR(IF(OR(F172=0,F172="",F172>$A$9-0.01),"",VLOOKUP(VLOOKUP(F172,A170:B174,2,TRUE),Points!$H$7:$I$10,2,FALSE)),"") ->  | I172: 4 | K172: =IFERROR(IF(A175=0,HLOOKUP(J172,Declarations!$D$2:$S$193,A169,FALSE),HLOOKUP(VLOOKUP(J172,Teams!$Y$2:$Z$18,2,FALSE),Declarations!$D$2:$S$193,A169,FALSE)),"") ->  | N172: =IFERROR(IF(OR(M172=0,M172="",M172>$A$9-0.01),"",VLOOKUP(VLOOKUP(M172,A170:B174,2,TRUE),Points!$H$7:$I$10,2,FALSE)),"") ->  | P172: =IFERROR(IF(OR(C172=0,C172="",F172=0,F172="",$P168<>0,LEFT(F172,1)="D"),0,VLOOKUP(B172,INDIRECT(MatchDay!$W$2),2,FALSE)),"") -> 0 | Q172: =IFERROR(IF(OR(J172=0,J172="",M172=0,M172="",$P168<>0,LEFT(M172,1)="D"),0,VLOOKUP(I172,INDIRECT(MatchDay!$W$2),3,FALSE)),"") -> 0
A173: =IFERROR(VLOOKUP(A167,standards,5,FALSE)+0.01,"-") -> 15.31 | B173: 5 | D173: =IFERROR(IF(A175=0,HLOOKUP(C173,Declarations!$D$2:$S$193,A169,FALSE),HLOOKUP(VLOOKUP(C173,Teams!$Y$2:$Z$18,2,FALSE),Declarations!$D$2:$S$193,A169,FALSE)),"") ->  | G173: =IFERROR(IF(OR(F173=0,F173="",F173>$A$9-0.01),"",VLOOKUP(VLOOKUP(F173,A170:B174,2,TRUE),Points!$H$7:$I$10,2,FALSE)),"") ->  | I173: 5 | K173: =IFERROR(IF(A175=0,HLOOKUP(J173,Declarations!$D$2:$S$193,A169,FALSE),HLOOKUP(VLOOKUP(J173,Teams!$Y$2:$Z$18,2,FALSE),Declarations!$D$2:$S$193,A169,FALSE)),"") ->  | N173: =IFERROR(IF(OR(M173=0,M173="",M173>$A$9-0.01),"",VLOOKUP(VLOOKUP(M173,A170:B174,2,TRUE),Points!$H$7:$I$10,2,FALSE)),"") ->  | P173: =IFERROR(IF(OR(C173=0,C173="",F173=0,F173="",$P168<>0,LEFT(F173,1)="D"),0,VLOOKUP(B173,INDIRECT(MatchDay!$W$2),2,FALSE)),"") -> 0 | Q173: =IFERROR(IF(OR(J173=0,J173="",M173=0,M173="",$P168<>0,LEFT(M173,1)="D"),0,VLOOKUP(I173,INDIRECT(MatchDay!$W$2),3,FALSE)),"") -> 0
A174: =IFERROR(VLOOKUP(A167,standards,6,FALSE)+0.01,"-") -> 15.31 | B174: 6 | D174: =IFERROR(IF(A175=0,HLOOKUP(C174,Declarations!$D$2:$S$193,A169,FALSE),HLOOKUP(VLOOKUP(C174,Teams!$Y$2:$Z$18,2,FALSE),Declarations!$D$2:$S$193,A169,FALSE)),"") ->  | G174: =IFERROR(IF(OR(F174=0,F174="",F174>$A$9-0.01),"",VLOOKUP(VLOOKUP(F174,A170:B174,2,TRUE),Points!$H$7:$I$10,2,FALSE)),"") ->  | I174: 6 | K174: =IFERROR(IF(A175=0,HLOOKUP(J174,Declarations!$D$2:$S$193,A169,FALSE),HLOOKUP(VLOOKUP(J174,Teams!$Y$2:$Z$18,2,FALSE),Declarations!$D$2:$S$193,A169,FALSE)),"") ->  | N174: =IFERROR(IF(OR(M174=0,M174="",M174>$A$9-0.01),"",VLOOKUP(VLOOKUP(M174,A170:B174,2,TRUE),Points!$H$7:$I$10,2,FALSE)),"") ->  | P174: =IFERROR(IF(OR(C174=0,C174="",F174=0,F174="",$P168<>0,LEFT(F174,1)="D"),0,VLOOKUP(B174,INDIRECT(MatchDay!$W$2),2,FALSE)),"") -> 0 | Q174: =IFERROR(IF(OR(J174=0,J174="",M174=0,M174="",$P168<>0,LEFT(M174,1)="D"),0,VLOOKUP(I174,INDIRECT(MatchDay!$W$2),3,FALSE)),"") -> 0
A175: =IFERROR(SEARCH("U17",B167),0) -> 0 | B175: 7 | D175: =IFERROR(IF(A175=0,HLOOKUP(C175,Declarations!$D$2:$S$193,A169,FALSE),HLOOKUP(VLOOKUP(C175,Teams!$Y$2:$Z$18,2,FALSE),Declarations!$D$2:$S$193,A169,FALSE)),"") ->  | G175: =IFERROR(IF(OR(F175=0,F175="",F175>$A$9-0.01),"",VLOOKUP(VLOOKUP(F175,A170:B174,2,TRUE),Points!$H$7:$I$10,2,FALSE)),"") ->  | I175: 7 | K175: =IFERROR(IF(A175=0,HLOOKUP(J175,Declarations!$D$2:$S$193,A169,FALSE),HLOOKUP(VLOOKUP(J175,Teams!$Y$2:$Z$18,2,FALSE),Declarations!$D$2:$S$193,A169,FALSE)),"") ->  | N175: =IFERROR(IF(OR(M175=0,M175="",M175>$A$9-0.01),"",VLOOKUP(VLOOKUP(M175,A170:B174,2,TRUE),Points!$H$7:$I$10,2,FALSE)),"") ->  | P175: =IFERROR(IF(OR(C175=0,C175="",F175=0,F175="",$P168<>0,LEFT(F175,1)="D"),0,VLOOKUP(B175,INDIRECT(MatchDay!$W$2),2,FALSE)),"") -> 0 | Q175: =IFERROR(IF(OR(J175=0,J175="",M175=0,M175="",$P168<>0,LEFT(M175,1)="D"),0,VLOOKUP(I175,INDIRECT(MatchDay!$W$2),3,FALSE)),"") -> 0
A176: =IFERROR(VLOOKUP(A167,records,5,FALSE),"") -> 13.97 | B176: 8 | D176: =IFERROR(IF(A175=0,HLOOKUP(C176,Declarations!$D$2:$S$193,A169,FALSE),HLOOKUP(VLOOKUP(C176,Teams!$Y$2:$Z$18,2,FALSE),Declarations!$D$2:$S$193,A169,FALSE)),"") ->  | G176: =IFERROR(IF(OR(F176=0,F176="",F176>$A$9-0.01),"",VLOOKUP(VLOOKUP(F176,A170:B174,2,TRUE),Points!$H$7:$I$10,2,FALSE)),"") ->  | I176: 8 | K176: =IFERROR(IF(A175=0,HLOOKUP(J176,Declarations!$D$2:$S$193,A169,FALSE),HLOOKUP(VLOOKUP(J176,Teams!$Y$2:$Z$18,2,FALSE),Declarations!$D$2:$S$193,A169,FALSE)),"") ->  | N176: =IFERROR(IF(OR(M176=0,M176="",M176>$A$9-0.01),"",VLOOKUP(VLOOKUP(M176,A170:B174,2,TRUE),Points!$H$7:$I$10,2,FALSE)),"") ->  | P176: =IFERROR(IF(OR(C176=0,C176="",F176=0,F176="",$P168<>0,LEFT(F176,1)="D"),0,VLOOKUP(B176,INDIRECT(MatchDay!$W$2),2,FALSE)),"") -> 0 | Q176: =IFERROR(IF(OR(J176=0,J176="",M176=0,M176="",$P168<>0,LEFT(M176,1)="D"),0,VLOOKUP(I176,INDIRECT(MatchDay!$W$2),3,FALSE)),"") -> 0
A178: UT17 | B178: =IFERROR(VLOOKUP(A178,timetables,2,FALSE)&" "&VLOOKUP(A178,timetables,3,FALSE)&" A","") -> 200m U20 Men A | E178: =IFERROR(IF(VLOOKUP($A178,timetables,8,FALSE)="W","Wind = ",""),"") -> Wind = | G178: =IFERROR(IF(OR(F180=0,F180=""),"",IF(F180<A187,"REC",IF(F180=A187,"=Rec",""))),"") ->  | I178: =IFERROR(VLOOKUP(A178,timetables,2,FALSE)&" "&VLOOKUP(A178,timetables,3,FALSE)&" B","") -> 200m U20 Men B | L178: =IFERROR(IF(VLOOKUP($A178,timetables,8,FALSE)="W","Wind = ",""),"") -> Wind = | P178: A | Q178: B
A179: T17 | B179: Posn | C179: No. | D179: Athlete | E179: Club | F179: Perf | G179: AAA | I179: Posn | J179: No. | K179: Athlete | L179: Club | M179: Perf | N179: AAA | P179: =IFERROR(SEARCH("NS",B178),0) -> 0
A180: =IFERROR(VLOOKUP(A178,Timetables!$A:$E,5,FALSE)-1,"") -> 150 | B180: 1 | C180: 1 | D180: =IFERROR(IF(A186=0,HLOOKUP(C180,Declarations!$D$2:$S$193,A180,FALSE),HLOOKUP(VLOOKUP(C180,Teams!$Y$2:$Z$18,2,FALSE),Declarations!$D$2:$S$193,A180,FALSE)),"") -> DOBSON charlie | E180: =IFERROR(VLOOKUP(C180,teamlookup,5,FALSE),"") -> Chelm | F180: 21.8 | G180: =IFERROR(IF(OR(F180=0,F180="",F180>$A$9-0.01),"",VLOOKUP(VLOOKUP(F180,A181:B185,2,TRUE),Points!$H$7:$I$10,2,FALSE)),"") -> 1 | I180: 1 | J180: 22 | K180: =IFERROR(IF(A186=0,HLOOKUP(J180,Declarations!$D$2:$S$193,A180,FALSE),HLOOKUP(VLOOKUP(J180,Teams!$Y$2:$Z$18,2,FALSE),Declarations!$D$2:$S$193,A180,FALSE)),"") -> OLATUNJI Michael | L180: =IFERROR(VLOOKUP(J180,teamlookup,5,FALSE),"") -> E&H | M180: 22.8 | N180: =IFERROR(IF(OR(M180=0,M180="",M180>$A$9-0.01),"",VLOOKUP(VLOOKUP(M180,A181:B185,2,TRUE),Points!$H$7:$I$10,2,FALSE)),"") ->  | P180: =IFERROR(IF(OR(C180=0,C180="",F180=0,F180="",$P179<>0,LEFT(F180,1)="D"),0,VLOOKUP(B180,INDIRECT(MatchDay!$W$2),2,FALSE)),"") -> 9 | Q180: =IFERROR(IF(OR(J180=0,J180="",M180=0,M180="",$P179<>0,LEFT(M180,1)="D"),0,VLOOKUP(I180,INDIRECT(MatchDay!$W$2),3,FALSE)),"") -> 7 | R180: =COUNTIF(F180,">0") -> 1 | S180: =IFERROR(IF(A186=0,"numbers_","letters_"),"") -> numbers_
A181: 0 | B181: 2 | C181: 6 | D181: =IFERROR(IF(A186=0,HLOOKUP(C181,Declarations!$D$2:$S$193,A180,FALSE),HLOOKUP(VLOOKUP(C181,Teams!$Y$2:$Z$18,2,FALSE),Declarations!$D$2:$S$193,A180,FALSE)),"") -> MARSHALL Henry | E181: Ton | F181: 23 | G181: =IFERROR(IF(OR(F181=0,F181="",F181>$A$9-0.01),"",VLOOKUP(VLOOKUP(F181,A181:B185,2,TRUE),Points!$H$7:$I$10,2,FALSE)),"") ->  | I181: 2 | J181: 33 | K181: =IFERROR(IF(A186=0,HLOOKUP(J181,Declarations!$D$2:$S$193,A180,FALSE),HLOOKUP(VLOOKUP(J181,Teams!$Y$2:$Z$18,2,FALSE),Declarations!$D$2:$S$193,A180,FALSE)),"") -> Shandell Taylor | L181: Have | M181: 23.5 | N181: =IFERROR(IF(OR(M181=0,M181="",M181>$A$9-0.01),"",VLOOKUP(VLOOKUP(M181,A181:B185,2,TRUE),Points!$H$7:$I$10,2,FALSE)),"") ->  | P181: =IFERROR(IF(OR(C181=0,C181="",F181=0,F181="",$P179<>0,LEFT(F181,1)="D"),0,VLOOKUP(B181,INDIRECT(MatchDay!$W$2),2,FALSE)),"") -> 7 | Q181: =IFERROR(IF(OR(J181=0,J181="",M181=0,M181="",$P179<>0,LEFT(M181,1)="D"),0,VLOOKUP(I181,INDIRECT(MatchDay!$W$2),3,FALSE)),"") -> 5
A182: =IFERROR(VLOOKUP(A178,standards,3,FALSE)+0.01,"-") -> 22.01 | B182: 3 | C182: 3 | D182: =IFERROR(IF(A186=0,HLOOKUP(C182,Declarations!$D$2:$S$193,A180,FALSE),HLOOKUP(VLOOKUP(C182,Teams!$Y$2:$Z$18,2,FALSE),Declarations!$D$2:$S$193,A180,FALSE)),"") -> Matthew Owers | E182: Have | F182: 23.6 | G182: =IFERROR(IF(OR(F182=0,F182="",F182>$A$9-0.01),"",VLOOKUP(VLOOKUP(F182,A181:B185,2,TRUE),Points!$H$7:$I$10,2,FALSE)),"") ->  | I182: 3 | J182: 66 | K182: =IFERROR(IF(A186=0,HLOOKUP(J182,Declarations!$D$2:$S$193,A180,FALSE),HLOOKUP(VLOOKUP(J182,Teams!$Y$2:$Z$18,2,FALSE),Declarations!$D$2:$S$193,A180,FALSE)),"") -> BROOKS Benedict | L182: Ton | M182: 26.2 | N182: =IFERROR(IF(OR(M182=0,M182="",M182>$A$9-0.01),"",VLOOKUP(VLOOKUP(M182,A181:B185,2,TRUE),Points!$H$7:$I$10,2,FALSE)),"") ->  | P182: =IFERROR(IF(OR(C182=0,C182="",F182=0,F182="",$P179<>0,LEFT(F182,1)="D"),0,VLOOKUP(B182,INDIRECT(MatchDay!$W$2),2,FALSE)),"") -> 6 | Q182: =IFERROR(IF(OR(J182=0,J182="",M182=0,M182="",$P179<>0,LEFT(M182,1)="D"),0,VLOOKUP(I182,INDIRECT(MatchDay!$W$2),3,FALSE)),"") -> 4
A183: =IFERROR(VLOOKUP(A178,standards,4,FALSE)+0.01,"-") -> 22.31 | B183: 4 | C183: 5 | D183: =IFERROR(IF(A186=0,HLOOKUP(C183,Declarations!$D$2:$S$193,A180,FALSE),HLOOKUP(VLOOKUP(C183,Teams!$Y$2:$Z$18,2,FALSE),Declarations!$D$2:$S$193,A180,FALSE)),"") -> Emanuel Owalabi | E183: Beds | F183: 23.8 | G183: =IFERROR(IF(OR(F183=0,F183="",F183>$A$9-0.01),"",VLOOKUP(VLOOKUP(F183,A181:B185,2,TRUE),Points!$H$7:$I$10,2,FALSE)),"") ->  | I183: 4 | K183: =IFERROR(IF(A186=0,HLOOKUP(J183,Declarations!$D$2:$S$193,A180,FALSE),HLOOKUP(VLOOKUP(J183,Teams!$Y$2:$Z$18,2,FALSE),Declarations!$D$2:$S$193,A180,FALSE)),"") ->  | N183: =IFERROR(IF(OR(M183=0,M183="",M183>$A$9-0.01),"",VLOOKUP(VLOOKUP(M183,A181:B185,2,TRUE),Points!$H$7:$I$10,2,FALSE)),"") ->  | P183: =IFERROR(IF(OR(C183=0,C183="",F183=0,F183="",$P179<>0,LEFT(F183,1)="D"),0,VLOOKUP(B183,INDIRECT(MatchDay!$W$2),2,FALSE)),"") -> 5 | Q183: =IFERROR(IF(OR(J183=0,J183="",M183=0,M183="",$P179<>0,LEFT(M183,1)="D"),0,VLOOKUP(I183,INDIRECT(MatchDay!$W$2),3,FALSE)),"") -> 0
A184: =IFERROR(VLOOKUP(A178,standards,5,FALSE)+0.01,"-") -> 22.71 | B184: 5 | C184: 2 | D184: =IFERROR(IF(A186=0,HLOOKUP(C184,Declarations!$D$2:$S$193,A180,FALSE),HLOOKUP(VLOOKUP(C184,Teams!$Y$2:$Z$18,2,FALSE),Declarations!$D$2:$S$193,A180,FALSE)),"") -> BRYAN Devonte | E184: E&H | F184: 24 | G184: =IFERROR(IF(OR(F184=0,F184="",F184>$A$9-0.01),"",VLOOKUP(VLOOKUP(F184,A181:B185,2,TRUE),Points!$H$7:$I$10,2,FALSE)),"") ->  | I184: 5 | K184: =IFERROR(IF(A186=0,HLOOKUP(J184,Declarations!$D$2:$S$193,A180,FALSE),HLOOKUP(VLOOKUP(J184,Teams!$Y$2:$Z$18,2,FALSE),Declarations!$D$2:$S$193,A180,FALSE)),"") ->  | N184: =IFERROR(IF(OR(M184=0,M184="",M184>$A$9-0.01),"",VLOOKUP(VLOOKUP(M184,A181:B185,2,TRUE),Points!$H$7:$I$10,2,FALSE)),"") ->  | P184: =IFERROR(IF(OR(C184=0,C184="",F184=0,F184="",$P179<>0,LEFT(F184,1)="D"),0,VLOOKUP(B184,INDIRECT(MatchDay!$W$2),2,FALSE)),"") -> 4 | Q184: =IFERROR(IF(OR(J184=0,J184="",M184=0,M184="",$P179<>0,LEFT(M184,1)="D"),0,VLOOKUP(I184,INDIRECT(MatchDay!$W$2),3,FALSE)),"") -> 0
A185: =IFERROR(VLOOKUP(A178,standards,6,FALSE)+0.01,"-") -> 22.71 | B185: 6 | C185: 4 | D185: =IFERROR(IF(A186=0,HLOOKUP(C185,Declarations!$D$2:$S$193,A180,FALSE),HLOOKUP(VLOOKUP(C185,Teams!$Y$2:$Z$18,2,FALSE),Declarations!$D$2:$S$193,A180,FALSE)),"") -> Will Rodway | E185: SNH | F185: 26.5 | G185: =IFERROR(IF(OR(F185=0,F185="",F185>$A$9-0.01),"",VLOOKUP(VLOOKUP(F185,A181:B185,2,TRUE),Points!$H$7:$I$10,2,FALSE)),"") ->  | I185: 6 | K185: =IFERROR(IF(A186=0,HLOOKUP(J185,Declarations!$D$2:$S$193,A180,FALSE),HLOOKUP(VLOOKUP(J185,Teams!$Y$2:$Z$18,2,FALSE),Declarations!$D$2:$S$193,A180,FALSE)),"") ->  | N185: =IFERROR(IF(OR(M185=0,M185="",M185>$A$9-0.01),"",VLOOKUP(VLOOKUP(M185,A181:B185,2,TRUE),Points!$H$7:$I$10,2,FALSE)),"") ->  | P185: =IFERROR(IF(OR(C185=0,C185="",F185=0,F185="",$P179<>0,LEFT(F185,1)="D"),0,VLOOKUP(B185,INDIRECT(MatchDay!$W$2),2,FALSE)),"") -> 3 | Q185: =IFERROR(IF(OR(J185=0,J185="",M185=0,M185="",$P179<>0,LEFT(M185,1)="D"),0,VLOOKUP(I185,INDIRECT(MatchDay!$W$2),3,FALSE)),"") -> 0
A186: =IFERROR(SEARCH("U17",B178),0) -> 0 | B186: 7 | D186: =IFERROR(IF(A186=0,HLOOKUP(C186,Declarations!$D$2:$S$193,A180,FALSE),HLOOKUP(VLOOKUP(C186,Teams!$Y$2:$Z$18,2,FALSE),Declarations!$D$2:$S$193,A180,FALSE)),"") ->  | G186: =IFERROR(IF(OR(F186=0,F186="",F186>$A$9-0.01),"",VLOOKUP(VLOOKUP(F186,A181:B185,2,TRUE),Points!$H$7:$I$10,2,FALSE)),"") ->  | I186: 7 | K186: =IFERROR(IF(A186=0,HLOOKUP(J186,Declarations!$D$2:$S$193,A180,FALSE),HLOOKUP(VLOOKUP(J186,Teams!$Y$2:$Z$18,2,FALSE),Declarations!$D$2:$S$193,A180,FALSE)),"") ->  | N186: =IFERROR(IF(OR(M186=0,M186="",M186>$A$9-0.01),"",VLOOKUP(VLOOKUP(M186,A181:B185,2,TRUE),Points!$H$7:$I$10,2,FALSE)),"") ->  | P186: =IFERROR(IF(OR(C186=0,C186="",F186=0,F186="",$P179<>0,LEFT(F186,1)="D"),0,VLOOKUP(B186,INDIRECT(MatchDay!$W$2),2,FALSE)),"") -> 0 | Q186: =IFERROR(IF(OR(J186=0,J186="",M186=0,M186="",$P179<>0,LEFT(M186,1)="D"),0,VLOOKUP(I186,INDIRECT(MatchDay!$W$2),3,FALSE)),"") -> 0
A187: =IFERROR(VLOOKUP(A178,records,5,FALSE),"") -> 20.9 | B187: 8 | D187: =IFERROR(IF(A186=0,HLOOKUP(C187,Declarations!$D$2:$S$193,A180,FALSE),HLOOKUP(VLOOKUP(C187,Teams!$Y$2:$Z$18,2,FALSE),Declarations!$D$2:$S$193,A180,FALSE)),"") ->  | G187: =IFERROR(IF(OR(F187=0,F187="",F187>$A$9-0.01),"",VLOOKUP(VLOOKUP(F187,A181:B185,2,TRUE),Points!$H$7:$I$10,2,FALSE)),"") ->  | I187: 8 | K187: =IFERROR(IF(A186=0,HLOOKUP(J187,Declarations!$D$2:$S$193,A180,FALSE),HLOOKUP(VLOOKUP(J187,Teams!$Y$2:$Z$18,2,FALSE),Declarations!$D$2:$S$193,A180,FALSE)),"") ->  | N187: =IFERROR(IF(OR(M187=0,M187="",M187>$A$9-0.01),"",VLOOKUP(VLOOKUP(M187,A181:B185,2,TRUE),Points!$H$7:$I$10,2,FALSE)),"") ->  | P187: =IFERROR(IF(OR(C187=0,C187="",F187=0,F187="",$P179<>0,LEFT(F187,1)="D"),0,VLOOKUP(B187,INDIRECT(MatchDay!$W$2),2,FALSE)),"") -> 0 | Q187: =IFERROR(IF(OR(J187=0,J187="",M187=0,M187="",$P179<>0,LEFT(M187,1)="D"),0,VLOOKUP(I187,INDIRECT(MatchDay!$W$2),3,FALSE)),"") -> 0
A189: UT18 | B189: =IFERROR(VLOOKUP(A189,timetables,2,FALSE)&" "&VLOOKUP(A189,timetables,3,FALSE)&" A","") -> 200m U17 Men A | E189: =IFERROR(IF(VLOOKUP($A189,timetables,8,FALSE)="W","Wind = ",""),"") -> Wind = | G189: =IFERROR(IF(OR(F191=0,F191=""),"",IF(F191<A198,"REC",IF(F191=A198,"=Rec",""))),"") ->  | I189: =IFERROR(VLOOKUP(A189,timetables,2,FALSE)&" "&VLOOKUP(A189,timetables,3,FALSE)&" B","") -> 200m U17 Men B | L189: =IFERROR(IF(VLOOKUP($A189,timetables,8,FALSE)="W","Wind = ",""),"") -> Wind = | P189: A | Q189: B
A190: T18 | B190: Posn | C190: No. | D190: Athlete | E190: Club | F190: Perf | G190: AAA | I190: Posn | J190: No. | K190: Athlete | L190: Club | M190: Perf | N190: AAA | P190: =IFERROR(SEARCH("NS",B189),0) -> 0
A191: =IFERROR(VLOOKUP(A189,Timetables!$A:$E,5,FALSE)-1,"") -> 173 | B191: 1 | C191: E | D191: =IFERROR(IF(A197=0,HLOOKUP(C191,Declarations!$D$2:$S$193,A191,FALSE),HLOOKUP(VLOOKUP(C191,Teams!$Y$2:$Z$18,2,FALSE),Declarations!$D$2:$S$193,A191,FALSE)),"") -> Lewis Smith | E191: =IFERROR(VLOOKUP(C191,teamlookup,5,FALSE),"") -> Beds | F191: 23.3 | G191: =IFERROR(IF(OR(F191=0,F191="",F191>$A$9-0.01),"",VLOOKUP(VLOOKUP(F191,A192:B196,2,TRUE),Points!$H$7:$I$10,2,FALSE)),"") -> 3 | I191: 1 | J191: CC | K191: =IFERROR(IF(A197=0,HLOOKUP(J191,Declarations!$D$2:$S$193,A191,FALSE),HLOOKUP(VLOOKUP(J191,Teams!$Y$2:$Z$18,2,FALSE),Declarations!$D$2:$S$193,A191,FALSE)),"") -> Tayo Harry | L191: =IFERROR(VLOOKUP(J191,teamlookup,5,FALSE),"") -> Have | M191: 25.4 | N191: =IFERROR(IF(OR(M191=0,M191="",M191>$A$9-0.01),"",VLOOKUP(VLOOKUP(M191,A192:B196,2,TRUE),Points!$H$7:$I$10,2,FALSE)),"") ->  | P191: =IFERROR(IF(OR(C191=0,C191="",F191=0,F191="",$P190<>0,LEFT(F191,1)="D"),0,VLOOKUP(B191,INDIRECT(MatchDay!$W$2),2,FALSE)),"") -> 9 | Q191: =IFERROR(IF(OR(J191=0,J191="",M191=0,M191="",$P190<>0,LEFT(M191,1)="D"),0,VLOOKUP(I191,INDIRECT(MatchDay!$W$2),3,FALSE)),"") -> 7 | R191: =COUNTIF(F191,">0") -> 1 | S191: =IFERROR(IF(A197=0,"numbers_","letters_"),"") -> letters_
A192: 0 | B192: 2 | C192: D | D192: =IFERROR(IF(A197=0,HLOOKUP(C192,Declarations!$D$2:$S$193,A191,FALSE),HLOOKUP(VLOOKUP(C192,Teams!$Y$2:$Z$18,2,FALSE),Declarations!$D$2:$S$193,A191,FALSE)),"") -> Brent Morris | E192: SNH | F192: 23.6 | G192: =IFERROR(IF(OR(F192=0,F192="",F192>$A$9-0.01),"",VLOOKUP(VLOOKUP(F192,A192:B196,2,TRUE),Points!$H$7:$I$10,2,FALSE)),"") -> 4 | I192: 2 | J192: FF | K192: =IFERROR(IF(A197=0,HLOOKUP(J192,Declarations!$D$2:$S$193,A191,FALSE),HLOOKUP(VLOOKUP(J192,Teams!$Y$2:$Z$18,2,FALSE),Declarations!$D$2:$S$193,A191,FALSE)),"") -> BROOKS Felix | L192: Ton | M192: 25.6 | N192: =IFERROR(IF(OR(M192=0,M192="",M192>$A$9-0.01),"",VLOOKUP(VLOOKUP(M192,A192:B196,2,TRUE),Points!$H$7:$I$10,2,FALSE)),"") ->  | P192: =IFERROR(IF(OR(C192=0,C192="",F192=0,F192="",$P190<>0,LEFT(F192,1)="D"),0,VLOOKUP(B192,INDIRECT(MatchDay!$W$2),2,FALSE)),"") -> 7 | Q192: =IFERROR(IF(OR(J192=0,J192="",M192=0,M192="",$P190<>0,LEFT(M192,1)="D"),0,VLOOKUP(I192,INDIRECT(MatchDay!$W$2),3,FALSE)),"") -> 5
A193: =IFERROR(VLOOKUP(A189,standards,3,FALSE)+0.01,"-") -> 22.61 | B193: 3 | C193: C | D193: =IFERROR(IF(A197=0,HLOOKUP(C193,Declarations!$D$2:$S$193,A191,FALSE),HLOOKUP(VLOOKUP(C193,Teams!$Y$2:$Z$18,2,FALSE),Declarations!$D$2:$S$193,A191,FALSE)),"") -> Jairzinho Morris | E193: Have | F193: 23.7 | G193: =IFERROR(IF(OR(F193=0,F193="",F193>$A$9-0.01),"",VLOOKUP(VLOOKUP(F193,A192:B196,2,TRUE),Points!$H$7:$I$10,2,FALSE)),"") -> 4 | I193: 3 | K193: =IFERROR(IF(A197=0,HLOOKUP(J193,Declarations!$D$2:$S$193,A191,FALSE),HLOOKUP(VLOOKUP(J193,Teams!$Y$2:$Z$18,2,FALSE),Declarations!$D$2:$S$193,A191,FALSE)),"") ->  | N193: =IFERROR(IF(OR(M193=0,M193="",M193>$A$9-0.01),"",VLOOKUP(VLOOKUP(M193,A192:B196,2,TRUE),Points!$H$7:$I$10,2,FALSE)),"") ->  | P193: =IFERROR(IF(OR(C193=0,C193="",F193=0,F193="",$P190<>0,LEFT(F193,1)="D"),0,VLOOKUP(B193,INDIRECT(MatchDay!$W$2),2,FALSE)),"") -> 6 | Q193: =IFERROR(IF(OR(J193=0,J193="",M193=0,M193="",$P190<>0,LEFT(M193,1)="D"),0,VLOOKUP(I193,INDIRECT(MatchDay!$W$2),3,FALSE)),"") -> 0
A194: =IFERROR(VLOOKUP(A189,standards,4,FALSE)+0.01,"-") -> 23.01 | B194: 4 | C194: B | D194: =IFERROR(IF(A197=0,HLOOKUP(C194,Declarations!$D$2:$S$193,A191,FALSE),HLOOKUP(VLOOKUP(C194,Teams!$Y$2:$Z$18,2,FALSE),Declarations!$D$2:$S$193,A191,FALSE)),"") -> DIXON Omar | E194: E&H | F194: 24.5 | G194: =IFERROR(IF(OR(F194=0,F194="",F194>$A$9-0.01),"",VLOOKUP(VLOOKUP(F194,A192:B196,2,TRUE),Points!$H$7:$I$10,2,FALSE)),"") ->  | I194: 4 | K194: =IFERROR(IF(A197=0,HLOOKUP(J194,Declarations!$D$2:$S$193,A191,FALSE),HLOOKUP(VLOOKUP(J194,Teams!$Y$2:$Z$18,2,FALSE),Declarations!$D$2:$S$193,A191,FALSE)),"") ->  | N194: =IFERROR(IF(OR(M194=0,M194="",M194>$A$9-0.01),"",VLOOKUP(VLOOKUP(M194,A192:B196,2,TRUE),Points!$H$7:$I$10,2,FALSE)),"") ->  | P194: =IFERROR(IF(OR(C194=0,C194="",F194=0,F194="",$P190<>0,LEFT(F194,1)="D"),0,VLOOKUP(B194,INDIRECT(MatchDay!$W$2),2,FALSE)),"") -> 5 | Q194: =IFERROR(IF(OR(J194=0,J194="",M194=0,M194="",$P190<>0,LEFT(M194,1)="D"),0,VLOOKUP(I194,INDIRECT(MatchDay!$W$2),3,FALSE)),"") -> 0
A195: =IFERROR(VLOOKUP(A189,standards,5,FALSE)+0.01,"-") -> 23.41 | B195: 5 | C195: F | D195: =IFERROR(IF(A197=0,HLOOKUP(C195,Declarations!$D$2:$S$193,A191,FALSE),HLOOKUP(VLOOKUP(C195,Teams!$Y$2:$Z$18,2,FALSE),Declarations!$D$2:$S$193,A191,FALSE)),"") -> SMITH George | E195: Ton | F195: 25.4 | G195: =IFERROR(IF(OR(F195=0,F195="",F195>$A$9-0.01),"",VLOOKUP(VLOOKUP(F195,A192:B196,2,TRUE),Points!$H$7:$I$10,2,FALSE)),"") ->  | I195: 5 | K195: =IFERROR(IF(A197=0,HLOOKUP(J195,Declarations!$D$2:$S$193,A191,FALSE),HLOOKUP(VLOOKUP(J195,Teams!$Y$2:$Z$18,2,FALSE),Declarations!$D$2:$S$193,A191,FALSE)),"") ->  | N195: =IFERROR(IF(OR(M195=0,M195="",M195>$A$9-0.01),"",VLOOKUP(VLOOKUP(M195,A192:B196,2,TRUE),Points!$H$7:$I$10,2,FALSE)),"") ->  | P195: =IFERROR(IF(OR(C195=0,C195="",F195=0,F195="",$P190<>0,LEFT(F195,1)="D"),0,VLOOKUP(B195,INDIRECT(MatchDay!$W$2),2,FALSE)),"") -> 4 | Q195: =IFERROR(IF(OR(J195=0,J195="",M195=0,M195="",$P190<>0,LEFT(M195,1)="D"),0,VLOOKUP(I195,INDIRECT(MatchDay!$W$2),3,FALSE)),"") -> 0
A196: =IFERROR(VLOOKUP(A189,standards,6,FALSE)+0.01,"-") -> 24.01 | B196: 6 | C196: A | D196: =IFERROR(IF(A197=0,HLOOKUP(C196,Declarations!$D$2:$S$193,A191,FALSE),HLOOKUP(VLOOKUP(C196,Teams!$Y$2:$Z$18,2,FALSE),Declarations!$D$2:$S$193,A191,FALSE)),"") -> BENNETT kieran | E196: Chelm | F196: 28 | G196: =IFERROR(IF(OR(F196=0,F196="",F196>$A$9-0.01),"",VLOOKUP(VLOOKUP(F196,A192:B196,2,TRUE),Points!$H$7:$I$10,2,FALSE)),"") ->  | I196: 6 | K196: =IFERROR(IF(A197=0,HLOOKUP(J196,Declarations!$D$2:$S$193,A191,FALSE),HLOOKUP(VLOOKUP(J196,Teams!$Y$2:$Z$18,2,FALSE),Declarations!$D$2:$S$193,A191,FALSE)),"") ->  | N196: =IFERROR(IF(OR(M196=0,M196="",M196>$A$9-0.01),"",VLOOKUP(VLOOKUP(M196,A192:B196,2,TRUE),Points!$H$7:$I$10,2,FALSE)),"") ->  | P196: =IFERROR(IF(OR(C196=0,C196="",F196=0,F196="",$P190<>0,LEFT(F196,1)="D"),0,VLOOKUP(B196,INDIRECT(MatchDay!$W$2),2,FALSE)),"") -> 3 | Q196: =IFERROR(IF(OR(J196=0,J196="",M196=0,M196="",$P190<>0,LEFT(M196,1)="D"),0,VLOOKUP(I196,INDIRECT(MatchDay!$W$2),3,FALSE)),"") -> 0
A197: =IFERROR(SEARCH("U17",B189),0) -> 6 | B197: 7 | D197: =IFERROR(IF(A197=0,HLOOKUP(C197,Declarations!$D$2:$S$193,A191,FALSE),HLOOKUP(VLOOKUP(C197,Teams!$Y$2:$Z$18,2,FALSE),Declarations!$D$2:$S$193,A191,FALSE)),"") ->  | G197: =IFERROR(IF(OR(F197=0,F197="",F197>$A$9-0.01),"",VLOOKUP(VLOOKUP(F197,A192:B196,2,TRUE),Points!$H$7:$I$10,2,FALSE)),"") ->  | I197: 7 | K197: =IFERROR(IF(A197=0,HLOOKUP(J197,Declarations!$D$2:$S$193,A191,FALSE),HLOOKUP(VLOOKUP(J197,Teams!$Y$2:$Z$18,2,FALSE),Declarations!$D$2:$S$193,A191,FALSE)),"") ->  | N197: =IFERROR(IF(OR(M197=0,M197="",M197>$A$9-0.01),"",VLOOKUP(VLOOKUP(M197,A192:B196,2,TRUE),Points!$H$7:$I$10,2,FALSE)),"") ->  | P197: =IFERROR(IF(OR(C197=0,C197="",F197=0,F197="",$P190<>0,LEFT(F197,1)="D"),0,VLOOKUP(B197,INDIRECT(MatchDay!$W$2),2,FALSE)),"") -> 0 | Q197: =IFERROR(IF(OR(J197=0,J197="",M197=0,M197="",$P190<>0,LEFT(M197,1)="D"),0,VLOOKUP(I197,INDIRECT(MatchDay!$W$2),3,FALSE)),"") -> 0
A198: =IFERROR(VLOOKUP(A189,records,5,FALSE),"") -> 21.64 | B198: 8 | D198: =IFERROR(IF(A197=0,HLOOKUP(C198,Declarations!$D$2:$S$193,A191,FALSE),HLOOKUP(VLOOKUP(C198,Teams!$Y$2:$Z$18,2,FALSE),Declarations!$D$2:$S$193,A191,FALSE)),"") ->  | G198: =IFERROR(IF(OR(F198=0,F198="",F198>$A$9-0.01),"",VLOOKUP(VLOOKUP(F198,A192:B196,2,TRUE),Points!$H$7:$I$10,2,FALSE)),"") ->  | I198: 8 | K198: =IFERROR(IF(A197=0,HLOOKUP(J198,Declarations!$D$2:$S$193,A191,FALSE),HLOOKUP(VLOOKUP(J198,Teams!$Y$2:$Z$18,2,FALSE),Declarations!$D$2:$S$193,A191,FALSE)),"") ->  | N198: =IFERROR(IF(OR(M198=0,M198="",M198>$A$9-0.01),"",VLOOKUP(VLOOKUP(M198,A192:B196,2,TRUE),Points!$H$7:$I$10,2,FALSE)),"") ->  | P198: =IFERROR(IF(OR(C198=0,C198="",F198=0,F198="",$P190<>0,LEFT(F198,1)="D"),0,VLOOKUP(B198,INDIRECT(MatchDay!$W$2),2,FALSE)),"") -> 0 | Q198: =IFERROR(IF(OR(J198=0,J198="",M198=0,M198="",$P190<>0,LEFT(M198,1)="D"),0,VLOOKUP(I198,INDIRECT(MatchDay!$W$2),3,FALSE)),"") -> 0
A200: UT19 | B200: =IFERROR(VLOOKUP(A200,timetables,2,FALSE)&" "&VLOOKUP(A200,timetables,3,FALSE)&" A","") -> 200m U20 Women A | E200: =IFERROR(IF(VLOOKUP($A200,timetables,8,FALSE)="W","Wind = ",""),"") -> Wind = | G200: =IFERROR(IF(OR(F202=0,F202=""),"",IF(F202<A209,"REC",IF(F202=A209,"=Rec",""))),"") ->  | I200: =IFERROR(VLOOKUP(A200,timetables,2,FALSE)&" "&VLOOKUP(A200,timetables,3,FALSE)&" B","") -> 200m U20 Women B | L200: =IFERROR(IF(VLOOKUP($A200,timetables,8,FALSE)="W","Wind = ",""),"") -> Wind = | P200: A | Q200: B
A201: T19 | B201: Posn | C201: No. | D201: Athlete | E201: Club | F201: Perf | G201: AAA | I201: Posn | J201: No. | K201: Athlete | L201: Club | M201: Perf | N201: AAA | P201: =IFERROR(SEARCH("NS",B200),0) -> 0
A202: =IFERROR(VLOOKUP(A200,Timetables!$A:$E,5,FALSE)-1,"") -> 104 | B202: 1 | C202: 2 | D202: =IFERROR(IF(A208=0,HLOOKUP(C202,Declarations!$D$2:$S$193,A202,FALSE),HLOOKUP(VLOOKUP(C202,Teams!$Y$2:$Z$18,2,FALSE),Declarations!$D$2:$S$193,A202,FALSE)),"") -> JAPAL Salome | E202: =IFERROR(VLOOKUP(C202,teamlookup,5,FALSE),"") -> E&H | F202: 25.3 | G202: =IFERROR(IF(OR(F202=0,F202="",F202>$A$9-0.01),"",VLOOKUP(VLOOKUP(F202,A203:B207,2,TRUE),Points!$H$7:$I$10,2,FALSE)),"") -> 2 | I202: 1 | J202: 22 | K202: =IFERROR(IF(A208=0,HLOOKUP(J202,Declarations!$D$2:$S$193,A202,FALSE),HLOOKUP(VLOOKUP(J202,Teams!$Y$2:$Z$18,2,FALSE),Declarations!$D$2:$S$193,A202,FALSE)),"") -> REGIS Alicia | L202: =IFERROR(VLOOKUP(J202,teamlookup,5,FALSE),"") -> E&H | M202: 25.5 | N202: =IFERROR(IF(OR(M202=0,M202="",M202>$A$9-0.01),"",VLOOKUP(VLOOKUP(M202,A203:B207,2,TRUE),Points!$H$7:$I$10,2,FALSE)),"") -> 3 | P202: =IFERROR(IF(OR(C202=0,C202="",F202=0,F202="",$P201<>0,LEFT(F202,1)="D"),0,VLOOKUP(B202,INDIRECT(MatchDay!$W$2),2,FALSE)),"") -> 9 | Q202: =IFERROR(IF(OR(J202=0,J202="",M202=0,M202="",$P201<>0,LEFT(M202,1)="D"),0,VLOOKUP(I202,INDIRECT(MatchDay!$W$2),3,FALSE)),"") -> 7 | R202: =COUNTIF(F202,">0") -> 1 | S202: =IFERROR(IF(A208=0,"numbers_","letters_"),"") -> numbers_
A203: 0 | B203: 2 | C203: 1 | D203: =IFERROR(IF(A208=0,HLOOKUP(C203,Declarations!$D$2:$S$193,A202,FALSE),HLOOKUP(VLOOKUP(C203,Teams!$Y$2:$Z$18,2,FALSE),Declarations!$D$2:$S$193,A202,FALSE)),"") -> JEGGO Rebecca | E203: Chelm | F203: 25.3 | G203: =IFERROR(IF(OR(F203=0,F203="",F203>$A$9-0.01),"",VLOOKUP(VLOOKUP(F203,A203:B207,2,TRUE),Points!$H$7:$I$10,2,FALSE)),"") -> 2 | I203: 2 | J203: 44 | K203: =IFERROR(IF(A208=0,HLOOKUP(J203,Declarations!$D$2:$S$193,A202,FALSE),HLOOKUP(VLOOKUP(J203,Teams!$Y$2:$Z$18,2,FALSE),Declarations!$D$2:$S$193,A202,FALSE)),"") -> Bethany Harley | L203: SNH | M203: 26.7 | N203: =IFERROR(IF(OR(M203=0,M203="",M203>$A$9-0.01),"",VLOOKUP(VLOOKUP(M203,A203:B207,2,TRUE),Points!$H$7:$I$10,2,FALSE)),"") ->  | P203: =IFERROR(IF(OR(C203=0,C203="",F203=0,F203="",$P201<>0,LEFT(F203,1)="D"),0,VLOOKUP(B203,INDIRECT(MatchDay!$W$2),2,FALSE)),"") -> 7 | Q203: =IFERROR(IF(OR(J203=0,J203="",M203=0,M203="",$P201<>0,LEFT(M203,1)="D"),0,VLOOKUP(I203,INDIRECT(MatchDay!$W$2),3,FALSE)),"") -> 5
A204: =IFERROR(VLOOKUP(A200,standards,3,FALSE)+0.01,"-") -> 25.01 | B204: 3 | C204: 5 | D204: =IFERROR(IF(A208=0,HLOOKUP(C204,Declarations!$D$2:$S$193,A202,FALSE),HLOOKUP(VLOOKUP(C204,Teams!$Y$2:$Z$18,2,FALSE),Declarations!$D$2:$S$193,A202,FALSE)),"") -> Mia Chapman | E204: Beds | F204: 26 | G204: =IFERROR(IF(OR(F204=0,F204="",F204>$A$9-0.01),"",VLOOKUP(VLOOKUP(F204,A203:B207,2,TRUE),Points!$H$7:$I$10,2,FALSE)),"") ->  | I204: 3 | J204: 11 | K204: =IFERROR(IF(A208=0,HLOOKUP(J204,Declarations!$D$2:$S$193,A202,FALSE),HLOOKUP(VLOOKUP(J204,Teams!$Y$2:$Z$18,2,FALSE),Declarations!$D$2:$S$193,A202,FALSE)),"") -> CZEKAJLO Weronika | L204: Chelm | M204: 27.6 | N204: =IFERROR(IF(OR(M204=0,M204="",M204>$A$9-0.01),"",VLOOKUP(VLOOKUP(M204,A203:B207,2,TRUE),Points!$H$7:$I$10,2,FALSE)),"") ->  | P204: =IFERROR(IF(OR(C204=0,C204="",F204=0,F204="",$P201<>0,LEFT(F204,1)="D"),0,VLOOKUP(B204,INDIRECT(MatchDay!$W$2),2,FALSE)),"") -> 6 | Q204: =IFERROR(IF(OR(J204=0,J204="",M204=0,M204="",$P201<>0,LEFT(M204,1)="D"),0,VLOOKUP(I204,INDIRECT(MatchDay!$W$2),3,FALSE)),"") -> 4
A205: =IFERROR(VLOOKUP(A200,standards,4,FALSE)+0.01,"-") -> 25.31 | B205: 4 | C205: 4 | D205: =IFERROR(IF(A208=0,HLOOKUP(C205,Declarations!$D$2:$S$193,A202,FALSE),HLOOKUP(VLOOKUP(C205,Teams!$Y$2:$Z$18,2,FALSE),Declarations!$D$2:$S$193,A202,FALSE)),"") -> Petra Sijuwade | E205: SNH | F205: 26.7 | G205: =IFERROR(IF(OR(F205=0,F205="",F205>$A$9-0.01),"",VLOOKUP(VLOOKUP(F205,A203:B207,2,TRUE),Points!$H$7:$I$10,2,FALSE)),"") ->  | I205: 4 | J205: 55 | K205: =IFERROR(IF(A208=0,HLOOKUP(J205,Declarations!$D$2:$S$193,A202,FALSE),HLOOKUP(VLOOKUP(J205,Teams!$Y$2:$Z$18,2,FALSE),Declarations!$D$2:$S$193,A202,FALSE)),"") -> Eleanor Griffin | L205: Beds | M205: 27.6 | N205: =IFERROR(IF(OR(M205=0,M205="",M205>$A$9-0.01),"",VLOOKUP(VLOOKUP(M205,A203:B207,2,TRUE),Points!$H$7:$I$10,2,FALSE)),"") ->  | P205: =IFERROR(IF(OR(C205=0,C205="",F205=0,F205="",$P201<>0,LEFT(F205,1)="D"),0,VLOOKUP(B205,INDIRECT(MatchDay!$W$2),2,FALSE)),"") -> 5 | Q205: =IFERROR(IF(OR(J205=0,J205="",M205=0,M205="",$P201<>0,LEFT(M205,1)="D"),0,VLOOKUP(I205,INDIRECT(MatchDay!$W$2),3,FALSE)),"") -> 3
A206: =IFERROR(VLOOKUP(A200,standards,5,FALSE)+0.01,"-") -> 25.81 | B206: 5 | C206: 3 | D206: =IFERROR(IF(A208=0,HLOOKUP(C206,Declarations!$D$2:$S$193,A202,FALSE),HLOOKUP(VLOOKUP(C206,Teams!$Y$2:$Z$18,2,FALSE),Declarations!$D$2:$S$193,A202,FALSE)),"") -> Katie Dawson | E206: Have | F206: 28.1 | G206: =IFERROR(IF(OR(F206=0,F206="",F206>$A$9-0.01),"",VLOOKUP(VLOOKUP(F206,A203:B207,2,TRUE),Points!$H$7:$I$10,2,FALSE)),"") ->  | I206: 5 | J206: 33 | K206: =IFERROR(IF(A208=0,HLOOKUP(J206,Declarations!$D$2:$S$193,A202,FALSE),HLOOKUP(VLOOKUP(J206,Teams!$Y$2:$Z$18,2,FALSE),Declarations!$D$2:$S$193,A202,FALSE)),"") -> Holly Nash | L206: Have | M206: 28.5 | N206: =IFERROR(IF(OR(M206=0,M206="",M206>$A$9-0.01),"",VLOOKUP(VLOOKUP(M206,A203:B207,2,TRUE),Points!$H$7:$I$10,2,FALSE)),"") ->  | P206: =IFERROR(IF(OR(C206=0,C206="",F206=0,F206="",$P201<>0,LEFT(F206,1)="D"),0,VLOOKUP(B206,INDIRECT(MatchDay!$W$2),2,FALSE)),"") -> 4 | Q206: =IFERROR(IF(OR(J206=0,J206="",M206=0,M206="",$P201<>0,LEFT(M206,1)="D"),0,VLOOKUP(I206,INDIRECT(MatchDay!$W$2),3,FALSE)),"") -> 2
A207: =IFERROR(VLOOKUP(A200,standards,6,FALSE)+0.01,"-") -> 25.81 | B207: 6 | D207: =IFERROR(IF(A208=0,HLOOKUP(C207,Declarations!$D$2:$S$193,A202,FALSE),HLOOKUP(VLOOKUP(C207,Teams!$Y$2:$Z$18,2,FALSE),Declarations!$D$2:$S$193,A202,FALSE)),"") ->  | G207: =IFERROR(IF(OR(F207=0,F207="",F207>$A$9-0.01),"",VLOOKUP(VLOOKUP(F207,A203:B207,2,TRUE),Points!$H$7:$I$10,2,FALSE)),"") ->  | I207: 6 | K207: =IFERROR(IF(A208=0,HLOOKUP(J207,Declarations!$D$2:$S$193,A202,FALSE),HLOOKUP(VLOOKUP(J207,Teams!$Y$2:$Z$18,2,FALSE),Declarations!$D$2:$S$193,A202,FALSE)),"") ->  | N207: =IFERROR(IF(OR(M207=0,M207="",M207>$A$9-0.01),"",VLOOKUP(VLOOKUP(M207,A203:B207,2,TRUE),Points!$H$7:$I$10,2,FALSE)),"") ->  | P207: =IFERROR(IF(OR(C207=0,C207="",F207=0,F207="",$P201<>0,LEFT(F207,1)="D"),0,VLOOKUP(B207,INDIRECT(MatchDay!$W$2),2,FALSE)),"") -> 0 | Q207: =IFERROR(IF(OR(J207=0,J207="",M207=0,M207="",$P201<>0,LEFT(M207,1)="D"),0,VLOOKUP(I207,INDIRECT(MatchDay!$W$2),3,FALSE)),"") -> 0
A208: =IFERROR(SEARCH("U17",B200),0) -> 0 | B208: 7 | D208: =IFERROR(IF(A208=0,HLOOKUP(C208,Declarations!$D$2:$S$193,A202,FALSE),HLOOKUP(VLOOKUP(C208,Teams!$Y$2:$Z$18,2,FALSE),Declarations!$D$2:$S$193,A202,FALSE)),"") ->  | G208: =IFERROR(IF(OR(F208=0,F208="",F208>$A$9-0.01),"",VLOOKUP(VLOOKUP(F208,A203:B207,2,TRUE),Points!$H$7:$I$10,2,FALSE)),"") ->  | I208: 7 | K208: =IFERROR(IF(A208=0,HLOOKUP(J208,Declarations!$D$2:$S$193,A202,FALSE),HLOOKUP(VLOOKUP(J208,Teams!$Y$2:$Z$18,2,FALSE),Declarations!$D$2:$S$193,A202,FALSE)),"") ->  | N208: =IFERROR(IF(OR(M208=0,M208="",M208>$A$9-0.01),"",VLOOKUP(VLOOKUP(M208,A203:B207,2,TRUE),Points!$H$7:$I$10,2,FALSE)),"") ->  | P208: =IFERROR(IF(OR(C208=0,C208="",F208=0,F208="",$P201<>0,LEFT(F208,1)="D"),0,VLOOKUP(B208,INDIRECT(MatchDay!$W$2),2,FALSE)),"") -> 0 | Q208: =IFERROR(IF(OR(J208=0,J208="",M208=0,M208="",$P201<>0,LEFT(M208,1)="D"),0,VLOOKUP(I208,INDIRECT(MatchDay!$W$2),3,FALSE)),"") -> 0
A209: =IFERROR(VLOOKUP(A200,records,5,FALSE),"") -> 23.08 | B209: 8 | D209: =IFERROR(IF(A208=0,HLOOKUP(C209,Declarations!$D$2:$S$193,A202,FALSE),HLOOKUP(VLOOKUP(C209,Teams!$Y$2:$Z$18,2,FALSE),Declarations!$D$2:$S$193,A202,FALSE)),"") ->  | G209: =IFERROR(IF(OR(F209=0,F209="",F209>$A$9-0.01),"",VLOOKUP(VLOOKUP(F209,A203:B207,2,TRUE),Points!$H$7:$I$10,2,FALSE)),"") ->  | I209: 8 | K209: =IFERROR(IF(A208=0,HLOOKUP(J209,Declarations!$D$2:$S$193,A202,FALSE),HLOOKUP(VLOOKUP(J209,Teams!$Y$2:$Z$18,2,FALSE),Declarations!$D$2:$S$193,A202,FALSE)),"") ->  | N209: =IFERROR(IF(OR(M209=0,M209="",M209>$A$9-0.01),"",VLOOKUP(VLOOKUP(M209,A203:B207,2,TRUE),Points!$H$7:$I$10,2,FALSE)),"") ->  | P209: =IFERROR(IF(OR(C209=0,C209="",F209=0,F209="",$P201<>0,LEFT(F209,1)="D"),0,VLOOKUP(B209,INDIRECT(MatchDay!$W$2),2,FALSE)),"") -> 0 | Q209: =IFERROR(IF(OR(J209=0,J209="",M209=0,M209="",$P201<>0,LEFT(M209,1)="D"),0,VLOOKUP(I209,INDIRECT(MatchDay!$W$2),3,FALSE)),"") -> 0
A211: UT20 | B211: =IFERROR(VLOOKUP(A211,timetables,2,FALSE)&" "&VLOOKUP(A211,timetables,3,FALSE)&" A","") -> 200m U17 Women A | E211: =IFERROR(IF(VLOOKUP($A211,timetables,8,FALSE)="W","Wind = ",""),"") -> Wind = | G211: =IFERROR(IF(OR(F213=0,F213=""),"",IF(F213<A220,"REC",IF(F213=A220,"=Rec",""))),"") ->  | I211: =IFERROR(VLOOKUP(A211,timetables,2,FALSE)&" "&VLOOKUP(A211,timetables,3,FALSE)&" B","") -> 200m U17 Women B | L211: =IFERROR(IF(VLOOKUP($A211,timetables,8,FALSE)="W","Wind = ",""),"") -> Wind = | P211: A | Q211: B
A212: T20 | B212: Posn | C212: No. | D212: Athlete | E212: Club | F212: Perf | G212: AAA | I212: Posn | J212: No. | K212: Athlete | L212: Club | M212: Perf | N212: AAA | P212: =IFERROR(SEARCH("NS",B211),0) -> 0
A213: =IFERROR(VLOOKUP(A211,Timetables!$A:$E,5,FALSE)-1,"") -> 127 | B213: 1 | C213: B | D213: =IFERROR(IF(A219=0,HLOOKUP(C213,Declarations!$D$2:$S$193,A213,FALSE),HLOOKUP(VLOOKUP(C213,Teams!$Y$2:$Z$18,2,FALSE),Declarations!$D$2:$S$193,A213,FALSE)),"") -> WANSELL Ella | E213: =IFERROR(VLOOKUP(C213,teamlookup,5,FALSE),"") -> E&H | F213: 25.6 | G213: =IFERROR(IF(OR(F213=0,F213="",F213>$A$9-0.01),"",VLOOKUP(VLOOKUP(F213,A214:B218,2,TRUE),Points!$H$7:$I$10,2,FALSE)),"") -> 2 | I213: 1 | J213: BB | K213: =IFERROR(IF(A219=0,HLOOKUP(J213,Declarations!$D$2:$S$193,A213,FALSE),HLOOKUP(VLOOKUP(J213,Teams!$Y$2:$Z$18,2,FALSE),Declarations!$D$2:$S$193,A213,FALSE)),"") -> WICKS Skye | L213: =IFERROR(VLOOKUP(J213,teamlookup,5,FALSE),"") -> E&H | M213: 25.6 | N213: =IFERROR(IF(OR(M213=0,M213="",M213>$A$9-0.01),"",VLOOKUP(VLOOKUP(M213,A214:B218,2,TRUE),Points!$H$7:$I$10,2,FALSE)),"") -> 2 | P213: =IFERROR(IF(OR(C213=0,C213="",F213=0,F213="",$P212<>0,LEFT(F213,1)="D"),0,VLOOKUP(B213,INDIRECT(MatchDay!$W$2),2,FALSE)),"") -> 9 | Q213: =IFERROR(IF(OR(J213=0,J213="",M213=0,M213="",$P212<>0,LEFT(M213,1)="D"),0,VLOOKUP(I213,INDIRECT(MatchDay!$W$2),3,FALSE)),"") -> 7 | R213: =COUNTIF(F213,">0") -> 1 | S213: =IFERROR(IF(A219=0,"numbers_","letters_"),"") -> letters_
